Workbook

Sheet Welcome Screen
B3: Aviva Salary Sacrifice Calculator 2024/2025 - Scottish Taxpayers
B5: Welcome to the Aviva salary sacrifice calculator (Scottish)
B7: This calculator is only for use by professional advisers, employers and scheme trustees.
B9: It is not suitable for use by Trustees or Employers of Net Pay Occupational Pension Schemes & Master Trusts
B11: Please ensure that Macros are enabled before proceeding.
B13: The calculator is optimised for viewing at 1280 x 1024 resolution.
B15: This calculator should not be regarded as giving any form of advice and is only a guide
B17: Please ensure you read the Important Notes before using the calculator
B21: Select the calculation type required from the options below
E24: or
B45: Version 2.6
B46: Mar 2024

Sheet Individual
B3: ='Welcome Screen'!B3 -> Aviva Salary Sacrifice Calculator 2024/2025 - Scottish Taxpayers
B5: Employer name : | C5: aa
B7: Employee name : | C7: Sam Smith
B9: Address line 1 : | C9: Test Error
B11: Address line 2 : | C11: Test Error
B13: Address line 3:
B15: Address line 4:
B17: Address line 5 :
B19: Post code : | C19: Test Error
B21: Effective date : | F21: 2024-05-15
B23: Gross salary pa | E23: £ | F23: 119543
B25: Personal allowance : | E25: £ | F25: 12570
B27: Contribution basis : | F27: Percentage of salary
B29: Display results as : | F29: Annually
B31: =CONCATENATE("Employee contribution ",IF(CONT_BASIS="Percentage of salary","% :","gross per month :")) -> Employee contribution % : | H31: =IF(CONT_BASIS="Fixed monetary amount","£","") ->  | I31: 4 | L31: =IF(CONT_BASIS="Percentage of salary","%","pm") -> %
B33: =CONCATENATE("Employer contribution ",IF(CONT_BASIS="Percentage of salary","% :","gross per month :")) -> Employer contribution % : | H33: =IF(CONT_BASIS="Fixed monetary amount","£","") ->  | I33: 4 | L33: =IF(CONT_BASIS="Percentage of salary","%","pm") -> %
B35: % of employer NI saving to pension : | I35: 50 | L35: %

Sheet Individual Results
B3: ='Welcome Screen'!B3 -> Aviva Salary Sacrifice Calculator 2024/2025 - Scottish Taxpayers
B5: =CONCATENATE("Results for ",INDIVIDUAL_NAME) -> Results for Sam Smith
B6: =CONCATENATE("All figures are shown ",IF(FREQ=1,"annually","monthly")) -> All figures are shown annually
F7: After Salary Sacrifice
B8: EMPLOYEE | D8: Before Salary Sacrifice | F8: Increase Net Pay, Same Pension Contribution | H8: Same Net Pay, Increase Pension Contribution
B10: =CONCATENATE("Gross salary ",IF(FREQ=1,"pa :","pm :")) -> Gross salary pa : | D10: =SALARY_BEFORE/FREQ -> 119543 | F10: =SALARY_AFTER/FREQ -> 114761.28 | H10: =SALARY_AFTER_SAME_NET/FREQ -> 114447.7246
B12: =CONCATENATE("Reduction in gross salary ",IF(FREQ=1,"pa :","pm :")) -> Reduction in gross salary pa : | F12: =SUM(D10-F10) -> 4781.72 | H12: =SUM(D10-H10) -> 5095.27541
B14: =CONCATENATE("Income tax ",IF(FREQ=1,"pa :","pm :")) -> Income tax pa : | D14: =Calculation!C27/FREQ -> 42947.4572 | F14: =Calculation!D27/FREQ -> 40742.174 | H14: =Calculation!E27/FREQ -> 40530.5241
B16: =CONCATENATE("NI contribution ",IF(FREQ=1,"pa :","pm :")) -> NI contribution pa : | D16: =Calculation!C32/FREQ -> 4401.46 | F16: =Calculation!D32/FREQ -> 4305.8256 | H16: =Calculation!E32/FREQ -> 4299.554492
B18: =CONCATENATE(IF(FREQ=1,"Annual ","Monthly "),"cost of pension contribution :") -> Annual cost of pension contribution : | D18: =(Calculation!C17-Calculation!C39)/FREQ -> 2576.4368 | F18: 0 | H18: 0
B20: =CONCATENATE("Net ",IF(FREQ=1,"annual ","monthly "),"income after pension contribution :") -> Net annual income after pension contribution : | D20: =(D10-D14-D16-D18) -> 69617.646 | F20: =(F10-F14-F16-F18) -> 69713.2804 | H20: =(H10-H14-H16-H18) -> 69617.646
B22: =CONCATENATE("Increase in net pay ",IF(FREQ=1,"pa :","pm :")) -> Increase in net pay pa : | F22: =F20-D20 -> 95.6344 | H22: =H20-D20 -> 0
B24: Percentage Increase in Net Pay : | F24: =F20/D20-1 -> 0.001373709189 | H24: =H20/D20-1 -> 0
B26: EMPLOYER
B28: =CONCATENATE("Gross Salary ",IF(FREQ=1,"pa :","pm :")) -> Gross Salary pa : | D28: =SALARY_BEFORE/FREQ -> 119543 | F28: =SALARY_AFTER/FREQ -> 114761.28 | H28: =SALARY_AFTER_SAME_NET/FREQ -> 114447.7246
B30: =CONCATENATE("NI Contribution ",IF(FREQ=1,"pa :","pm :")) -> NI Contribution pa : | D30: =Calculation!C35/FREQ -> 15241.134 | F30: =Calculation!D35/FREQ -> 14581.25664 | H30: =Calculation!E35/FREQ -> 14537.98599
B32: =CONCATENATE(IF(FREQ=1,"Annual ","Monthly "),"Contribution :") -> Annual Contribution : | D32: =Calculation!C18/FREQ -> 4781.72 | F32: =Calculation!D47/FREQ -> 9893.37868 | H32: =Calculation!E47/FREQ -> 10228.56941
B34: =CONCATENATE(IF(FREQ=1,"Annual ","Monthly "),"Cost to Employer :") -> Annual Cost to Employer : | D34: =SUM(D28:D32) -> 139565.854 | F34: =SUM(F28:F32) -> 139235.9153 | H34: =SUM(H28:H32) -> 139214.28
B37: PENSION CONTRIBUTIONS
B39: =CONCATENATE(IF(FREQ=1,"Annual ","Monthly "),"employee pension contribution (incl tax relief) :") -> Annual employee pension contribution (incl tax relief) : | D39: =Calculation!C44/FREQ -> 4781.72 | F39: 0 | H39: 0
B41: =CONCATENATE(IF(FREQ=1,"Annual ","Monthly "),"employer pension contribution :") -> Annual employer pension contribution : | D41: =Calculation!C45/FREQ -> 4781.72 | F41: =Calculation!D47/FREQ -> 9893.37868 | H41: =Calculation!E47/FREQ -> 10228.56941
B43: =CONCATENATE("Total ",IF(FREQ=1,"Annual ","Monthly "),"Pension Contribution :") -> Total Annual Pension Contribution : | D43: =(D39+D41) -> 9563.44 | F43: =(F39+F41) -> 9893.37868 | H43: =(H39+H41) -> 10228.56941
B45: =CONCATENATE(IF(FREQ=1,"Annual ","Monthly "),"increase in pension contribution (due to employee NI/tax savings to pension) :") -> Annual increase in pension contribution (due to employee NI/tax savings to pension) : | F45: =Calculation!D54/FREQ -> 1.818989404e-12 | H45: =Calculation!E54/FREQ -> 313.5554098
B47: =CONCATENATE(IF(FREQ=1,"Annual ","Monthly "),"increase in pension contribution (due to employer NI saving to pension) :") -> Annual increase in pension contribution (due to employer NI saving to pension) : | F47: =Calculation!D55/FREQ -> 329.93868 | H47: =Calculation!E55/FREQ -> 351.5740033
B49: =CONCATENATE("Increase in ",IF(FREQ=1,"annual ","monthly "),"pension contribution :") -> Increase in annual pension contribution : | F49: =F43-D43 -> 329.93868 | H49: =H43-D43 -> 665.1294131
B51: Percentage Increase in Pension Contribution : | F51: =F43/D43-1 -> 0.0345 | H51: =H43/D43-1 -> 0.06954918033
B53: =CONCATENATE("Total increase to ",IF(FREQ=1,"annual ","monthly "),"net pay and/or pension :") -> Total increase to annual net pay and/or pension : | F53: =(F22+F49) -> 425.57308 | H53: =(H22+H49) -> 665.1294131
B55: Percentage increase in net pay and/or pension : | F55: =(F49+F22+D20)/D20-1 -> 0.006113005889 | H55: =(H49+H22+D20)/D20-1 -> 0.009554034808
B57: Total pension contribution as percentage of gross salary : | F57: =(F49+D43)/D10 -> 0.08276 | H57: =(D43+H49)/D10 -> 0.08556393443
B62: Aviva Life & Pensions UK Limited. Registered in England No. 3253947.
B63: Registered office: Aviva, Wellington Row, York, YO90 1WR.
B64: Authorised by the Prudential Regulation Authority and regulated by the Financial Conduct Authority
B65: and the Prudential Regulation Authority. Firm Reference Number 185896.
B66: Telephone 0345 602 9189 – calls may be recorded. www.aviva.co.uk

Sheet Bulk Run
B3: ='Bulk Run Results'!B4 -> Aviva Salary Sacrifice Calculator 2024/2025 - Scottish Taxpayers
B5: Employer name : | D5: ABC | W5: CALCULATION SPACE
B7: Effective date : | D7: 2022-04-30 | W7: BEFORE | AI7: AFTER INCREASE NET PAY | AQ7: AFTER SAME NET PAY
B9: Display results as : | D9: Annually | T9: Run From | U9: 1 | W9: Gross salary pa | X9: Personal allowance (will default to £12,750 if left blank) | Y9: Contribution Basis | Z9: Employee Contribution | AA9: Employer Contribution | AB9: ER NI | AC9: EE NI | AD9: EE Income Tax | AE9: EE Cont £ | AF9: ER Cont £ | AG9: Cost to Er | AH9: Net pay | AI9: SALARY | AJ9: ER NI | AK9: EE NI | AL9: EE Income Tax | AM9: ER CONT | AN9: ER COST | AO9: ER SAVING | AP9: Net Pay | AQ9: SALARY | AR9: ER NI | AS9: EE NI | AT9: EE Income Tax | AU9: ER CONT | AV9: ER COST | AW9: ER SAVING | AX9: Net Pay
B11: % of employer NI saving to pension : | D11: 0 | E11: % | T11: Run To | U11: =MAX(BRFrom,SUM($T$16:$T$1015)) -> 3
B13: Calculation basis : | D13: Same Net Pay | T13: Case | U13: 2 | W13: =INDEX($B$16:$R$1015,MATCH(BRNo,$A$16:$A$1015,0),MATCH(W$9,$B$15:$R$15,0)) -> 50000 | X13: =IF(INDEX($B$16:$R$1015,MATCH(BRNo,$A$16:$A$1015,0),MATCH(X$9,$B$15:$R$15,0))="",PERSONAL_ALLOWANCE,INDEX($B$16:$R$1015,MATCH(BRNo,$A$16:$A$1015,0),MATCH(X$9,$B$15:$R$15,0))) -> 12570 | Y13: =INDEX($B$16:$R$1015,MATCH(BRNo,$A$16:$A$1015,0),MATCH(Y$9,$B$15:$R$15,0)) -> Fixed monetary amount | Z13: =INDEX($B$16:$R$1015,MATCH(BRNo,$A$16:$A$1015,0),MATCH(Z$9,$B$15:$R$15,0)+1) -> 100 | AA13: =INDEX($B$16:$R$1015,MATCH(BRNo,$A$16:$A$1015,0),MATCH(AA$9,$B$15:$R$15,0)+1) -> 100 | AB13: =Calculation!C35/FREQ_BULK -> 15241.134 | AC13: =Calculation!C32/FREQ_BULK -> 4401.46 | AD13: =Calculation!C27/FREQ_BULK -> 42947.4572 | AE13: =Calculation!C16/FREQ_BULK -> 4781.72 | AF13: =Calculation!C18/FREQ_BULK -> 4781.72 | AG13: =BULK_SALARY/FREQ_BULK+AB13+AF13 -> 70022.854 | AH13: =Calculation!C40/FREQ_BULK -> 69617.646 | AI13: =SALARY_AFTER/FREQ_BULK -> 114761.28 | AJ13: =Calculation!D35/FREQ_BULK -> 14581.25664 | AK13: =Calculation!D32/FREQ_BULK -> 4305.8256 | AL13: =Calculation!D27/FREQ_BULK -> 40742.174 | AM13: =Calculation!D47/FREQ_BULK -> 9893.37868 | AN13: =SALARY_AFTER/FREQ_BULK+AJ13+AM13 -> 139235.9153 | AO13: =AG13-AN13 -> -69213.06132 | AP13: =Calculation!D40/FREQ_BULK -> 69713.2804 | AQ13: =SALARY_AFTER_SAME_NET/FREQ_BULK -> 114447.7246 | AR13: =Calculation!E35/FREQ_BULK -> 14537.98599 | AS13: =Calculation!E32/FREQ_BULK -> 4299.554492 | AT13: =Calculation!E27/FREQ_BULK -> 40530.5241 | AU13: =Calculation!E47/FREQ_BULK -> 10228.56941 | AV13: =SALARY_AFTER_SAME_NET/FREQ_BULK+AR13+AU13 -> 139214.28 | AW13: =AG13-AV13 -> -69191.426 | AX13: =Calculation!E40/FREQ_BULK -> 69617.646
B15: Employee reference | C15: Employee name | D15: Address line 1 | E15: Address line 2 | F15: Address line 3 | G15: Address line 4 | H15: Address line 5 | I15: Post code | J15: Gross salary pa | K15: Personal allowance (will default to £12,750 if left blank) | L15: Contribution basis | M15: Employee contribution | P15: Employer contribution | T15: Entry? | W15: RESULTS SPACE
A16: 1 | B16: A123 | C16: Sam Smith | D16: Flat 1 | E16: York | F16: North Yorkshire | I16: YO90 1WR | J16: 30000 | L16: Percentage of salary | M16: =IF($L16="Fixed monetary amount","£","") ->  | N16: 4 | O16: =IF($L16="Percentage of salary","%",IF($L16="Fixed monetary amount","pm","")) -> % | P16: =IF($L16="Fixed monetary amount","£","") ->  | Q16: 10 | R16: =IF($L16="Percentage of salary","%",IF($L16="Fixed monetary amount","pm","")) -> % | T16: =IF(COUNTA(B16:L16,N16,Q16)>0,1,0) -> 1 | W16: 30000 | X16: 12570 | Y16: Percentage of salary | Z16: 4 | AA16: 10 | AB16: 2884.2 | AC16: 2091.6 | AD16: 3507.5 | AE16: 1200 | AF16: 3000 | AG16: 35884.2 | AH16: 23452.9 | AI16: 28800 | AJ16: 2718.6 | AK16: 1947.6 | AL16: 3255.5 | AM16: 4200 | AN16: 35718.6 | AO16: 165.6 | AP16: 23596.9 | AQ16: 28585.07463 | AR16: 2688.940299 | AS16: 1921.808955 | AT16: 3210.365672 | AU16: 4414.925373 | AV16: 35688.9403 | AW16: 195.2597015 | AX16: 23452.9
A17: 2 | B17: B456 | C17: Billie Jones | D17: Flat 2 | E17: York | I17: YO90 1WR | J17: 50000 | L17: Fixed monetary amount | M17: =IF($L17="Fixed monetary amount","£","") -> £ | N17: 100 | O17: =IF($L17="Percentage of salary","%",IF($L17="Fixed monetary amount","pm","")) -> pm | P17: =IF($L17="Fixed monetary amount","£","") -> £ | Q17: 100 | R17: =IF($L17="Percentage of salary","%",IF($L17="Fixed monetary amount","pm","")) -> pm | T17: 1 | W17: 50000 | X17: 12570 | Y17: Fixed monetary amount | Z17: 100 | AA17: 100 | AB17: 5644.2 | AC17: 4491.6 | AD17: 9038.48 | AE17: 1200 | AF17: 1200 | AG17: 56844.2 | AH17: 35773.92 | AI17: 48800 | AJ17: 5478.6 | AK17: 4347.6 | AL17: 8534.48 | AM17: 2400 | AN17: 56678.6 | AO17: 165.6 | AP17: 35917.92 | AQ17: 48486.95652 | AR17: 5435.4 | AS17: 4310.034783 | AT17: 8403.001739 | AU17: 2713.043478 | AV17: 56635.4 | AW17: 208.8 | AX17: 35773.92
A18: 3 | B18: C789 | C18: Riley Taylor | D18: Flat 3 | E18: Block D | F18: York | G18: North Yorkshire | I18: YO90 1WR | J18: 30000 | L18: Percentage of salary | N18: 4 | O18: % | Q18: 10 | R18: % | T18: 1
A19: 4 | T19: 0
A20: 5 | T20: 0
A21: 6 | T21: 0
A22: 7 | T22: 0
A23: 8 | T23: 0
A24: 9 | T24: 0
A25: 10 | O25: =IF($L25="Percentage of salary","%",IF($L25="Fixed monetary amount","pm","")) ->  | P25: =IF($L25="Fixed monetary amount","£","") ->  | R25: =IF($L25="Percentage of salary","%",IF($L25="Fixed monetary amount","pm","")) ->  | T25: 0
A26: 11 | T26: 0
A27: 12 | T27: 0
A28: 13 | T28: 0
A29: 14 | T29: 0
A30: 15 | T30: 0
A31: 16 | T31: 0
A32: 17 | T32: 0
A33: 18 | T33: 0
A34: 19 | T34: 0
A35: 20 | T35: 0
A36: 21 | T36: 0
A37: 22 | T37: 0
A38: 23 | T38: 0
A39: 24 | T39: 0
A40: 25 | T40: 0
A41: 26 | T41: 0
A42: 27 | T42: 0
A43: 28 | T43: 0
A44: 29 | T44: 0
A45: 30 | T45: 0
A46: 31 | T46: 0
A47: 32 | T47: 0
A48: 33 | T48: 0
A49: 34 | T49: 0
A50: 35 | T50: 0
A51: 36 | T51: 0
A52: 37 | T52: 0
A53: 38 | T53: 0
A54: 39 | T54: 0
A55: 40 | T55: 0
A56: 41 | T56: 0
A57: 42 | T57: 0
A58: 43 | T58: 0
A59: 44 | T59: 0
A60: 45 | T60: 0
A61: 46 | T61: 0
A62: 47 | T62: 0
A63: 48 | T63: 0
A64: 49 | T64: 0
A65: 50 | T65: 0
A66: 51 | T66: 0
A67: 52 | T67: 0
A68: 53 | T68: 0
A69: 54 | T69: 0
A70: 55 | T70: 0
A71: 56 | T71: 0
A72: 57 | T72: 0
A73: 58 | T73: 0
A74: 59 | T74: 0
A75: 60 | T75: 0
A76: 61 | T76: 0
A77: 62 | T77: 0
A78: 63 | T78: 0
A79: 64 | T79: 0
A80: 65 | O80: =IF($L80="Percentage of salary","%",IF($L80="Fixed monetary amount","pm","")) ->  | T80: =IF(COUNTA(B80:L80,N80,Q80)>0,1,0) -> 0
A81: 66 | P81: =IF($L81="Fixed monetary amount","£","") ->  | R81: =IF($L81="Percentage of salary","%",IF($L81="Fixed monetary amount","pm","")) ->  | T81: 0
A82: 67 | T82: 0
A83: 68 | T83: 0
A84: 69 | T84: 0
A85: 70 | T85: 0
A86: 71 | T86: 0
A87: 72 | T87: 0
A88: 73 | T88: 0
A89: 74 | T89: 0
A90: 75 | T90: 0
A91: 76 | T91: 0
A92: 77 | T92: 0
A93: 78 | T93: 0
A94: 79 | T94: 0
A95: 80 | T95: 0
A96: 81 | T96: 0
A97: 82 | T97: 0
A98: 83 | T98: 0
A99: 84 | T99: 0
A100: 85 | T100: 0
A101: 86 | T101: 0
A102: 87 | T102: 0
A103: 88 | T103: 0
A104: 89 | T104: 0
A105: 90 | T105: 0
A106: 91 | T106: 0
A107: 92 | T107: 0
A108: 93 | T108: 0
A109: 94 | T109: 0
A110: 95 | T110: 0
A111: 96 | T111: 0
A112: 97 | T112: 0
A113: 98 | T113: 0
A114: 99 | T114: 0
A115: 100 | T115: 0
A116: 101 | T116: 0
A117: 102 | T117: 0
A118: 103 | T118: 0
A119: 104 | T119: 0
A120: 105 | T120: 0
A121: 106 | T121: 0
A122: 107 | T122: 0
A123: 108 | T123: 0
A124: 109 | T124: 0
A125: 110 | T125: 0
A126: 111 | T126: 0
A127: 112 | T127: 0
A128: 113 | T128: 0
A129: 114 | T129: 0
A130: 115 | T130: 0
A131: 116 | T131: 0
A132: 117 | T132: 0
A133: 118 | T133: 0
A134: 119 | T134: 0
A135: 120 | T135: 0
A136: 121 | T136: 0
A137: 122 | T137: 0
A138: 123 | T138: 0
A139: 124 | T139: 0
A140: 125 | T140: 0
A141: 126 | T141: 0
A142: 127 | T142: 0
A143: 128 | T143: 0
A144: 129 | O144: =IF($L144="Percentage of salary","%",IF($L144="Fixed monetary amount","pm","")) ->  | T144: =IF(COUNTA(B144:L144,N144,Q144)>0,1,0) -> 0
A145: 130 | P145: =IF($L145="Fixed monetary amount","£","") ->  | R145: =IF($L145="Percentage of salary","%",IF($L145="Fixed monetary amount","pm","")) ->  | T145: 0
A146: 131 | T146: 0
A147: 132 | T147: 0
A148: 133 | T148: 0
A149: 134 | T149: 0
A150: 135 | T150: 0
A151: 136 | T151: 0
A152: 137 | T152: 0
A153: 138 | T153: 0
A154: 139 | T154: 0
A155: 140 | T155: 0
A156: 141 | T156: 0
A157: 142 | T157: 0
A158: 143 | T158: 0
A159: 144 | T159: 0
A160: 145 | T160: 0
A161: 146 | T161: 0
A162: 147 | T162: 0
A163: 148 | T163: 0
A164: 149 | T164: 0
A165: 150 | T165: 0
A166: 151 | T166: 0
A167: 152 | T167: 0
A168: 153 | T168: 0
A169: 154 | T169: 0
A170: 155 | T170: 0
A171: 156 | T171: 0
A172: 157 | T172: 0
A173: 158 | T173: 0
A174: 159 | T174: 0
A175: 160 | T175: 0
A176: 161 | T176: 0
A177: 162 | T177: 0
A178: 163 | T178: 0
A179: 164 | T179: 0
A180: 165 | T180: 0
A181: 166 | T181: 0
A182: 167 | T182: 0
A183: 168 | T183: 0
A184: 169 | T184: 0
A185: 170 | T185: 0
A186: 171 | T186: 0
A187: 172 | T187: 0
A188: 173 | T188: 0
A189: 174 | T189: 0
A190: 175 | T190: 0
A191: 176 | T191: 0
A192: 177 | T192: 0
A193: 178 | T193: 0
A194: 179 | T194: 0
A195: 180 | T195: 0
A196: 181 | T196: 0
A197: 182 | T197: 0
A198: 183 | T198: 0
A199: 184 | T199: 0
A200: 185 | T200: 0
A201: 186 | T201: 0
A202: 187 | T202: 0
A203: 188 | T203: 0
A204: 189 | T204: 0
A205: 190 | T205: 0
A206: 191 | T206: 0
A207: 192 | T207: 0
A208: 193 | O208: =IF($L208="Percentage of salary","%",IF($L208="Fixed monetary amount","pm","")) ->  | T208: =IF(COUNTA(B208:L208,N208,Q208)>0,1,0) -> 0
... 807 more rows

Sheet Bulk Run Results
B4: ='Welcome Screen'!B3 -> Aviva Salary Sacrifice Calculator 2024/2025 - Scottish Taxpayers | N4: =B4 -> Aviva Salary Sacrifice Calculator 2024/2025 - Scottish Taxpayers
B6: =CONCATENATE("All figures are shown ",IF(FREQ_BULK=1,"annually","monthly")) -> All figures are shown annually | N6: =CONCATENATE("All figures are shown ",IF(FREQ=1,"annually","monthly")) -> All figures are shown annually
C14: =BRTo -> 3 | D14: Before Salary Sacrifice | P14: =CONCATENATE("After Salary Sacrifice, ",'Bulk Run'!D13) -> After Salary Sacrifice, Same Net Pay
B15: Employee Reference | C15: Employee Name | D15: =CONCATENATE("Gross Salary ",IF(FREQ_BULK=1,"pa","pm")) -> Gross Salary pa | E15: =CONCATENATE("Employer NI Contribution ",IF(FREQ_BULK=1,"pa","pm")) -> Employer NI Contribution pa | F15: =CONCATENATE(IF(FREQ_BULK=1,"Annual ","Monthly "),"Employer Pension Contribution") -> Annual Employer Pension Contribution | G15: =CONCATENATE(IF(FREQ_BULK=1,"Annual ","Monthly "),"Cost to Employer") -> Annual Cost to Employer | H15: =CONCATENATE("Employee NI Contribution ",IF(FREQ_BULK=1,"pa","pm")) -> Employee NI Contribution pa | I15: =CONCATENATE("Employee Income Tax ",IF(FREQ_BULK=1,"pa","pm")) -> Employee Income Tax pa | J15: =CONCATENATE(IF(FREQ_BULK=1,"Annual ","Monthly "),"Employee Pension Contribution (Gross)") -> Annual Employee Pension Contribution (Gross) | K15: =CONCATENATE("Net Pay ",IF(FREQ_BULK=1,"pa","pm")) -> Net Pay pa | N15: Employee Reference | O15: Employee Name | P15: =CONCATENATE("Gross Salary ",IF(FREQ_BULK=1,"pa","pm")) -> Gross Salary pa | Q15: =CONCATENATE("Employer NI Contribution ",IF(FREQ_BULK=1,"pa","pm")) -> Employer NI Contribution pa | R15: =CONCATENATE(IF(FREQ_BULK=1,"Annual ","Monthly "),"Employer Pension Contribution") -> Annual Employer Pension Contribution | S15: =CONCATENATE(IF(FREQ_BULK=1,"Annual ","Monthly "),"Cost to Employer") -> Annual Cost to Employer | T15: =CONCATENATE("Employer Saving ",IF(FREQ_BULK=1,"pa","pm")) -> Employer Saving pa | U15: =CONCATENATE("Employee NI Contribution ",IF(FREQ_BULK=1,"pa","pm")) -> Employee NI Contribution pa | V15: =CONCATENATE("Employee Income Tax ",IF(FREQ_BULK=1,"pa","pm")) -> Employee Income Tax pa | W15: =CONCATENATE("Net Pay ",IF(FREQ_BULK=1,"pa","pm")) -> Net Pay pa
A16: 1 | B16: =IF('Bulk Run'!B16="","",'Bulk Run'!B16) -> A123 | C16: =IF('Bulk Run'!C16="","",'Bulk Run'!C16) -> Sam Smith | D16: =IF(BRPaste="","",BRPaste/FREQ_BULK) -> 30000 | E16: =IF('Bulk Run'!AB16="","",'Bulk Run'!AB16) -> 2884.2 | F16: =IF('Bulk Run'!AF16="","",'Bulk Run'!AF16) -> 3000 | G16: =IF('Bulk Run'!AG16="","",'Bulk Run'!AG16) -> 35884.2 | H16: =IF('Bulk Run'!AC16="","",'Bulk Run'!AC16) -> 2091.6 | I16: =IF('Bulk Run'!AD16="","",'Bulk Run'!AD16) -> 3507.5 | J16: =IF('Bulk Run'!AE16="","",'Bulk Run'!AE16) -> 1200 | K16: =IF('Bulk Run'!AH16="","",'Bulk Run'!AH16) -> 23452.9 | N16: =IF('Bulk Run'!B16="","",'Bulk Run'!B16) -> A123 | O16: =IF('Bulk Run'!C16="","",'Bulk Run'!C16) -> Sam Smith | P16: =IF(CALC_BASIS_BULK="Increase Net Pay",IF('Bulk Run'!AI16="","",'Bulk Run'!AI16),IF('Bulk Run'!AQ16="","",'Bulk Run'!AQ16)) -> 28585.07463 | Q16: =IF(CALC_BASIS_BULK="Increase Net Pay",IF('Bulk Run'!AJ16="","",'Bulk Run'!AJ16),IF('Bulk Run'!AR16="","",'Bulk Run'!AR16)) -> 2688.940299 | R16: =IF(CALC_BASIS_BULK="Increase Net Pay",IF('Bulk Run'!AM16="","",'Bulk Run'!AM16),IF('Bulk Run'!AU16="","",'Bulk Run'!AU16)) -> 4414.925373 | S16: =IF(CALC_BASIS_BULK="Increase Net Pay",IF('Bulk Run'!AN16="","",'Bulk Run'!AN16),IF('Bulk Run'!AV16="","",'Bulk Run'!AV16)) -> 35688.9403 | T16: =IF(CALC_BASIS_BULK="Increase Net Pay",IF('Bulk Run'!AO16="","",'Bulk Run'!AO16),IF('Bulk Run'!AW16="","",'Bulk Run'!AW16)) -> 195.2597015 | U16: =IF(CALC_BASIS_BULK="Increase Net Pay",IF('Bulk Run'!AK16="","",'Bulk Run'!AK16),IF('Bulk Run'!AS16="","",'Bulk Run'!AS16)) -> 1921.808955 | V16: =IF(CALC_BASIS_BULK="Increase Net Pay",IF('Bulk Run'!AL16="","",'Bulk Run'!AL16),IF('Bulk Run'!AT16="","",'Bulk Run'!AT16)) -> 3210.365672 | W16: =IF(CALC_BASIS_BULK="Increase Net Pay",IF('Bulk Run'!AP16="","",'Bulk Run'!AP16),IF('Bulk Run'!AX16="","",'Bulk Run'!AX16)) -> 23452.9
A17: 2 | B17: =IF('Bulk Run'!B17="","",'Bulk Run'!B17) -> B456 | C17: =IF('Bulk Run'!C17="","",'Bulk Run'!C17) -> Billie Jones | D17: =IF('Bulk Run'!W17="","",'Bulk Run'!W17/FREQ_BULK) -> 50000 | E17: =IF('Bulk Run'!AB17="","",'Bulk Run'!AB17) -> 5644.2 | F17: =IF('Bulk Run'!AF17="","",'Bulk Run'!AF17) -> 1200 | G17: =IF('Bulk Run'!AG17="","",'Bulk Run'!AG17) -> 56844.2 | H17: =IF('Bulk Run'!AC17="","",'Bulk Run'!AC17) -> 4491.6 | I17: =IF('Bulk Run'!AD17="","",'Bulk Run'!AD17) -> 9038.48 | J17: =IF('Bulk Run'!AE17="","",'Bulk Run'!AE17) -> 1200 | K17: =IF('Bulk Run'!AH17="","",'Bulk Run'!AH17) -> 35773.92 | N17: =IF('Bulk Run'!B17="","",'Bulk Run'!B17) -> B456 | O17: =IF('Bulk Run'!C17="","",'Bulk Run'!C17) -> Billie Jones | P17: =IF(CALC_BASIS_BULK="Increase Net Pay",IF('Bulk Run'!AI17="","",'Bulk Run'!AI17),IF('Bulk Run'!AQ17="","",'Bulk Run'!AQ17)) -> 48486.95652 | Q17: =IF(CALC_BASIS_BULK="Increase Net Pay",IF('Bulk Run'!AJ17="","",'Bulk Run'!AJ17),IF('Bulk Run'!AR17="","",'Bulk Run'!AR17)) -> 5435.4 | R17: =IF(CALC_BASIS_BULK="Increase Net Pay",IF('Bulk Run'!AM17="","",'Bulk Run'!AM17),IF('Bulk Run'!AU17="","",'Bulk Run'!AU17)) -> 2713.043478 | S17: =IF(CALC_BASIS_BULK="Increase Net Pay",IF('Bulk Run'!AN17="","",'Bulk Run'!AN17),IF('Bulk Run'!AV17="","",'Bulk Run'!AV17)) -> 56635.4 | T17: =IF(CALC_BASIS_BULK="Increase Net Pay",IF('Bulk Run'!AO17="","",'Bulk Run'!AO17),IF('Bulk Run'!AW17="","",'Bulk Run'!AW17)) -> 208.8 | U17: =IF(CALC_BASIS_BULK="Increase Net Pay",IF('Bulk Run'!AK17="","",'Bulk Run'!AK17),IF('Bulk Run'!AS17="","",'Bulk Run'!AS17)) -> 4310.034783 | V17: =IF(CALC_BASIS_BULK="Increase Net Pay",IF('Bulk Run'!AL17="","",'Bulk Run'!AL17),IF('Bulk Run'!AT17="","",'Bulk Run'!AT17)) -> 8403.001739 | W17: =IF(CALC_BASIS_BULK="Increase Net Pay",IF('Bulk Run'!AP17="","",'Bulk Run'!AP17),IF('Bulk Run'!AX17="","",'Bulk Run'!AX17)) -> 35773.92
A18: 3 | B18: =IF('Bulk Run'!B18="","",'Bulk Run'!B18) -> C789 | C18: =IF('Bulk Run'!C18="","",'Bulk Run'!C18) -> Riley Taylor | D18: =IF('Bulk Run'!W18="","",'Bulk Run'!W18/FREQ_BULK) ->  | E18: =IF('Bulk Run'!AB18="","",'Bulk Run'!AB18) ->  | F18: =IF('Bulk Run'!AF18="","",'Bulk Run'!AF18) ->  | G18: =IF('Bulk Run'!AG18="","",'Bulk Run'!AG18) ->  | H18: =IF('Bulk Run'!AC18="","",'Bulk Run'!AC18) ->  | I18: =IF('Bulk Run'!AD18="","",'Bulk Run'!AD18) ->  | J18: =IF('Bulk Run'!AE18="","",'Bulk Run'!AE18) ->  | K18: =IF('Bulk Run'!AH18="","",'Bulk Run'!AH18) ->  | N18: =IF('Bulk Run'!B18="","",'Bulk Run'!B18) -> C789 | O18: =IF('Bulk Run'!C18="","",'Bulk Run'!C18) -> Riley Taylor | P18: =IF(CALC_BASIS_BULK="Increase Net Pay",IF('Bulk Run'!AI18="","",'Bulk Run'!AI18),IF('Bulk Run'!AQ18="","",'Bulk Run'!AQ18)) ->  | Q18: =IF(CALC_BASIS_BULK="Increase Net Pay",IF('Bulk Run'!AJ18="","",'Bulk Run'!AJ18),IF('Bulk Run'!AR18="","",'Bulk Run'!AR18)) ->  | R18: =IF(CALC_BASIS_BULK="Increase Net Pay",IF('Bulk Run'!AM18="","",'Bulk Run'!AM18),IF('Bulk Run'!AU18="","",'Bulk Run'!AU18)) ->  | S18: =IF(CALC_BASIS_BULK="Increase Net Pay",IF('Bulk Run'!AN18="","",'Bulk Run'!AN18),IF('Bulk Run'!AV18="","",'Bulk Run'!AV18)) ->  | T18: =IF(CALC_BASIS_BULK="Increase Net Pay",IF('Bulk Run'!AO18="","",'Bulk Run'!AO18),IF('Bulk Run'!AW18="","",'Bulk Run'!AW18)) ->  | U18: =IF(CALC_BASIS_BULK="Increase Net Pay",IF('Bulk Run'!AK18="","",'Bulk Run'!AK18),IF('Bulk Run'!AS18="","",'Bulk Run'!AS18)) ->  | V18: =IF(CALC_BASIS_BULK="Increase Net Pay",IF('Bulk Run'!AL18="","",'Bulk Run'!AL18),IF('Bulk Run'!AT18="","",'Bulk Run'!AT18)) ->  | W18: =IF(CALC_BASIS_BULK="Increase Net Pay",IF('Bulk Run'!AP18="","",'Bulk Run'!AP18),IF('Bulk Run'!AX18="","",'Bulk Run'!AX18)) -> 
A19: 4 | B19: =IF('Bulk Run'!B19="","",'Bulk Run'!B19) ->  | C19: =IF('Bulk Run'!C19="","",'Bulk Run'!C19) ->  | D19: =IF('Bulk Run'!W19="","",'Bulk Run'!W19/FREQ_BULK) ->  | E19: =IF('Bulk Run'!AB19="","",'Bulk Run'!AB19) ->  | F19: =IF('Bulk Run'!AF19="","",'Bulk Run'!AF19) ->  | G19: =IF('Bulk Run'!AG19="","",'Bulk Run'!AG19) ->  | H19: =IF('Bulk Run'!AC19="","",'Bulk Run'!AC19) ->  | I19: =IF('Bulk Run'!AD19="","",'Bulk Run'!AD19) ->  | J19: =IF('Bulk Run'!AE19="","",'Bulk Run'!AE19) ->  | K19: =IF('Bulk Run'!AH19="","",'Bulk Run'!AH19) ->  | N19: =IF('Bulk Run'!B19="","",'Bulk Run'!B19) ->  | O19: =IF('Bulk Run'!C19="","",'Bulk Run'!C19) ->  | P19: =IF(CALC_BASIS_BULK="Increase Net Pay",IF('Bulk Run'!AI19="","",'Bulk Run'!AI19),IF('Bulk Run'!AQ19="","",'Bulk Run'!AQ19)) ->  | Q19: =IF(CALC_BASIS_BULK="Increase Net Pay",IF('Bulk Run'!AJ19="","",'Bulk Run'!AJ19),IF('Bulk Run'!AR19="","",'Bulk Run'!AR19)) ->  | R19: =IF(CALC_BASIS_BULK="Increase Net Pay",IF('Bulk Run'!AM19="","",'Bulk Run'!AM19),IF('Bulk Run'!AU19="","",'Bulk Run'!AU19)) ->  | S19: =IF(CALC_BASIS_BULK="Increase Net Pay",IF('Bulk Run'!AN19="","",'Bulk Run'!AN19),IF('Bulk Run'!AV19="","",'Bulk Run'!AV19)) ->  | T19: =IF(CALC_BASIS_BULK="Increase Net Pay",IF('Bulk Run'!AO19="","",'Bulk Run'!AO19),IF('Bulk Run'!AW19="","",'Bulk Run'!AW19)) ->  | U19: =IF(CALC_BASIS_BULK="Increase Net Pay",IF('Bulk Run'!AK19="","",'Bulk Run'!AK19),IF('Bulk Run'!AS19="","",'Bulk Run'!AS19)) ->  | V19: =IF(CALC_BASIS_BULK="Increase Net Pay",IF('Bulk Run'!AL19="","",'Bulk Run'!AL19),IF('Bulk Run'!AT19="","",'Bulk Run'!AT19)) ->  | W19: =IF(CALC_BASIS_BULK="Increase Net Pay",IF('Bulk Run'!AP19="","",'Bulk Run'!AP19),IF('Bulk Run'!AX19="","",'Bulk Run'!AX19)) -> 
A20: 5 | B20: =IF('Bulk Run'!B20="","",'Bulk Run'!B20) ->  | C20: =IF('Bulk Run'!C20="","",'Bulk Run'!C20) ->  | D20: =IF('Bulk Run'!W20="","",'Bulk Run'!W20/FREQ_BULK) ->  | E20: =IF('Bulk Run'!AB20="","",'Bulk Run'!AB20) ->  | F20: =IF('Bulk Run'!AF20="","",'Bulk Run'!AF20) ->  | G20: =IF('Bulk Run'!AG20="","",'Bulk Run'!AG20) ->  | H20: =IF('Bulk Run'!AC20="","",'Bulk Run'!AC20) ->  | I20: =IF('Bulk Run'!AD20="","",'Bulk Run'!AD20) ->  | J20: =IF('Bulk Run'!AE20="","",'Bulk Run'!AE20) ->  | K20: =IF('Bulk Run'!AH20="","",'Bulk Run'!AH20) ->  | N20: =IF('Bulk Run'!B20="","",'Bulk Run'!B20) ->  | O20: =IF('Bulk Run'!C20="","",'Bulk Run'!C20) ->  | P20: =IF(CALC_BASIS_BULK="Increase Net Pay",IF('Bulk Run'!AI20="","",'Bulk Run'!AI20),IF('Bulk Run'!AQ20="","",'Bulk Run'!AQ20)) ->  | Q20: =IF(CALC_BASIS_BULK="Increase Net Pay",IF('Bulk Run'!AJ20="","",'Bulk Run'!AJ20),IF('Bulk Run'!AR20="","",'Bulk Run'!AR20)) ->  | R20: =IF(CALC_BASIS_BULK="Increase Net Pay",IF('Bulk Run'!AM20="","",'Bulk Run'!AM20),IF('Bulk Run'!AU20="","",'Bulk Run'!AU20)) ->  | S20: =IF(CALC_BASIS_BULK="Increase Net Pay",IF('Bulk Run'!AN20="","",'Bulk Run'!AN20),IF('Bulk Run'!AV20="","",'Bulk Run'!AV20)) ->  | T20: =IF(CALC_BASIS_BULK="Increase Net Pay",IF('Bulk Run'!AO20="","",'Bulk Run'!AO20),IF('Bulk Run'!AW20="","",'Bulk Run'!AW20)) ->  | U20: =IF(CALC_BASIS_BULK="Increase Net Pay",IF('Bulk Run'!AK20="","",'Bulk Run'!AK20),IF('Bulk Run'!AS20="","",'Bulk Run'!AS20)) ->  | V20: =IF(CALC_BASIS_BULK="Increase Net Pay",IF('Bulk Run'!AL20="","",'Bulk Run'!AL20),IF('Bulk Run'!AT20="","",'Bulk Run'!AT20)) ->  | W20: =IF(CALC_BASIS_BULK="Increase Net Pay",IF('Bulk Run'!AP20="","",'Bulk Run'!AP20),IF('Bulk Run'!AX20="","",'Bulk Run'!AX20)) -> 
A21: 6 | B21: =IF('Bulk Run'!B21="","",'Bulk Run'!B21) ->  | C21: =IF('Bulk Run'!C21="","",'Bulk Run'!C21) ->  | D21: =IF('Bulk Run'!W21="","",'Bulk Run'!W21/FREQ_BULK) ->  | E21: =IF('Bulk Run'!AB21="","",'Bulk Run'!AB21) ->  | F21: =IF('Bulk Run'!AF21="","",'Bulk Run'!AF21) ->  | G21: =IF('Bulk Run'!AG21="","",'Bulk Run'!AG21) ->  | H21: =IF('Bulk Run'!AC21="","",'Bulk Run'!AC21) ->  | I21: =IF('Bulk Run'!AD21="","",'Bulk Run'!AD21) ->  | J21: =IF('Bulk Run'!AE21="","",'Bulk Run'!AE21) ->  | K21: =IF('Bulk Run'!AH21="","",'Bulk Run'!AH21) ->  | N21: =IF('Bulk Run'!B21="","",'Bulk Run'!B21) ->  | O21: =IF('Bulk Run'!C21="","",'Bulk Run'!C21) ->  | P21: =IF(CALC_BASIS_BULK="Increase Net Pay",IF('Bulk Run'!AI21="","",'Bulk Run'!AI21),IF('Bulk Run'!AQ21="","",'Bulk Run'!AQ21)) ->  | Q21: =IF(CALC_BASIS_BULK="Increase Net Pay",IF('Bulk Run'!AJ21="","",'Bulk Run'!AJ21),IF('Bulk Run'!AR21="","",'Bulk Run'!AR21)) ->  | R21: =IF(CALC_BASIS_BULK="Increase Net Pay",IF('Bulk Run'!AM21="","",'Bulk Run'!AM21),IF('Bulk Run'!AU21="","",'Bulk Run'!AU21)) ->  | S21: =IF(CALC_BASIS_BULK="Increase Net Pay",IF('Bulk Run'!AN21="","",'Bulk Run'!AN21),IF('Bulk Run'!AV21="","",'Bulk Run'!AV21)) ->  | T21: =IF(CALC_BASIS_BULK="Increase Net Pay",IF('Bulk Run'!AO21="","",'Bulk Run'!AO21),IF('Bulk Run'!AW21="","",'Bulk Run'!AW21)) ->  | U21: =IF(CALC_BASIS_BULK="Increase Net Pay",IF('Bulk Run'!AK21="","",'Bulk Run'!AK21),IF('Bulk Run'!AS21="","",'Bulk Run'!AS21)) ->  | V21: =IF(CALC_BASIS_BULK="Increase Net Pay",IF('Bulk Run'!AL21="","",'Bulk Run'!AL21),IF('Bulk Run'!AT21="","",'Bulk Run'!AT21)) ->  | W21: =IF(CALC_BASIS_BULK="Increase Net Pay",IF('Bulk Run'!AP21="","",'Bulk Run'!AP21),IF('Bulk Run'!AX21="","",'Bulk Run'!AX21)) -> 
A22: 7 | B22: =IF('Bulk Run'!B22="","",'Bulk Run'!B22) ->  | C22: =IF('Bulk Run'!C22="","",'Bulk Run'!C22) ->  | D22: =IF('Bulk Run'!W22="","",'Bulk Run'!W22/FREQ_BULK) ->  | E22: =IF('Bulk Run'!AB22="","",'Bulk Run'!AB22) ->  | F22: =IF('Bulk Run'!AF22="","",'Bulk Run'!AF22) ->  | G22: =IF('Bulk Run'!AG22="","",'Bulk Run'!AG22) ->  | H22: =IF('Bulk Run'!AC22="","",'Bulk Run'!AC22) ->  | I22: =IF('Bulk Run'!AD22="","",'Bulk Run'!AD22) ->  | J22: =IF('Bulk Run'!AE22="","",'Bulk Run'!AE22) ->  | K22: =IF('Bulk Run'!AH22="","",'Bulk Run'!AH22) ->  | N22: =IF('Bulk Run'!B22="","",'Bulk Run'!B22) ->  | O22: =IF('Bulk Run'!C22="","",'Bulk Run'!C22) ->  | P22: =IF(CALC_BASIS_BULK="Increase Net Pay",IF('Bulk Run'!AI22="","",'Bulk Run'!AI22),IF('Bulk Run'!AQ22="","",'Bulk Run'!AQ22)) ->  | Q22: =IF(CALC_BASIS_BULK="Increase Net Pay",IF('Bulk Run'!AJ22="","",'Bulk Run'!AJ22),IF('Bulk Run'!AR22="","",'Bulk Run'!AR22)) ->  | R22: =IF(CALC_BASIS_BULK="Increase Net Pay",IF('Bulk Run'!AM22="","",'Bulk Run'!AM22),IF('Bulk Run'!AU22="","",'Bulk Run'!AU22)) ->  | S22: =IF(CALC_BASIS_BULK="Increase Net Pay",IF('Bulk Run'!AN22="","",'Bulk Run'!AN22),IF('Bulk Run'!AV22="","",'Bulk Run'!AV22)) ->  | T22: =IF(CALC_BASIS_BULK="Increase Net Pay",IF('Bulk Run'!AO22="","",'Bulk Run'!AO22),IF('Bulk Run'!AW22="","",'Bulk Run'!AW22)) ->  | U22: =IF(CALC_BASIS_BULK="Increase Net Pay",IF('Bulk Run'!AK22="","",'Bulk Run'!AK22),IF('Bulk Run'!AS22="","",'Bulk Run'!AS22)) ->  | V22: =IF(CALC_BASIS_BULK="Increase Net Pay",IF('Bulk Run'!AL22="","",'Bulk Run'!AL22),IF('Bulk Run'!AT22="","",'Bulk Run'!AT22)) ->  | W22: =IF(CALC_BASIS_BULK="Increase Net Pay",IF('Bulk Run'!AP22="","",'Bulk Run'!AP22),IF('Bulk Run'!AX22="","",'Bulk Run'!AX22)) -> 
A23: 8 | B23: =IF('Bulk Run'!B23="","",'Bulk Run'!B23) ->  | C23: =IF('Bulk Run'!C23="","",'Bulk Run'!C23) ->  | D23: =IF('Bulk Run'!W23="","",'Bulk Run'!W23/FREQ_BULK) ->  | E23: =IF('Bulk Run'!AB23="","",'Bulk Run'!AB23) ->  | F23: =IF('Bulk Run'!AF23="","",'Bulk Run'!AF23) ->  | G23: =IF('Bulk Run'!AG23="","",'Bulk Run'!AG23) ->  | H23: =IF('Bulk Run'!AC23="","",'Bulk Run'!AC23) ->  | I23: =IF('Bulk Run'!AD23="","",'Bulk Run'!AD23) ->  | J23: =IF('Bulk Run'!AE23="","",'Bulk Run'!AE23) ->  | K23: =IF('Bulk Run'!AH23="","",'Bulk Run'!AH23) ->  | N23: =IF('Bulk Run'!B23="","",'Bulk Run'!B23) ->  | O23: =IF('Bulk Run'!C23="","",'Bulk Run'!C23) ->  | P23: =IF(CALC_BASIS_BULK="Increase Net Pay",IF('Bulk Run'!AI23="","",'Bulk Run'!AI23),IF('Bulk Run'!AQ23="","",'Bulk Run'!AQ23)) ->  | Q23: =IF(CALC_BASIS_BULK="Increase Net Pay",IF('Bulk Run'!AJ23="","",'Bulk Run'!AJ23),IF('Bulk Run'!AR23="","",'Bulk Run'!AR23)) ->  | R23: =IF(CALC_BASIS_BULK="Increase Net Pay",IF('Bulk Run'!AM23="","",'Bulk Run'!AM23),IF('Bulk Run'!AU23="","",'Bulk Run'!AU23)) ->  | S23: =IF(CALC_BASIS_BULK="Increase Net Pay",IF('Bulk Run'!AN23="","",'Bulk Run'!AN23),IF('Bulk Run'!AV23="","",'Bulk Run'!AV23)) ->  | T23: =IF(CALC_BASIS_BULK="Increase Net Pay",IF('Bulk Run'!AO23="","",'Bulk Run'!AO23),IF('Bulk Run'!AW23="","",'Bulk Run'!AW23)) ->  | U23: =IF(CALC_BASIS_BULK="Increase Net Pay",IF('Bulk Run'!AK23="","",'Bulk Run'!AK23),IF('Bulk Run'!AS23="","",'Bulk Run'!AS23)) ->  | V23: =IF(CALC_BASIS_BULK="Increase Net Pay",IF('Bulk Run'!AL23="","",'Bulk Run'!AL23),IF('Bulk Run'!AT23="","",'Bulk Run'!AT23)) ->  | W23: =IF(CALC_BASIS_BULK="Increase Net Pay",IF('Bulk Run'!AP23="","",'Bulk Run'!AP23),IF('Bulk Run'!AX23="","",'Bulk Run'!AX23)) -> 
A24: 9 | B24: =IF('Bulk Run'!B24="","",'Bulk Run'!B24) ->  | C24: =IF('Bulk Run'!C24="","",'Bulk Run'!C24) ->  | D24: =IF('Bulk Run'!W24="","",'Bulk Run'!W24/FREQ_BULK) ->  | E24: =IF('Bulk Run'!AB24="","",'Bulk Run'!AB24) ->  | F24: =IF('Bulk Run'!AF24="","",'Bulk Run'!AF24) ->  | G24: =IF('Bulk Run'!AG24="","",'Bulk Run'!AG24) ->  | H24: =IF('Bulk Run'!AC24="","",'Bulk Run'!AC24) ->  | I24: =IF('Bulk Run'!AD24="","",'Bulk Run'!AD24) ->  | J24: =IF('Bulk Run'!AE24="","",'Bulk Run'!AE24) ->  | K24: =IF('Bulk Run'!AH24="","",'Bulk Run'!AH24) ->  | N24: =IF('Bulk Run'!B24="","",'Bulk Run'!B24) ->  | O24: =IF('Bulk Run'!C24="","",'Bulk Run'!C24) ->  | P24: =IF(CALC_BASIS_BULK="Increase Net Pay",IF('Bulk Run'!AI24="","",'Bulk Run'!AI24),IF('Bulk Run'!AQ24="","",'Bulk Run'!AQ24)) ->  | Q24: =IF(CALC_BASIS_BULK="Increase Net Pay",IF('Bulk Run'!AJ24="","",'Bulk Run'!AJ24),IF('Bulk Run'!AR24="","",'Bulk Run'!AR24)) ->  | R24: =IF(CALC_BASIS_BULK="Increase Net Pay",IF('Bulk Run'!AM24="","",'Bulk Run'!AM24),IF('Bulk Run'!AU24="","",'Bulk Run'!AU24)) ->  | S24: =IF(CALC_BASIS_BULK="Increase Net Pay",IF('Bulk Run'!AN24="","",'Bulk Run'!AN24),IF('Bulk Run'!AV24="","",'Bulk Run'!AV24)) ->  | T24: =IF(CALC_BASIS_BULK="Increase Net Pay",IF('Bulk Run'!AO24="","",'Bulk Run'!AO24),IF('Bulk Run'!AW24="","",'Bulk Run'!AW24)) ->  | U24: =IF(CALC_BASIS_BULK="Increase Net Pay",IF('Bulk Run'!AK24="","",'Bulk Run'!AK24),IF('Bulk Run'!AS24="","",'Bulk Run'!AS24)) ->  | V24: =IF(CALC_BASIS_BULK="Increase Net Pay",IF('Bulk Run'!AL24="","",'Bulk Run'!AL24),IF('Bulk Run'!AT24="","",'Bulk Run'!AT24)) ->  | W24: =IF(CALC_BASIS_BULK="Increase Net Pay",IF('Bulk Run'!AP24="","",'Bulk Run'!AP24),IF('Bulk Run'!AX24="","",'Bulk Run'!AX24)) -> 
A25: 10 | B25: =IF('Bulk Run'!B25="","",'Bulk Run'!B25) ->  | C25: =IF('Bulk Run'!C25="","",'Bulk Run'!C25) ->  | D25: =IF('Bulk Run'!W25="","",'Bulk Run'!W25/FREQ_BULK) ->  | E25: =IF('Bulk Run'!AB25="","",'Bulk Run'!AB25) ->  | F25: =IF('Bulk Run'!AF25="","",'Bulk Run'!AF25) ->  | G25: =IF('Bulk Run'!AG25="","",'Bulk Run'!AG25) ->  | H25: =IF('Bulk Run'!AC25="","",'Bulk Run'!AC25) ->  | I25: =IF('Bulk Run'!AD25="","",'Bulk Run'!AD25) ->  | J25: =IF('Bulk Run'!AE25="","",'Bulk Run'!AE25) ->  | K25: =IF('Bulk Run'!AH25="","",'Bulk Run'!AH25) ->  | N25: =IF('Bulk Run'!B25="","",'Bulk Run'!B25) ->  | O25: =IF('Bulk Run'!C25="","",'Bulk Run'!C25) ->  | P25: =IF(CALC_BASIS_BULK="Increase Net Pay",IF('Bulk Run'!AI25="","",'Bulk Run'!AI25),IF('Bulk Run'!AQ25="","",'Bulk Run'!AQ25)) ->  | Q25: =IF(CALC_BASIS_BULK="Increase Net Pay",IF('Bulk Run'!AJ25="","",'Bulk Run'!AJ25),IF('Bulk Run'!AR25="","",'Bulk Run'!AR25)) ->  | R25: =IF(CALC_BASIS_BULK="Increase Net Pay",IF('Bulk Run'!AM25="","",'Bulk Run'!AM25),IF('Bulk Run'!AU25="","",'Bulk Run'!AU25)) ->  | S25: =IF(CALC_BASIS_BULK="Increase Net Pay",IF('Bulk Run'!AN25="","",'Bulk Run'!AN25),IF('Bulk Run'!AV25="","",'Bulk Run'!AV25)) ->  | T25: =IF(CALC_BASIS_BULK="Increase Net Pay",IF('Bulk Run'!AO25="","",'Bulk Run'!AO25),IF('Bulk Run'!AW25="","",'Bulk Run'!AW25)) ->  | U25: =IF(CALC_BASIS_BULK="Increase Net Pay",IF('Bulk Run'!AK25="","",'Bulk Run'!AK25),IF('Bulk Run'!AS25="","",'Bulk Run'!AS25)) ->  | V25: =IF(CALC_BASIS_BULK="Increase Net Pay",IF('Bulk Run'!AL25="","",'Bulk Run'!AL25),IF('Bulk Run'!AT25="","",'Bulk Run'!AT25)) ->  | W25: =IF(CALC_BASIS_BULK="Increase Net Pay",IF('Bulk Run'!AP25="","",'Bulk Run'!AP25),IF('Bulk Run'!AX25="","",'Bulk Run'!AX25)) -> 
A26: 11 | B26: =IF('Bulk Run'!B26="","",'Bulk Run'!B26) ->  | C26: =IF('Bulk Run'!C26="","",'Bulk Run'!C26) ->  | D26: =IF('Bulk Run'!W26="","",'Bulk Run'!W26/FREQ_BULK) ->  | E26: =IF('Bulk Run'!AB26="","",'Bulk Run'!AB26) ->  | F26: =IF('Bulk Run'!AF26="","",'Bulk Run'!AF26) ->  | G26: =IF('Bulk Run'!AG26="","",'Bulk Run'!AG26) ->  | H26: =IF('Bulk Run'!AC26="","",'Bulk Run'!AC26) ->  | I26: =IF('Bulk Run'!AD26="","",'Bulk Run'!AD26) ->  | J26: =IF('Bulk Run'!AE26="","",'Bulk Run'!AE26) ->  | K26: =IF('Bulk Run'!AH26="","",'Bulk Run'!AH26) ->  | N26: =IF('Bulk Run'!B26="","",'Bulk Run'!B26) ->  | O26: =IF('Bulk Run'!C26="","",'Bulk Run'!C26) ->  | P26: =IF(CALC_BASIS_BULK="Increase Net Pay",IF('Bulk Run'!AI26="","",'Bulk Run'!AI26),IF('Bulk Run'!AQ26="","",'Bulk Run'!AQ26)) ->  | Q26: =IF(CALC_BASIS_BULK="Increase Net Pay",IF('Bulk Run'!AJ26="","",'Bulk Run'!AJ26),IF('Bulk Run'!AR26="","",'Bulk Run'!AR26)) ->  | R26: =IF(CALC_BASIS_BULK="Increase Net Pay",IF('Bulk Run'!AM26="","",'Bulk Run'!AM26),IF('Bulk Run'!AU26="","",'Bulk Run'!AU26)) ->  | S26: =IF(CALC_BASIS_BULK="Increase Net Pay",IF('Bulk Run'!AN26="","",'Bulk Run'!AN26),IF('Bulk Run'!AV26="","",'Bulk Run'!AV26)) ->  | T26: =IF(CALC_BASIS_BULK="Increase Net Pay",IF('Bulk Run'!AO26="","",'Bulk Run'!AO26),IF('Bulk Run'!AW26="","",'Bulk Run'!AW26)) ->  | U26: =IF(CALC_BASIS_BULK="Increase Net Pay",IF('Bulk Run'!AK26="","",'Bulk Run'!AK26),IF('Bulk Run'!AS26="","",'Bulk Run'!AS26)) ->  | V26: =IF(CALC_BASIS_BULK="Increase Net Pay",IF('Bulk Run'!AL26="","",'Bulk Run'!AL26),IF('Bulk Run'!AT26="","",'Bulk Run'!AT26)) ->  | W26: =IF(CALC_BASIS_BULK="Increase Net Pay",IF('Bulk Run'!AP26="","",'Bulk Run'!AP26),IF('Bulk Run'!AX26="","",'Bulk Run'!AX26)) -> 
A27: 12 | B27: =IF('Bulk Run'!B27="","",'Bulk Run'!B27) ->  | C27: =IF('Bulk Run'!C27="","",'Bulk Run'!C27) ->  | D27: =IF('Bulk Run'!W27="","",'Bulk Run'!W27/FREQ_BULK) ->  | E27: =IF('Bulk Run'!AB27="","",'Bulk Run'!AB27) ->  | F27: =IF('Bulk Run'!AF27="","",'Bulk Run'!AF27) ->  | G27: =IF('Bulk Run'!AG27="","",'Bulk Run'!AG27) ->  | H27: =IF('Bulk Run'!AC27="","",'Bulk Run'!AC27) ->  | I27: =IF('Bulk Run'!AD27="","",'Bulk Run'!AD27) ->  | J27: =IF('Bulk Run'!AE27="","",'Bulk Run'!AE27) ->  | K27: =IF('Bulk Run'!AH27="","",'Bulk Run'!AH27) ->  | N27: =IF('Bulk Run'!B27="","",'Bulk Run'!B27) ->  | O27: =IF('Bulk Run'!C27="","",'Bulk Run'!C27) ->  | P27: =IF(CALC_BASIS_BULK="Increase Net Pay",IF('Bulk Run'!AI27="","",'Bulk Run'!AI27),IF('Bulk Run'!AQ27="","",'Bulk Run'!AQ27)) ->  | Q27: =IF(CALC_BASIS_BULK="Increase Net Pay",IF('Bulk Run'!AJ27="","",'Bulk Run'!AJ27),IF('Bulk Run'!AR27="","",'Bulk Run'!AR27)) ->  | R27: =IF(CALC_BASIS_BULK="Increase Net Pay",IF('Bulk Run'!AM27="","",'Bulk Run'!AM27),IF('Bulk Run'!AU27="","",'Bulk Run'!AU27)) ->  | S27: =IF(CALC_BASIS_BULK="Increase Net Pay",IF('Bulk Run'!AN27="","",'Bulk Run'!AN27),IF('Bulk Run'!AV27="","",'Bulk Run'!AV27)) ->  | T27: =IF(CALC_BASIS_BULK="Increase Net Pay",IF('Bulk Run'!AO27="","",'Bulk Run'!AO27),IF('Bulk Run'!AW27="","",'Bulk Run'!AW27)) ->  | U27: =IF(CALC_BASIS_BULK="Increase Net Pay",IF('Bulk Run'!AK27="","",'Bulk Run'!AK27),IF('Bulk Run'!AS27="","",'Bulk Run'!AS27)) ->  | V27: =IF(CALC_BASIS_BULK="Increase Net Pay",IF('Bulk Run'!AL27="","",'Bulk Run'!AL27),IF('Bulk Run'!AT27="","",'Bulk Run'!AT27)) ->  | W27: =IF(CALC_BASIS_BULK="Increase Net Pay",IF('Bulk Run'!AP27="","",'Bulk Run'!AP27),IF('Bulk Run'!AX27="","",'Bulk Run'!AX27)) -> 
A28: 13 | B28: =IF('Bulk Run'!B28="","",'Bulk Run'!B28) ->  | C28: =IF('Bulk Run'!C28="","",'Bulk Run'!C28) ->  | D28: =IF('Bulk Run'!W28="","",'Bulk Run'!W28/FREQ_BULK) ->  | E28: =IF('Bulk Run'!AB28="","",'Bulk Run'!AB28) ->  | F28: =IF('Bulk Run'!AF28="","",'Bulk Run'!AF28) ->  | G28: =IF('Bulk Run'!AG28="","",'Bulk Run'!AG28) ->  | H28: =IF('Bulk Run'!AC28="","",'Bulk Run'!AC28) ->  | I28: =IF('Bulk Run'!AD28="","",'Bulk Run'!AD28) ->  | J28: =IF('Bulk Run'!AE28="","",'Bulk Run'!AE28) ->  | K28: =IF('Bulk Run'!AH28="","",'Bulk Run'!AH28) ->  | N28: =IF('Bulk Run'!B28="","",'Bulk Run'!B28) ->  | O28: =IF('Bulk Run'!C28="","",'Bulk Run'!C28) ->  | P28: =IF(CALC_BASIS_BULK="Increase Net Pay",IF('Bulk Run'!AI28="","",'Bulk Run'!AI28),IF('Bulk Run'!AQ28="","",'Bulk Run'!AQ28)) ->  | Q28: =IF(CALC_BASIS_BULK="Increase Net Pay",IF('Bulk Run'!AJ28="","",'Bulk Run'!AJ28),IF('Bulk Run'!AR28="","",'Bulk Run'!AR28)) ->  | R28: =IF(CALC_BASIS_BULK="Increase Net Pay",IF('Bulk Run'!AM28="","",'Bulk Run'!AM28),IF('Bulk Run'!AU28="","",'Bulk Run'!AU28)) ->  | S28: =IF(CALC_BASIS_BULK="Increase Net Pay",IF('Bulk Run'!AN28="","",'Bulk Run'!AN28),IF('Bulk Run'!AV28="","",'Bulk Run'!AV28)) ->  | T28: =IF(CALC_BASIS_BULK="Increase Net Pay",IF('Bulk Run'!AO28="","",'Bulk Run'!AO28),IF('Bulk Run'!AW28="","",'Bulk Run'!AW28)) ->  | U28: =IF(CALC_BASIS_BULK="Increase Net Pay",IF('Bulk Run'!AK28="","",'Bulk Run'!AK28),IF('Bulk Run'!AS28="","",'Bulk Run'!AS28)) ->  | V28: =IF(CALC_BASIS_BULK="Increase Net Pay",IF('Bulk Run'!AL28="","",'Bulk Run'!AL28),IF('Bulk Run'!AT28="","",'Bulk Run'!AT28)) ->  | W28: =IF(CALC_BASIS_BULK="Increase Net Pay",IF('Bulk Run'!AP28="","",'Bulk Run'!AP28),IF('Bulk Run'!AX28="","",'Bulk Run'!AX28)) -> 
A29: 14 | B29: =IF('Bulk Run'!B29="","",'Bulk Run'!B29) ->  | C29: =IF('Bulk Run'!C29="","",'Bulk Run'!C29) ->  | D29: =IF('Bulk Run'!W29="","",'Bulk Run'!W29/FREQ_BULK) ->  | E29: =IF('Bulk Run'!AB29="","",'Bulk Run'!AB29) ->  | F29: =IF('Bulk Run'!AF29="","",'Bulk Run'!AF29) ->  | G29: =IF('Bulk Run'!AG29="","",'Bulk Run'!AG29) ->  | H29: =IF('Bulk Run'!AC29="","",'Bulk Run'!AC29) ->  | I29: =IF('Bulk Run'!AD29="","",'Bulk Run'!AD29) ->  | J29: =IF('Bulk Run'!AE29="","",'Bulk Run'!AE29) ->  | K29: =IF('Bulk Run'!AH29="","",'Bulk Run'!AH29) ->  | N29: =IF('Bulk Run'!B29="","",'Bulk Run'!B29) ->  | O29: =IF('Bulk Run'!C29="","",'Bulk Run'!C29) ->  | P29: =IF(CALC_BASIS_BULK="Increase Net Pay",IF('Bulk Run'!AI29="","",'Bulk Run'!AI29),IF('Bulk Run'!AQ29="","",'Bulk Run'!AQ29)) ->  | Q29: =IF(CALC_BASIS_BULK="Increase Net Pay",IF('Bulk Run'!AJ29="","",'Bulk Run'!AJ29),IF('Bulk Run'!AR29="","",'Bulk Run'!AR29)) ->  | R29: =IF(CALC_BASIS_BULK="Increase Net Pay",IF('Bulk Run'!AM29="","",'Bulk Run'!AM29),IF('Bulk Run'!AU29="","",'Bulk Run'!AU29)) ->  | S29: =IF(CALC_BASIS_BULK="Increase Net Pay",IF('Bulk Run'!AN29="","",'Bulk Run'!AN29),IF('Bulk Run'!AV29="","",'Bulk Run'!AV29)) ->  | T29: =IF(CALC_BASIS_BULK="Increase Net Pay",IF('Bulk Run'!AO29="","",'Bulk Run'!AO29),IF('Bulk Run'!AW29="","",'Bulk Run'!AW29)) ->  | U29: =IF(CALC_BASIS_BULK="Increase Net Pay",IF('Bulk Run'!AK29="","",'Bulk Run'!AK29),IF('Bulk Run'!AS29="","",'Bulk Run'!AS29)) ->  | V29: =IF(CALC_BASIS_BULK="Increase Net Pay",IF('Bulk Run'!AL29="","",'Bulk Run'!AL29),IF('Bulk Run'!AT29="","",'Bulk Run'!AT29)) ->  | W29: =IF(CALC_BASIS_BULK="Increase Net Pay",IF('Bulk Run'!AP29="","",'Bulk Run'!AP29),IF('Bulk Run'!AX29="","",'Bulk Run'!AX29)) -> 
A30: 15 | B30: =IF('Bulk Run'!B30="","",'Bulk Run'!B30) ->  | C30: =IF('Bulk Run'!C30="","",'Bulk Run'!C30) ->  | D30: =IF('Bulk Run'!W30="","",'Bulk Run'!W30/FREQ_BULK) ->  | E30: =IF('Bulk Run'!AB30="","",'Bulk Run'!AB30) ->  | F30: =IF('Bulk Run'!AF30="","",'Bulk Run'!AF30) ->  | G30: =IF('Bulk Run'!AG30="","",'Bulk Run'!AG30) ->  | H30: =IF('Bulk Run'!AC30="","",'Bulk Run'!AC30) ->  | I30: =IF('Bulk Run'!AD30="","",'Bulk Run'!AD30) ->  | J30: =IF('Bulk Run'!AE30="","",'Bulk Run'!AE30) ->  | K30: =IF('Bulk Run'!AH30="","",'Bulk Run'!AH30) ->  | N30: =IF('Bulk Run'!B30="","",'Bulk Run'!B30) ->  | O30: =IF('Bulk Run'!C30="","",'Bulk Run'!C30) ->  | P30: =IF(CALC_BASIS_BULK="Increase Net Pay",IF('Bulk Run'!AI30="","",'Bulk Run'!AI30),IF('Bulk Run'!AQ30="","",'Bulk Run'!AQ30)) ->  | Q30: =IF(CALC_BASIS_BULK="Increase Net Pay",IF('Bulk Run'!AJ30="","",'Bulk Run'!AJ30),IF('Bulk Run'!AR30="","",'Bulk Run'!AR30)) ->  | R30: =IF(CALC_BASIS_BULK="Increase Net Pay",IF('Bulk Run'!AM30="","",'Bulk Run'!AM30),IF('Bulk Run'!AU30="","",'Bulk Run'!AU30)) ->  | S30: =IF(CALC_BASIS_BULK="Increase Net Pay",IF('Bulk Run'!AN30="","",'Bulk Run'!AN30),IF('Bulk Run'!AV30="","",'Bulk Run'!AV30)) ->  | T30: =IF(CALC_BASIS_BULK="Increase Net Pay",IF('Bulk Run'!AO30="","",'Bulk Run'!AO30),IF('Bulk Run'!AW30="","",'Bulk Run'!AW30)) ->  | U30: =IF(CALC_BASIS_BULK="Increase Net Pay",IF('Bulk Run'!AK30="","",'Bulk Run'!AK30),IF('Bulk Run'!AS30="","",'Bulk Run'!AS30)) ->  | V30: =IF(CALC_BASIS_BULK="Increase Net Pay",IF('Bulk Run'!AL30="","",'Bulk Run'!AL30),IF('Bulk Run'!AT30="","",'Bulk Run'!AT30)) ->  | W30: =IF(CALC_BASIS_BULK="Increase Net Pay",IF('Bulk Run'!AP30="","",'Bulk Run'!AP30),IF('Bulk Run'!AX30="","",'Bulk Run'!AX30)) -> 
A31: 16 | B31: =IF('Bulk Run'!B31="","",'Bulk Run'!B31) ->  | C31: =IF('Bulk Run'!C31="","",'Bulk Run'!C31) ->  | D31: =IF('Bulk Run'!W31="","",'Bulk Run'!W31/FREQ_BULK) ->  | E31: =IF('Bulk Run'!AB31="","",'Bulk Run'!AB31) ->  | F31: =IF('Bulk Run'!AF31="","",'Bulk Run'!AF31) ->  | G31: =IF('Bulk Run'!AG31="","",'Bulk Run'!AG31) ->  | H31: =IF('Bulk Run'!AC31="","",'Bulk Run'!AC31) ->  | I31: =IF('Bulk Run'!AD31="","",'Bulk Run'!AD31) ->  | J31: =IF('Bulk Run'!AE31="","",'Bulk Run'!AE31) ->  | K31: =IF('Bulk Run'!AH31="","",'Bulk Run'!AH31) ->  | N31: =IF('Bulk Run'!B31="","",'Bulk Run'!B31) ->  | O31: =IF('Bulk Run'!C31="","",'Bulk Run'!C31) ->  | P31: =IF(CALC_BASIS_BULK="Increase Net Pay",IF('Bulk Run'!AI31="","",'Bulk Run'!AI31),IF('Bulk Run'!AQ31="","",'Bulk Run'!AQ31)) ->  | Q31: =IF(CALC_BASIS_BULK="Increase Net Pay",IF('Bulk Run'!AJ31="","",'Bulk Run'!AJ31),IF('Bulk Run'!AR31="","",'Bulk Run'!AR31)) ->  | R31: =IF(CALC_BASIS_BULK="Increase Net Pay",IF('Bulk Run'!AM31="","",'Bulk Run'!AM31),IF('Bulk Run'!AU31="","",'Bulk Run'!AU31)) ->  | S31: =IF(CALC_BASIS_BULK="Increase Net Pay",IF('Bulk Run'!AN31="","",'Bulk Run'!AN31),IF('Bulk Run'!AV31="","",'Bulk Run'!AV31)) ->  | T31: =IF(CALC_BASIS_BULK="Increase Net Pay",IF('Bulk Run'!AO31="","",'Bulk Run'!AO31),IF('Bulk Run'!AW31="","",'Bulk Run'!AW31)) ->  | U31: =IF(CALC_BASIS_BULK="Increase Net Pay",IF('Bulk Run'!AK31="","",'Bulk Run'!AK31),IF('Bulk Run'!AS31="","",'Bulk Run'!AS31)) ->  | V31: =IF(CALC_BASIS_BULK="Increase Net Pay",IF('Bulk Run'!AL31="","",'Bulk Run'!AL31),IF('Bulk Run'!AT31="","",'Bulk Run'!AT31)) ->  | W31: =IF(CALC_BASIS_BULK="Increase Net Pay",IF('Bulk Run'!AP31="","",'Bulk Run'!AP31),IF('Bulk Run'!AX31="","",'Bulk Run'!AX31)) -> 
A32: 17 | B32: =IF('Bulk Run'!B32="","",'Bulk Run'!B32) ->  | C32: =IF('Bulk Run'!C32="","",'Bulk Run'!C32) ->  | D32: =IF('Bulk Run'!W32="","",'Bulk Run'!W32/FREQ_BULK) ->  | E32: =IF('Bulk Run'!AB32="","",'Bulk Run'!AB32) ->  | F32: =IF('Bulk Run'!AF32="","",'Bulk Run'!AF32) ->  | G32: =IF('Bulk Run'!AG32="","",'Bulk Run'!AG32) ->  | H32: =IF('Bulk Run'!AC32="","",'Bulk Run'!AC32) ->  | I32: =IF('Bulk Run'!AD32="","",'Bulk Run'!AD32) ->  | J32: =IF('Bulk Run'!AE32="","",'Bulk Run'!AE32) ->  | K32: =IF('Bulk Run'!AH32="","",'Bulk Run'!AH32) ->  | N32: =IF('Bulk Run'!B32="","",'Bulk Run'!B32) ->  | O32: =IF('Bulk Run'!C32="","",'Bulk Run'!C32) ->  | P32: =IF(CALC_BASIS_BULK="Increase Net Pay",IF('Bulk Run'!AI32="","",'Bulk Run'!AI32),IF('Bulk Run'!AQ32="","",'Bulk Run'!AQ32)) ->  | Q32: =IF(CALC_BASIS_BULK="Increase Net Pay",IF('Bulk Run'!AJ32="","",'Bulk Run'!AJ32),IF('Bulk Run'!AR32="","",'Bulk Run'!AR32)) ->  | R32: =IF(CALC_BASIS_BULK="Increase Net Pay",IF('Bulk Run'!AM32="","",'Bulk Run'!AM32),IF('Bulk Run'!AU32="","",'Bulk Run'!AU32)) ->  | S32: =IF(CALC_BASIS_BULK="Increase Net Pay",IF('Bulk Run'!AN32="","",'Bulk Run'!AN32),IF('Bulk Run'!AV32="","",'Bulk Run'!AV32)) ->  | T32: =IF(CALC_BASIS_BULK="Increase Net Pay",IF('Bulk Run'!AO32="","",'Bulk Run'!AO32),IF('Bulk Run'!AW32="","",'Bulk Run'!AW32)) ->  | U32: =IF(CALC_BASIS_BULK="Increase Net Pay",IF('Bulk Run'!AK32="","",'Bulk Run'!AK32),IF('Bulk Run'!AS32="","",'Bulk Run'!AS32)) ->  | V32: =IF(CALC_BASIS_BULK="Increase Net Pay",IF('Bulk Run'!AL32="","",'Bulk Run'!AL32),IF('Bulk Run'!AT32="","",'Bulk Run'!AT32)) ->  | W32: =IF(CALC_BASIS_BULK="Increase Net Pay",IF('Bulk Run'!AP32="","",'Bulk Run'!AP32),IF('Bulk Run'!AX32="","",'Bulk Run'!AX32)) -> 
A33: 18 | B33: =IF('Bulk Run'!B33="","",'Bulk Run'!B33) ->  | C33: =IF('Bulk Run'!C33="","",'Bulk Run'!C33) ->  | D33: =IF('Bulk Run'!W33="","",'Bulk Run'!W33/FREQ_BULK) ->  | E33: =IF('Bulk Run'!AB33="","",'Bulk Run'!AB33) ->  | F33: =IF('Bulk Run'!AF33="","",'Bulk Run'!AF33) ->  | G33: =IF('Bulk Run'!AG33="","",'Bulk Run'!AG33) ->  | H33: =IF('Bulk Run'!AC33="","",'Bulk Run'!AC33) ->  | I33: =IF('Bulk Run'!AD33="","",'Bulk Run'!AD33) ->  | J33: =IF('Bulk Run'!AE33="","",'Bulk Run'!AE33) ->  | K33: =IF('Bulk Run'!AH33="","",'Bulk Run'!AH33) ->  | N33: =IF('Bulk Run'!B33="","",'Bulk Run'!B33) ->  | O33: =IF('Bulk Run'!C33="","",'Bulk Run'!C33) ->  | P33: =IF(CALC_BASIS_BULK="Increase Net Pay",IF('Bulk Run'!AI33="","",'Bulk Run'!AI33),IF('Bulk Run'!AQ33="","",'Bulk Run'!AQ33)) ->  | Q33: =IF(CALC_BASIS_BULK="Increase Net Pay",IF('Bulk Run'!AJ33="","",'Bulk Run'!AJ33),IF('Bulk Run'!AR33="","",'Bulk Run'!AR33)) ->  | R33: =IF(CALC_BASIS_BULK="Increase Net Pay",IF('Bulk Run'!AM33="","",'Bulk Run'!AM33),IF('Bulk Run'!AU33="","",'Bulk Run'!AU33)) ->  | S33: =IF(CALC_BASIS_BULK="Increase Net Pay",IF('Bulk Run'!AN33="","",'Bulk Run'!AN33),IF('Bulk Run'!AV33="","",'Bulk Run'!AV33)) ->  | T33: =IF(CALC_BASIS_BULK="Increase Net Pay",IF('Bulk Run'!AO33="","",'Bulk Run'!AO33),IF('Bulk Run'!AW33="","",'Bulk Run'!AW33)) ->  | U33: =IF(CALC_BASIS_BULK="Increase Net Pay",IF('Bulk Run'!AK33="","",'Bulk Run'!AK33),IF('Bulk Run'!AS33="","",'Bulk Run'!AS33)) ->  | V33: =IF(CALC_BASIS_BULK="Increase Net Pay",IF('Bulk Run'!AL33="","",'Bulk Run'!AL33),IF('Bulk Run'!AT33="","",'Bulk Run'!AT33)) ->  | W33: =IF(CALC_BASIS_BULK="Increase Net Pay",IF('Bulk Run'!AP33="","",'Bulk Run'!AP33),IF('Bulk Run'!AX33="","",'Bulk Run'!AX33)) -> 
A34: 19 | B34: =IF('Bulk Run'!B34="","",'Bulk Run'!B34) ->  | C34: =IF('Bulk Run'!C34="","",'Bulk Run'!C34) ->  | D34: =IF('Bulk Run'!W34="","",'Bulk Run'!W34/FREQ_BULK) ->  | E34: =IF('Bulk Run'!AB34="","",'Bulk Run'!AB34) ->  | F34: =IF('Bulk Run'!AF34="","",'Bulk Run'!AF34) ->  | G34: =IF('Bulk Run'!AG34="","",'Bulk Run'!AG34) ->  | H34: =IF('Bulk Run'!AC34="","",'Bulk Run'!AC34) ->  | I34: =IF('Bulk Run'!AD34="","",'Bulk Run'!AD34) ->  | J34: =IF('Bulk Run'!AE34="","",'Bulk Run'!AE34) ->  | K34: =IF('Bulk Run'!AH34="","",'Bulk Run'!AH34) ->  | N34: =IF('Bulk Run'!B34="","",'Bulk Run'!B34) ->  | O34: =IF('Bulk Run'!C34="","",'Bulk Run'!C34) ->  | P34: =IF(CALC_BASIS_BULK="Increase Net Pay",IF('Bulk Run'!AI34="","",'Bulk Run'!AI34),IF('Bulk Run'!AQ34="","",'Bulk Run'!AQ34)) ->  | Q34: =IF(CALC_BASIS_BULK="Increase Net Pay",IF('Bulk Run'!AJ34="","",'Bulk Run'!AJ34),IF('Bulk Run'!AR34="","",'Bulk Run'!AR34)) ->  | R34: =IF(CALC_BASIS_BULK="Increase Net Pay",IF('Bulk Run'!AM34="","",'Bulk Run'!AM34),IF('Bulk Run'!AU34="","",'Bulk Run'!AU34)) ->  | S34: =IF(CALC_BASIS_BULK="Increase Net Pay",IF('Bulk Run'!AN34="","",'Bulk Run'!AN34),IF('Bulk Run'!AV34="","",'Bulk Run'!AV34)) ->  | T34: =IF(CALC_BASIS_BULK="Increase Net Pay",IF('Bulk Run'!AO34="","",'Bulk Run'!AO34),IF('Bulk Run'!AW34="","",'Bulk Run'!AW34)) ->  | U34: =IF(CALC_BASIS_BULK="Increase Net Pay",IF('Bulk Run'!AK34="","",'Bulk Run'!AK34),IF('Bulk Run'!AS34="","",'Bulk Run'!AS34)) ->  | V34: =IF(CALC_BASIS_BULK="Increase Net Pay",IF('Bulk Run'!AL34="","",'Bulk Run'!AL34),IF('Bulk Run'!AT34="","",'Bulk Run'!AT34)) ->  | W34: =IF(CALC_BASIS_BULK="Increase Net Pay",IF('Bulk Run'!AP34="","",'Bulk Run'!AP34),IF('Bulk Run'!AX34="","",'Bulk Run'!AX34)) -> 
A35: 20 | B35: =IF('Bulk Run'!B35="","",'Bulk Run'!B35) ->  | C35: =IF('Bulk Run'!C35="","",'Bulk Run'!C35) ->  | D35: =IF('Bulk Run'!W35="","",'Bulk Run'!W35/FREQ_BULK) ->  | E35: =IF('Bulk Run'!AB35="","",'Bulk Run'!AB35) ->  | F35: =IF('Bulk Run'!AF35="","",'Bulk Run'!AF35) ->  | G35: =IF('Bulk Run'!AG35="","",'Bulk Run'!AG35) ->  | H35: =IF('Bulk Run'!AC35="","",'Bulk Run'!AC35) ->  | I35: =IF('Bulk Run'!AD35="","",'Bulk Run'!AD35) ->  | J35: =IF('Bulk Run'!AE35="","",'Bulk Run'!AE35) ->  | K35: =IF('Bulk Run'!AH35="","",'Bulk Run'!AH35) ->  | N35: =IF('Bulk Run'!B35="","",'Bulk Run'!B35) ->  | O35: =IF('Bulk Run'!C35="","",'Bulk Run'!C35) ->  | P35: =IF(CALC_BASIS_BULK="Increase Net Pay",IF('Bulk Run'!AI35="","",'Bulk Run'!AI35),IF('Bulk Run'!AQ35="","",'Bulk Run'!AQ35)) ->  | Q35: =IF(CALC_BASIS_BULK="Increase Net Pay",IF('Bulk Run'!AJ35="","",'Bulk Run'!AJ35),IF('Bulk Run'!AR35="","",'Bulk Run'!AR35)) ->  | R35: =IF(CALC_BASIS_BULK="Increase Net Pay",IF('Bulk Run'!AM35="","",'Bulk Run'!AM35),IF('Bulk Run'!AU35="","",'Bulk Run'!AU35)) ->  | S35: =IF(CALC_BASIS_BULK="Increase Net Pay",IF('Bulk Run'!AN35="","",'Bulk Run'!AN35),IF('Bulk Run'!AV35="","",'Bulk Run'!AV35)) ->  | T35: =IF(CALC_BASIS_BULK="Increase Net Pay",IF('Bulk Run'!AO35="","",'Bulk Run'!AO35),IF('Bulk Run'!AW35="","",'Bulk Run'!AW35)) ->  | U35: =IF(CALC_BASIS_BULK="Increase Net Pay",IF('Bulk Run'!AK35="","",'Bulk Run'!AK35),IF('Bulk Run'!AS35="","",'Bulk Run'!AS35)) ->  | V35: =IF(CALC_BASIS_BULK="Increase Net Pay",IF('Bulk Run'!AL35="","",'Bulk Run'!AL35),IF('Bulk Run'!AT35="","",'Bulk Run'!AT35)) ->  | W35: =IF(CALC_BASIS_BULK="Increase Net Pay",IF('Bulk Run'!AP35="","",'Bulk Run'!AP35),IF('Bulk Run'!AX35="","",'Bulk Run'!AX35)) -> 
A36: 21 | B36: =IF('Bulk Run'!B36="","",'Bulk Run'!B36) ->  | C36: =IF('Bulk Run'!C36="","",'Bulk Run'!C36) ->  | D36: =IF('Bulk Run'!W36="","",'Bulk Run'!W36/FREQ_BULK) ->  | E36: =IF('Bulk Run'!AB36="","",'Bulk Run'!AB36) ->  | F36: =IF('Bulk Run'!AF36="","",'Bulk Run'!AF36) ->  | G36: =IF('Bulk Run'!AG36="","",'Bulk Run'!AG36) ->  | H36: =IF('Bulk Run'!AC36="","",'Bulk Run'!AC36) ->  | I36: =IF('Bulk Run'!AD36="","",'Bulk Run'!AD36) ->  | J36: =IF('Bulk Run'!AE36="","",'Bulk Run'!AE36) ->  | K36: =IF('Bulk Run'!AH36="","",'Bulk Run'!AH36) ->  | N36: =IF('Bulk Run'!B36="","",'Bulk Run'!B36) ->  | O36: =IF('Bulk Run'!C36="","",'Bulk Run'!C36) ->  | P36: =IF(CALC_BASIS_BULK="Increase Net Pay",IF('Bulk Run'!AI36="","",'Bulk Run'!AI36),IF('Bulk Run'!AQ36="","",'Bulk Run'!AQ36)) ->  | Q36: =IF(CALC_BASIS_BULK="Increase Net Pay",IF('Bulk Run'!AJ36="","",'Bulk Run'!AJ36),IF('Bulk Run'!AR36="","",'Bulk Run'!AR36)) ->  | R36: =IF(CALC_BASIS_BULK="Increase Net Pay",IF('Bulk Run'!AM36="","",'Bulk Run'!AM36),IF('Bulk Run'!AU36="","",'Bulk Run'!AU36)) ->  | S36: =IF(CALC_BASIS_BULK="Increase Net Pay",IF('Bulk Run'!AN36="","",'Bulk Run'!AN36),IF('Bulk Run'!AV36="","",'Bulk Run'!AV36)) ->  | T36: =IF(CALC_BASIS_BULK="Increase Net Pay",IF('Bulk Run'!AO36="","",'Bulk Run'!AO36),IF('Bulk Run'!AW36="","",'Bulk Run'!AW36)) ->  | U36: =IF(CALC_BASIS_BULK="Increase Net Pay",IF('Bulk Run'!AK36="","",'Bulk Run'!AK36),IF('Bulk Run'!AS36="","",'Bulk Run'!AS36)) ->  | V36: =IF(CALC_BASIS_BULK="Increase Net Pay",IF('Bulk Run'!AL36="","",'Bulk Run'!AL36),IF('Bulk Run'!AT36="","",'Bulk Run'!AT36)) ->  | W36: =IF(CALC_BASIS_BULK="Increase Net Pay",IF('Bulk Run'!AP36="","",'Bulk Run'!AP36),IF('Bulk Run'!AX36="","",'Bulk Run'!AX36)) -> 
A37: 22 | B37: =IF('Bulk Run'!B37="","",'Bulk Run'!B37) ->  | C37: =IF('Bulk Run'!C37="","",'Bulk Run'!C37) ->  | D37: =IF('Bulk Run'!W37="","",'Bulk Run'!W37/FREQ_BULK) ->  | E37: =IF('Bulk Run'!AB37="","",'Bulk Run'!AB37) ->  | F37: =IF('Bulk Run'!AF37="","",'Bulk Run'!AF37) ->  | G37: =IF('Bulk Run'!AG37="","",'Bulk Run'!AG37) ->  | H37: =IF('Bulk Run'!AC37="","",'Bulk Run'!AC37) ->  | I37: =IF('Bulk Run'!AD37="","",'Bulk Run'!AD37) ->  | J37: =IF('Bulk Run'!AE37="","",'Bulk Run'!AE37) ->  | K37: =IF('Bulk Run'!AH37="","",'Bulk Run'!AH37) ->  | N37: =IF('Bulk Run'!B37="","",'Bulk Run'!B37) ->  | O37: =IF('Bulk Run'!C37="","",'Bulk Run'!C37) ->  | P37: =IF(CALC_BASIS_BULK="Increase Net Pay",IF('Bulk Run'!AI37="","",'Bulk Run'!AI37),IF('Bulk Run'!AQ37="","",'Bulk Run'!AQ37)) ->  | Q37: =IF(CALC_BASIS_BULK="Increase Net Pay",IF('Bulk Run'!AJ37="","",'Bulk Run'!AJ37),IF('Bulk Run'!AR37="","",'Bulk Run'!AR37)) ->  | R37: =IF(CALC_BASIS_BULK="Increase Net Pay",IF('Bulk Run'!AM37="","",'Bulk Run'!AM37),IF('Bulk Run'!AU37="","",'Bulk Run'!AU37)) ->  | S37: =IF(CALC_BASIS_BULK="Increase Net Pay",IF('Bulk Run'!AN37="","",'Bulk Run'!AN37),IF('Bulk Run'!AV37="","",'Bulk Run'!AV37)) ->  | T37: =IF(CALC_BASIS_BULK="Increase Net Pay",IF('Bulk Run'!AO37="","",'Bulk Run'!AO37),IF('Bulk Run'!AW37="","",'Bulk Run'!AW37)) ->  | U37: =IF(CALC_BASIS_BULK="Increase Net Pay",IF('Bulk Run'!AK37="","",'Bulk Run'!AK37),IF('Bulk Run'!AS37="","",'Bulk Run'!AS37)) ->  | V37: =IF(CALC_BASIS_BULK="Increase Net Pay",IF('Bulk Run'!AL37="","",'Bulk Run'!AL37),IF('Bulk Run'!AT37="","",'Bulk Run'!AT37)) ->  | W37: =IF(CALC_BASIS_BULK="Increase Net Pay",IF('Bulk Run'!AP37="","",'Bulk Run'!AP37),IF('Bulk Run'!AX37="","",'Bulk Run'!AX37)) -> 
A38: 23 | B38: =IF('Bulk Run'!B38="","",'Bulk Run'!B38) ->  | C38: =IF('Bulk Run'!C38="","",'Bulk Run'!C38) ->  | D38: =IF('Bulk Run'!W38="","",'Bulk Run'!W38/FREQ_BULK) ->  | E38: =IF('Bulk Run'!AB38="","",'Bulk Run'!AB38) ->  | F38: =IF('Bulk Run'!AF38="","",'Bulk Run'!AF38) ->  | G38: =IF('Bulk Run'!AG38="","",'Bulk Run'!AG38) ->  | H38: =IF('Bulk Run'!AC38="","",'Bulk Run'!AC38) ->  | I38: =IF('Bulk Run'!AD38="","",'Bulk Run'!AD38) ->  | J38: =IF('Bulk Run'!AE38="","",'Bulk Run'!AE38) ->  | K38: =IF('Bulk Run'!AH38="","",'Bulk Run'!AH38) ->  | N38: =IF('Bulk Run'!B38="","",'Bulk Run'!B38) ->  | O38: =IF('Bulk Run'!C38="","",'Bulk Run'!C38) ->  | P38: =IF(CALC_BASIS_BULK="Increase Net Pay",IF('Bulk Run'!AI38="","",'Bulk Run'!AI38),IF('Bulk Run'!AQ38="","",'Bulk Run'!AQ38)) ->  | Q38: =IF(CALC_BASIS_BULK="Increase Net Pay",IF('Bulk Run'!AJ38="","",'Bulk Run'!AJ38),IF('Bulk Run'!AR38="","",'Bulk Run'!AR38)) ->  | R38: =IF(CALC_BASIS_BULK="Increase Net Pay",IF('Bulk Run'!AM38="","",'Bulk Run'!AM38),IF('Bulk Run'!AU38="","",'Bulk Run'!AU38)) ->  | S38: =IF(CALC_BASIS_BULK="Increase Net Pay",IF('Bulk Run'!AN38="","",'Bulk Run'!AN38),IF('Bulk Run'!AV38="","",'Bulk Run'!AV38)) ->  | T38: =IF(CALC_BASIS_BULK="Increase Net Pay",IF('Bulk Run'!AO38="","",'Bulk Run'!AO38),IF('Bulk Run'!AW38="","",'Bulk Run'!AW38)) ->  | U38: =IF(CALC_BASIS_BULK="Increase Net Pay",IF('Bulk Run'!AK38="","",'Bulk Run'!AK38),IF('Bulk Run'!AS38="","",'Bulk Run'!AS38)) ->  | V38: =IF(CALC_BASIS_BULK="Increase Net Pay",IF('Bulk Run'!AL38="","",'Bulk Run'!AL38),IF('Bulk Run'!AT38="","",'Bulk Run'!AT38)) ->  | W38: =IF(CALC_BASIS_BULK="Increase Net Pay",IF('Bulk Run'!AP38="","",'Bulk Run'!AP38),IF('Bulk Run'!AX38="","",'Bulk Run'!AX38)) -> 
A39: 24 | B39: =IF('Bulk Run'!B39="","",'Bulk Run'!B39) ->  | C39: =IF('Bulk Run'!C39="","",'Bulk Run'!C39) ->  | D39: =IF('Bulk Run'!W39="","",'Bulk Run'!W39/FREQ_BULK) ->  | E39: =IF('Bulk Run'!AB39="","",'Bulk Run'!AB39) ->  | F39: =IF('Bulk Run'!AF39="","",'Bulk Run'!AF39) ->  | G39: =IF('Bulk Run'!AG39="","",'Bulk Run'!AG39) ->  | H39: =IF('Bulk Run'!AC39="","",'Bulk Run'!AC39) ->  | I39: =IF('Bulk Run'!AD39="","",'Bulk Run'!AD39) ->  | J39: =IF('Bulk Run'!AE39="","",'Bulk Run'!AE39) ->  | K39: =IF('Bulk Run'!AH39="","",'Bulk Run'!AH39) ->  | N39: =IF('Bulk Run'!B39="","",'Bulk Run'!B39) ->  | O39: =IF('Bulk Run'!C39="","",'Bulk Run'!C39) ->  | P39: =IF(CALC_BASIS_BULK="Increase Net Pay",IF('Bulk Run'!AI39="","",'Bulk Run'!AI39),IF('Bulk Run'!AQ39="","",'Bulk Run'!AQ39)) ->  | Q39: =IF(CALC_BASIS_BULK="Increase Net Pay",IF('Bulk Run'!AJ39="","",'Bulk Run'!AJ39),IF('Bulk Run'!AR39="","",'Bulk Run'!AR39)) ->  | R39: =IF(CALC_BASIS_BULK="Increase Net Pay",IF('Bulk Run'!AM39="","",'Bulk Run'!AM39),IF('Bulk Run'!AU39="","",'Bulk Run'!AU39)) ->  | S39: =IF(CALC_BASIS_BULK="Increase Net Pay",IF('Bulk Run'!AN39="","",'Bulk Run'!AN39),IF('Bulk Run'!AV39="","",'Bulk Run'!AV39)) ->  | T39: =IF(CALC_BASIS_BULK="Increase Net Pay",IF('Bulk Run'!AO39="","",'Bulk Run'!AO39),IF('Bulk Run'!AW39="","",'Bulk Run'!AW39)) ->  | U39: =IF(CALC_BASIS_BULK="Increase Net Pay",IF('Bulk Run'!AK39="","",'Bulk Run'!AK39),IF('Bulk Run'!AS39="","",'Bulk Run'!AS39)) ->  | V39: =IF(CALC_BASIS_BULK="Increase Net Pay",IF('Bulk Run'!AL39="","",'Bulk Run'!AL39),IF('Bulk Run'!AT39="","",'Bulk Run'!AT39)) ->  | W39: =IF(CALC_BASIS_BULK="Increase Net Pay",IF('Bulk Run'!AP39="","",'Bulk Run'!AP39),IF('Bulk Run'!AX39="","",'Bulk Run'!AX39)) -> 
A40: 25 | B40: =IF('Bulk Run'!B40="","",'Bulk Run'!B40) ->  | C40: =IF('Bulk Run'!C40="","",'Bulk Run'!C40) ->  | D40: =IF('Bulk Run'!W40="","",'Bulk Run'!W40/FREQ_BULK) ->  | E40: =IF('Bulk Run'!AB40="","",'Bulk Run'!AB40) ->  | F40: =IF('Bulk Run'!AF40="","",'Bulk Run'!AF40) ->  | G40: =IF('Bulk Run'!AG40="","",'Bulk Run'!AG40) ->  | H40: =IF('Bulk Run'!AC40="","",'Bulk Run'!AC40) ->  | I40: =IF('Bulk Run'!AD40="","",'Bulk Run'!AD40) ->  | J40: =IF('Bulk Run'!AE40="","",'Bulk Run'!AE40) ->  | K40: =IF('Bulk Run'!AH40="","",'Bulk Run'!AH40) ->  | N40: =IF('Bulk Run'!B40="","",'Bulk Run'!B40) ->  | O40: =IF('Bulk Run'!C40="","",'Bulk Run'!C40) ->  | P40: =IF(CALC_BASIS_BULK="Increase Net Pay",IF('Bulk Run'!AI40="","",'Bulk Run'!AI40),IF('Bulk Run'!AQ40="","",'Bulk Run'!AQ40)) ->  | Q40: =IF(CALC_BASIS_BULK="Increase Net Pay",IF('Bulk Run'!AJ40="","",'Bulk Run'!AJ40),IF('Bulk Run'!AR40="","",'Bulk Run'!AR40)) ->  | R40: =IF(CALC_BASIS_BULK="Increase Net Pay",IF('Bulk Run'!AM40="","",'Bulk Run'!AM40),IF('Bulk Run'!AU40="","",'Bulk Run'!AU40)) ->  | S40: =IF(CALC_BASIS_BULK="Increase Net Pay",IF('Bulk Run'!AN40="","",'Bulk Run'!AN40),IF('Bulk Run'!AV40="","",'Bulk Run'!AV40)) ->  | T40: =IF(CALC_BASIS_BULK="Increase Net Pay",IF('Bulk Run'!AO40="","",'Bulk Run'!AO40),IF('Bulk Run'!AW40="","",'Bulk Run'!AW40)) ->  | U40: =IF(CALC_BASIS_BULK="Increase Net Pay",IF('Bulk Run'!AK40="","",'Bulk Run'!AK40),IF('Bulk Run'!AS40="","",'Bulk Run'!AS40)) ->  | V40: =IF(CALC_BASIS_BULK="Increase Net Pay",IF('Bulk Run'!AL40="","",'Bulk Run'!AL40),IF('Bulk Run'!AT40="","",'Bulk Run'!AT40)) ->  | W40: =IF(CALC_BASIS_BULK="Increase Net Pay",IF('Bulk Run'!AP40="","",'Bulk Run'!AP40),IF('Bulk Run'!AX40="","",'Bulk Run'!AX40)) -> 
A41: 26 | B41: =IF('Bulk Run'!B41="","",'Bulk Run'!B41) ->  | C41: =IF('Bulk Run'!C41="","",'Bulk Run'!C41) ->  | D41: =IF('Bulk Run'!W41="","",'Bulk Run'!W41/FREQ_BULK) ->  | E41: =IF('Bulk Run'!AB41="","",'Bulk Run'!AB41) ->  | F41: =IF('Bulk Run'!AF41="","",'Bulk Run'!AF41) ->  | G41: =IF('Bulk Run'!AG41="","",'Bulk Run'!AG41) ->  | H41: =IF('Bulk Run'!AC41="","",'Bulk Run'!AC41) ->  | I41: =IF('Bulk Run'!AD41="","",'Bulk Run'!AD41) ->  | J41: =IF('Bulk Run'!AE41="","",'Bulk Run'!AE41) ->  | K41: =IF('Bulk Run'!AH41="","",'Bulk Run'!AH41) ->  | N41: =IF('Bulk Run'!B41="","",'Bulk Run'!B41) ->  | O41: =IF('Bulk Run'!C41="","",'Bulk Run'!C41) ->  | P41: =IF(CALC_BASIS_BULK="Increase Net Pay",IF('Bulk Run'!AI41="","",'Bulk Run'!AI41),IF('Bulk Run'!AQ41="","",'Bulk Run'!AQ41)) ->  | Q41: =IF(CALC_BASIS_BULK="Increase Net Pay",IF('Bulk Run'!AJ41="","",'Bulk Run'!AJ41),IF('Bulk Run'!AR41="","",'Bulk Run'!AR41)) ->  | R41: =IF(CALC_BASIS_BULK="Increase Net Pay",IF('Bulk Run'!AM41="","",'Bulk Run'!AM41),IF('Bulk Run'!AU41="","",'Bulk Run'!AU41)) ->  | S41: =IF(CALC_BASIS_BULK="Increase Net Pay",IF('Bulk Run'!AN41="","",'Bulk Run'!AN41),IF('Bulk Run'!AV41="","",'Bulk Run'!AV41)) ->  | T41: =IF(CALC_BASIS_BULK="Increase Net Pay",IF('Bulk Run'!AO41="","",'Bulk Run'!AO41),IF('Bulk Run'!AW41="","",'Bulk Run'!AW41)) ->  | U41: =IF(CALC_BASIS_BULK="Increase Net Pay",IF('Bulk Run'!AK41="","",'Bulk Run'!AK41),IF('Bulk Run'!AS41="","",'Bulk Run'!AS41)) ->  | V41: =IF(CALC_BASIS_BULK="Increase Net Pay",IF('Bulk Run'!AL41="","",'Bulk Run'!AL41),IF('Bulk Run'!AT41="","",'Bulk Run'!AT41)) ->  | W41: =IF(CALC_BASIS_BULK="Increase Net Pay",IF('Bulk Run'!AP41="","",'Bulk Run'!AP41),IF('Bulk Run'!AX41="","",'Bulk Run'!AX41)) -> 
A42: 27 | B42: =IF('Bulk Run'!B42="","",'Bulk Run'!B42) ->  | C42: =IF('Bulk Run'!C42="","",'Bulk Run'!C42) ->  | D42: =IF('Bulk Run'!W42="","",'Bulk Run'!W42/FREQ_BULK) ->  | E42: =IF('Bulk Run'!AB42="","",'Bulk Run'!AB42) ->  | F42: =IF('Bulk Run'!AF42="","",'Bulk Run'!AF42) ->  | G42: =IF('Bulk Run'!AG42="","",'Bulk Run'!AG42) ->  | H42: =IF('Bulk Run'!AC42="","",'Bulk Run'!AC42) ->  | I42: =IF('Bulk Run'!AD42="","",'Bulk Run'!AD42) ->  | J42: =IF('Bulk Run'!AE42="","",'Bulk Run'!AE42) ->  | K42: =IF('Bulk Run'!AH42="","",'Bulk Run'!AH42) ->  | N42: =IF('Bulk Run'!B42="","",'Bulk Run'!B42) ->  | O42: =IF('Bulk Run'!C42="","",'Bulk Run'!C42) ->  | P42: =IF(CALC_BASIS_BULK="Increase Net Pay",IF('Bulk Run'!AI42="","",'Bulk Run'!AI42),IF('Bulk Run'!AQ42="","",'Bulk Run'!AQ42)) ->  | Q42: =IF(CALC_BASIS_BULK="Increase Net Pay",IF('Bulk Run'!AJ42="","",'Bulk Run'!AJ42),IF('Bulk Run'!AR42="","",'Bulk Run'!AR42)) ->  | R42: =IF(CALC_BASIS_BULK="Increase Net Pay",IF('Bulk Run'!AM42="","",'Bulk Run'!AM42),IF('Bulk Run'!AU42="","",'Bulk Run'!AU42)) ->  | S42: =IF(CALC_BASIS_BULK="Increase Net Pay",IF('Bulk Run'!AN42="","",'Bulk Run'!AN42),IF('Bulk Run'!AV42="","",'Bulk Run'!AV42)) ->  | T42: =IF(CALC_BASIS_BULK="Increase Net Pay",IF('Bulk Run'!AO42="","",'Bulk Run'!AO42),IF('Bulk Run'!AW42="","",'Bulk Run'!AW42)) ->  | U42: =IF(CALC_BASIS_BULK="Increase Net Pay",IF('Bulk Run'!AK42="","",'Bulk Run'!AK42),IF('Bulk Run'!AS42="","",'Bulk Run'!AS42)) ->  | V42: =IF(CALC_BASIS_BULK="Increase Net Pay",IF('Bulk Run'!AL42="","",'Bulk Run'!AL42),IF('Bulk Run'!AT42="","",'Bulk Run'!AT42)) ->  | W42: =IF(CALC_BASIS_BULK="Increase Net Pay",IF('Bulk Run'!AP42="","",'Bulk Run'!AP42),IF('Bulk Run'!AX42="","",'Bulk Run'!AX42)) -> 
A43: 28 | B43: =IF('Bulk Run'!B43="","",'Bulk Run'!B43) ->  | C43: =IF('Bulk Run'!C43="","",'Bulk Run'!C43) ->  | D43: =IF('Bulk Run'!W43="","",'Bulk Run'!W43/FREQ_BULK) ->  | E43: =IF('Bulk Run'!AB43="","",'Bulk Run'!AB43) ->  | F43: =IF('Bulk Run'!AF43="","",'Bulk Run'!AF43) ->  | G43: =IF('Bulk Run'!AG43="","",'Bulk Run'!AG43) ->  | H43: =IF('Bulk Run'!AC43="","",'Bulk Run'!AC43) ->  | I43: =IF('Bulk Run'!AD43="","",'Bulk Run'!AD43) ->  | J43: =IF('Bulk Run'!AE43="","",'Bulk Run'!AE43) ->  | K43: =IF('Bulk Run'!AH43="","",'Bulk Run'!AH43) ->  | N43: =IF('Bulk Run'!B43="","",'Bulk Run'!B43) ->  | O43: =IF('Bulk Run'!C43="","",'Bulk Run'!C43) ->  | P43: =IF(CALC_BASIS_BULK="Increase Net Pay",IF('Bulk Run'!AI43="","",'Bulk Run'!AI43),IF('Bulk Run'!AQ43="","",'Bulk Run'!AQ43)) ->  | Q43: =IF(CALC_BASIS_BULK="Increase Net Pay",IF('Bulk Run'!AJ43="","",'Bulk Run'!AJ43),IF('Bulk Run'!AR43="","",'Bulk Run'!AR43)) ->  | R43: =IF(CALC_BASIS_BULK="Increase Net Pay",IF('Bulk Run'!AM43="","",'Bulk Run'!AM43),IF('Bulk Run'!AU43="","",'Bulk Run'!AU43)) ->  | S43: =IF(CALC_BASIS_BULK="Increase Net Pay",IF('Bulk Run'!AN43="","",'Bulk Run'!AN43),IF('Bulk Run'!AV43="","",'Bulk Run'!AV43)) ->  | T43: =IF(CALC_BASIS_BULK="Increase Net Pay",IF('Bulk Run'!AO43="","",'Bulk Run'!AO43),IF('Bulk Run'!AW43="","",'Bulk Run'!AW43)) ->  | U43: =IF(CALC_BASIS_BULK="Increase Net Pay",IF('Bulk Run'!AK43="","",'Bulk Run'!AK43),IF('Bulk Run'!AS43="","",'Bulk Run'!AS43)) ->  | V43: =IF(CALC_BASIS_BULK="Increase Net Pay",IF('Bulk Run'!AL43="","",'Bulk Run'!AL43),IF('Bulk Run'!AT43="","",'Bulk Run'!AT43)) ->  | W43: =IF(CALC_BASIS_BULK="Increase Net Pay",IF('Bulk Run'!AP43="","",'Bulk Run'!AP43),IF('Bulk Run'!AX43="","",'Bulk Run'!AX43)) -> 
A44: 29 | B44: =IF('Bulk Run'!B44="","",'Bulk Run'!B44) ->  | C44: =IF('Bulk Run'!C44="","",'Bulk Run'!C44) ->  | D44: =IF('Bulk Run'!W44="","",'Bulk Run'!W44/FREQ_BULK) ->  | E44: =IF('Bulk Run'!AB44="","",'Bulk Run'!AB44) ->  | F44: =IF('Bulk Run'!AF44="","",'Bulk Run'!AF44) ->  | G44: =IF('Bulk Run'!AG44="","",'Bulk Run'!AG44) ->  | H44: =IF('Bulk Run'!AC44="","",'Bulk Run'!AC44) ->  | I44: =IF('Bulk Run'!AD44="","",'Bulk Run'!AD44) ->  | J44: =IF('Bulk Run'!AE44="","",'Bulk Run'!AE44) ->  | K44: =IF('Bulk Run'!AH44="","",'Bulk Run'!AH44) ->  | N44: =IF('Bulk Run'!B44="","",'Bulk Run'!B44) ->  | O44: =IF('Bulk Run'!C44="","",'Bulk Run'!C44) ->  | P44: =IF(CALC_BASIS_BULK="Increase Net Pay",IF('Bulk Run'!AI44="","",'Bulk Run'!AI44),IF('Bulk Run'!AQ44="","",'Bulk Run'!AQ44)) ->  | Q44: =IF(CALC_BASIS_BULK="Increase Net Pay",IF('Bulk Run'!AJ44="","",'Bulk Run'!AJ44),IF('Bulk Run'!AR44="","",'Bulk Run'!AR44)) ->  | R44: =IF(CALC_BASIS_BULK="Increase Net Pay",IF('Bulk Run'!AM44="","",'Bulk Run'!AM44),IF('Bulk Run'!AU44="","",'Bulk Run'!AU44)) ->  | S44: =IF(CALC_BASIS_BULK="Increase Net Pay",IF('Bulk Run'!AN44="","",'Bulk Run'!AN44),IF('Bulk Run'!AV44="","",'Bulk Run'!AV44)) ->  | T44: =IF(CALC_BASIS_BULK="Increase Net Pay",IF('Bulk Run'!AO44="","",'Bulk Run'!AO44),IF('Bulk Run'!AW44="","",'Bulk Run'!AW44)) ->  | U44: =IF(CALC_BASIS_BULK="Increase Net Pay",IF('Bulk Run'!AK44="","",'Bulk Run'!AK44),IF('Bulk Run'!AS44="","",'Bulk Run'!AS44)) ->  | V44: =IF(CALC_BASIS_BULK="Increase Net Pay",IF('Bulk Run'!AL44="","",'Bulk Run'!AL44),IF('Bulk Run'!AT44="","",'Bulk Run'!AT44)) ->  | W44: =IF(CALC_BASIS_BULK="Increase Net Pay",IF('Bulk Run'!AP44="","",'Bulk Run'!AP44),IF('Bulk Run'!AX44="","",'Bulk Run'!AX44)) -> 
A45: 30 | B45: =IF('Bulk Run'!B45="","",'Bulk Run'!B45) ->  | C45: =IF('Bulk Run'!C45="","",'Bulk Run'!C45) ->  | D45: =IF('Bulk Run'!W45="","",'Bulk Run'!W45/FREQ_BULK) ->  | E45: =IF('Bulk Run'!AB45="","",'Bulk Run'!AB45) ->  | F45: =IF('Bulk Run'!AF45="","",'Bulk Run'!AF45) ->  | G45: =IF('Bulk Run'!AG45="","",'Bulk Run'!AG45) ->  | H45: =IF('Bulk Run'!AC45="","",'Bulk Run'!AC45) ->  | I45: =IF('Bulk Run'!AD45="","",'Bulk Run'!AD45) ->  | J45: =IF('Bulk Run'!AE45="","",'Bulk Run'!AE45) ->  | K45: =IF('Bulk Run'!AH45="","",'Bulk Run'!AH45) ->  | N45: =IF('Bulk Run'!B45="","",'Bulk Run'!B45) ->  | O45: =IF('Bulk Run'!C45="","",'Bulk Run'!C45) ->  | P45: =IF(CALC_BASIS_BULK="Increase Net Pay",IF('Bulk Run'!AI45="","",'Bulk Run'!AI45),IF('Bulk Run'!AQ45="","",'Bulk Run'!AQ45)) ->  | Q45: =IF(CALC_BASIS_BULK="Increase Net Pay",IF('Bulk Run'!AJ45="","",'Bulk Run'!AJ45),IF('Bulk Run'!AR45="","",'Bulk Run'!AR45)) ->  | R45: =IF(CALC_BASIS_BULK="Increase Net Pay",IF('Bulk Run'!AM45="","",'Bulk Run'!AM45),IF('Bulk Run'!AU45="","",'Bulk Run'!AU45)) ->  | S45: =IF(CALC_BASIS_BULK="Increase Net Pay",IF('Bulk Run'!AN45="","",'Bulk Run'!AN45),IF('Bulk Run'!AV45="","",'Bulk Run'!AV45)) ->  | T45: =IF(CALC_BASIS_BULK="Increase Net Pay",IF('Bulk Run'!AO45="","",'Bulk Run'!AO45),IF('Bulk Run'!AW45="","",'Bulk Run'!AW45)) ->  | U45: =IF(CALC_BASIS_BULK="Increase Net Pay",IF('Bulk Run'!AK45="","",'Bulk Run'!AK45),IF('Bulk Run'!AS45="","",'Bulk Run'!AS45)) ->  | V45: =IF(CALC_BASIS_BULK="Increase Net Pay",IF('Bulk Run'!AL45="","",'Bulk Run'!AL45),IF('Bulk Run'!AT45="","",'Bulk Run'!AT45)) ->  | W45: =IF(CALC_BASIS_BULK="Increase Net Pay",IF('Bulk Run'!AP45="","",'Bulk Run'!AP45),IF('Bulk Run'!AX45="","",'Bulk Run'!AX45)) -> 
A46: 31 | B46: =IF('Bulk Run'!B46="","",'Bulk Run'!B46) ->  | C46: =IF('Bulk Run'!C46="","",'Bulk Run'!C46) ->  | D46: =IF('Bulk Run'!W46="","",'Bulk Run'!W46/FREQ_BULK) ->  | E46: =IF('Bulk Run'!AB46="","",'Bulk Run'!AB46) ->  | F46: =IF('Bulk Run'!AF46="","",'Bulk Run'!AF46) ->  | G46: =IF('Bulk Run'!AG46="","",'Bulk Run'!AG46) ->  | H46: =IF('Bulk Run'!AC46="","",'Bulk Run'!AC46) ->  | I46: =IF('Bulk Run'!AD46="","",'Bulk Run'!AD46) ->  | J46: =IF('Bulk Run'!AE46="","",'Bulk Run'!AE46) ->  | K46: =IF('Bulk Run'!AH46="","",'Bulk Run'!AH46) ->  | N46: =IF('Bulk Run'!B46="","",'Bulk Run'!B46) ->  | O46: =IF('Bulk Run'!C46="","",'Bulk Run'!C46) ->  | P46: =IF(CALC_BASIS_BULK="Increase Net Pay",IF('Bulk Run'!AI46="","",'Bulk Run'!AI46),IF('Bulk Run'!AQ46="","",'Bulk Run'!AQ46)) ->  | Q46: =IF(CALC_BASIS_BULK="Increase Net Pay",IF('Bulk Run'!AJ46="","",'Bulk Run'!AJ46),IF('Bulk Run'!AR46="","",'Bulk Run'!AR46)) ->  | R46: =IF(CALC_BASIS_BULK="Increase Net Pay",IF('Bulk Run'!AM46="","",'Bulk Run'!AM46),IF('Bulk Run'!AU46="","",'Bulk Run'!AU46)) ->  | S46: =IF(CALC_BASIS_BULK="Increase Net Pay",IF('Bulk Run'!AN46="","",'Bulk Run'!AN46),IF('Bulk Run'!AV46="","",'Bulk Run'!AV46)) ->  | T46: =IF(CALC_BASIS_BULK="Increase Net Pay",IF('Bulk Run'!AO46="","",'Bulk Run'!AO46),IF('Bulk Run'!AW46="","",'Bulk Run'!AW46)) ->  | U46: =IF(CALC_BASIS_BULK="Increase Net Pay",IF('Bulk Run'!AK46="","",'Bulk Run'!AK46),IF('Bulk Run'!AS46="","",'Bulk Run'!AS46)) ->  | V46: =IF(CALC_BASIS_BULK="Increase Net Pay",IF('Bulk Run'!AL46="","",'Bulk Run'!AL46),IF('Bulk Run'!AT46="","",'Bulk Run'!AT46)) ->  | W46: =IF(CALC_BASIS_BULK="Increase Net Pay",IF('Bulk Run'!AP46="","",'Bulk Run'!AP46),IF('Bulk Run'!AX46="","",'Bulk Run'!AX46)) -> 
A47: 32 | B47: =IF('Bulk Run'!B47="","",'Bulk Run'!B47) ->  | C47: =IF('Bulk Run'!C47="","",'Bulk Run'!C47) ->  | D47: =IF('Bulk Run'!W47="","",'Bulk Run'!W47/FREQ_BULK) ->  | E47: =IF('Bulk Run'!AB47="","",'Bulk Run'!AB47) ->  | F47: =IF('Bulk Run'!AF47="","",'Bulk Run'!AF47) ->  | G47: =IF('Bulk Run'!AG47="","",'Bulk Run'!AG47) ->  | H47: =IF('Bulk Run'!AC47="","",'Bulk Run'!AC47) ->  | I47: =IF('Bulk Run'!AD47="","",'Bulk Run'!AD47) ->  | J47: =IF('Bulk Run'!AE47="","",'Bulk Run'!AE47) ->  | K47: =IF('Bulk Run'!AH47="","",'Bulk Run'!AH47) ->  | N47: =IF('Bulk Run'!B47="","",'Bulk Run'!B47) ->  | O47: =IF('Bulk Run'!C47="","",'Bulk Run'!C47) ->  | P47: =IF(CALC_BASIS_BULK="Increase Net Pay",IF('Bulk Run'!AI47="","",'Bulk Run'!AI47),IF('Bulk Run'!AQ47="","",'Bulk Run'!AQ47)) ->  | Q47: =IF(CALC_BASIS_BULK="Increase Net Pay",IF('Bulk Run'!AJ47="","",'Bulk Run'!AJ47),IF('Bulk Run'!AR47="","",'Bulk Run'!AR47)) ->  | R47: =IF(CALC_BASIS_BULK="Increase Net Pay",IF('Bulk Run'!AM47="","",'Bulk Run'!AM47),IF('Bulk Run'!AU47="","",'Bulk Run'!AU47)) ->  | S47: =IF(CALC_BASIS_BULK="Increase Net Pay",IF('Bulk Run'!AN47="","",'Bulk Run'!AN47),IF('Bulk Run'!AV47="","",'Bulk Run'!AV47)) ->  | T47: =IF(CALC_BASIS_BULK="Increase Net Pay",IF('Bulk Run'!AO47="","",'Bulk Run'!AO47),IF('Bulk Run'!AW47="","",'Bulk Run'!AW47)) ->  | U47: =IF(CALC_BASIS_BULK="Increase Net Pay",IF('Bulk Run'!AK47="","",'Bulk Run'!AK47),IF('Bulk Run'!AS47="","",'Bulk Run'!AS47)) ->  | V47: =IF(CALC_BASIS_BULK="Increase Net Pay",IF('Bulk Run'!AL47="","",'Bulk Run'!AL47),IF('Bulk Run'!AT47="","",'Bulk Run'!AT47)) ->  | W47: =IF(CALC_BASIS_BULK="Increase Net Pay",IF('Bulk Run'!AP47="","",'Bulk Run'!AP47),IF('Bulk Run'!AX47="","",'Bulk Run'!AX47)) -> 
A48: 33 | B48: =IF('Bulk Run'!B48="","",'Bulk Run'!B48) ->  | C48: =IF('Bulk Run'!C48="","",'Bulk Run'!C48) ->  | D48: =IF('Bulk Run'!W48="","",'Bulk Run'!W48/FREQ_BULK) ->  | E48: =IF('Bulk Run'!AB48="","",'Bulk Run'!AB48) ->  | F48: =IF('Bulk Run'!AF48="","",'Bulk Run'!AF48) ->  | G48: =IF('Bulk Run'!AG48="","",'Bulk Run'!AG48) ->  | H48: =IF('Bulk Run'!AC48="","",'Bulk Run'!AC48) ->  | I48: =IF('Bulk Run'!AD48="","",'Bulk Run'!AD48) ->  | J48: =IF('Bulk Run'!AE48="","",'Bulk Run'!AE48) ->  | K48: =IF('Bulk Run'!AH48="","",'Bulk Run'!AH48) ->  | N48: =IF('Bulk Run'!B48="","",'Bulk Run'!B48) ->  | O48: =IF('Bulk Run'!C48="","",'Bulk Run'!C48) ->  | P48: =IF(CALC_BASIS_BULK="Increase Net Pay",IF('Bulk Run'!AI48="","",'Bulk Run'!AI48),IF('Bulk Run'!AQ48="","",'Bulk Run'!AQ48)) ->  | Q48: =IF(CALC_BASIS_BULK="Increase Net Pay",IF('Bulk Run'!AJ48="","",'Bulk Run'!AJ48),IF('Bulk Run'!AR48="","",'Bulk Run'!AR48)) ->  | R48: =IF(CALC_BASIS_BULK="Increase Net Pay",IF('Bulk Run'!AM48="","",'Bulk Run'!AM48),IF('Bulk Run'!AU48="","",'Bulk Run'!AU48)) ->  | S48: =IF(CALC_BASIS_BULK="Increase Net Pay",IF('Bulk Run'!AN48="","",'Bulk Run'!AN48),IF('Bulk Run'!AV48="","",'Bulk Run'!AV48)) ->  | T48: =IF(CALC_BASIS_BULK="Increase Net Pay",IF('Bulk Run'!AO48="","",'Bulk Run'!AO48),IF('Bulk Run'!AW48="","",'Bulk Run'!AW48)) ->  | U48: =IF(CALC_BASIS_BULK="Increase Net Pay",IF('Bulk Run'!AK48="","",'Bulk Run'!AK48),IF('Bulk Run'!AS48="","",'Bulk Run'!AS48)) ->  | V48: =IF(CALC_BASIS_BULK="Increase Net Pay",IF('Bulk Run'!AL48="","",'Bulk Run'!AL48),IF('Bulk Run'!AT48="","",'Bulk Run'!AT48)) ->  | W48: =IF(CALC_BASIS_BULK="Increase Net Pay",IF('Bulk Run'!AP48="","",'Bulk Run'!AP48),IF('Bulk Run'!AX48="","",'Bulk Run'!AX48)) -> 
A49: 34 | B49: =IF('Bulk Run'!B49="","",'Bulk Run'!B49) ->  | C49: =IF('Bulk Run'!C49="","",'Bulk Run'!C49) ->  | D49: =IF('Bulk Run'!W49="","",'Bulk Run'!W49/FREQ_BULK) ->  | E49: =IF('Bulk Run'!AB49="","",'Bulk Run'!AB49) ->  | F49: =IF('Bulk Run'!AF49="","",'Bulk Run'!AF49) ->  | G49: =IF('Bulk Run'!AG49="","",'Bulk Run'!AG49) ->  | H49: =IF('Bulk Run'!AC49="","",'Bulk Run'!AC49) ->  | I49: =IF('Bulk Run'!AD49="","",'Bulk Run'!AD49) ->  | J49: =IF('Bulk Run'!AE49="","",'Bulk Run'!AE49) ->  | K49: =IF('Bulk Run'!AH49="","",'Bulk Run'!AH49) ->  | N49: =IF('Bulk Run'!B49="","",'Bulk Run'!B49) ->  | O49: =IF('Bulk Run'!C49="","",'Bulk Run'!C49) ->  | P49: =IF(CALC_BASIS_BULK="Increase Net Pay",IF('Bulk Run'!AI49="","",'Bulk Run'!AI49),IF('Bulk Run'!AQ49="","",'Bulk Run'!AQ49)) ->  | Q49: =IF(CALC_BASIS_BULK="Increase Net Pay",IF('Bulk Run'!AJ49="","",'Bulk Run'!AJ49),IF('Bulk Run'!AR49="","",'Bulk Run'!AR49)) ->  | R49: =IF(CALC_BASIS_BULK="Increase Net Pay",IF('Bulk Run'!AM49="","",'Bulk Run'!AM49),IF('Bulk Run'!AU49="","",'Bulk Run'!AU49)) ->  | S49: =IF(CALC_BASIS_BULK="Increase Net Pay",IF('Bulk Run'!AN49="","",'Bulk Run'!AN49),IF('Bulk Run'!AV49="","",'Bulk Run'!AV49)) ->  | T49: =IF(CALC_BASIS_BULK="Increase Net Pay",IF('Bulk Run'!AO49="","",'Bulk Run'!AO49),IF('Bulk Run'!AW49="","",'Bulk Run'!AW49)) ->  | U49: =IF(CALC_BASIS_BULK="Increase Net Pay",IF('Bulk Run'!AK49="","",'Bulk Run'!AK49),IF('Bulk Run'!AS49="","",'Bulk Run'!AS49)) ->  | V49: =IF(CALC_BASIS_BULK="Increase Net Pay",IF('Bulk Run'!AL49="","",'Bulk Run'!AL49),IF('Bulk Run'!AT49="","",'Bulk Run'!AT49)) ->  | W49: =IF(CALC_BASIS_BULK="Increase Net Pay",IF('Bulk Run'!AP49="","",'Bulk Run'!AP49),IF('Bulk Run'!AX49="","",'Bulk Run'!AX49)) -> 
A50: 35 | B50: =IF('Bulk Run'!B50="","",'Bulk Run'!B50) ->  | C50: =IF('Bulk Run'!C50="","",'Bulk Run'!C50) ->  | D50: =IF('Bulk Run'!W50="","",'Bulk Run'!W50/FREQ_BULK) ->  | E50: =IF('Bulk Run'!AB50="","",'Bulk Run'!AB50) ->  | F50: =IF('Bulk Run'!AF50="","",'Bulk Run'!AF50) ->  | G50: =IF('Bulk Run'!AG50="","",'Bulk Run'!AG50) ->  | H50: =IF('Bulk Run'!AC50="","",'Bulk Run'!AC50) ->  | I50: =IF('Bulk Run'!AD50="","",'Bulk Run'!AD50) ->  | J50: =IF('Bulk Run'!AE50="","",'Bulk Run'!AE50) ->  | K50: =IF('Bulk Run'!AH50="","",'Bulk Run'!AH50) ->  | N50: =IF('Bulk Run'!B50="","",'Bulk Run'!B50) ->  | O50: =IF('Bulk Run'!C50="","",'Bulk Run'!C50) ->  | P50: =IF(CALC_BASIS_BULK="Increase Net Pay",IF('Bulk Run'!AI50="","",'Bulk Run'!AI50),IF('Bulk Run'!AQ50="","",'Bulk Run'!AQ50)) ->  | Q50: =IF(CALC_BASIS_BULK="Increase Net Pay",IF('Bulk Run'!AJ50="","",'Bulk Run'!AJ50),IF('Bulk Run'!AR50="","",'Bulk Run'!AR50)) ->  | R50: =IF(CALC_BASIS_BULK="Increase Net Pay",IF('Bulk Run'!AM50="","",'Bulk Run'!AM50),IF('Bulk Run'!AU50="","",'Bulk Run'!AU50)) ->  | S50: =IF(CALC_BASIS_BULK="Increase Net Pay",IF('Bulk Run'!AN50="","",'Bulk Run'!AN50),IF('Bulk Run'!AV50="","",'Bulk Run'!AV50)) ->  | T50: =IF(CALC_BASIS_BULK="Increase Net Pay",IF('Bulk Run'!AO50="","",'Bulk Run'!AO50),IF('Bulk Run'!AW50="","",'Bulk Run'!AW50)) ->  | U50: =IF(CALC_BASIS_BULK="Increase Net Pay",IF('Bulk Run'!AK50="","",'Bulk Run'!AK50),IF('Bulk Run'!AS50="","",'Bulk Run'!AS50)) ->  | V50: =IF(CALC_BASIS_BULK="Increase Net Pay",IF('Bulk Run'!AL50="","",'Bulk Run'!AL50),IF('Bulk Run'!AT50="","",'Bulk Run'!AT50)) ->  | W50: =IF(CALC_BASIS_BULK="Increase Net Pay",IF('Bulk Run'!AP50="","",'Bulk Run'!AP50),IF('Bulk Run'!AX50="","",'Bulk Run'!AX50)) -> 
A51: 36 | B51: =IF('Bulk Run'!B51="","",'Bulk Run'!B51) ->  | C51: =IF('Bulk Run'!C51="","",'Bulk Run'!C51) ->  | D51: =IF('Bulk Run'!W51="","",'Bulk Run'!W51/FREQ_BULK) ->  | E51: =IF('Bulk Run'!AB51="","",'Bulk Run'!AB51) ->  | F51: =IF('Bulk Run'!AF51="","",'Bulk Run'!AF51) ->  | G51: =IF('Bulk Run'!AG51="","",'Bulk Run'!AG51) ->  | H51: =IF('Bulk Run'!AC51="","",'Bulk Run'!AC51) ->  | I51: =IF('Bulk Run'!AD51="","",'Bulk Run'!AD51) ->  | J51: =IF('Bulk Run'!AE51="","",'Bulk Run'!AE51) ->  | K51: =IF('Bulk Run'!AH51="","",'Bulk Run'!AH51) ->  | N51: =IF('Bulk Run'!B51="","",'Bulk Run'!B51) ->  | O51: =IF('Bulk Run'!C51="","",'Bulk Run'!C51) ->  | P51: =IF(CALC_BASIS_BULK="Increase Net Pay",IF('Bulk Run'!AI51="","",'Bulk Run'!AI51),IF('Bulk Run'!AQ51="","",'Bulk Run'!AQ51)) ->  | Q51: =IF(CALC_BASIS_BULK="Increase Net Pay",IF('Bulk Run'!AJ51="","",'Bulk Run'!AJ51),IF('Bulk Run'!AR51="","",'Bulk Run'!AR51)) ->  | R51: =IF(CALC_BASIS_BULK="Increase Net Pay",IF('Bulk Run'!AM51="","",'Bulk Run'!AM51),IF('Bulk Run'!AU51="","",'Bulk Run'!AU51)) ->  | S51: =IF(CALC_BASIS_BULK="Increase Net Pay",IF('Bulk Run'!AN51="","",'Bulk Run'!AN51),IF('Bulk Run'!AV51="","",'Bulk Run'!AV51)) ->  | T51: =IF(CALC_BASIS_BULK="Increase Net Pay",IF('Bulk Run'!AO51="","",'Bulk Run'!AO51),IF('Bulk Run'!AW51="","",'Bulk Run'!AW51)) ->  | U51: =IF(CALC_BASIS_BULK="Increase Net Pay",IF('Bulk Run'!AK51="","",'Bulk Run'!AK51),IF('Bulk Run'!AS51="","",'Bulk Run'!AS51)) ->  | V51: =IF(CALC_BASIS_BULK="Increase Net Pay",IF('Bulk Run'!AL51="","",'Bulk Run'!AL51),IF('Bulk Run'!AT51="","",'Bulk Run'!AT51)) ->  | W51: =IF(CALC_BASIS_BULK="Increase Net Pay",IF('Bulk Run'!AP51="","",'Bulk Run'!AP51),IF('Bulk Run'!AX51="","",'Bulk Run'!AX51)) -> 
A52: 37 | B52: =IF('Bulk Run'!B52="","",'Bulk Run'!B52) ->  | C52: =IF('Bulk Run'!C52="","",'Bulk Run'!C52) ->  | D52: =IF('Bulk Run'!W52="","",'Bulk Run'!W52/FREQ_BULK) ->  | E52: =IF('Bulk Run'!AB52="","",'Bulk Run'!AB52) ->  | F52: =IF('Bulk Run'!AF52="","",'Bulk Run'!AF52) ->  | G52: =IF('Bulk Run'!AG52="","",'Bulk Run'!AG52) ->  | H52: =IF('Bulk Run'!AC52="","",'Bulk Run'!AC52) ->  | I52: =IF('Bulk Run'!AD52="","",'Bulk Run'!AD52) ->  | J52: =IF('Bulk Run'!AE52="","",'Bulk Run'!AE52) ->  | K52: =IF('Bulk Run'!AH52="","",'Bulk Run'!AH52) ->  | N52: =IF('Bulk Run'!B52="","",'Bulk Run'!B52) ->  | O52: =IF('Bulk Run'!C52="","",'Bulk Run'!C52) ->  | P52: =IF(CALC_BASIS_BULK="Increase Net Pay",IF('Bulk Run'!AI52="","",'Bulk Run'!AI52),IF('Bulk Run'!AQ52="","",'Bulk Run'!AQ52)) ->  | Q52: =IF(CALC_BASIS_BULK="Increase Net Pay",IF('Bulk Run'!AJ52="","",'Bulk Run'!AJ52),IF('Bulk Run'!AR52="","",'Bulk Run'!AR52)) ->  | R52: =IF(CALC_BASIS_BULK="Increase Net Pay",IF('Bulk Run'!AM52="","",'Bulk Run'!AM52),IF('Bulk Run'!AU52="","",'Bulk Run'!AU52)) ->  | S52: =IF(CALC_BASIS_BULK="Increase Net Pay",IF('Bulk Run'!AN52="","",'Bulk Run'!AN52),IF('Bulk Run'!AV52="","",'Bulk Run'!AV52)) ->  | T52: =IF(CALC_BASIS_BULK="Increase Net Pay",IF('Bulk Run'!AO52="","",'Bulk Run'!AO52),IF('Bulk Run'!AW52="","",'Bulk Run'!AW52)) ->  | U52: =IF(CALC_BASIS_BULK="Increase Net Pay",IF('Bulk Run'!AK52="","",'Bulk Run'!AK52),IF('Bulk Run'!AS52="","",'Bulk Run'!AS52)) ->  | V52: =IF(CALC_BASIS_BULK="Increase Net Pay",IF('Bulk Run'!AL52="","",'Bulk Run'!AL52),IF('Bulk Run'!AT52="","",'Bulk Run'!AT52)) ->  | W52: =IF(CALC_BASIS_BULK="Increase Net Pay",IF('Bulk Run'!AP52="","",'Bulk Run'!AP52),IF('Bulk Run'!AX52="","",'Bulk Run'!AX52)) -> 
A53: 38 | B53: =IF('Bulk Run'!B53="","",'Bulk Run'!B53) ->  | C53: =IF('Bulk Run'!C53="","",'Bulk Run'!C53) ->  | D53: =IF('Bulk Run'!W53="","",'Bulk Run'!W53/FREQ_BULK) ->  | E53: =IF('Bulk Run'!AB53="","",'Bulk Run'!AB53) ->  | F53: =IF('Bulk Run'!AF53="","",'Bulk Run'!AF53) ->  | G53: =IF('Bulk Run'!AG53="","",'Bulk Run'!AG53) ->  | H53: =IF('Bulk Run'!AC53="","",'Bulk Run'!AC53) ->  | I53: =IF('Bulk Run'!AD53="","",'Bulk Run'!AD53) ->  | J53: =IF('Bulk Run'!AE53="","",'Bulk Run'!AE53) ->  | K53: =IF('Bulk Run'!AH53="","",'Bulk Run'!AH53) ->  | N53: =IF('Bulk Run'!B53="","",'Bulk Run'!B53) ->  | O53: =IF('Bulk Run'!C53="","",'Bulk Run'!C53) ->  | P53: =IF(CALC_BASIS_BULK="Increase Net Pay",IF('Bulk Run'!AI53="","",'Bulk Run'!AI53),IF('Bulk Run'!AQ53="","",'Bulk Run'!AQ53)) ->  | Q53: =IF(CALC_BASIS_BULK="Increase Net Pay",IF('Bulk Run'!AJ53="","",'Bulk Run'!AJ53),IF('Bulk Run'!AR53="","",'Bulk Run'!AR53)) ->  | R53: =IF(CALC_BASIS_BULK="Increase Net Pay",IF('Bulk Run'!AM53="","",'Bulk Run'!AM53),IF('Bulk Run'!AU53="","",'Bulk Run'!AU53)) ->  | S53: =IF(CALC_BASIS_BULK="Increase Net Pay",IF('Bulk Run'!AN53="","",'Bulk Run'!AN53),IF('Bulk Run'!AV53="","",'Bulk Run'!AV53)) ->  | T53: =IF(CALC_BASIS_BULK="Increase Net Pay",IF('Bulk Run'!AO53="","",'Bulk Run'!AO53),IF('Bulk Run'!AW53="","",'Bulk Run'!AW53)) ->  | U53: =IF(CALC_BASIS_BULK="Increase Net Pay",IF('Bulk Run'!AK53="","",'Bulk Run'!AK53),IF('Bulk Run'!AS53="","",'Bulk Run'!AS53)) ->  | V53: =IF(CALC_BASIS_BULK="Increase Net Pay",IF('Bulk Run'!AL53="","",'Bulk Run'!AL53),IF('Bulk Run'!AT53="","",'Bulk Run'!AT53)) ->  | W53: =IF(CALC_BASIS_BULK="Increase Net Pay",IF('Bulk Run'!AP53="","",'Bulk Run'!AP53),IF('Bulk Run'!AX53="","",'Bulk Run'!AX53)) -> 
A54: 39 | B54: =IF('Bulk Run'!B54="","",'Bulk Run'!B54) ->  | C54: =IF('Bulk Run'!C54="","",'Bulk Run'!C54) ->  | D54: =IF('Bulk Run'!W54="","",'Bulk Run'!W54/FREQ_BULK) ->  | E54: =IF('Bulk Run'!AB54="","",'Bulk Run'!AB54) ->  | F54: =IF('Bulk Run'!AF54="","",'Bulk Run'!AF54) ->  | G54: =IF('Bulk Run'!AG54="","",'Bulk Run'!AG54) ->  | H54: =IF('Bulk Run'!AC54="","",'Bulk Run'!AC54) ->  | I54: =IF('Bulk Run'!AD54="","",'Bulk Run'!AD54) ->  | J54: =IF('Bulk Run'!AE54="","",'Bulk Run'!AE54) ->  | K54: =IF('Bulk Run'!AH54="","",'Bulk Run'!AH54) ->  | N54: =IF('Bulk Run'!B54="","",'Bulk Run'!B54) ->  | O54: =IF('Bulk Run'!C54="","",'Bulk Run'!C54) ->  | P54: =IF(CALC_BASIS_BULK="Increase Net Pay",IF('Bulk Run'!AI54="","",'Bulk Run'!AI54),IF('Bulk Run'!AQ54="","",'Bulk Run'!AQ54)) ->  | Q54: =IF(CALC_BASIS_BULK="Increase Net Pay",IF('Bulk Run'!AJ54="","",'Bulk Run'!AJ54),IF('Bulk Run'!AR54="","",'Bulk Run'!AR54)) ->  | R54: =IF(CALC_BASIS_BULK="Increase Net Pay",IF('Bulk Run'!AM54="","",'Bulk Run'!AM54),IF('Bulk Run'!AU54="","",'Bulk Run'!AU54)) ->  | S54: =IF(CALC_BASIS_BULK="Increase Net Pay",IF('Bulk Run'!AN54="","",'Bulk Run'!AN54),IF('Bulk Run'!AV54="","",'Bulk Run'!AV54)) ->  | T54: =IF(CALC_BASIS_BULK="Increase Net Pay",IF('Bulk Run'!AO54="","",'Bulk Run'!AO54),IF('Bulk Run'!AW54="","",'Bulk Run'!AW54)) ->  | U54: =IF(CALC_BASIS_BULK="Increase Net Pay",IF('Bulk Run'!AK54="","",'Bulk Run'!AK54),IF('Bulk Run'!AS54="","",'Bulk Run'!AS54)) ->  | V54: =IF(CALC_BASIS_BULK="Increase Net Pay",IF('Bulk Run'!AL54="","",'Bulk Run'!AL54),IF('Bulk Run'!AT54="","",'Bulk Run'!AT54)) ->  | W54: =IF(CALC_BASIS_BULK="Increase Net Pay",IF('Bulk Run'!AP54="","",'Bulk Run'!AP54),IF('Bulk Run'!AX54="","",'Bulk Run'!AX54)) -> 
A55: 40 | B55: =IF('Bulk Run'!B55="","",'Bulk Run'!B55) ->  | C55: =IF('Bulk Run'!C55="","",'Bulk Run'!C55) ->  | D55: =IF('Bulk Run'!W55="","",'Bulk Run'!W55/FREQ_BULK) ->  | E55: =IF('Bulk Run'!AB55="","",'Bulk Run'!AB55) ->  | F55: =IF('Bulk Run'!AF55="","",'Bulk Run'!AF55) ->  | G55: =IF('Bulk Run'!AG55="","",'Bulk Run'!AG55) ->  | H55: =IF('Bulk Run'!AC55="","",'Bulk Run'!AC55) ->  | I55: =IF('Bulk Run'!AD55="","",'Bulk Run'!AD55) ->  | J55: =IF('Bulk Run'!AE55="","",'Bulk Run'!AE55) ->  | K55: =IF('Bulk Run'!AH55="","",'Bulk Run'!AH55) ->  | N55: =IF('Bulk Run'!B55="","",'Bulk Run'!B55) ->  | O55: =IF('Bulk Run'!C55="","",'Bulk Run'!C55) ->  | P55: =IF(CALC_BASIS_BULK="Increase Net Pay",IF('Bulk Run'!AI55="","",'Bulk Run'!AI55),IF('Bulk Run'!AQ55="","",'Bulk Run'!AQ55)) ->  | Q55: =IF(CALC_BASIS_BULK="Increase Net Pay",IF('Bulk Run'!AJ55="","",'Bulk Run'!AJ55),IF('Bulk Run'!AR55="","",'Bulk Run'!AR55)) ->  | R55: =IF(CALC_BASIS_BULK="Increase Net Pay",IF('Bulk Run'!AM55="","",'Bulk Run'!AM55),IF('Bulk Run'!AU55="","",'Bulk Run'!AU55)) ->  | S55: =IF(CALC_BASIS_BULK="Increase Net Pay",IF('Bulk Run'!AN55="","",'Bulk Run'!AN55),IF('Bulk Run'!AV55="","",'Bulk Run'!AV55)) ->  | T55: =IF(CALC_BASIS_BULK="Increase Net Pay",IF('Bulk Run'!AO55="","",'Bulk Run'!AO55),IF('Bulk Run'!AW55="","",'Bulk Run'!AW55)) ->  | U55: =IF(CALC_BASIS_BULK="Increase Net Pay",IF('Bulk Run'!AK55="","",'Bulk Run'!AK55),IF('Bulk Run'!AS55="","",'Bulk Run'!AS55)) ->  | V55: =IF(CALC_BASIS_BULK="Increase Net Pay",IF('Bulk Run'!AL55="","",'Bulk Run'!AL55),IF('Bulk Run'!AT55="","",'Bulk Run'!AT55)) ->  | W55: =IF(CALC_BASIS_BULK="Increase Net Pay",IF('Bulk Run'!AP55="","",'Bulk Run'!AP55),IF('Bulk Run'!AX55="","",'Bulk Run'!AX55)) -> 
A56: 41 | B56: =IF('Bulk Run'!B56="","",'Bulk Run'!B56) ->  | C56: =IF('Bulk Run'!C56="","",'Bulk Run'!C56) ->  | D56: =IF('Bulk Run'!W56="","",'Bulk Run'!W56/FREQ_BULK) ->  | E56: =IF('Bulk Run'!AB56="","",'Bulk Run'!AB56) ->  | F56: =IF('Bulk Run'!AF56="","",'Bulk Run'!AF56) ->  | G56: =IF('Bulk Run'!AG56="","",'Bulk Run'!AG56) ->  | H56: =IF('Bulk Run'!AC56="","",'Bulk Run'!AC56) ->  | I56: =IF('Bulk Run'!AD56="","",'Bulk Run'!AD56) ->  | J56: =IF('Bulk Run'!AE56="","",'Bulk Run'!AE56) ->  | K56: =IF('Bulk Run'!AH56="","",'Bulk Run'!AH56) ->  | N56: =IF('Bulk Run'!B56="","",'Bulk Run'!B56) ->  | O56: =IF('Bulk Run'!C56="","",'Bulk Run'!C56) ->  | P56: =IF(CALC_BASIS_BULK="Increase Net Pay",IF('Bulk Run'!AI56="","",'Bulk Run'!AI56),IF('Bulk Run'!AQ56="","",'Bulk Run'!AQ56)) ->  | Q56: =IF(CALC_BASIS_BULK="Increase Net Pay",IF('Bulk Run'!AJ56="","",'Bulk Run'!AJ56),IF('Bulk Run'!AR56="","",'Bulk Run'!AR56)) ->  | R56: =IF(CALC_BASIS_BULK="Increase Net Pay",IF('Bulk Run'!AM56="","",'Bulk Run'!AM56),IF('Bulk Run'!AU56="","",'Bulk Run'!AU56)) ->  | S56: =IF(CALC_BASIS_BULK="Increase Net Pay",IF('Bulk Run'!AN56="","",'Bulk Run'!AN56),IF('Bulk Run'!AV56="","",'Bulk Run'!AV56)) ->  | T56: =IF(CALC_BASIS_BULK="Increase Net Pay",IF('Bulk Run'!AO56="","",'Bulk Run'!AO56),IF('Bulk Run'!AW56="","",'Bulk Run'!AW56)) ->  | U56: =IF(CALC_BASIS_BULK="Increase Net Pay",IF('Bulk Run'!AK56="","",'Bulk Run'!AK56),IF('Bulk Run'!AS56="","",'Bulk Run'!AS56)) ->  | V56: =IF(CALC_BASIS_BULK="Increase Net Pay",IF('Bulk Run'!AL56="","",'Bulk Run'!AL56),IF('Bulk Run'!AT56="","",'Bulk Run'!AT56)) ->  | W56: =IF(CALC_BASIS_BULK="Increase Net Pay",IF('Bulk Run'!AP56="","",'Bulk Run'!AP56),IF('Bulk Run'!AX56="","",'Bulk Run'!AX56)) -> 
A57: 42 | B57: =IF('Bulk Run'!B57="","",'Bulk Run'!B57) ->  | C57: =IF('Bulk Run'!C57="","",'Bulk Run'!C57) ->  | D57: =IF('Bulk Run'!W57="","",'Bulk Run'!W57/FREQ_BULK) ->  | E57: =IF('Bulk Run'!AB57="","",'Bulk Run'!AB57) ->  | F57: =IF('Bulk Run'!AF57="","",'Bulk Run'!AF57) ->  | G57: =IF('Bulk Run'!AG57="","",'Bulk Run'!AG57) ->  | H57: =IF('Bulk Run'!AC57="","",'Bulk Run'!AC57) ->  | I57: =IF('Bulk Run'!AD57="","",'Bulk Run'!AD57) ->  | J57: =IF('Bulk Run'!AE57="","",'Bulk Run'!AE57) ->  | K57: =IF('Bulk Run'!AH57="","",'Bulk Run'!AH57) ->  | N57: =IF('Bulk Run'!B57="","",'Bulk Run'!B57) ->  | O57: =IF('Bulk Run'!C57="","",'Bulk Run'!C57) ->  | P57: =IF(CALC_BASIS_BULK="Increase Net Pay",IF('Bulk Run'!AI57="","",'Bulk Run'!AI57),IF('Bulk Run'!AQ57="","",'Bulk Run'!AQ57)) ->  | Q57: =IF(CALC_BASIS_BULK="Increase Net Pay",IF('Bulk Run'!AJ57="","",'Bulk Run'!AJ57),IF('Bulk Run'!AR57="","",'Bulk Run'!AR57)) ->  | R57: =IF(CALC_BASIS_BULK="Increase Net Pay",IF('Bulk Run'!AM57="","",'Bulk Run'!AM57),IF('Bulk Run'!AU57="","",'Bulk Run'!AU57)) ->  | S57: =IF(CALC_BASIS_BULK="Increase Net Pay",IF('Bulk Run'!AN57="","",'Bulk Run'!AN57),IF('Bulk Run'!AV57="","",'Bulk Run'!AV57)) ->  | T57: =IF(CALC_BASIS_BULK="Increase Net Pay",IF('Bulk Run'!AO57="","",'Bulk Run'!AO57),IF('Bulk Run'!AW57="","",'Bulk Run'!AW57)) ->  | U57: =IF(CALC_BASIS_BULK="Increase Net Pay",IF('Bulk Run'!AK57="","",'Bulk Run'!AK57),IF('Bulk Run'!AS57="","",'Bulk Run'!AS57)) ->  | V57: =IF(CALC_BASIS_BULK="Increase Net Pay",IF('Bulk Run'!AL57="","",'Bulk Run'!AL57),IF('Bulk Run'!AT57="","",'Bulk Run'!AT57)) ->  | W57: =IF(CALC_BASIS_BULK="Increase Net Pay",IF('Bulk Run'!AP57="","",'Bulk Run'!AP57),IF('Bulk Run'!AX57="","",'Bulk Run'!AX57)) -> 
A58: 43 | B58: =IF('Bulk Run'!B58="","",'Bulk Run'!B58) ->  | C58: =IF('Bulk Run'!C58="","",'Bulk Run'!C58) ->  | D58: =IF('Bulk Run'!W58="","",'Bulk Run'!W58/FREQ_BULK) ->  | E58: =IF('Bulk Run'!AB58="","",'Bulk Run'!AB58) ->  | F58: =IF('Bulk Run'!AF58="","",'Bulk Run'!AF58) ->  | G58: =IF('Bulk Run'!AG58="","",'Bulk Run'!AG58) ->  | H58: =IF('Bulk Run'!AC58="","",'Bulk Run'!AC58) ->  | I58: =IF('Bulk Run'!AD58="","",'Bulk Run'!AD58) ->  | J58: =IF('Bulk Run'!AE58="","",'Bulk Run'!AE58) ->  | K58: =IF('Bulk Run'!AH58="","",'Bulk Run'!AH58) ->  | N58: =IF('Bulk Run'!B58="","",'Bulk Run'!B58) ->  | O58: =IF('Bulk Run'!C58="","",'Bulk Run'!C58) ->  | P58: =IF(CALC_BASIS_BULK="Increase Net Pay",IF('Bulk Run'!AI58="","",'Bulk Run'!AI58),IF('Bulk Run'!AQ58="","",'Bulk Run'!AQ58)) ->  | Q58: =IF(CALC_BASIS_BULK="Increase Net Pay",IF('Bulk Run'!AJ58="","",'Bulk Run'!AJ58),IF('Bulk Run'!AR58="","",'Bulk Run'!AR58)) ->  | R58: =IF(CALC_BASIS_BULK="Increase Net Pay",IF('Bulk Run'!AM58="","",'Bulk Run'!AM58),IF('Bulk Run'!AU58="","",'Bulk Run'!AU58)) ->  | S58: =IF(CALC_BASIS_BULK="Increase Net Pay",IF('Bulk Run'!AN58="","",'Bulk Run'!AN58),IF('Bulk Run'!AV58="","",'Bulk Run'!AV58)) ->  | T58: =IF(CALC_BASIS_BULK="Increase Net Pay",IF('Bulk Run'!AO58="","",'Bulk Run'!AO58),IF('Bulk Run'!AW58="","",'Bulk Run'!AW58)) ->  | U58: =IF(CALC_BASIS_BULK="Increase Net Pay",IF('Bulk Run'!AK58="","",'Bulk Run'!AK58),IF('Bulk Run'!AS58="","",'Bulk Run'!AS58)) ->  | V58: =IF(CALC_BASIS_BULK="Increase Net Pay",IF('Bulk Run'!AL58="","",'Bulk Run'!AL58),IF('Bulk Run'!AT58="","",'Bulk Run'!AT58)) ->  | W58: =IF(CALC_BASIS_BULK="Increase Net Pay",IF('Bulk Run'!AP58="","",'Bulk Run'!AP58),IF('Bulk Run'!AX58="","",'Bulk Run'!AX58)) -> 
A59: 44 | B59: =IF('Bulk Run'!B59="","",'Bulk Run'!B59) ->  | C59: =IF('Bulk Run'!C59="","",'Bulk Run'!C59) ->  | D59: =IF('Bulk Run'!W59="","",'Bulk Run'!W59/FREQ_BULK) ->  | E59: =IF('Bulk Run'!AB59="","",'Bulk Run'!AB59) ->  | F59: =IF('Bulk Run'!AF59="","",'Bulk Run'!AF59) ->  | G59: =IF('Bulk Run'!AG59="","",'Bulk Run'!AG59) ->  | H59: =IF('Bulk Run'!AC59="","",'Bulk Run'!AC59) ->  | I59: =IF('Bulk Run'!AD59="","",'Bulk Run'!AD59) ->  | J59: =IF('Bulk Run'!AE59="","",'Bulk Run'!AE59) ->  | K59: =IF('Bulk Run'!AH59="","",'Bulk Run'!AH59) ->  | N59: =IF('Bulk Run'!B59="","",'Bulk Run'!B59) ->  | O59: =IF('Bulk Run'!C59="","",'Bulk Run'!C59) ->  | P59: =IF(CALC_BASIS_BULK="Increase Net Pay",IF('Bulk Run'!AI59="","",'Bulk Run'!AI59),IF('Bulk Run'!AQ59="","",'Bulk Run'!AQ59)) ->  | Q59: =IF(CALC_BASIS_BULK="Increase Net Pay",IF('Bulk Run'!AJ59="","",'Bulk Run'!AJ59),IF('Bulk Run'!AR59="","",'Bulk Run'!AR59)) ->  | R59: =IF(CALC_BASIS_BULK="Increase Net Pay",IF('Bulk Run'!AM59="","",'Bulk Run'!AM59),IF('Bulk Run'!AU59="","",'Bulk Run'!AU59)) ->  | S59: =IF(CALC_BASIS_BULK="Increase Net Pay",IF('Bulk Run'!AN59="","",'Bulk Run'!AN59),IF('Bulk Run'!AV59="","",'Bulk Run'!AV59)) ->  | T59: =IF(CALC_BASIS_BULK="Increase Net Pay",IF('Bulk Run'!AO59="","",'Bulk Run'!AO59),IF('Bulk Run'!AW59="","",'Bulk Run'!AW59)) ->  | U59: =IF(CALC_BASIS_BULK="Increase Net Pay",IF('Bulk Run'!AK59="","",'Bulk Run'!AK59),IF('Bulk Run'!AS59="","",'Bulk Run'!AS59)) ->  | V59: =IF(CALC_BASIS_BULK="Increase Net Pay",IF('Bulk Run'!AL59="","",'Bulk Run'!AL59),IF('Bulk Run'!AT59="","",'Bulk Run'!AT59)) ->  | W59: =IF(CALC_BASIS_BULK="Increase Net Pay",IF('Bulk Run'!AP59="","",'Bulk Run'!AP59),IF('Bulk Run'!AX59="","",'Bulk Run'!AX59)) -> 
A60: 45 | B60: =IF('Bulk Run'!B60="","",'Bulk Run'!B60) ->  | C60: =IF('Bulk Run'!C60="","",'Bulk Run'!C60) ->  | D60: =IF('Bulk Run'!W60="","",'Bulk Run'!W60/FREQ_BULK) ->  | E60: =IF('Bulk Run'!AB60="","",'Bulk Run'!AB60) ->  | F60: =IF('Bulk Run'!AF60="","",'Bulk Run'!AF60) ->  | G60: =IF('Bulk Run'!AG60="","",'Bulk Run'!AG60) ->  | H60: =IF('Bulk Run'!AC60="","",'Bulk Run'!AC60) ->  | I60: =IF('Bulk Run'!AD60="","",'Bulk Run'!AD60) ->  | J60: =IF('Bulk Run'!AE60="","",'Bulk Run'!AE60) ->  | K60: =IF('Bulk Run'!AH60="","",'Bulk Run'!AH60) ->  | N60: =IF('Bulk Run'!B60="","",'Bulk Run'!B60) ->  | O60: =IF('Bulk Run'!C60="","",'Bulk Run'!C60) ->  | P60: =IF(CALC_BASIS_BULK="Increase Net Pay",IF('Bulk Run'!AI60="","",'Bulk Run'!AI60),IF('Bulk Run'!AQ60="","",'Bulk Run'!AQ60)) ->  | Q60: =IF(CALC_BASIS_BULK="Increase Net Pay",IF('Bulk Run'!AJ60="","",'Bulk Run'!AJ60),IF('Bulk Run'!AR60="","",'Bulk Run'!AR60)) ->  | R60: =IF(CALC_BASIS_BULK="Increase Net Pay",IF('Bulk Run'!AM60="","",'Bulk Run'!AM60),IF('Bulk Run'!AU60="","",'Bulk Run'!AU60)) ->  | S60: =IF(CALC_BASIS_BULK="Increase Net Pay",IF('Bulk Run'!AN60="","",'Bulk Run'!AN60),IF('Bulk Run'!AV60="","",'Bulk Run'!AV60)) ->  | T60: =IF(CALC_BASIS_BULK="Increase Net Pay",IF('Bulk Run'!AO60="","",'Bulk Run'!AO60),IF('Bulk Run'!AW60="","",'Bulk Run'!AW60)) ->  | U60: =IF(CALC_BASIS_BULK="Increase Net Pay",IF('Bulk Run'!AK60="","",'Bulk Run'!AK60),IF('Bulk Run'!AS60="","",'Bulk Run'!AS60)) ->  | V60: =IF(CALC_BASIS_BULK="Increase Net Pay",IF('Bulk Run'!AL60="","",'Bulk Run'!AL60),IF('Bulk Run'!AT60="","",'Bulk Run'!AT60)) ->  | W60: =IF(CALC_BASIS_BULK="Increase Net Pay",IF('Bulk Run'!AP60="","",'Bulk Run'!AP60),IF('Bulk Run'!AX60="","",'Bulk Run'!AX60)) -> 
A61: 46 | B61: =IF('Bulk Run'!B61="","",'Bulk Run'!B61) ->  | C61: =IF('Bulk Run'!C61="","",'Bulk Run'!C61) ->  | D61: =IF('Bulk Run'!W61="","",'Bulk Run'!W61/FREQ_BULK) ->  | E61: =IF('Bulk Run'!AB61="","",'Bulk Run'!AB61) ->  | F61: =IF('Bulk Run'!AF61="","",'Bulk Run'!AF61) ->  | G61: =IF('Bulk Run'!AG61="","",'Bulk Run'!AG61) ->  | H61: =IF('Bulk Run'!AC61="","",'Bulk Run'!AC61) ->  | I61: =IF('Bulk Run'!AD61="","",'Bulk Run'!AD61) ->  | J61: =IF('Bulk Run'!AE61="","",'Bulk Run'!AE61) ->  | K61: =IF('Bulk Run'!AH61="","",'Bulk Run'!AH61) ->  | N61: =IF('Bulk Run'!B61="","",'Bulk Run'!B61) ->  | O61: =IF('Bulk Run'!C61="","",'Bulk Run'!C61) ->  | P61: =IF(CALC_BASIS_BULK="Increase Net Pay",IF('Bulk Run'!AI61="","",'Bulk Run'!AI61),IF('Bulk Run'!AQ61="","",'Bulk Run'!AQ61)) ->  | Q61: =IF(CALC_BASIS_BULK="Increase Net Pay",IF('Bulk Run'!AJ61="","",'Bulk Run'!AJ61),IF('Bulk Run'!AR61="","",'Bulk Run'!AR61)) ->  | R61: =IF(CALC_BASIS_BULK="Increase Net Pay",IF('Bulk Run'!AM61="","",'Bulk Run'!AM61),IF('Bulk Run'!AU61="","",'Bulk Run'!AU61)) ->  | S61: =IF(CALC_BASIS_BULK="Increase Net Pay",IF('Bulk Run'!AN61="","",'Bulk Run'!AN61),IF('Bulk Run'!AV61="","",'Bulk Run'!AV61)) ->  | T61: =IF(CALC_BASIS_BULK="Increase Net Pay",IF('Bulk Run'!AO61="","",'Bulk Run'!AO61),IF('Bulk Run'!AW61="","",'Bulk Run'!AW61)) ->  | U61: =IF(CALC_BASIS_BULK="Increase Net Pay",IF('Bulk Run'!AK61="","",'Bulk Run'!AK61),IF('Bulk Run'!AS61="","",'Bulk Run'!AS61)) ->  | V61: =IF(CALC_BASIS_BULK="Increase Net Pay",IF('Bulk Run'!AL61="","",'Bulk Run'!AL61),IF('Bulk Run'!AT61="","",'Bulk Run'!AT61)) ->  | W61: =IF(CALC_BASIS_BULK="Increase Net Pay",IF('Bulk Run'!AP61="","",'Bulk Run'!AP61),IF('Bulk Run'!AX61="","",'Bulk Run'!AX61)) -> 
A62: 47 | B62: =IF('Bulk Run'!B62="","",'Bulk Run'!B62) ->  | C62: =IF('Bulk Run'!C62="","",'Bulk Run'!C62) ->  | D62: =IF('Bulk Run'!W62="","",'Bulk Run'!W62/FREQ_BULK) ->  | E62: =IF('Bulk Run'!AB62="","",'Bulk Run'!AB62) ->  | F62: =IF('Bulk Run'!AF62="","",'Bulk Run'!AF62) ->  | G62: =IF('Bulk Run'!AG62="","",'Bulk Run'!AG62) ->  | H62: =IF('Bulk Run'!AC62="","",'Bulk Run'!AC62) ->  | I62: =IF('Bulk Run'!AD62="","",'Bulk Run'!AD62) ->  | J62: =IF('Bulk Run'!AE62="","",'Bulk Run'!AE62) ->  | K62: =IF('Bulk Run'!AH62="","",'Bulk Run'!AH62) ->  | N62: =IF('Bulk Run'!B62="","",'Bulk Run'!B62) ->  | O62: =IF('Bulk Run'!C62="","",'Bulk Run'!C62) ->  | P62: =IF(CALC_BASIS_BULK="Increase Net Pay",IF('Bulk Run'!AI62="","",'Bulk Run'!AI62),IF('Bulk Run'!AQ62="","",'Bulk Run'!AQ62)) ->  | Q62: =IF(CALC_BASIS_BULK="Increase Net Pay",IF('Bulk Run'!AJ62="","",'Bulk Run'!AJ62),IF('Bulk Run'!AR62="","",'Bulk Run'!AR62)) ->  | R62: =IF(CALC_BASIS_BULK="Increase Net Pay",IF('Bulk Run'!AM62="","",'Bulk Run'!AM62),IF('Bulk Run'!AU62="","",'Bulk Run'!AU62)) ->  | S62: =IF(CALC_BASIS_BULK="Increase Net Pay",IF('Bulk Run'!AN62="","",'Bulk Run'!AN62),IF('Bulk Run'!AV62="","",'Bulk Run'!AV62)) ->  | T62: =IF(CALC_BASIS_BULK="Increase Net Pay",IF('Bulk Run'!AO62="","",'Bulk Run'!AO62),IF('Bulk Run'!AW62="","",'Bulk Run'!AW62)) ->  | U62: =IF(CALC_BASIS_BULK="Increase Net Pay",IF('Bulk Run'!AK62="","",'Bulk Run'!AK62),IF('Bulk Run'!AS62="","",'Bulk Run'!AS62)) ->  | V62: =IF(CALC_BASIS_BULK="Increase Net Pay",IF('Bulk Run'!AL62="","",'Bulk Run'!AL62),IF('Bulk Run'!AT62="","",'Bulk Run'!AT62)) ->  | W62: =IF(CALC_BASIS_BULK="Increase Net Pay",IF('Bulk Run'!AP62="","",'Bulk Run'!AP62),IF('Bulk Run'!AX62="","",'Bulk Run'!AX62)) -> 
A63: 48 | B63: =IF('Bulk Run'!B63="","",'Bulk Run'!B63) ->  | C63: =IF('Bulk Run'!C63="","",'Bulk Run'!C63) ->  | D63: =IF('Bulk Run'!W63="","",'Bulk Run'!W63/FREQ_BULK) ->  | E63: =IF('Bulk Run'!AB63="","",'Bulk Run'!AB63) ->  | F63: =IF('Bulk Run'!AF63="","",'Bulk Run'!AF63) ->  | G63: =IF('Bulk Run'!AG63="","",'Bulk Run'!AG63) ->  | H63: =IF('Bulk Run'!AC63="","",'Bulk Run'!AC63) ->  | I63: =IF('Bulk Run'!AD63="","",'Bulk Run'!AD63) ->  | J63: =IF('Bulk Run'!AE63="","",'Bulk Run'!AE63) ->  | K63: =IF('Bulk Run'!AH63="","",'Bulk Run'!AH63) ->  | N63: =IF('Bulk Run'!B63="","",'Bulk Run'!B63) ->  | O63: =IF('Bulk Run'!C63="","",'Bulk Run'!C63) ->  | P63: =IF(CALC_BASIS_BULK="Increase Net Pay",IF('Bulk Run'!AI63="","",'Bulk Run'!AI63),IF('Bulk Run'!AQ63="","",'Bulk Run'!AQ63)) ->  | Q63: =IF(CALC_BASIS_BULK="Increase Net Pay",IF('Bulk Run'!AJ63="","",'Bulk Run'!AJ63),IF('Bulk Run'!AR63="","",'Bulk Run'!AR63)) ->  | R63: =IF(CALC_BASIS_BULK="Increase Net Pay",IF('Bulk Run'!AM63="","",'Bulk Run'!AM63),IF('Bulk Run'!AU63="","",'Bulk Run'!AU63)) ->  | S63: =IF(CALC_BASIS_BULK="Increase Net Pay",IF('Bulk Run'!AN63="","",'Bulk Run'!AN63),IF('Bulk Run'!AV63="","",'Bulk Run'!AV63)) ->  | T63: =IF(CALC_BASIS_BULK="Increase Net Pay",IF('Bulk Run'!AO63="","",'Bulk Run'!AO63),IF('Bulk Run'!AW63="","",'Bulk Run'!AW63)) ->  | U63: =IF(CALC_BASIS_BULK="Increase Net Pay",IF('Bulk Run'!AK63="","",'Bulk Run'!AK63),IF('Bulk Run'!AS63="","",'Bulk Run'!AS63)) ->  | V63: =IF(CALC_BASIS_BULK="Increase Net Pay",IF('Bulk Run'!AL63="","",'Bulk Run'!AL63),IF('Bulk Run'!AT63="","",'Bulk Run'!AT63)) ->  | W63: =IF(CALC_BASIS_BULK="Increase Net Pay",IF('Bulk Run'!AP63="","",'Bulk Run'!AP63),IF('Bulk Run'!AX63="","",'Bulk Run'!AX63)) -> 
A64: 49 | B64: =IF('Bulk Run'!B64="","",'Bulk Run'!B64) ->  | C64: =IF('Bulk Run'!C64="","",'Bulk Run'!C64) ->  | D64: =IF('Bulk Run'!W64="","",'Bulk Run'!W64/FREQ_BULK) ->  | E64: =IF('Bulk Run'!AB64="","",'Bulk Run'!AB64) ->  | F64: =IF('Bulk Run'!AF64="","",'Bulk Run'!AF64) ->  | G64: =IF('Bulk Run'!AG64="","",'Bulk Run'!AG64) ->  | H64: =IF('Bulk Run'!AC64="","",'Bulk Run'!AC64) ->  | I64: =IF('Bulk Run'!AD64="","",'Bulk Run'!AD64) ->  | J64: =IF('Bulk Run'!AE64="","",'Bulk Run'!AE64) ->  | K64: =IF('Bulk Run'!AH64="","",'Bulk Run'!AH64) ->  | N64: =IF('Bulk Run'!B64="","",'Bulk Run'!B64) ->  | O64: =IF('Bulk Run'!C64="","",'Bulk Run'!C64) ->  | P64: =IF(CALC_BASIS_BULK="Increase Net Pay",IF('Bulk Run'!AI64="","",'Bulk Run'!AI64),IF('Bulk Run'!AQ64="","",'Bulk Run'!AQ64)) ->  | Q64: =IF(CALC_BASIS_BULK="Increase Net Pay",IF('Bulk Run'!AJ64="","",'Bulk Run'!AJ64),IF('Bulk Run'!AR64="","",'Bulk Run'!AR64)) ->  | R64: =IF(CALC_BASIS_BULK="Increase Net Pay",IF('Bulk Run'!AM64="","",'Bulk Run'!AM64),IF('Bulk Run'!AU64="","",'Bulk Run'!AU64)) ->  | S64: =IF(CALC_BASIS_BULK="Increase Net Pay",IF('Bulk Run'!AN64="","",'Bulk Run'!AN64),IF('Bulk Run'!AV64="","",'Bulk Run'!AV64)) ->  | T64: =IF(CALC_BASIS_BULK="Increase Net Pay",IF('Bulk Run'!AO64="","",'Bulk Run'!AO64),IF('Bulk Run'!AW64="","",'Bulk Run'!AW64)) ->  | U64: =IF(CALC_BASIS_BULK="Increase Net Pay",IF('Bulk Run'!AK64="","",'Bulk Run'!AK64),IF('Bulk Run'!AS64="","",'Bulk Run'!AS64)) ->  | V64: =IF(CALC_BASIS_BULK="Increase Net Pay",IF('Bulk Run'!AL64="","",'Bulk Run'!AL64),IF('Bulk Run'!AT64="","",'Bulk Run'!AT64)) ->  | W64: =IF(CALC_BASIS_BULK="Increase Net Pay",IF('Bulk Run'!AP64="","",'Bulk Run'!AP64),IF('Bulk Run'!AX64="","",'Bulk Run'!AX64)) -> 
A65: 50 | B65: =IF('Bulk Run'!B65="","",'Bulk Run'!B65) ->  | C65: =IF('Bulk Run'!C65="","",'Bulk Run'!C65) ->  | D65: =IF('Bulk Run'!W65="","",'Bulk Run'!W65/FREQ_BULK) ->  | E65: =IF('Bulk Run'!AB65="","",'Bulk Run'!AB65) ->  | F65: =IF('Bulk Run'!AF65="","",'Bulk Run'!AF65) ->  | G65: =IF('Bulk Run'!AG65="","",'Bulk Run'!AG65) ->  | H65: =IF('Bulk Run'!AC65="","",'Bulk Run'!AC65) ->  | I65: =IF('Bulk Run'!AD65="","",'Bulk Run'!AD65) ->  | J65: =IF('Bulk Run'!AE65="","",'Bulk Run'!AE65) ->  | K65: =IF('Bulk Run'!AH65="","",'Bulk Run'!AH65) ->  | N65: =IF('Bulk Run'!B65="","",'Bulk Run'!B65) ->  | O65: =IF('Bulk Run'!C65="","",'Bulk Run'!C65) ->  | P65: =IF(CALC_BASIS_BULK="Increase Net Pay",IF('Bulk Run'!AI65="","",'Bulk Run'!AI65),IF('Bulk Run'!AQ65="","",'Bulk Run'!AQ65)) ->  | Q65: =IF(CALC_BASIS_BULK="Increase Net Pay",IF('Bulk Run'!AJ65="","",'Bulk Run'!AJ65),IF('Bulk Run'!AR65="","",'Bulk Run'!AR65)) ->  | R65: =IF(CALC_BASIS_BULK="Increase Net Pay",IF('Bulk Run'!AM65="","",'Bulk Run'!AM65),IF('Bulk Run'!AU65="","",'Bulk Run'!AU65)) ->  | S65: =IF(CALC_BASIS_BULK="Increase Net Pay",IF('Bulk Run'!AN65="","",'Bulk Run'!AN65),IF('Bulk Run'!AV65="","",'Bulk Run'!AV65)) ->  | T65: =IF(CALC_BASIS_BULK="Increase Net Pay",IF('Bulk Run'!AO65="","",'Bulk Run'!AO65),IF('Bulk Run'!AW65="","",'Bulk Run'!AW65)) ->  | U65: =IF(CALC_BASIS_BULK="Increase Net Pay",IF('Bulk Run'!AK65="","",'Bulk Run'!AK65),IF('Bulk Run'!AS65="","",'Bulk Run'!AS65)) ->  | V65: =IF(CALC_BASIS_BULK="Increase Net Pay",IF('Bulk Run'!AL65="","",'Bulk Run'!AL65),IF('Bulk Run'!AT65="","",'Bulk Run'!AT65)) ->  | W65: =IF(CALC_BASIS_BULK="Increase Net Pay",IF('Bulk Run'!AP65="","",'Bulk Run'!AP65),IF('Bulk Run'!AX65="","",'Bulk Run'!AX65)) -> 
A66: 51 | B66: =IF('Bulk Run'!B66="","",'Bulk Run'!B66) ->  | C66: =IF('Bulk Run'!C66="","",'Bulk Run'!C66) ->  | D66: =IF('Bulk Run'!W66="","",'Bulk Run'!W66/FREQ_BULK) ->  | E66: =IF('Bulk Run'!AB66="","",'Bulk Run'!AB66) ->  | F66: =IF('Bulk Run'!AF66="","",'Bulk Run'!AF66) ->  | G66: =IF('Bulk Run'!AG66="","",'Bulk Run'!AG66) ->  | H66: =IF('Bulk Run'!AC66="","",'Bulk Run'!AC66) ->  | I66: =IF('Bulk Run'!AD66="","",'Bulk Run'!AD66) ->  | J66: =IF('Bulk Run'!AE66="","",'Bulk Run'!AE66) ->  | K66: =IF('Bulk Run'!AH66="","",'Bulk Run'!AH66) ->  | N66: =IF('Bulk Run'!B66="","",'Bulk Run'!B66) ->  | O66: =IF('Bulk Run'!C66="","",'Bulk Run'!C66) ->  | P66: =IF(CALC_BASIS_BULK="Increase Net Pay",IF('Bulk Run'!AI66="","",'Bulk Run'!AI66),IF('Bulk Run'!AQ66="","",'Bulk Run'!AQ66)) ->  | Q66: =IF(CALC_BASIS_BULK="Increase Net Pay",IF('Bulk Run'!AJ66="","",'Bulk Run'!AJ66),IF('Bulk Run'!AR66="","",'Bulk Run'!AR66)) ->  | R66: =IF(CALC_BASIS_BULK="Increase Net Pay",IF('Bulk Run'!AM66="","",'Bulk Run'!AM66),IF('Bulk Run'!AU66="","",'Bulk Run'!AU66)) ->  | S66: =IF(CALC_BASIS_BULK="Increase Net Pay",IF('Bulk Run'!AN66="","",'Bulk Run'!AN66),IF('Bulk Run'!AV66="","",'Bulk Run'!AV66)) ->  | T66: =IF(CALC_BASIS_BULK="Increase Net Pay",IF('Bulk Run'!AO66="","",'Bulk Run'!AO66),IF('Bulk Run'!AW66="","",'Bulk Run'!AW66)) ->  | U66: =IF(CALC_BASIS_BULK="Increase Net Pay",IF('Bulk Run'!AK66="","",'Bulk Run'!AK66),IF('Bulk Run'!AS66="","",'Bulk Run'!AS66)) ->  | V66: =IF(CALC_BASIS_BULK="Increase Net Pay",IF('Bulk Run'!AL66="","",'Bulk Run'!AL66),IF('Bulk Run'!AT66="","",'Bulk Run'!AT66)) ->  | W66: =IF(CALC_BASIS_BULK="Increase Net Pay",IF('Bulk Run'!AP66="","",'Bulk Run'!AP66),IF('Bulk Run'!AX66="","",'Bulk Run'!AX66)) -> 
A67: 52 | B67: =IF('Bulk Run'!B67="","",'Bulk Run'!B67) ->  | C67: =IF('Bulk Run'!C67="","",'Bulk Run'!C67) ->  | D67: =IF('Bulk Run'!W67="","",'Bulk Run'!W67/FREQ_BULK) ->  | E67: =IF('Bulk Run'!AB67="","",'Bulk Run'!AB67) ->  | F67: =IF('Bulk Run'!AF67="","",'Bulk Run'!AF67) ->  | G67: =IF('Bulk Run'!AG67="","",'Bulk Run'!AG67) ->  | H67: =IF('Bulk Run'!AC67="","",'Bulk Run'!AC67) ->  | I67: =IF('Bulk Run'!AD67="","",'Bulk Run'!AD67) ->  | J67: =IF('Bulk Run'!AE67="","",'Bulk Run'!AE67) ->  | K67: =IF('Bulk Run'!AH67="","",'Bulk Run'!AH67) ->  | N67: =IF('Bulk Run'!B67="","",'Bulk Run'!B67) ->  | O67: =IF('Bulk Run'!C67="","",'Bulk Run'!C67) ->  | P67: =IF(CALC_BASIS_BULK="Increase Net Pay",IF('Bulk Run'!AI67="","",'Bulk Run'!AI67),IF('Bulk Run'!AQ67="","",'Bulk Run'!AQ67)) ->  | Q67: =IF(CALC_BASIS_BULK="Increase Net Pay",IF('Bulk Run'!AJ67="","",'Bulk Run'!AJ67),IF('Bulk Run'!AR67="","",'Bulk Run'!AR67)) ->  | R67: =IF(CALC_BASIS_BULK="Increase Net Pay",IF('Bulk Run'!AM67="","",'Bulk Run'!AM67),IF('Bulk Run'!AU67="","",'Bulk Run'!AU67)) ->  | S67: =IF(CALC_BASIS_BULK="Increase Net Pay",IF('Bulk Run'!AN67="","",'Bulk Run'!AN67),IF('Bulk Run'!AV67="","",'Bulk Run'!AV67)) ->  | T67: =IF(CALC_BASIS_BULK="Increase Net Pay",IF('Bulk Run'!AO67="","",'Bulk Run'!AO67),IF('Bulk Run'!AW67="","",'Bulk Run'!AW67)) ->  | U67: =IF(CALC_BASIS_BULK="Increase Net Pay",IF('Bulk Run'!AK67="","",'Bulk Run'!AK67),IF('Bulk Run'!AS67="","",'Bulk Run'!AS67)) ->  | V67: =IF(CALC_BASIS_BULK="Increase Net Pay",IF('Bulk Run'!AL67="","",'Bulk Run'!AL67),IF('Bulk Run'!AT67="","",'Bulk Run'!AT67)) ->  | W67: =IF(CALC_BASIS_BULK="Increase Net Pay",IF('Bulk Run'!AP67="","",'Bulk Run'!AP67),IF('Bulk Run'!AX67="","",'Bulk Run'!AX67)) -> 
A68: 53 | B68: =IF('Bulk Run'!B68="","",'Bulk Run'!B68) ->  | C68: =IF('Bulk Run'!C68="","",'Bulk Run'!C68) ->  | D68: =IF('Bulk Run'!W68="","",'Bulk Run'!W68/FREQ_BULK) ->  | E68: =IF('Bulk Run'!AB68="","",'Bulk Run'!AB68) ->  | F68: =IF('Bulk Run'!AF68="","",'Bulk Run'!AF68) ->  | G68: =IF('Bulk Run'!AG68="","",'Bulk Run'!AG68) ->  | H68: =IF('Bulk Run'!AC68="","",'Bulk Run'!AC68) ->  | I68: =IF('Bulk Run'!AD68="","",'Bulk Run'!AD68) ->  | J68: =IF('Bulk Run'!AE68="","",'Bulk Run'!AE68) ->  | K68: =IF('Bulk Run'!AH68="","",'Bulk Run'!AH68) ->  | N68: =IF('Bulk Run'!B68="","",'Bulk Run'!B68) ->  | O68: =IF('Bulk Run'!C68="","",'Bulk Run'!C68) ->  | P68: =IF(CALC_BASIS_BULK="Increase Net Pay",IF('Bulk Run'!AI68="","",'Bulk Run'!AI68),IF('Bulk Run'!AQ68="","",'Bulk Run'!AQ68)) ->  | Q68: =IF(CALC_BASIS_BULK="Increase Net Pay",IF('Bulk Run'!AJ68="","",'Bulk Run'!AJ68),IF('Bulk Run'!AR68="","",'Bulk Run'!AR68)) ->  | R68: =IF(CALC_BASIS_BULK="Increase Net Pay",IF('Bulk Run'!AM68="","",'Bulk Run'!AM68),IF('Bulk Run'!AU68="","",'Bulk Run'!AU68)) ->  | S68: =IF(CALC_BASIS_BULK="Increase Net Pay",IF('Bulk Run'!AN68="","",'Bulk Run'!AN68),IF('Bulk Run'!AV68="","",'Bulk Run'!AV68)) ->  | T68: =IF(CALC_BASIS_BULK="Increase Net Pay",IF('Bulk Run'!AO68="","",'Bulk Run'!AO68),IF('Bulk Run'!AW68="","",'Bulk Run'!AW68)) ->  | U68: =IF(CALC_BASIS_BULK="Increase Net Pay",IF('Bulk Run'!AK68="","",'Bulk Run'!AK68),IF('Bulk Run'!AS68="","",'Bulk Run'!AS68)) ->  | V68: =IF(CALC_BASIS_BULK="Increase Net Pay",IF('Bulk Run'!AL68="","",'Bulk Run'!AL68),IF('Bulk Run'!AT68="","",'Bulk Run'!AT68)) ->  | W68: =IF(CALC_BASIS_BULK="Increase Net Pay",IF('Bulk Run'!AP68="","",'Bulk Run'!AP68),IF('Bulk Run'!AX68="","",'Bulk Run'!AX68)) -> 
A69: 54 | B69: =IF('Bulk Run'!B69="","",'Bulk Run'!B69) ->  | C69: =IF('Bulk Run'!C69="","",'Bulk Run'!C69) ->  | D69: =IF('Bulk Run'!W69="","",'Bulk Run'!W69/FREQ_BULK) ->  | E69: =IF('Bulk Run'!AB69="","",'Bulk Run'!AB69) ->  | F69: =IF('Bulk Run'!AF69="","",'Bulk Run'!AF69) ->  | G69: =IF('Bulk Run'!AG69="","",'Bulk Run'!AG69) ->  | H69: =IF('Bulk Run'!AC69="","",'Bulk Run'!AC69) ->  | I69: =IF('Bulk Run'!AD69="","",'Bulk Run'!AD69) ->  | J69: =IF('Bulk Run'!AE69="","",'Bulk Run'!AE69) ->  | K69: =IF('Bulk Run'!AH69="","",'Bulk Run'!AH69) ->  | N69: =IF('Bulk Run'!B69="","",'Bulk Run'!B69) ->  | O69: =IF('Bulk Run'!C69="","",'Bulk Run'!C69) ->  | P69: =IF(CALC_BASIS_BULK="Increase Net Pay",IF('Bulk Run'!AI69="","",'Bulk Run'!AI69),IF('Bulk Run'!AQ69="","",'Bulk Run'!AQ69)) ->  | Q69: =IF(CALC_BASIS_BULK="Increase Net Pay",IF('Bulk Run'!AJ69="","",'Bulk Run'!AJ69),IF('Bulk Run'!AR69="","",'Bulk Run'!AR69)) ->  | R69: =IF(CALC_BASIS_BULK="Increase Net Pay",IF('Bulk Run'!AM69="","",'Bulk Run'!AM69),IF('Bulk Run'!AU69="","",'Bulk Run'!AU69)) ->  | S69: =IF(CALC_BASIS_BULK="Increase Net Pay",IF('Bulk Run'!AN69="","",'Bulk Run'!AN69),IF('Bulk Run'!AV69="","",'Bulk Run'!AV69)) ->  | T69: =IF(CALC_BASIS_BULK="Increase Net Pay",IF('Bulk Run'!AO69="","",'Bulk Run'!AO69),IF('Bulk Run'!AW69="","",'Bulk Run'!AW69)) ->  | U69: =IF(CALC_BASIS_BULK="Increase Net Pay",IF('Bulk Run'!AK69="","",'Bulk Run'!AK69),IF('Bulk Run'!AS69="","",'Bulk Run'!AS69)) ->  | V69: =IF(CALC_BASIS_BULK="Increase Net Pay",IF('Bulk Run'!AL69="","",'Bulk Run'!AL69),IF('Bulk Run'!AT69="","",'Bulk Run'!AT69)) ->  | W69: =IF(CALC_BASIS_BULK="Increase Net Pay",IF('Bulk Run'!AP69="","",'Bulk Run'!AP69),IF('Bulk Run'!AX69="","",'Bulk Run'!AX69)) -> 
A70: 55 | B70: =IF('Bulk Run'!B70="","",'Bulk Run'!B70) ->  | C70: =IF('Bulk Run'!C70="","",'Bulk Run'!C70) ->  | D70: =IF('Bulk Run'!W70="","",'Bulk Run'!W70/FREQ_BULK) ->  | E70: =IF('Bulk Run'!AB70="","",'Bulk Run'!AB70) ->  | F70: =IF('Bulk Run'!AF70="","",'Bulk Run'!AF70) ->  | G70: =IF('Bulk Run'!AG70="","",'Bulk Run'!AG70) ->  | H70: =IF('Bulk Run'!AC70="","",'Bulk Run'!AC70) ->  | I70: =IF('Bulk Run'!AD70="","",'Bulk Run'!AD70) ->  | J70: =IF('Bulk Run'!AE70="","",'Bulk Run'!AE70) ->  | K70: =IF('Bulk Run'!AH70="","",'Bulk Run'!AH70) ->  | N70: =IF('Bulk Run'!B70="","",'Bulk Run'!B70) ->  | O70: =IF('Bulk Run'!C70="","",'Bulk Run'!C70) ->  | P70: =IF(CALC_BASIS_BULK="Increase Net Pay",IF('Bulk Run'!AI70="","",'Bulk Run'!AI70),IF('Bulk Run'!AQ70="","",'Bulk Run'!AQ70)) ->  | Q70: =IF(CALC_BASIS_BULK="Increase Net Pay",IF('Bulk Run'!AJ70="","",'Bulk Run'!AJ70),IF('Bulk Run'!AR70="","",'Bulk Run'!AR70)) ->  | R70: =IF(CALC_BASIS_BULK="Increase Net Pay",IF('Bulk Run'!AM70="","",'Bulk Run'!AM70),IF('Bulk Run'!AU70="","",'Bulk Run'!AU70)) ->  | S70: =IF(CALC_BASIS_BULK="Increase Net Pay",IF('Bulk Run'!AN70="","",'Bulk Run'!AN70),IF('Bulk Run'!AV70="","",'Bulk Run'!AV70)) ->  | T70: =IF(CALC_BASIS_BULK="Increase Net Pay",IF('Bulk Run'!AO70="","",'Bulk Run'!AO70),IF('Bulk Run'!AW70="","",'Bulk Run'!AW70)) ->  | U70: =IF(CALC_BASIS_BULK="Increase Net Pay",IF('Bulk Run'!AK70="","",'Bulk Run'!AK70),IF('Bulk Run'!AS70="","",'Bulk Run'!AS70)) ->  | V70: =IF(CALC_BASIS_BULK="Increase Net Pay",IF('Bulk Run'!AL70="","",'Bulk Run'!AL70),IF('Bulk Run'!AT70="","",'Bulk Run'!AT70)) ->  | W70: =IF(CALC_BASIS_BULK="Increase Net Pay",IF('Bulk Run'!AP70="","",'Bulk Run'!AP70),IF('Bulk Run'!AX70="","",'Bulk Run'!AX70)) -> 
A71: 56 | B71: =IF('Bulk Run'!B71="","",'Bulk Run'!B71) ->  | C71: =IF('Bulk Run'!C71="","",'Bulk Run'!C71) ->  | D71: =IF('Bulk Run'!W71="","",'Bulk Run'!W71/FREQ_BULK) ->  | E71: =IF('Bulk Run'!AB71="","",'Bulk Run'!AB71) ->  | F71: =IF('Bulk Run'!AF71="","",'Bulk Run'!AF71) ->  | G71: =IF('Bulk Run'!AG71="","",'Bulk Run'!AG71) ->  | H71: =IF('Bulk Run'!AC71="","",'Bulk Run'!AC71) ->  | I71: =IF('Bulk Run'!AD71="","",'Bulk Run'!AD71) ->  | J71: =IF('Bulk Run'!AE71="","",'Bulk Run'!AE71) ->  | K71: =IF('Bulk Run'!AH71="","",'Bulk Run'!AH71) ->  | N71: =IF('Bulk Run'!B71="","",'Bulk Run'!B71) ->  | O71: =IF('Bulk Run'!C71="","",'Bulk Run'!C71) ->  | P71: =IF(CALC_BASIS_BULK="Increase Net Pay",IF('Bulk Run'!AI71="","",'Bulk Run'!AI71),IF('Bulk Run'!AQ71="","",'Bulk Run'!AQ71)) ->  | Q71: =IF(CALC_BASIS_BULK="Increase Net Pay",IF('Bulk Run'!AJ71="","",'Bulk Run'!AJ71),IF('Bulk Run'!AR71="","",'Bulk Run'!AR71)) ->  | R71: =IF(CALC_BASIS_BULK="Increase Net Pay",IF('Bulk Run'!AM71="","",'Bulk Run'!AM71),IF('Bulk Run'!AU71="","",'Bulk Run'!AU71)) ->  | S71: =IF(CALC_BASIS_BULK="Increase Net Pay",IF('Bulk Run'!AN71="","",'Bulk Run'!AN71),IF('Bulk Run'!AV71="","",'Bulk Run'!AV71)) ->  | T71: =IF(CALC_BASIS_BULK="Increase Net Pay",IF('Bulk Run'!AO71="","",'Bulk Run'!AO71),IF('Bulk Run'!AW71="","",'Bulk Run'!AW71)) ->  | U71: =IF(CALC_BASIS_BULK="Increase Net Pay",IF('Bulk Run'!AK71="","",'Bulk Run'!AK71),IF('Bulk Run'!AS71="","",'Bulk Run'!AS71)) ->  | V71: =IF(CALC_BASIS_BULK="Increase Net Pay",IF('Bulk Run'!AL71="","",'Bulk Run'!AL71),IF('Bulk Run'!AT71="","",'Bulk Run'!AT71)) ->  | W71: =IF(CALC_BASIS_BULK="Increase Net Pay",IF('Bulk Run'!AP71="","",'Bulk Run'!AP71),IF('Bulk Run'!AX71="","",'Bulk Run'!AX71)) -> 
A72: 57 | B72: =IF('Bulk Run'!B72="","",'Bulk Run'!B72) ->  | C72: =IF('Bulk Run'!C72="","",'Bulk Run'!C72) ->  | D72: =IF('Bulk Run'!W72="","",'Bulk Run'!W72/FREQ_BULK) ->  | E72: =IF('Bulk Run'!AB72="","",'Bulk Run'!AB72) ->  | F72: =IF('Bulk Run'!AF72="","",'Bulk Run'!AF72) ->  | G72: =IF('Bulk Run'!AG72="","",'Bulk Run'!AG72) ->  | H72: =IF('Bulk Run'!AC72="","",'Bulk Run'!AC72) ->  | I72: =IF('Bulk Run'!AD72="","",'Bulk Run'!AD72) ->  | J72: =IF('Bulk Run'!AE72="","",'Bulk Run'!AE72) ->  | K72: =IF('Bulk Run'!AH72="","",'Bulk Run'!AH72) ->  | N72: =IF('Bulk Run'!B72="","",'Bulk Run'!B72) ->  | O72: =IF('Bulk Run'!C72="","",'Bulk Run'!C72) ->  | P72: =IF(CALC_BASIS_BULK="Increase Net Pay",IF('Bulk Run'!AI72="","",'Bulk Run'!AI72),IF('Bulk Run'!AQ72="","",'Bulk Run'!AQ72)) ->  | Q72: =IF(CALC_BASIS_BULK="Increase Net Pay",IF('Bulk Run'!AJ72="","",'Bulk Run'!AJ72),IF('Bulk Run'!AR72="","",'Bulk Run'!AR72)) ->  | R72: =IF(CALC_BASIS_BULK="Increase Net Pay",IF('Bulk Run'!AM72="","",'Bulk Run'!AM72),IF('Bulk Run'!AU72="","",'Bulk Run'!AU72)) ->  | S72: =IF(CALC_BASIS_BULK="Increase Net Pay",IF('Bulk Run'!AN72="","",'Bulk Run'!AN72),IF('Bulk Run'!AV72="","",'Bulk Run'!AV72)) ->  | T72: =IF(CALC_BASIS_BULK="Increase Net Pay",IF('Bulk Run'!AO72="","",'Bulk Run'!AO72),IF('Bulk Run'!AW72="","",'Bulk Run'!AW72)) ->  | U72: =IF(CALC_BASIS_BULK="Increase Net Pay",IF('Bulk Run'!AK72="","",'Bulk Run'!AK72),IF('Bulk Run'!AS72="","",'Bulk Run'!AS72)) ->  | V72: =IF(CALC_BASIS_BULK="Increase Net Pay",IF('Bulk Run'!AL72="","",'Bulk Run'!AL72),IF('Bulk Run'!AT72="","",'Bulk Run'!AT72)) ->  | W72: =IF(CALC_BASIS_BULK="Increase Net Pay",IF('Bulk Run'!AP72="","",'Bulk Run'!AP72),IF('Bulk Run'!AX72="","",'Bulk Run'!AX72)) -> 
A73: 58 | B73: =IF('Bulk Run'!B73="","",'Bulk Run'!B73) ->  | C73: =IF('Bulk Run'!C73="","",'Bulk Run'!C73) ->  | D73: =IF('Bulk Run'!W73="","",'Bulk Run'!W73/FREQ_BULK) ->  | E73: =IF('Bulk Run'!AB73="","",'Bulk Run'!AB73) ->  | F73: =IF('Bulk Run'!AF73="","",'Bulk Run'!AF73) ->  | G73: =IF('Bulk Run'!AG73="","",'Bulk Run'!AG73) ->  | H73: =IF('Bulk Run'!AC73="","",'Bulk Run'!AC73) ->  | I73: =IF('Bulk Run'!AD73="","",'Bulk Run'!AD73) ->  | J73: =IF('Bulk Run'!AE73="","",'Bulk Run'!AE73) ->  | K73: =IF('Bulk Run'!AH73="","",'Bulk Run'!AH73) ->  | N73: =IF('Bulk Run'!B73="","",'Bulk Run'!B73) ->  | O73: =IF('Bulk Run'!C73="","",'Bulk Run'!C73) ->  | P73: =IF(CALC_BASIS_BULK="Increase Net Pay",IF('Bulk Run'!AI73="","",'Bulk Run'!AI73),IF('Bulk Run'!AQ73="","",'Bulk Run'!AQ73)) ->  | Q73: =IF(CALC_BASIS_BULK="Increase Net Pay",IF('Bulk Run'!AJ73="","",'Bulk Run'!AJ73),IF('Bulk Run'!AR73="","",'Bulk Run'!AR73)) ->  | R73: =IF(CALC_BASIS_BULK="Increase Net Pay",IF('Bulk Run'!AM73="","",'Bulk Run'!AM73),IF('Bulk Run'!AU73="","",'Bulk Run'!AU73)) ->  | S73: =IF(CALC_BASIS_BULK="Increase Net Pay",IF('Bulk Run'!AN73="","",'Bulk Run'!AN73),IF('Bulk Run'!AV73="","",'Bulk Run'!AV73)) ->  | T73: =IF(CALC_BASIS_BULK="Increase Net Pay",IF('Bulk Run'!AO73="","",'Bulk Run'!AO73),IF('Bulk Run'!AW73="","",'Bulk Run'!AW73)) ->  | U73: =IF(CALC_BASIS_BULK="Increase Net Pay",IF('Bulk Run'!AK73="","",'Bulk Run'!AK73),IF('Bulk Run'!AS73="","",'Bulk Run'!AS73)) ->  | V73: =IF(CALC_BASIS_BULK="Increase Net Pay",IF('Bulk Run'!AL73="","",'Bulk Run'!AL73),IF('Bulk Run'!AT73="","",'Bulk Run'!AT73)) ->  | W73: =IF(CALC_BASIS_BULK="Increase Net Pay",IF('Bulk Run'!AP73="","",'Bulk Run'!AP73),IF('Bulk Run'!AX73="","",'Bulk Run'!AX73)) -> 
A74: 59 | B74: =IF('Bulk Run'!B74="","",'Bulk Run'!B74) ->  | C74: =IF('Bulk Run'!C74="","",'Bulk Run'!C74) ->  | D74: =IF('Bulk Run'!W74="","",'Bulk Run'!W74/FREQ_BULK) ->  | E74: =IF('Bulk Run'!AB74="","",'Bulk Run'!AB74) ->  | F74: =IF('Bulk Run'!AF74="","",'Bulk Run'!AF74) ->  | G74: =IF('Bulk Run'!AG74="","",'Bulk Run'!AG74) ->  | H74: =IF('Bulk Run'!AC74="","",'Bulk Run'!AC74) ->  | I74: =IF('Bulk Run'!AD74="","",'Bulk Run'!AD74) ->  | J74: =IF('Bulk Run'!AE74="","",'Bulk Run'!AE74) ->  | K74: =IF('Bulk Run'!AH74="","",'Bulk Run'!AH74) ->  | N74: =IF('Bulk Run'!B74="","",'Bulk Run'!B74) ->  | O74: =IF('Bulk Run'!C74="","",'Bulk Run'!C74) ->  | P74: =IF(CALC_BASIS_BULK="Increase Net Pay",IF('Bulk Run'!AI74="","",'Bulk Run'!AI74),IF('Bulk Run'!AQ74="","",'Bulk Run'!AQ74)) ->  | Q74: =IF(CALC_BASIS_BULK="Increase Net Pay",IF('Bulk Run'!AJ74="","",'Bulk Run'!AJ74),IF('Bulk Run'!AR74="","",'Bulk Run'!AR74)) ->  | R74: =IF(CALC_BASIS_BULK="Increase Net Pay",IF('Bulk Run'!AM74="","",'Bulk Run'!AM74),IF('Bulk Run'!AU74="","",'Bulk Run'!AU74)) ->  | S74: =IF(CALC_BASIS_BULK="Increase Net Pay",IF('Bulk Run'!AN74="","",'Bulk Run'!AN74),IF('Bulk Run'!AV74="","",'Bulk Run'!AV74)) ->  | T74: =IF(CALC_BASIS_BULK="Increase Net Pay",IF('Bulk Run'!AO74="","",'Bulk Run'!AO74),IF('Bulk Run'!AW74="","",'Bulk Run'!AW74)) ->  | U74: =IF(CALC_BASIS_BULK="Increase Net Pay",IF('Bulk Run'!AK74="","",'Bulk Run'!AK74),IF('Bulk Run'!AS74="","",'Bulk Run'!AS74)) ->  | V74: =IF(CALC_BASIS_BULK="Increase Net Pay",IF('Bulk Run'!AL74="","",'Bulk Run'!AL74),IF('Bulk Run'!AT74="","",'Bulk Run'!AT74)) ->  | W74: =IF(CALC_BASIS_BULK="Increase Net Pay",IF('Bulk Run'!AP74="","",'Bulk Run'!AP74),IF('Bulk Run'!AX74="","",'Bulk Run'!AX74)) -> 
A75: 60 | B75: =IF('Bulk Run'!B75="","",'Bulk Run'!B75) ->  | C75: =IF('Bulk Run'!C75="","",'Bulk Run'!C75) ->  | D75: =IF('Bulk Run'!W75="","",'Bulk Run'!W75/FREQ_BULK) ->  | E75: =IF('Bulk Run'!AB75="","",'Bulk Run'!AB75) ->  | F75: =IF('Bulk Run'!AF75="","",'Bulk Run'!AF75) ->  | G75: =IF('Bulk Run'!AG75="","",'Bulk Run'!AG75) ->  | H75: =IF('Bulk Run'!AC75="","",'Bulk Run'!AC75) ->  | I75: =IF('Bulk Run'!AD75="","",'Bulk Run'!AD75) ->  | J75: =IF('Bulk Run'!AE75="","",'Bulk Run'!AE75) ->  | K75: =IF('Bulk Run'!AH75="","",'Bulk Run'!AH75) ->  | N75: =IF('Bulk Run'!B75="","",'Bulk Run'!B75) ->  | O75: =IF('Bulk Run'!C75="","",'Bulk Run'!C75) ->  | P75: =IF(CALC_BASIS_BULK="Increase Net Pay",IF('Bulk Run'!AI75="","",'Bulk Run'!AI75),IF('Bulk Run'!AQ75="","",'Bulk Run'!AQ75)) ->  | Q75: =IF(CALC_BASIS_BULK="Increase Net Pay",IF('Bulk Run'!AJ75="","",'Bulk Run'!AJ75),IF('Bulk Run'!AR75="","",'Bulk Run'!AR75)) ->  | R75: =IF(CALC_BASIS_BULK="Increase Net Pay",IF('Bulk Run'!AM75="","",'Bulk Run'!AM75),IF('Bulk Run'!AU75="","",'Bulk Run'!AU75)) ->  | S75: =IF(CALC_BASIS_BULK="Increase Net Pay",IF('Bulk Run'!AN75="","",'Bulk Run'!AN75),IF('Bulk Run'!AV75="","",'Bulk Run'!AV75)) ->  | T75: =IF(CALC_BASIS_BULK="Increase Net Pay",IF('Bulk Run'!AO75="","",'Bulk Run'!AO75),IF('Bulk Run'!AW75="","",'Bulk Run'!AW75)) ->  | U75: =IF(CALC_BASIS_BULK="Increase Net Pay",IF('Bulk Run'!AK75="","",'Bulk Run'!AK75),IF('Bulk Run'!AS75="","",'Bulk Run'!AS75)) ->  | V75: =IF(CALC_BASIS_BULK="Increase Net Pay",IF('Bulk Run'!AL75="","",'Bulk Run'!AL75),IF('Bulk Run'!AT75="","",'Bulk Run'!AT75)) ->  | W75: =IF(CALC_BASIS_BULK="Increase Net Pay",IF('Bulk Run'!AP75="","",'Bulk Run'!AP75),IF('Bulk Run'!AX75="","",'Bulk Run'!AX75)) -> 
A76: 61 | B76: =IF('Bulk Run'!B76="","",'Bulk Run'!B76) ->  | C76: =IF('Bulk Run'!C76="","",'Bulk Run'!C76) ->  | D76: =IF('Bulk Run'!W76="","",'Bulk Run'!W76/FREQ_BULK) ->  | E76: =IF('Bulk Run'!AB76="","",'Bulk Run'!AB76) ->  | F76: =IF('Bulk Run'!AF76="","",'Bulk Run'!AF76) ->  | G76: =IF('Bulk Run'!AG76="","",'Bulk Run'!AG76) ->  | H76: =IF('Bulk Run'!AC76="","",'Bulk Run'!AC76) ->  | I76: =IF('Bulk Run'!AD76="","",'Bulk Run'!AD76) ->  | J76: =IF('Bulk Run'!AE76="","",'Bulk Run'!AE76) ->  | K76: =IF('Bulk Run'!AH76="","",'Bulk Run'!AH76) ->  | N76: =IF('Bulk Run'!B76="","",'Bulk Run'!B76) ->  | O76: =IF('Bulk Run'!C76="","",'Bulk Run'!C76) ->  | P76: =IF(CALC_BASIS_BULK="Increase Net Pay",IF('Bulk Run'!AI76="","",'Bulk Run'!AI76),IF('Bulk Run'!AQ76="","",'Bulk Run'!AQ76)) ->  | Q76: =IF(CALC_BASIS_BULK="Increase Net Pay",IF('Bulk Run'!AJ76="","",'Bulk Run'!AJ76),IF('Bulk Run'!AR76="","",'Bulk Run'!AR76)) ->  | R76: =IF(CALC_BASIS_BULK="Increase Net Pay",IF('Bulk Run'!AM76="","",'Bulk Run'!AM76),IF('Bulk Run'!AU76="","",'Bulk Run'!AU76)) ->  | S76: =IF(CALC_BASIS_BULK="Increase Net Pay",IF('Bulk Run'!AN76="","",'Bulk Run'!AN76),IF('Bulk Run'!AV76="","",'Bulk Run'!AV76)) ->  | T76: =IF(CALC_BASIS_BULK="Increase Net Pay",IF('Bulk Run'!AO76="","",'Bulk Run'!AO76),IF('Bulk Run'!AW76="","",'Bulk Run'!AW76)) ->  | U76: =IF(CALC_BASIS_BULK="Increase Net Pay",IF('Bulk Run'!AK76="","",'Bulk Run'!AK76),IF('Bulk Run'!AS76="","",'Bulk Run'!AS76)) ->  | V76: =IF(CALC_BASIS_BULK="Increase Net Pay",IF('Bulk Run'!AL76="","",'Bulk Run'!AL76),IF('Bulk Run'!AT76="","",'Bulk Run'!AT76)) ->  | W76: =IF(CALC_BASIS_BULK="Increase Net Pay",IF('Bulk Run'!AP76="","",'Bulk Run'!AP76),IF('Bulk Run'!AX76="","",'Bulk Run'!AX76)) -> 
A77: 62 | B77: =IF('Bulk Run'!B77="","",'Bulk Run'!B77) ->  | C77: =IF('Bulk Run'!C77="","",'Bulk Run'!C77) ->  | D77: =IF('Bulk Run'!W77="","",'Bulk Run'!W77/FREQ_BULK) ->  | E77: =IF('Bulk Run'!AB77="","",'Bulk Run'!AB77) ->  | F77: =IF('Bulk Run'!AF77="","",'Bulk Run'!AF77) ->  | G77: =IF('Bulk Run'!AG77="","",'Bulk Run'!AG77) ->  | H77: =IF('Bulk Run'!AC77="","",'Bulk Run'!AC77) ->  | I77: =IF('Bulk Run'!AD77="","",'Bulk Run'!AD77) ->  | J77: =IF('Bulk Run'!AE77="","",'Bulk Run'!AE77) ->  | K77: =IF('Bulk Run'!AH77="","",'Bulk Run'!AH77) ->  | N77: =IF('Bulk Run'!B77="","",'Bulk Run'!B77) ->  | O77: =IF('Bulk Run'!C77="","",'Bulk Run'!C77) ->  | P77: =IF(CALC_BASIS_BULK="Increase Net Pay",IF('Bulk Run'!AI77="","",'Bulk Run'!AI77),IF('Bulk Run'!AQ77="","",'Bulk Run'!AQ77)) ->  | Q77: =IF(CALC_BASIS_BULK="Increase Net Pay",IF('Bulk Run'!AJ77="","",'Bulk Run'!AJ77),IF('Bulk Run'!AR77="","",'Bulk Run'!AR77)) ->  | R77: =IF(CALC_BASIS_BULK="Increase Net Pay",IF('Bulk Run'!AM77="","",'Bulk Run'!AM77),IF('Bulk Run'!AU77="","",'Bulk Run'!AU77)) ->  | S77: =IF(CALC_BASIS_BULK="Increase Net Pay",IF('Bulk Run'!AN77="","",'Bulk Run'!AN77),IF('Bulk Run'!AV77="","",'Bulk Run'!AV77)) ->  | T77: =IF(CALC_BASIS_BULK="Increase Net Pay",IF('Bulk Run'!AO77="","",'Bulk Run'!AO77),IF('Bulk Run'!AW77="","",'Bulk Run'!AW77)) ->  | U77: =IF(CALC_BASIS_BULK="Increase Net Pay",IF('Bulk Run'!AK77="","",'Bulk Run'!AK77),IF('Bulk Run'!AS77="","",'Bulk Run'!AS77)) ->  | V77: =IF(CALC_BASIS_BULK="Increase Net Pay",IF('Bulk Run'!AL77="","",'Bulk Run'!AL77),IF('Bulk Run'!AT77="","",'Bulk Run'!AT77)) ->  | W77: =IF(CALC_BASIS_BULK="Increase Net Pay",IF('Bulk Run'!AP77="","",'Bulk Run'!AP77),IF('Bulk Run'!AX77="","",'Bulk Run'!AX77)) -> 
A78: 63 | B78: =IF('Bulk Run'!B78="","",'Bulk Run'!B78) ->  | C78: =IF('Bulk Run'!C78="","",'Bulk Run'!C78) ->  | D78: =IF('Bulk Run'!W78="","",'Bulk Run'!W78/FREQ_BULK) ->  | E78: =IF('Bulk Run'!AB78="","",'Bulk Run'!AB78) ->  | F78: =IF('Bulk Run'!AF78="","",'Bulk Run'!AF78) ->  | G78: =IF('Bulk Run'!AG78="","",'Bulk Run'!AG78) ->  | H78: =IF('Bulk Run'!AC78="","",'Bulk Run'!AC78) ->  | I78: =IF('Bulk Run'!AD78="","",'Bulk Run'!AD78) ->  | J78: =IF('Bulk Run'!AE78="","",'Bulk Run'!AE78) ->  | K78: =IF('Bulk Run'!AH78="","",'Bulk Run'!AH78) ->  | N78: =IF('Bulk Run'!B78="","",'Bulk Run'!B78) ->  | O78: =IF('Bulk Run'!C78="","",'Bulk Run'!C78) ->  | P78: =IF(CALC_BASIS_BULK="Increase Net Pay",IF('Bulk Run'!AI78="","",'Bulk Run'!AI78),IF('Bulk Run'!AQ78="","",'Bulk Run'!AQ78)) ->  | Q78: =IF(CALC_BASIS_BULK="Increase Net Pay",IF('Bulk Run'!AJ78="","",'Bulk Run'!AJ78),IF('Bulk Run'!AR78="","",'Bulk Run'!AR78)) ->  | R78: =IF(CALC_BASIS_BULK="Increase Net Pay",IF('Bulk Run'!AM78="","",'Bulk Run'!AM78),IF('Bulk Run'!AU78="","",'Bulk Run'!AU78)) ->  | S78: =IF(CALC_BASIS_BULK="Increase Net Pay",IF('Bulk Run'!AN78="","",'Bulk Run'!AN78),IF('Bulk Run'!AV78="","",'Bulk Run'!AV78)) ->  | T78: =IF(CALC_BASIS_BULK="Increase Net Pay",IF('Bulk Run'!AO78="","",'Bulk Run'!AO78),IF('Bulk Run'!AW78="","",'Bulk Run'!AW78)) ->  | U78: =IF(CALC_BASIS_BULK="Increase Net Pay",IF('Bulk Run'!AK78="","",'Bulk Run'!AK78),IF('Bulk Run'!AS78="","",'Bulk Run'!AS78)) ->  | V78: =IF(CALC_BASIS_BULK="Increase Net Pay",IF('Bulk Run'!AL78="","",'Bulk Run'!AL78),IF('Bulk Run'!AT78="","",'Bulk Run'!AT78)) ->  | W78: =IF(CALC_BASIS_BULK="Increase Net Pay",IF('Bulk Run'!AP78="","",'Bulk Run'!AP78),IF('Bulk Run'!AX78="","",'Bulk Run'!AX78)) -> 
A79: 64 | B79: =IF('Bulk Run'!B79="","",'Bulk Run'!B79) ->  | C79: =IF('Bulk Run'!C79="","",'Bulk Run'!C79) ->  | D79: =IF('Bulk Run'!W79="","",'Bulk Run'!W79/FREQ_BULK) ->  | E79: =IF('Bulk Run'!AB79="","",'Bulk Run'!AB79) ->  | F79: =IF('Bulk Run'!AF79="","",'Bulk Run'!AF79) ->  | G79: =IF('Bulk Run'!AG79="","",'Bulk Run'!AG79) ->  | H79: =IF('Bulk Run'!AC79="","",'Bulk Run'!AC79) ->  | I79: =IF('Bulk Run'!AD79="","",'Bulk Run'!AD79) ->  | J79: =IF('Bulk Run'!AE79="","",'Bulk Run'!AE79) ->  | K79: =IF('Bulk Run'!AH79="","",'Bulk Run'!AH79) ->  | N79: =IF('Bulk Run'!B79="","",'Bulk Run'!B79) ->  | O79: =IF('Bulk Run'!C79="","",'Bulk Run'!C79) ->  | P79: =IF(CALC_BASIS_BULK="Increase Net Pay",IF('Bulk Run'!AI79="","",'Bulk Run'!AI79),IF('Bulk Run'!AQ79="","",'Bulk Run'!AQ79)) ->  | Q79: =IF(CALC_BASIS_BULK="Increase Net Pay",IF('Bulk Run'!AJ79="","",'Bulk Run'!AJ79),IF('Bulk Run'!AR79="","",'Bulk Run'!AR79)) ->  | R79: =IF(CALC_BASIS_BULK="Increase Net Pay",IF('Bulk Run'!AM79="","",'Bulk Run'!AM79),IF('Bulk Run'!AU79="","",'Bulk Run'!AU79)) ->  | S79: =IF(CALC_BASIS_BULK="Increase Net Pay",IF('Bulk Run'!AN79="","",'Bulk Run'!AN79),IF('Bulk Run'!AV79="","",'Bulk Run'!AV79)) ->  | T79: =IF(CALC_BASIS_BULK="Increase Net Pay",IF('Bulk Run'!AO79="","",'Bulk Run'!AO79),IF('Bulk Run'!AW79="","",'Bulk Run'!AW79)) ->  | U79: =IF(CALC_BASIS_BULK="Increase Net Pay",IF('Bulk Run'!AK79="","",'Bulk Run'!AK79),IF('Bulk Run'!AS79="","",'Bulk Run'!AS79)) ->  | V79: =IF(CALC_BASIS_BULK="Increase Net Pay",IF('Bulk Run'!AL79="","",'Bulk Run'!AL79),IF('Bulk Run'!AT79="","",'Bulk Run'!AT79)) ->  | W79: =IF(CALC_BASIS_BULK="Increase Net Pay",IF('Bulk Run'!AP79="","",'Bulk Run'!AP79),IF('Bulk Run'!AX79="","",'Bulk Run'!AX79)) -> 
A80: 65 | B80: =IF('Bulk Run'!B80="","",'Bulk Run'!B80) ->  | C80: =IF('Bulk Run'!C80="","",'Bulk Run'!C80) ->  | D80: =IF('Bulk Run'!W80="","",'Bulk Run'!W80/FREQ_BULK) ->  | E80: =IF('Bulk Run'!AB80="","",'Bulk Run'!AB80) ->  | F80: =IF('Bulk Run'!AF80="","",'Bulk Run'!AF80) ->  | G80: =IF('Bulk Run'!AG80="","",'Bulk Run'!AG80) ->  | H80: =IF('Bulk Run'!AC80="","",'Bulk Run'!AC80) ->  | I80: =IF('Bulk Run'!AD80="","",'Bulk Run'!AD80) ->  | J80: =IF('Bulk Run'!AE80="","",'Bulk Run'!AE80) ->  | K80: =IF('Bulk Run'!AH80="","",'Bulk Run'!AH80) ->  | N80: =IF('Bulk Run'!B80="","",'Bulk Run'!B80) ->  | O80: =IF('Bulk Run'!C80="","",'Bulk Run'!C80) ->  | P80: =IF(CALC_BASIS_BULK="Increase Net Pay",IF('Bulk Run'!AI80="","",'Bulk Run'!AI80),IF('Bulk Run'!AQ80="","",'Bulk Run'!AQ80)) ->  | Q80: =IF(CALC_BASIS_BULK="Increase Net Pay",IF('Bulk Run'!AJ80="","",'Bulk Run'!AJ80),IF('Bulk Run'!AR80="","",'Bulk Run'!AR80)) ->  | R80: =IF(CALC_BASIS_BULK="Increase Net Pay",IF('Bulk Run'!AM80="","",'Bulk Run'!AM80),IF('Bulk Run'!AU80="","",'Bulk Run'!AU80)) ->  | S80: =IF(CALC_BASIS_BULK="Increase Net Pay",IF('Bulk Run'!AN80="","",'Bulk Run'!AN80),IF('Bulk Run'!AV80="","",'Bulk Run'!AV80)) ->  | T80: =IF(CALC_BASIS_BULK="Increase Net Pay",IF('Bulk Run'!AO80="","",'Bulk Run'!AO80),IF('Bulk Run'!AW80="","",'Bulk Run'!AW80)) ->  | U80: =IF(CALC_BASIS_BULK="Increase Net Pay",IF('Bulk Run'!AK80="","",'Bulk Run'!AK80),IF('Bulk Run'!AS80="","",'Bulk Run'!AS80)) ->  | V80: =IF(CALC_BASIS_BULK="Increase Net Pay",IF('Bulk Run'!AL80="","",'Bulk Run'!AL80),IF('Bulk Run'!AT80="","",'Bulk Run'!AT80)) ->  | W80: =IF(CALC_BASIS_BULK="Increase Net Pay",IF('Bulk Run'!AP80="","",'Bulk Run'!AP80),IF('Bulk Run'!AX80="","",'Bulk Run'!AX80)) -> 
A81: 66 | B81: =IF('Bulk Run'!B81="","",'Bulk Run'!B81) ->  | C81: =IF('Bulk Run'!C81="","",'Bulk Run'!C81) ->  | D81: =IF('Bulk Run'!W81="","",'Bulk Run'!W81/FREQ_BULK) ->  | E81: =IF('Bulk Run'!AB81="","",'Bulk Run'!AB81) ->  | F81: =IF('Bulk Run'!AF81="","",'Bulk Run'!AF81) ->  | G81: =IF('Bulk Run'!AG81="","",'Bulk Run'!AG81) ->  | H81: =IF('Bulk Run'!AC81="","",'Bulk Run'!AC81) ->  | I81: =IF('Bulk Run'!AD81="","",'Bulk Run'!AD81) ->  | J81: =IF('Bulk Run'!AE81="","",'Bulk Run'!AE81) ->  | K81: =IF('Bulk Run'!AH81="","",'Bulk Run'!AH81) ->  | N81: =IF('Bulk Run'!B81="","",'Bulk Run'!B81) ->  | O81: =IF('Bulk Run'!C81="","",'Bulk Run'!C81) ->  | P81: =IF(CALC_BASIS_BULK="Increase Net Pay",IF('Bulk Run'!AI81="","",'Bulk Run'!AI81),IF('Bulk Run'!AQ81="","",'Bulk Run'!AQ81)) ->  | Q81: =IF(CALC_BASIS_BULK="Increase Net Pay",IF('Bulk Run'!AJ81="","",'Bulk Run'!AJ81),IF('Bulk Run'!AR81="","",'Bulk Run'!AR81)) ->  | R81: =IF(CALC_BASIS_BULK="Increase Net Pay",IF('Bulk Run'!AM81="","",'Bulk Run'!AM81),IF('Bulk Run'!AU81="","",'Bulk Run'!AU81)) ->  | S81: =IF(CALC_BASIS_BULK="Increase Net Pay",IF('Bulk Run'!AN81="","",'Bulk Run'!AN81),IF('Bulk Run'!AV81="","",'Bulk Run'!AV81)) ->  | T81: =IF(CALC_BASIS_BULK="Increase Net Pay",IF('Bulk Run'!AO81="","",'Bulk Run'!AO81),IF('Bulk Run'!AW81="","",'Bulk Run'!AW81)) ->  | U81: =IF(CALC_BASIS_BULK="Increase Net Pay",IF('Bulk Run'!AK81="","",'Bulk Run'!AK81),IF('Bulk Run'!AS81="","",'Bulk Run'!AS81)) ->  | V81: =IF(CALC_BASIS_BULK="Increase Net Pay",IF('Bulk Run'!AL81="","",'Bulk Run'!AL81),IF('Bulk Run'!AT81="","",'Bulk Run'!AT81)) ->  | W81: =IF(CALC_BASIS_BULK="Increase Net Pay",IF('Bulk Run'!AP81="","",'Bulk Run'!AP81),IF('Bulk Run'!AX81="","",'Bulk Run'!AX81)) -> 
A82: 67 | B82: =IF('Bulk Run'!B82="","",'Bulk Run'!B82) ->  | C82: =IF('Bulk Run'!C82="","",'Bulk Run'!C82) ->  | D82: =IF('Bulk Run'!W82="","",'Bulk Run'!W82/FREQ_BULK) ->  | E82: =IF('Bulk Run'!AB82="","",'Bulk Run'!AB82) ->  | F82: =IF('Bulk Run'!AF82="","",'Bulk Run'!AF82) ->  | G82: =IF('Bulk Run'!AG82="","",'Bulk Run'!AG82) ->  | H82: =IF('Bulk Run'!AC82="","",'Bulk Run'!AC82) ->  | I82: =IF('Bulk Run'!AD82="","",'Bulk Run'!AD82) ->  | J82: =IF('Bulk Run'!AE82="","",'Bulk Run'!AE82) ->  | K82: =IF('Bulk Run'!AH82="","",'Bulk Run'!AH82) ->  | N82: =IF('Bulk Run'!B82="","",'Bulk Run'!B82) ->  | O82: =IF('Bulk Run'!C82="","",'Bulk Run'!C82) ->  | P82: =IF(CALC_BASIS_BULK="Increase Net Pay",IF('Bulk Run'!AI82="","",'Bulk Run'!AI82),IF('Bulk Run'!AQ82="","",'Bulk Run'!AQ82)) ->  | Q82: =IF(CALC_BASIS_BULK="Increase Net Pay",IF('Bulk Run'!AJ82="","",'Bulk Run'!AJ82),IF('Bulk Run'!AR82="","",'Bulk Run'!AR82)) ->  | R82: =IF(CALC_BASIS_BULK="Increase Net Pay",IF('Bulk Run'!AM82="","",'Bulk Run'!AM82),IF('Bulk Run'!AU82="","",'Bulk Run'!AU82)) ->  | S82: =IF(CALC_BASIS_BULK="Increase Net Pay",IF('Bulk Run'!AN82="","",'Bulk Run'!AN82),IF('Bulk Run'!AV82="","",'Bulk Run'!AV82)) ->  | T82: =IF(CALC_BASIS_BULK="Increase Net Pay",IF('Bulk Run'!AO82="","",'Bulk Run'!AO82),IF('Bulk Run'!AW82="","",'Bulk Run'!AW82)) ->  | U82: =IF(CALC_BASIS_BULK="Increase Net Pay",IF('Bulk Run'!AK82="","",'Bulk Run'!AK82),IF('Bulk Run'!AS82="","",'Bulk Run'!AS82)) ->  | V82: =IF(CALC_BASIS_BULK="Increase Net Pay",IF('Bulk Run'!AL82="","",'Bulk Run'!AL82),IF('Bulk Run'!AT82="","",'Bulk Run'!AT82)) ->  | W82: =IF(CALC_BASIS_BULK="Increase Net Pay",IF('Bulk Run'!AP82="","",'Bulk Run'!AP82),IF('Bulk Run'!AX82="","",'Bulk Run'!AX82)) -> 
A83: 68 | B83: =IF('Bulk Run'!B83="","",'Bulk Run'!B83) ->  | C83: =IF('Bulk Run'!C83="","",'Bulk Run'!C83) ->  | D83: =IF('Bulk Run'!W83="","",'Bulk Run'!W83/FREQ_BULK) ->  | E83: =IF('Bulk Run'!AB83="","",'Bulk Run'!AB83) ->  | F83: =IF('Bulk Run'!AF83="","",'Bulk Run'!AF83) ->  | G83: =IF('Bulk Run'!AG83="","",'Bulk Run'!AG83) ->  | H83: =IF('Bulk Run'!AC83="","",'Bulk Run'!AC83) ->  | I83: =IF('Bulk Run'!AD83="","",'Bulk Run'!AD83) ->  | J83: =IF('Bulk Run'!AE83="","",'Bulk Run'!AE83) ->  | K83: =IF('Bulk Run'!AH83="","",'Bulk Run'!AH83) ->  | N83: =IF('Bulk Run'!B83="","",'Bulk Run'!B83) ->  | O83: =IF('Bulk Run'!C83="","",'Bulk Run'!C83) ->  | P83: =IF(CALC_BASIS_BULK="Increase Net Pay",IF('Bulk Run'!AI83="","",'Bulk Run'!AI83),IF('Bulk Run'!AQ83="","",'Bulk Run'!AQ83)) ->  | Q83: =IF(CALC_BASIS_BULK="Increase Net Pay",IF('Bulk Run'!AJ83="","",'Bulk Run'!AJ83),IF('Bulk Run'!AR83="","",'Bulk Run'!AR83)) ->  | R83: =IF(CALC_BASIS_BULK="Increase Net Pay",IF('Bulk Run'!AM83="","",'Bulk Run'!AM83),IF('Bulk Run'!AU83="","",'Bulk Run'!AU83)) ->  | S83: =IF(CALC_BASIS_BULK="Increase Net Pay",IF('Bulk Run'!AN83="","",'Bulk Run'!AN83),IF('Bulk Run'!AV83="","",'Bulk Run'!AV83)) ->  | T83: =IF(CALC_BASIS_BULK="Increase Net Pay",IF('Bulk Run'!AO83="","",'Bulk Run'!AO83),IF('Bulk Run'!AW83="","",'Bulk Run'!AW83)) ->  | U83: =IF(CALC_BASIS_BULK="Increase Net Pay",IF('Bulk Run'!AK83="","",'Bulk Run'!AK83),IF('Bulk Run'!AS83="","",'Bulk Run'!AS83)) ->  | V83: =IF(CALC_BASIS_BULK="Increase Net Pay",IF('Bulk Run'!AL83="","",'Bulk Run'!AL83),IF('Bulk Run'!AT83="","",'Bulk Run'!AT83)) ->  | W83: =IF(CALC_BASIS_BULK="Increase Net Pay",IF('Bulk Run'!AP83="","",'Bulk Run'!AP83),IF('Bulk Run'!AX83="","",'Bulk Run'!AX83)) -> 
A84: 69 | B84: =IF('Bulk Run'!B84="","",'Bulk Run'!B84) ->  | C84: =IF('Bulk Run'!C84="","",'Bulk Run'!C84) ->  | D84: =IF('Bulk Run'!W84="","",'Bulk Run'!W84/FREQ_BULK) ->  | E84: =IF('Bulk Run'!AB84="","",'Bulk Run'!AB84) ->  | F84: =IF('Bulk Run'!AF84="","",'Bulk Run'!AF84) ->  | G84: =IF('Bulk Run'!AG84="","",'Bulk Run'!AG84) ->  | H84: =IF('Bulk Run'!AC84="","",'Bulk Run'!AC84) ->  | I84: =IF('Bulk Run'!AD84="","",'Bulk Run'!AD84) ->  | J84: =IF('Bulk Run'!AE84="","",'Bulk Run'!AE84) ->  | K84: =IF('Bulk Run'!AH84="","",'Bulk Run'!AH84) ->  | N84: =IF('Bulk Run'!B84="","",'Bulk Run'!B84) ->  | O84: =IF('Bulk Run'!C84="","",'Bulk Run'!C84) ->  | P84: =IF(CALC_BASIS_BULK="Increase Net Pay",IF('Bulk Run'!AI84="","",'Bulk Run'!AI84),IF('Bulk Run'!AQ84="","",'Bulk Run'!AQ84)) ->  | Q84: =IF(CALC_BASIS_BULK="Increase Net Pay",IF('Bulk Run'!AJ84="","",'Bulk Run'!AJ84),IF('Bulk Run'!AR84="","",'Bulk Run'!AR84)) ->  | R84: =IF(CALC_BASIS_BULK="Increase Net Pay",IF('Bulk Run'!AM84="","",'Bulk Run'!AM84),IF('Bulk Run'!AU84="","",'Bulk Run'!AU84)) ->  | S84: =IF(CALC_BASIS_BULK="Increase Net Pay",IF('Bulk Run'!AN84="","",'Bulk Run'!AN84),IF('Bulk Run'!AV84="","",'Bulk Run'!AV84)) ->  | T84: =IF(CALC_BASIS_BULK="Increase Net Pay",IF('Bulk Run'!AO84="","",'Bulk Run'!AO84),IF('Bulk Run'!AW84="","",'Bulk Run'!AW84)) ->  | U84: =IF(CALC_BASIS_BULK="Increase Net Pay",IF('Bulk Run'!AK84="","",'Bulk Run'!AK84),IF('Bulk Run'!AS84="","",'Bulk Run'!AS84)) ->  | V84: =IF(CALC_BASIS_BULK="Increase Net Pay",IF('Bulk Run'!AL84="","",'Bulk Run'!AL84),IF('Bulk Run'!AT84="","",'Bulk Run'!AT84)) ->  | W84: =IF(CALC_BASIS_BULK="Increase Net Pay",IF('Bulk Run'!AP84="","",'Bulk Run'!AP84),IF('Bulk Run'!AX84="","",'Bulk Run'!AX84)) -> 
A85: 70 | B85: =IF('Bulk Run'!B85="","",'Bulk Run'!B85) ->  | C85: =IF('Bulk Run'!C85="","",'Bulk Run'!C85) ->  | D85: =IF('Bulk Run'!W85="","",'Bulk Run'!W85/FREQ_BULK) ->  | E85: =IF('Bulk Run'!AB85="","",'Bulk Run'!AB85) ->  | F85: =IF('Bulk Run'!AF85="","",'Bulk Run'!AF85) ->  | G85: =IF('Bulk Run'!AG85="","",'Bulk Run'!AG85) ->  | H85: =IF('Bulk Run'!AC85="","",'Bulk Run'!AC85) ->  | I85: =IF('Bulk Run'!AD85="","",'Bulk Run'!AD85) ->  | J85: =IF('Bulk Run'!AE85="","",'Bulk Run'!AE85) ->  | K85: =IF('Bulk Run'!AH85="","",'Bulk Run'!AH85) ->  | N85: =IF('Bulk Run'!B85="","",'Bulk Run'!B85) ->  | O85: =IF('Bulk Run'!C85="","",'Bulk Run'!C85) ->  | P85: =IF(CALC_BASIS_BULK="Increase Net Pay",IF('Bulk Run'!AI85="","",'Bulk Run'!AI85),IF('Bulk Run'!AQ85="","",'Bulk Run'!AQ85)) ->  | Q85: =IF(CALC_BASIS_BULK="Increase Net Pay",IF('Bulk Run'!AJ85="","",'Bulk Run'!AJ85),IF('Bulk Run'!AR85="","",'Bulk Run'!AR85)) ->  | R85: =IF(CALC_BASIS_BULK="Increase Net Pay",IF('Bulk Run'!AM85="","",'Bulk Run'!AM85),IF('Bulk Run'!AU85="","",'Bulk Run'!AU85)) ->  | S85: =IF(CALC_BASIS_BULK="Increase Net Pay",IF('Bulk Run'!AN85="","",'Bulk Run'!AN85),IF('Bulk Run'!AV85="","",'Bulk Run'!AV85)) ->  | T85: =IF(CALC_BASIS_BULK="Increase Net Pay",IF('Bulk Run'!AO85="","",'Bulk Run'!AO85),IF('Bulk Run'!AW85="","",'Bulk Run'!AW85)) ->  | U85: =IF(CALC_BASIS_BULK="Increase Net Pay",IF('Bulk Run'!AK85="","",'Bulk Run'!AK85),IF('Bulk Run'!AS85="","",'Bulk Run'!AS85)) ->  | V85: =IF(CALC_BASIS_BULK="Increase Net Pay",IF('Bulk Run'!AL85="","",'Bulk Run'!AL85),IF('Bulk Run'!AT85="","",'Bulk Run'!AT85)) ->  | W85: =IF(CALC_BASIS_BULK="Increase Net Pay",IF('Bulk Run'!AP85="","",'Bulk Run'!AP85),IF('Bulk Run'!AX85="","",'Bulk Run'!AX85)) -> 
A86: 71 | B86: =IF('Bulk Run'!B86="","",'Bulk Run'!B86) ->  | C86: =IF('Bulk Run'!C86="","",'Bulk Run'!C86) ->  | D86: =IF('Bulk Run'!W86="","",'Bulk Run'!W86/FREQ_BULK) ->  | E86: =IF('Bulk Run'!AB86="","",'Bulk Run'!AB86) ->  | F86: =IF('Bulk Run'!AF86="","",'Bulk Run'!AF86) ->  | G86: =IF('Bulk Run'!AG86="","",'Bulk Run'!AG86) ->  | H86: =IF('Bulk Run'!AC86="","",'Bulk Run'!AC86) ->  | I86: =IF('Bulk Run'!AD86="","",'Bulk Run'!AD86) ->  | J86: =IF('Bulk Run'!AE86="","",'Bulk Run'!AE86) ->  | K86: =IF('Bulk Run'!AH86="","",'Bulk Run'!AH86) ->  | N86: =IF('Bulk Run'!B86="","",'Bulk Run'!B86) ->  | O86: =IF('Bulk Run'!C86="","",'Bulk Run'!C86) ->  | P86: =IF(CALC_BASIS_BULK="Increase Net Pay",IF('Bulk Run'!AI86="","",'Bulk Run'!AI86),IF('Bulk Run'!AQ86="","",'Bulk Run'!AQ86)) ->  | Q86: =IF(CALC_BASIS_BULK="Increase Net Pay",IF('Bulk Run'!AJ86="","",'Bulk Run'!AJ86),IF('Bulk Run'!AR86="","",'Bulk Run'!AR86)) ->  | R86: =IF(CALC_BASIS_BULK="Increase Net Pay",IF('Bulk Run'!AM86="","",'Bulk Run'!AM86),IF('Bulk Run'!AU86="","",'Bulk Run'!AU86)) ->  | S86: =IF(CALC_BASIS_BULK="Increase Net Pay",IF('Bulk Run'!AN86="","",'Bulk Run'!AN86),IF('Bulk Run'!AV86="","",'Bulk Run'!AV86)) ->  | T86: =IF(CALC_BASIS_BULK="Increase Net Pay",IF('Bulk Run'!AO86="","",'Bulk Run'!AO86),IF('Bulk Run'!AW86="","",'Bulk Run'!AW86)) ->  | U86: =IF(CALC_BASIS_BULK="Increase Net Pay",IF('Bulk Run'!AK86="","",'Bulk Run'!AK86),IF('Bulk Run'!AS86="","",'Bulk Run'!AS86)) ->  | V86: =IF(CALC_BASIS_BULK="Increase Net Pay",IF('Bulk Run'!AL86="","",'Bulk Run'!AL86),IF('Bulk Run'!AT86="","",'Bulk Run'!AT86)) ->  | W86: =IF(CALC_BASIS_BULK="Increase Net Pay",IF('Bulk Run'!AP86="","",'Bulk Run'!AP86),IF('Bulk Run'!AX86="","",'Bulk Run'!AX86)) -> 
A87: 72 | B87: =IF('Bulk Run'!B87="","",'Bulk Run'!B87) ->  | C87: =IF('Bulk Run'!C87="","",'Bulk Run'!C87) ->  | D87: =IF('Bulk Run'!W87="","",'Bulk Run'!W87/FREQ_BULK) ->  | E87: =IF('Bulk Run'!AB87="","",'Bulk Run'!AB87) ->  | F87: =IF('Bulk Run'!AF87="","",'Bulk Run'!AF87) ->  | G87: =IF('Bulk Run'!AG87="","",'Bulk Run'!AG87) ->  | H87: =IF('Bulk Run'!AC87="","",'Bulk Run'!AC87) ->  | I87: =IF('Bulk Run'!AD87="","",'Bulk Run'!AD87) ->  | J87: =IF('Bulk Run'!AE87="","",'Bulk Run'!AE87) ->  | K87: =IF('Bulk Run'!AH87="","",'Bulk Run'!AH87) ->  | N87: =IF('Bulk Run'!B87="","",'Bulk Run'!B87) ->  | O87: =IF('Bulk Run'!C87="","",'Bulk Run'!C87) ->  | P87: =IF(CALC_BASIS_BULK="Increase Net Pay",IF('Bulk Run'!AI87="","",'Bulk Run'!AI87),IF('Bulk Run'!AQ87="","",'Bulk Run'!AQ87)) ->  | Q87: =IF(CALC_BASIS_BULK="Increase Net Pay",IF('Bulk Run'!AJ87="","",'Bulk Run'!AJ87),IF('Bulk Run'!AR87="","",'Bulk Run'!AR87)) ->  | R87: =IF(CALC_BASIS_BULK="Increase Net Pay",IF('Bulk Run'!AM87="","",'Bulk Run'!AM87),IF('Bulk Run'!AU87="","",'Bulk Run'!AU87)) ->  | S87: =IF(CALC_BASIS_BULK="Increase Net Pay",IF('Bulk Run'!AN87="","",'Bulk Run'!AN87),IF('Bulk Run'!AV87="","",'Bulk Run'!AV87)) ->  | T87: =IF(CALC_BASIS_BULK="Increase Net Pay",IF('Bulk Run'!AO87="","",'Bulk Run'!AO87),IF('Bulk Run'!AW87="","",'Bulk Run'!AW87)) ->  | U87: =IF(CALC_BASIS_BULK="Increase Net Pay",IF('Bulk Run'!AK87="","",'Bulk Run'!AK87),IF('Bulk Run'!AS87="","",'Bulk Run'!AS87)) ->  | V87: =IF(CALC_BASIS_BULK="Increase Net Pay",IF('Bulk Run'!AL87="","",'Bulk Run'!AL87),IF('Bulk Run'!AT87="","",'Bulk Run'!AT87)) ->  | W87: =IF(CALC_BASIS_BULK="Increase Net Pay",IF('Bulk Run'!AP87="","",'Bulk Run'!AP87),IF('Bulk Run'!AX87="","",'Bulk Run'!AX87)) -> 
A88: 73 | B88: =IF('Bulk Run'!B88="","",'Bulk Run'!B88) ->  | C88: =IF('Bulk Run'!C88="","",'Bulk Run'!C88) ->  | D88: =IF('Bulk Run'!W88="","",'Bulk Run'!W88/FREQ_BULK) ->  | E88: =IF('Bulk Run'!AB88="","",'Bulk Run'!AB88) ->  | F88: =IF('Bulk Run'!AF88="","",'Bulk Run'!AF88) ->  | G88: =IF('Bulk Run'!AG88="","",'Bulk Run'!AG88) ->  | H88: =IF('Bulk Run'!AC88="","",'Bulk Run'!AC88) ->  | I88: =IF('Bulk Run'!AD88="","",'Bulk Run'!AD88) ->  | J88: =IF('Bulk Run'!AE88="","",'Bulk Run'!AE88) ->  | K88: =IF('Bulk Run'!AH88="","",'Bulk Run'!AH88) ->  | N88: =IF('Bulk Run'!B88="","",'Bulk Run'!B88) ->  | O88: =IF('Bulk Run'!C88="","",'Bulk Run'!C88) ->  | P88: =IF(CALC_BASIS_BULK="Increase Net Pay",IF('Bulk Run'!AI88="","",'Bulk Run'!AI88),IF('Bulk Run'!AQ88="","",'Bulk Run'!AQ88)) ->  | Q88: =IF(CALC_BASIS_BULK="Increase Net Pay",IF('Bulk Run'!AJ88="","",'Bulk Run'!AJ88),IF('Bulk Run'!AR88="","",'Bulk Run'!AR88)) ->  | R88: =IF(CALC_BASIS_BULK="Increase Net Pay",IF('Bulk Run'!AM88="","",'Bulk Run'!AM88),IF('Bulk Run'!AU88="","",'Bulk Run'!AU88)) ->  | S88: =IF(CALC_BASIS_BULK="Increase Net Pay",IF('Bulk Run'!AN88="","",'Bulk Run'!AN88),IF('Bulk Run'!AV88="","",'Bulk Run'!AV88)) ->  | T88: =IF(CALC_BASIS_BULK="Increase Net Pay",IF('Bulk Run'!AO88="","",'Bulk Run'!AO88),IF('Bulk Run'!AW88="","",'Bulk Run'!AW88)) ->  | U88: =IF(CALC_BASIS_BULK="Increase Net Pay",IF('Bulk Run'!AK88="","",'Bulk Run'!AK88),IF('Bulk Run'!AS88="","",'Bulk Run'!AS88)) ->  | V88: =IF(CALC_BASIS_BULK="Increase Net Pay",IF('Bulk Run'!AL88="","",'Bulk Run'!AL88),IF('Bulk Run'!AT88="","",'Bulk Run'!AT88)) ->  | W88: =IF(CALC_BASIS_BULK="Increase Net Pay",IF('Bulk Run'!AP88="","",'Bulk Run'!AP88),IF('Bulk Run'!AX88="","",'Bulk Run'!AX88)) -> 
A89: 74 | B89: =IF('Bulk Run'!B89="","",'Bulk Run'!B89) ->  | C89: =IF('Bulk Run'!C89="","",'Bulk Run'!C89) ->  | D89: =IF('Bulk Run'!W89="","",'Bulk Run'!W89/FREQ_BULK) ->  | E89: =IF('Bulk Run'!AB89="","",'Bulk Run'!AB89) ->  | F89: =IF('Bulk Run'!AF89="","",'Bulk Run'!AF89) ->  | G89: =IF('Bulk Run'!AG89="","",'Bulk Run'!AG89) ->  | H89: =IF('Bulk Run'!AC89="","",'Bulk Run'!AC89) ->  | I89: =IF('Bulk Run'!AD89="","",'Bulk Run'!AD89) ->  | J89: =IF('Bulk Run'!AE89="","",'Bulk Run'!AE89) ->  | K89: =IF('Bulk Run'!AH89="","",'Bulk Run'!AH89) ->  | N89: =IF('Bulk Run'!B89="","",'Bulk Run'!B89) ->  | O89: =IF('Bulk Run'!C89="","",'Bulk Run'!C89) ->  | P89: =IF(CALC_BASIS_BULK="Increase Net Pay",IF('Bulk Run'!AI89="","",'Bulk Run'!AI89),IF('Bulk Run'!AQ89="","",'Bulk Run'!AQ89)) ->  | Q89: =IF(CALC_BASIS_BULK="Increase Net Pay",IF('Bulk Run'!AJ89="","",'Bulk Run'!AJ89),IF('Bulk Run'!AR89="","",'Bulk Run'!AR89)) ->  | R89: =IF(CALC_BASIS_BULK="Increase Net Pay",IF('Bulk Run'!AM89="","",'Bulk Run'!AM89),IF('Bulk Run'!AU89="","",'Bulk Run'!AU89)) ->  | S89: =IF(CALC_BASIS_BULK="Increase Net Pay",IF('Bulk Run'!AN89="","",'Bulk Run'!AN89),IF('Bulk Run'!AV89="","",'Bulk Run'!AV89)) ->  | T89: =IF(CALC_BASIS_BULK="Increase Net Pay",IF('Bulk Run'!AO89="","",'Bulk Run'!AO89),IF('Bulk Run'!AW89="","",'Bulk Run'!AW89)) ->  | U89: =IF(CALC_BASIS_BULK="Increase Net Pay",IF('Bulk Run'!AK89="","",'Bulk Run'!AK89),IF('Bulk Run'!AS89="","",'Bulk Run'!AS89)) ->  | V89: =IF(CALC_BASIS_BULK="Increase Net Pay",IF('Bulk Run'!AL89="","",'Bulk Run'!AL89),IF('Bulk Run'!AT89="","",'Bulk Run'!AT89)) ->  | W89: =IF(CALC_BASIS_BULK="Increase Net Pay",IF('Bulk Run'!AP89="","",'Bulk Run'!AP89),IF('Bulk Run'!AX89="","",'Bulk Run'!AX89)) -> 
A90: 75 | B90: =IF('Bulk Run'!B90="","",'Bulk Run'!B90) ->  | C90: =IF('Bulk Run'!C90="","",'Bulk Run'!C90) ->  | D90: =IF('Bulk Run'!W90="","",'Bulk Run'!W90/FREQ_BULK) ->  | E90: =IF('Bulk Run'!AB90="","",'Bulk Run'!AB90) ->  | F90: =IF('Bulk Run'!AF90="","",'Bulk Run'!AF90) ->  | G90: =IF('Bulk Run'!AG90="","",'Bulk Run'!AG90) ->  | H90: =IF('Bulk Run'!AC90="","",'Bulk Run'!AC90) ->  | I90: =IF('Bulk Run'!AD90="","",'Bulk Run'!AD90) ->  | J90: =IF('Bulk Run'!AE90="","",'Bulk Run'!AE90) ->  | K90: =IF('Bulk Run'!AH90="","",'Bulk Run'!AH90) ->  | N90: =IF('Bulk Run'!B90="","",'Bulk Run'!B90) ->  | O90: =IF('Bulk Run'!C90="","",'Bulk Run'!C90) ->  | P90: =IF(CALC_BASIS_BULK="Increase Net Pay",IF('Bulk Run'!AI90="","",'Bulk Run'!AI90),IF('Bulk Run'!AQ90="","",'Bulk Run'!AQ90)) ->  | Q90: =IF(CALC_BASIS_BULK="Increase Net Pay",IF('Bulk Run'!AJ90="","",'Bulk Run'!AJ90),IF('Bulk Run'!AR90="","",'Bulk Run'!AR90)) ->  | R90: =IF(CALC_BASIS_BULK="Increase Net Pay",IF('Bulk Run'!AM90="","",'Bulk Run'!AM90),IF('Bulk Run'!AU90="","",'Bulk Run'!AU90)) ->  | S90: =IF(CALC_BASIS_BULK="Increase Net Pay",IF('Bulk Run'!AN90="","",'Bulk Run'!AN90),IF('Bulk Run'!AV90="","",'Bulk Run'!AV90)) ->  | T90: =IF(CALC_BASIS_BULK="Increase Net Pay",IF('Bulk Run'!AO90="","",'Bulk Run'!AO90),IF('Bulk Run'!AW90="","",'Bulk Run'!AW90)) ->  | U90: =IF(CALC_BASIS_BULK="Increase Net Pay",IF('Bulk Run'!AK90="","",'Bulk Run'!AK90),IF('Bulk Run'!AS90="","",'Bulk Run'!AS90)) ->  | V90: =IF(CALC_BASIS_BULK="Increase Net Pay",IF('Bulk Run'!AL90="","",'Bulk Run'!AL90),IF('Bulk Run'!AT90="","",'Bulk Run'!AT90)) ->  | W90: =IF(CALC_BASIS_BULK="Increase Net Pay",IF('Bulk Run'!AP90="","",'Bulk Run'!AP90),IF('Bulk Run'!AX90="","",'Bulk Run'!AX90)) -> 
A91: 76 | B91: =IF('Bulk Run'!B91="","",'Bulk Run'!B91) ->  | C91: =IF('Bulk Run'!C91="","",'Bulk Run'!C91) ->  | D91: =IF('Bulk Run'!W91="","",'Bulk Run'!W91/FREQ_BULK) ->  | E91: =IF('Bulk Run'!AB91="","",'Bulk Run'!AB91) ->  | F91: =IF('Bulk Run'!AF91="","",'Bulk Run'!AF91) ->  | G91: =IF('Bulk Run'!AG91="","",'Bulk Run'!AG91) ->  | H91: =IF('Bulk Run'!AC91="","",'Bulk Run'!AC91) ->  | I91: =IF('Bulk Run'!AD91="","",'Bulk Run'!AD91) ->  | J91: =IF('Bulk Run'!AE91="","",'Bulk Run'!AE91) ->  | K91: =IF('Bulk Run'!AH91="","",'Bulk Run'!AH91) ->  | N91: =IF('Bulk Run'!B91="","",'Bulk Run'!B91) ->  | O91: =IF('Bulk Run'!C91="","",'Bulk Run'!C91) ->  | P91: =IF(CALC_BASIS_BULK="Increase Net Pay",IF('Bulk Run'!AI91="","",'Bulk Run'!AI91),IF('Bulk Run'!AQ91="","",'Bulk Run'!AQ91)) ->  | Q91: =IF(CALC_BASIS_BULK="Increase Net Pay",IF('Bulk Run'!AJ91="","",'Bulk Run'!AJ91),IF('Bulk Run'!AR91="","",'Bulk Run'!AR91)) ->  | R91: =IF(CALC_BASIS_BULK="Increase Net Pay",IF('Bulk Run'!AM91="","",'Bulk Run'!AM91),IF('Bulk Run'!AU91="","",'Bulk Run'!AU91)) ->  | S91: =IF(CALC_BASIS_BULK="Increase Net Pay",IF('Bulk Run'!AN91="","",'Bulk Run'!AN91),IF('Bulk Run'!AV91="","",'Bulk Run'!AV91)) ->  | T91: =IF(CALC_BASIS_BULK="Increase Net Pay",IF('Bulk Run'!AO91="","",'Bulk Run'!AO91),IF('Bulk Run'!AW91="","",'Bulk Run'!AW91)) ->  | U91: =IF(CALC_BASIS_BULK="Increase Net Pay",IF('Bulk Run'!AK91="","",'Bulk Run'!AK91),IF('Bulk Run'!AS91="","",'Bulk Run'!AS91)) ->  | V91: =IF(CALC_BASIS_BULK="Increase Net Pay",IF('Bulk Run'!AL91="","",'Bulk Run'!AL91),IF('Bulk Run'!AT91="","",'Bulk Run'!AT91)) ->  | W91: =IF(CALC_BASIS_BULK="Increase Net Pay",IF('Bulk Run'!AP91="","",'Bulk Run'!AP91),IF('Bulk Run'!AX91="","",'Bulk Run'!AX91)) -> 
A92: 77 | B92: =IF('Bulk Run'!B92="","",'Bulk Run'!B92) ->  | C92: =IF('Bulk Run'!C92="","",'Bulk Run'!C92) ->  | D92: =IF('Bulk Run'!W92="","",'Bulk Run'!W92/FREQ_BULK) ->  | E92: =IF('Bulk Run'!AB92="","",'Bulk Run'!AB92) ->  | F92: =IF('Bulk Run'!AF92="","",'Bulk Run'!AF92) ->  | G92: =IF('Bulk Run'!AG92="","",'Bulk Run'!AG92) ->  | H92: =IF('Bulk Run'!AC92="","",'Bulk Run'!AC92) ->  | I92: =IF('Bulk Run'!AD92="","",'Bulk Run'!AD92) ->  | J92: =IF('Bulk Run'!AE92="","",'Bulk Run'!AE92) ->  | K92: =IF('Bulk Run'!AH92="","",'Bulk Run'!AH92) ->  | N92: =IF('Bulk Run'!B92="","",'Bulk Run'!B92) ->  | O92: =IF('Bulk Run'!C92="","",'Bulk Run'!C92) ->  | P92: =IF(CALC_BASIS_BULK="Increase Net Pay",IF('Bulk Run'!AI92="","",'Bulk Run'!AI92),IF('Bulk Run'!AQ92="","",'Bulk Run'!AQ92)) ->  | Q92: =IF(CALC_BASIS_BULK="Increase Net Pay",IF('Bulk Run'!AJ92="","",'Bulk Run'!AJ92),IF('Bulk Run'!AR92="","",'Bulk Run'!AR92)) ->  | R92: =IF(CALC_BASIS_BULK="Increase Net Pay",IF('Bulk Run'!AM92="","",'Bulk Run'!AM92),IF('Bulk Run'!AU92="","",'Bulk Run'!AU92)) ->  | S92: =IF(CALC_BASIS_BULK="Increase Net Pay",IF('Bulk Run'!AN92="","",'Bulk Run'!AN92),IF('Bulk Run'!AV92="","",'Bulk Run'!AV92)) ->  | T92: =IF(CALC_BASIS_BULK="Increase Net Pay",IF('Bulk Run'!AO92="","",'Bulk Run'!AO92),IF('Bulk Run'!AW92="","",'Bulk Run'!AW92)) ->  | U92: =IF(CALC_BASIS_BULK="Increase Net Pay",IF('Bulk Run'!AK92="","",'Bulk Run'!AK92),IF('Bulk Run'!AS92="","",'Bulk Run'!AS92)) ->  | V92: =IF(CALC_BASIS_BULK="Increase Net Pay",IF('Bulk Run'!AL92="","",'Bulk Run'!AL92),IF('Bulk Run'!AT92="","",'Bulk Run'!AT92)) ->  | W92: =IF(CALC_BASIS_BULK="Increase Net Pay",IF('Bulk Run'!AP92="","",'Bulk Run'!AP92),IF('Bulk Run'!AX92="","",'Bulk Run'!AX92)) -> 
A93: 78 | B93: =IF('Bulk Run'!B93="","",'Bulk Run'!B93) ->  | C93: =IF('Bulk Run'!C93="","",'Bulk Run'!C93) ->  | D93: =IF('Bulk Run'!W93="","",'Bulk Run'!W93/FREQ_BULK) ->  | E93: =IF('Bulk Run'!AB93="","",'Bulk Run'!AB93) ->  | F93: =IF('Bulk Run'!AF93="","",'Bulk Run'!AF93) ->  | G93: =IF('Bulk Run'!AG93="","",'Bulk Run'!AG93) ->  | H93: =IF('Bulk Run'!AC93="","",'Bulk Run'!AC93) ->  | I93: =IF('Bulk Run'!AD93="","",'Bulk Run'!AD93) ->  | J93: =IF('Bulk Run'!AE93="","",'Bulk Run'!AE93) ->  | K93: =IF('Bulk Run'!AH93="","",'Bulk Run'!AH93) ->  | N93: =IF('Bulk Run'!B93="","",'Bulk Run'!B93) ->  | O93: =IF('Bulk Run'!C93="","",'Bulk Run'!C93) ->  | P93: =IF(CALC_BASIS_BULK="Increase Net Pay",IF('Bulk Run'!AI93="","",'Bulk Run'!AI93),IF('Bulk Run'!AQ93="","",'Bulk Run'!AQ93)) ->  | Q93: =IF(CALC_BASIS_BULK="Increase Net Pay",IF('Bulk Run'!AJ93="","",'Bulk Run'!AJ93),IF('Bulk Run'!AR93="","",'Bulk Run'!AR93)) ->  | R93: =IF(CALC_BASIS_BULK="Increase Net Pay",IF('Bulk Run'!AM93="","",'Bulk Run'!AM93),IF('Bulk Run'!AU93="","",'Bulk Run'!AU93)) ->  | S93: =IF(CALC_BASIS_BULK="Increase Net Pay",IF('Bulk Run'!AN93="","",'Bulk Run'!AN93),IF('Bulk Run'!AV93="","",'Bulk Run'!AV93)) ->  | T93: =IF(CALC_BASIS_BULK="Increase Net Pay",IF('Bulk Run'!AO93="","",'Bulk Run'!AO93),IF('Bulk Run'!AW93="","",'Bulk Run'!AW93)) ->  | U93: =IF(CALC_BASIS_BULK="Increase Net Pay",IF('Bulk Run'!AK93="","",'Bulk Run'!AK93),IF('Bulk Run'!AS93="","",'Bulk Run'!AS93)) ->  | V93: =IF(CALC_BASIS_BULK="Increase Net Pay",IF('Bulk Run'!AL93="","",'Bulk Run'!AL93),IF('Bulk Run'!AT93="","",'Bulk Run'!AT93)) ->  | W93: =IF(CALC_BASIS_BULK="Increase Net Pay",IF('Bulk Run'!AP93="","",'Bulk Run'!AP93),IF('Bulk Run'!AX93="","",'Bulk Run'!AX93)) -> 
A94: 79 | B94: =IF('Bulk Run'!B94="","",'Bulk Run'!B94) ->  | C94: =IF('Bulk Run'!C94="","",'Bulk Run'!C94) ->  | D94: =IF('Bulk Run'!W94="","",'Bulk Run'!W94/FREQ_BULK) ->  | E94: =IF('Bulk Run'!AB94="","",'Bulk Run'!AB94) ->  | F94: =IF('Bulk Run'!AF94="","",'Bulk Run'!AF94) ->  | G94: =IF('Bulk Run'!AG94="","",'Bulk Run'!AG94) ->  | H94: =IF('Bulk Run'!AC94="","",'Bulk Run'!AC94) ->  | I94: =IF('Bulk Run'!AD94="","",'Bulk Run'!AD94) ->  | J94: =IF('Bulk Run'!AE94="","",'Bulk Run'!AE94) ->  | K94: =IF('Bulk Run'!AH94="","",'Bulk Run'!AH94) ->  | N94: =IF('Bulk Run'!B94="","",'Bulk Run'!B94) ->  | O94: =IF('Bulk Run'!C94="","",'Bulk Run'!C94) ->  | P94: =IF(CALC_BASIS_BULK="Increase Net Pay",IF('Bulk Run'!AI94="","",'Bulk Run'!AI94),IF('Bulk Run'!AQ94="","",'Bulk Run'!AQ94)) ->  | Q94: =IF(CALC_BASIS_BULK="Increase Net Pay",IF('Bulk Run'!AJ94="","",'Bulk Run'!AJ94),IF('Bulk Run'!AR94="","",'Bulk Run'!AR94)) ->  | R94: =IF(CALC_BASIS_BULK="Increase Net Pay",IF('Bulk Run'!AM94="","",'Bulk Run'!AM94),IF('Bulk Run'!AU94="","",'Bulk Run'!AU94)) ->  | S94: =IF(CALC_BASIS_BULK="Increase Net Pay",IF('Bulk Run'!AN94="","",'Bulk Run'!AN94),IF('Bulk Run'!AV94="","",'Bulk Run'!AV94)) ->  | T94: =IF(CALC_BASIS_BULK="Increase Net Pay",IF('Bulk Run'!AO94="","",'Bulk Run'!AO94),IF('Bulk Run'!AW94="","",'Bulk Run'!AW94)) ->  | U94: =IF(CALC_BASIS_BULK="Increase Net Pay",IF('Bulk Run'!AK94="","",'Bulk Run'!AK94),IF('Bulk Run'!AS94="","",'Bulk Run'!AS94)) ->  | V94: =IF(CALC_BASIS_BULK="Increase Net Pay",IF('Bulk Run'!AL94="","",'Bulk Run'!AL94),IF('Bulk Run'!AT94="","",'Bulk Run'!AT94)) ->  | W94: =IF(CALC_BASIS_BULK="Increase Net Pay",IF('Bulk Run'!AP94="","",'Bulk Run'!AP94),IF('Bulk Run'!AX94="","",'Bulk Run'!AX94)) -> 
A95: 80 | B95: =IF('Bulk Run'!B95="","",'Bulk Run'!B95) ->  | C95: =IF('Bulk Run'!C95="","",'Bulk Run'!C95) ->  | D95: =IF('Bulk Run'!W95="","",'Bulk Run'!W95/FREQ_BULK) ->  | E95: =IF('Bulk Run'!AB95="","",'Bulk Run'!AB95) ->  | F95: =IF('Bulk Run'!AF95="","",'Bulk Run'!AF95) ->  | G95: =IF('Bulk Run'!AG95="","",'Bulk Run'!AG95) ->  | H95: =IF('Bulk Run'!AC95="","",'Bulk Run'!AC95) ->  | I95: =IF('Bulk Run'!AD95="","",'Bulk Run'!AD95) ->  | J95: =IF('Bulk Run'!AE95="","",'Bulk Run'!AE95) ->  | K95: =IF('Bulk Run'!AH95="","",'Bulk Run'!AH95) ->  | N95: =IF('Bulk Run'!B95="","",'Bulk Run'!B95) ->  | O95: =IF('Bulk Run'!C95="","",'Bulk Run'!C95) ->  | P95: =IF(CALC_BASIS_BULK="Increase Net Pay",IF('Bulk Run'!AI95="","",'Bulk Run'!AI95),IF('Bulk Run'!AQ95="","",'Bulk Run'!AQ95)) ->  | Q95: =IF(CALC_BASIS_BULK="Increase Net Pay",IF('Bulk Run'!AJ95="","",'Bulk Run'!AJ95),IF('Bulk Run'!AR95="","",'Bulk Run'!AR95)) ->  | R95: =IF(CALC_BASIS_BULK="Increase Net Pay",IF('Bulk Run'!AM95="","",'Bulk Run'!AM95),IF('Bulk Run'!AU95="","",'Bulk Run'!AU95)) ->  | S95: =IF(CALC_BASIS_BULK="Increase Net Pay",IF('Bulk Run'!AN95="","",'Bulk Run'!AN95),IF('Bulk Run'!AV95="","",'Bulk Run'!AV95)) ->  | T95: =IF(CALC_BASIS_BULK="Increase Net Pay",IF('Bulk Run'!AO95="","",'Bulk Run'!AO95),IF('Bulk Run'!AW95="","",'Bulk Run'!AW95)) ->  | U95: =IF(CALC_BASIS_BULK="Increase Net Pay",IF('Bulk Run'!AK95="","",'Bulk Run'!AK95),IF('Bulk Run'!AS95="","",'Bulk Run'!AS95)) ->  | V95: =IF(CALC_BASIS_BULK="Increase Net Pay",IF('Bulk Run'!AL95="","",'Bulk Run'!AL95),IF('Bulk Run'!AT95="","",'Bulk Run'!AT95)) ->  | W95: =IF(CALC_BASIS_BULK="Increase Net Pay",IF('Bulk Run'!AP95="","",'Bulk Run'!AP95),IF('Bulk Run'!AX95="","",'Bulk Run'!AX95)) -> 
A96: 81 | B96: =IF('Bulk Run'!B96="","",'Bulk Run'!B96) ->  | C96: =IF('Bulk Run'!C96="","",'Bulk Run'!C96) ->  | D96: =IF('Bulk Run'!W96="","",'Bulk Run'!W96/FREQ_BULK) ->  | E96: =IF('Bulk Run'!AB96="","",'Bulk Run'!AB96) ->  | F96: =IF('Bulk Run'!AF96="","",'Bulk Run'!AF96) ->  | G96: =IF('Bulk Run'!AG96="","",'Bulk Run'!AG96) ->  | H96: =IF('Bulk Run'!AC96="","",'Bulk Run'!AC96) ->  | I96: =IF('Bulk Run'!AD96="","",'Bulk Run'!AD96) ->  | J96: =IF('Bulk Run'!AE96="","",'Bulk Run'!AE96) ->  | K96: =IF('Bulk Run'!AH96="","",'Bulk Run'!AH96) ->  | N96: =IF('Bulk Run'!B96="","",'Bulk Run'!B96) ->  | O96: =IF('Bulk Run'!C96="","",'Bulk Run'!C96) ->  | P96: =IF(CALC_BASIS_BULK="Increase Net Pay",IF('Bulk Run'!AI96="","",'Bulk Run'!AI96),IF('Bulk Run'!AQ96="","",'Bulk Run'!AQ96)) ->  | Q96: =IF(CALC_BASIS_BULK="Increase Net Pay",IF('Bulk Run'!AJ96="","",'Bulk Run'!AJ96),IF('Bulk Run'!AR96="","",'Bulk Run'!AR96)) ->  | R96: =IF(CALC_BASIS_BULK="Increase Net Pay",IF('Bulk Run'!AM96="","",'Bulk Run'!AM96),IF('Bulk Run'!AU96="","",'Bulk Run'!AU96)) ->  | S96: =IF(CALC_BASIS_BULK="Increase Net Pay",IF('Bulk Run'!AN96="","",'Bulk Run'!AN96),IF('Bulk Run'!AV96="","",'Bulk Run'!AV96)) ->  | T96: =IF(CALC_BASIS_BULK="Increase Net Pay",IF('Bulk Run'!AO96="","",'Bulk Run'!AO96),IF('Bulk Run'!AW96="","",'Bulk Run'!AW96)) ->  | U96: =IF(CALC_BASIS_BULK="Increase Net Pay",IF('Bulk Run'!AK96="","",'Bulk Run'!AK96),IF('Bulk Run'!AS96="","",'Bulk Run'!AS96)) ->  | V96: =IF(CALC_BASIS_BULK="Increase Net Pay",IF('Bulk Run'!AL96="","",'Bulk Run'!AL96),IF('Bulk Run'!AT96="","",'Bulk Run'!AT96)) ->  | W96: =IF(CALC_BASIS_BULK="Increase Net Pay",IF('Bulk Run'!AP96="","",'Bulk Run'!AP96),IF('Bulk Run'!AX96="","",'Bulk Run'!AX96)) -> 
A97: 82 | B97: =IF('Bulk Run'!B97="","",'Bulk Run'!B97) ->  | C97: =IF('Bulk Run'!C97="","",'Bulk Run'!C97) ->  | D97: =IF('Bulk Run'!W97="","",'Bulk Run'!W97/FREQ_BULK) ->  | E97: =IF('Bulk Run'!AB97="","",'Bulk Run'!AB97) ->  | F97: =IF('Bulk Run'!AF97="","",'Bulk Run'!AF97) ->  | G97: =IF('Bulk Run'!AG97="","",'Bulk Run'!AG97) ->  | H97: =IF('Bulk Run'!AC97="","",'Bulk Run'!AC97) ->  | I97: =IF('Bulk Run'!AD97="","",'Bulk Run'!AD97) ->  | J97: =IF('Bulk Run'!AE97="","",'Bulk Run'!AE97) ->  | K97: =IF('Bulk Run'!AH97="","",'Bulk Run'!AH97) ->  | N97: =IF('Bulk Run'!B97="","",'Bulk Run'!B97) ->  | O97: =IF('Bulk Run'!C97="","",'Bulk Run'!C97) ->  | P97: =IF(CALC_BASIS_BULK="Increase Net Pay",IF('Bulk Run'!AI97="","",'Bulk Run'!AI97),IF('Bulk Run'!AQ97="","",'Bulk Run'!AQ97)) ->  | Q97: =IF(CALC_BASIS_BULK="Increase Net Pay",IF('Bulk Run'!AJ97="","",'Bulk Run'!AJ97),IF('Bulk Run'!AR97="","",'Bulk Run'!AR97)) ->  | R97: =IF(CALC_BASIS_BULK="Increase Net Pay",IF('Bulk Run'!AM97="","",'Bulk Run'!AM97),IF('Bulk Run'!AU97="","",'Bulk Run'!AU97)) ->  | S97: =IF(CALC_BASIS_BULK="Increase Net Pay",IF('Bulk Run'!AN97="","",'Bulk Run'!AN97),IF('Bulk Run'!AV97="","",'Bulk Run'!AV97)) ->  | T97: =IF(CALC_BASIS_BULK="Increase Net Pay",IF('Bulk Run'!AO97="","",'Bulk Run'!AO97),IF('Bulk Run'!AW97="","",'Bulk Run'!AW97)) ->  | U97: =IF(CALC_BASIS_BULK="Increase Net Pay",IF('Bulk Run'!AK97="","",'Bulk Run'!AK97),IF('Bulk Run'!AS97="","",'Bulk Run'!AS97)) ->  | V97: =IF(CALC_BASIS_BULK="Increase Net Pay",IF('Bulk Run'!AL97="","",'Bulk Run'!AL97),IF('Bulk Run'!AT97="","",'Bulk Run'!AT97)) ->  | W97: =IF(CALC_BASIS_BULK="Increase Net Pay",IF('Bulk Run'!AP97="","",'Bulk Run'!AP97),IF('Bulk Run'!AX97="","",'Bulk Run'!AX97)) -> 
A98: 83 | B98: =IF('Bulk Run'!B98="","",'Bulk Run'!B98) ->  | C98: =IF('Bulk Run'!C98="","",'Bulk Run'!C98) ->  | D98: =IF('Bulk Run'!W98="","",'Bulk Run'!W98/FREQ_BULK) ->  | E98: =IF('Bulk Run'!AB98="","",'Bulk Run'!AB98) ->  | F98: =IF('Bulk Run'!AF98="","",'Bulk Run'!AF98) ->  | G98: =IF('Bulk Run'!AG98="","",'Bulk Run'!AG98) ->  | H98: =IF('Bulk Run'!AC98="","",'Bulk Run'!AC98) ->  | I98: =IF('Bulk Run'!AD98="","",'Bulk Run'!AD98) ->  | J98: =IF('Bulk Run'!AE98="","",'Bulk Run'!AE98) ->  | K98: =IF('Bulk Run'!AH98="","",'Bulk Run'!AH98) ->  | N98: =IF('Bulk Run'!B98="","",'Bulk Run'!B98) ->  | O98: =IF('Bulk Run'!C98="","",'Bulk Run'!C98) ->  | P98: =IF(CALC_BASIS_BULK="Increase Net Pay",IF('Bulk Run'!AI98="","",'Bulk Run'!AI98),IF('Bulk Run'!AQ98="","",'Bulk Run'!AQ98)) ->  | Q98: =IF(CALC_BASIS_BULK="Increase Net Pay",IF('Bulk Run'!AJ98="","",'Bulk Run'!AJ98),IF('Bulk Run'!AR98="","",'Bulk Run'!AR98)) ->  | R98: =IF(CALC_BASIS_BULK="Increase Net Pay",IF('Bulk Run'!AM98="","",'Bulk Run'!AM98),IF('Bulk Run'!AU98="","",'Bulk Run'!AU98)) ->  | S98: =IF(CALC_BASIS_BULK="Increase Net Pay",IF('Bulk Run'!AN98="","",'Bulk Run'!AN98),IF('Bulk Run'!AV98="","",'Bulk Run'!AV98)) ->  | T98: =IF(CALC_BASIS_BULK="Increase Net Pay",IF('Bulk Run'!AO98="","",'Bulk Run'!AO98),IF('Bulk Run'!AW98="","",'Bulk Run'!AW98)) ->  | U98: =IF(CALC_BASIS_BULK="Increase Net Pay",IF('Bulk Run'!AK98="","",'Bulk Run'!AK98),IF('Bulk Run'!AS98="","",'Bulk Run'!AS98)) ->  | V98: =IF(CALC_BASIS_BULK="Increase Net Pay",IF('Bulk Run'!AL98="","",'Bulk Run'!AL98),IF('Bulk Run'!AT98="","",'Bulk Run'!AT98)) ->  | W98: =IF(CALC_BASIS_BULK="Increase Net Pay",IF('Bulk Run'!AP98="","",'Bulk Run'!AP98),IF('Bulk Run'!AX98="","",'Bulk Run'!AX98)) -> 
A99: 84 | B99: =IF('Bulk Run'!B99="","",'Bulk Run'!B99) ->  | C99: =IF('Bulk Run'!C99="","",'Bulk Run'!C99) ->  | D99: =IF('Bulk Run'!W99="","",'Bulk Run'!W99/FREQ_BULK) ->  | E99: =IF('Bulk Run'!AB99="","",'Bulk Run'!AB99) ->  | F99: =IF('Bulk Run'!AF99="","",'Bulk Run'!AF99) ->  | G99: =IF('Bulk Run'!AG99="","",'Bulk Run'!AG99) ->  | H99: =IF('Bulk Run'!AC99="","",'Bulk Run'!AC99) ->  | I99: =IF('Bulk Run'!AD99="","",'Bulk Run'!AD99) ->  | J99: =IF('Bulk Run'!AE99="","",'Bulk Run'!AE99) ->  | K99: =IF('Bulk Run'!AH99="","",'Bulk Run'!AH99) ->  | N99: =IF('Bulk Run'!B99="","",'Bulk Run'!B99) ->  | O99: =IF('Bulk Run'!C99="","",'Bulk Run'!C99) ->  | P99: =IF(CALC_BASIS_BULK="Increase Net Pay",IF('Bulk Run'!AI99="","",'Bulk Run'!AI99),IF('Bulk Run'!AQ99="","",'Bulk Run'!AQ99)) ->  | Q99: =IF(CALC_BASIS_BULK="Increase Net Pay",IF('Bulk Run'!AJ99="","",'Bulk Run'!AJ99),IF('Bulk Run'!AR99="","",'Bulk Run'!AR99)) ->  | R99: =IF(CALC_BASIS_BULK="Increase Net Pay",IF('Bulk Run'!AM99="","",'Bulk Run'!AM99),IF('Bulk Run'!AU99="","",'Bulk Run'!AU99)) ->  | S99: =IF(CALC_BASIS_BULK="Increase Net Pay",IF('Bulk Run'!AN99="","",'Bulk Run'!AN99),IF('Bulk Run'!AV99="","",'Bulk Run'!AV99)) ->  | T99: =IF(CALC_BASIS_BULK="Increase Net Pay",IF('Bulk Run'!AO99="","",'Bulk Run'!AO99),IF('Bulk Run'!AW99="","",'Bulk Run'!AW99)) ->  | U99: =IF(CALC_BASIS_BULK="Increase Net Pay",IF('Bulk Run'!AK99="","",'Bulk Run'!AK99),IF('Bulk Run'!AS99="","",'Bulk Run'!AS99)) ->  | V99: =IF(CALC_BASIS_BULK="Increase Net Pay",IF('Bulk Run'!AL99="","",'Bulk Run'!AL99),IF('Bulk Run'!AT99="","",'Bulk Run'!AT99)) ->  | W99: =IF(CALC_BASIS_BULK="Increase Net Pay",IF('Bulk Run'!AP99="","",'Bulk Run'!AP99),IF('Bulk Run'!AX99="","",'Bulk Run'!AX99)) -> 
A100: 85 | B100: =IF('Bulk Run'!B100="","",'Bulk Run'!B100) ->  | C100: =IF('Bulk Run'!C100="","",'Bulk Run'!C100) ->  | D100: =IF('Bulk Run'!W100="","",'Bulk Run'!W100/FREQ_BULK) ->  | E100: =IF('Bulk Run'!AB100="","",'Bulk Run'!AB100) ->  | F100: =IF('Bulk Run'!AF100="","",'Bulk Run'!AF100) ->  | G100: =IF('Bulk Run'!AG100="","",'Bulk Run'!AG100) ->  | H100: =IF('Bulk Run'!AC100="","",'Bulk Run'!AC100) ->  | I100: =IF('Bulk Run'!AD100="","",'Bulk Run'!AD100) ->  | J100: =IF('Bulk Run'!AE100="","",'Bulk Run'!AE100) ->  | K100: =IF('Bulk Run'!AH100="","",'Bulk Run'!AH100) ->  | N100: =IF('Bulk Run'!B100="","",'Bulk Run'!B100) ->  | O100: =IF('Bulk Run'!C100="","",'Bulk Run'!C100) ->  | P100: =IF(CALC_BASIS_BULK="Increase Net Pay",IF('Bulk Run'!AI100="","",'Bulk Run'!AI100),IF('Bulk Run'!AQ100="","",'Bulk Run'!AQ100)) ->  | Q100: =IF(CALC_BASIS_BULK="Increase Net Pay",IF('Bulk Run'!AJ100="","",'Bulk Run'!AJ100),IF('Bulk Run'!AR100="","",'Bulk Run'!AR100)) ->  | R100: =IF(CALC_BASIS_BULK="Increase Net Pay",IF('Bulk Run'!AM100="","",'Bulk Run'!AM100),IF('Bulk Run'!AU100="","",'Bulk Run'!AU100)) ->  | S100: =IF(CALC_BASIS_BULK="Increase Net Pay",IF('Bulk Run'!AN100="","",'Bulk Run'!AN100),IF('Bulk Run'!AV100="","",'Bulk Run'!AV100)) ->  | T100: =IF(CALC_BASIS_BULK="Increase Net Pay",IF('Bulk Run'!AO100="","",'Bulk Run'!AO100),IF('Bulk Run'!AW100="","",'Bulk Run'!AW100)) ->  | U100: =IF(CALC_BASIS_BULK="Increase Net Pay",IF('Bulk Run'!AK100="","",'Bulk Run'!AK100),IF('Bulk Run'!AS100="","",'Bulk Run'!AS100)) ->  | V100: =IF(CALC_BASIS_BULK="Increase Net Pay",IF('Bulk Run'!AL100="","",'Bulk Run'!AL100),IF('Bulk Run'!AT100="","",'Bulk Run'!AT100)) ->  | W100: =IF(CALC_BASIS_BULK="Increase Net Pay",IF('Bulk Run'!AP100="","",'Bulk Run'!AP100),IF('Bulk Run'!AX100="","",'Bulk Run'!AX100)) -> 
A101: 86 | B101: =IF('Bulk Run'!B101="","",'Bulk Run'!B101) ->  | C101: =IF('Bulk Run'!C101="","",'Bulk Run'!C101) ->  | D101: =IF('Bulk Run'!W101="","",'Bulk Run'!W101/FREQ_BULK) ->  | E101: =IF('Bulk Run'!AB101="","",'Bulk Run'!AB101) ->  | F101: =IF('Bulk Run'!AF101="","",'Bulk Run'!AF101) ->  | G101: =IF('Bulk Run'!AG101="","",'Bulk Run'!AG101) ->  | H101: =IF('Bulk Run'!AC101="","",'Bulk Run'!AC101) ->  | I101: =IF('Bulk Run'!AD101="","",'Bulk Run'!AD101) ->  | J101: =IF('Bulk Run'!AE101="","",'Bulk Run'!AE101) ->  | K101: =IF('Bulk Run'!AH101="","",'Bulk Run'!AH101) ->  | N101: =IF('Bulk Run'!B101="","",'Bulk Run'!B101) ->  | O101: =IF('Bulk Run'!C101="","",'Bulk Run'!C101) ->  | P101: =IF(CALC_BASIS_BULK="Increase Net Pay",IF('Bulk Run'!AI101="","",'Bulk Run'!AI101),IF('Bulk Run'!AQ101="","",'Bulk Run'!AQ101)) ->  | Q101: =IF(CALC_BASIS_BULK="Increase Net Pay",IF('Bulk Run'!AJ101="","",'Bulk Run'!AJ101),IF('Bulk Run'!AR101="","",'Bulk Run'!AR101)) ->  | R101: =IF(CALC_BASIS_BULK="Increase Net Pay",IF('Bulk Run'!AM101="","",'Bulk Run'!AM101),IF('Bulk Run'!AU101="","",'Bulk Run'!AU101)) ->  | S101: =IF(CALC_BASIS_BULK="Increase Net Pay",IF('Bulk Run'!AN101="","",'Bulk Run'!AN101),IF('Bulk Run'!AV101="","",'Bulk Run'!AV101)) ->  | T101: =IF(CALC_BASIS_BULK="Increase Net Pay",IF('Bulk Run'!AO101="","",'Bulk Run'!AO101),IF('Bulk Run'!AW101="","",'Bulk Run'!AW101)) ->  | U101: =IF(CALC_BASIS_BULK="Increase Net Pay",IF('Bulk Run'!AK101="","",'Bulk Run'!AK101),IF('Bulk Run'!AS101="","",'Bulk Run'!AS101)) ->  | V101: =IF(CALC_BASIS_BULK="Increase Net Pay",IF('Bulk Run'!AL101="","",'Bulk Run'!AL101),IF('Bulk Run'!AT101="","",'Bulk Run'!AT101)) ->  | W101: =IF(CALC_BASIS_BULK="Increase Net Pay",IF('Bulk Run'!AP101="","",'Bulk Run'!AP101),IF('Bulk Run'!AX101="","",'Bulk Run'!AX101)) -> 
A102: 87 | B102: =IF('Bulk Run'!B102="","",'Bulk Run'!B102) ->  | C102: =IF('Bulk Run'!C102="","",'Bulk Run'!C102) ->  | D102: =IF('Bulk Run'!W102="","",'Bulk Run'!W102/FREQ_BULK) ->  | E102: =IF('Bulk Run'!AB102="","",'Bulk Run'!AB102) ->  | F102: =IF('Bulk Run'!AF102="","",'Bulk Run'!AF102) ->  | G102: =IF('Bulk Run'!AG102="","",'Bulk Run'!AG102) ->  | H102: =IF('Bulk Run'!AC102="","",'Bulk Run'!AC102) ->  | I102: =IF('Bulk Run'!AD102="","",'Bulk Run'!AD102) ->  | J102: =IF('Bulk Run'!AE102="","",'Bulk Run'!AE102) ->  | K102: =IF('Bulk Run'!AH102="","",'Bulk Run'!AH102) ->  | N102: =IF('Bulk Run'!B102="","",'Bulk Run'!B102) ->  | O102: =IF('Bulk Run'!C102="","",'Bulk Run'!C102) ->  | P102: =IF(CALC_BASIS_BULK="Increase Net Pay",IF('Bulk Run'!AI102="","",'Bulk Run'!AI102),IF('Bulk Run'!AQ102="","",'Bulk Run'!AQ102)) ->  | Q102: =IF(CALC_BASIS_BULK="Increase Net Pay",IF('Bulk Run'!AJ102="","",'Bulk Run'!AJ102),IF('Bulk Run'!AR102="","",'Bulk Run'!AR102)) ->  | R102: =IF(CALC_BASIS_BULK="Increase Net Pay",IF('Bulk Run'!AM102="","",'Bulk Run'!AM102),IF('Bulk Run'!AU102="","",'Bulk Run'!AU102)) ->  | S102: =IF(CALC_BASIS_BULK="Increase Net Pay",IF('Bulk Run'!AN102="","",'Bulk Run'!AN102),IF('Bulk Run'!AV102="","",'Bulk Run'!AV102)) ->  | T102: =IF(CALC_BASIS_BULK="Increase Net Pay",IF('Bulk Run'!AO102="","",'Bulk Run'!AO102),IF('Bulk Run'!AW102="","",'Bulk Run'!AW102)) ->  | U102: =IF(CALC_BASIS_BULK="Increase Net Pay",IF('Bulk Run'!AK102="","",'Bulk Run'!AK102),IF('Bulk Run'!AS102="","",'Bulk Run'!AS102)) ->  | V102: =IF(CALC_BASIS_BULK="Increase Net Pay",IF('Bulk Run'!AL102="","",'Bulk Run'!AL102),IF('Bulk Run'!AT102="","",'Bulk Run'!AT102)) ->  | W102: =IF(CALC_BASIS_BULK="Increase Net Pay",IF('Bulk Run'!AP102="","",'Bulk Run'!AP102),IF('Bulk Run'!AX102="","",'Bulk Run'!AX102)) -> 
A103: 88 | B103: =IF('Bulk Run'!B103="","",'Bulk Run'!B103) ->  | C103: =IF('Bulk Run'!C103="","",'Bulk Run'!C103) ->  | D103: =IF('Bulk Run'!W103="","",'Bulk Run'!W103/FREQ_BULK) ->  | E103: =IF('Bulk Run'!AB103="","",'Bulk Run'!AB103) ->  | F103: =IF('Bulk Run'!AF103="","",'Bulk Run'!AF103) ->  | G103: =IF('Bulk Run'!AG103="","",'Bulk Run'!AG103) ->  | H103: =IF('Bulk Run'!AC103="","",'Bulk Run'!AC103) ->  | I103: =IF('Bulk Run'!AD103="","",'Bulk Run'!AD103) ->  | J103: =IF('Bulk Run'!AE103="","",'Bulk Run'!AE103) ->  | K103: =IF('Bulk Run'!AH103="","",'Bulk Run'!AH103) ->  | N103: =IF('Bulk Run'!B103="","",'Bulk Run'!B103) ->  | O103: =IF('Bulk Run'!C103="","",'Bulk Run'!C103) ->  | P103: =IF(CALC_BASIS_BULK="Increase Net Pay",IF('Bulk Run'!AI103="","",'Bulk Run'!AI103),IF('Bulk Run'!AQ103="","",'Bulk Run'!AQ103)) ->  | Q103: =IF(CALC_BASIS_BULK="Increase Net Pay",IF('Bulk Run'!AJ103="","",'Bulk Run'!AJ103),IF('Bulk Run'!AR103="","",'Bulk Run'!AR103)) ->  | R103: =IF(CALC_BASIS_BULK="Increase Net Pay",IF('Bulk Run'!AM103="","",'Bulk Run'!AM103),IF('Bulk Run'!AU103="","",'Bulk Run'!AU103)) ->  | S103: =IF(CALC_BASIS_BULK="Increase Net Pay",IF('Bulk Run'!AN103="","",'Bulk Run'!AN103),IF('Bulk Run'!AV103="","",'Bulk Run'!AV103)) ->  | T103: =IF(CALC_BASIS_BULK="Increase Net Pay",IF('Bulk Run'!AO103="","",'Bulk Run'!AO103),IF('Bulk Run'!AW103="","",'Bulk Run'!AW103)) ->  | U103: =IF(CALC_BASIS_BULK="Increase Net Pay",IF('Bulk Run'!AK103="","",'Bulk Run'!AK103),IF('Bulk Run'!AS103="","",'Bulk Run'!AS103)) ->  | V103: =IF(CALC_BASIS_BULK="Increase Net Pay",IF('Bulk Run'!AL103="","",'Bulk Run'!AL103),IF('Bulk Run'!AT103="","",'Bulk Run'!AT103)) ->  | W103: =IF(CALC_BASIS_BULK="Increase Net Pay",IF('Bulk Run'!AP103="","",'Bulk Run'!AP103),IF('Bulk Run'!AX103="","",'Bulk Run'!AX103)) -> 
A104: 89 | B104: =IF('Bulk Run'!B104="","",'Bulk Run'!B104) ->  | C104: =IF('Bulk Run'!C104="","",'Bulk Run'!C104) ->  | D104: =IF('Bulk Run'!W104="","",'Bulk Run'!W104/FREQ_BULK) ->  | E104: =IF('Bulk Run'!AB104="","",'Bulk Run'!AB104) ->  | F104: =IF('Bulk Run'!AF104="","",'Bulk Run'!AF104) ->  | G104: =IF('Bulk Run'!AG104="","",'Bulk Run'!AG104) ->  | H104: =IF('Bulk Run'!AC104="","",'Bulk Run'!AC104) ->  | I104: =IF('Bulk Run'!AD104="","",'Bulk Run'!AD104) ->  | J104: =IF('Bulk Run'!AE104="","",'Bulk Run'!AE104) ->  | K104: =IF('Bulk Run'!AH104="","",'Bulk Run'!AH104) ->  | N104: =IF('Bulk Run'!B104="","",'Bulk Run'!B104) ->  | O104: =IF('Bulk Run'!C104="","",'Bulk Run'!C104) ->  | P104: =IF(CALC_BASIS_BULK="Increase Net Pay",IF('Bulk Run'!AI104="","",'Bulk Run'!AI104),IF('Bulk Run'!AQ104="","",'Bulk Run'!AQ104)) ->  | Q104: =IF(CALC_BASIS_BULK="Increase Net Pay",IF('Bulk Run'!AJ104="","",'Bulk Run'!AJ104),IF('Bulk Run'!AR104="","",'Bulk Run'!AR104)) ->  | R104: =IF(CALC_BASIS_BULK="Increase Net Pay",IF('Bulk Run'!AM104="","",'Bulk Run'!AM104),IF('Bulk Run'!AU104="","",'Bulk Run'!AU104)) ->  | S104: =IF(CALC_BASIS_BULK="Increase Net Pay",IF('Bulk Run'!AN104="","",'Bulk Run'!AN104),IF('Bulk Run'!AV104="","",'Bulk Run'!AV104)) ->  | T104: =IF(CALC_BASIS_BULK="Increase Net Pay",IF('Bulk Run'!AO104="","",'Bulk Run'!AO104),IF('Bulk Run'!AW104="","",'Bulk Run'!AW104)) ->  | U104: =IF(CALC_BASIS_BULK="Increase Net Pay",IF('Bulk Run'!AK104="","",'Bulk Run'!AK104),IF('Bulk Run'!AS104="","",'Bulk Run'!AS104)) ->  | V104: =IF(CALC_BASIS_BULK="Increase Net Pay",IF('Bulk Run'!AL104="","",'Bulk Run'!AL104),IF('Bulk Run'!AT104="","",'Bulk Run'!AT104)) ->  | W104: =IF(CALC_BASIS_BULK="Increase Net Pay",IF('Bulk Run'!AP104="","",'Bulk Run'!AP104),IF('Bulk Run'!AX104="","",'Bulk Run'!AX104)) -> 
A105: 90 | B105: =IF('Bulk Run'!B105="","",'Bulk Run'!B105) ->  | C105: =IF('Bulk Run'!C105="","",'Bulk Run'!C105) ->  | D105: =IF('Bulk Run'!W105="","",'Bulk Run'!W105/FREQ_BULK) ->  | E105: =IF('Bulk Run'!AB105="","",'Bulk Run'!AB105) ->  | F105: =IF('Bulk Run'!AF105="","",'Bulk Run'!AF105) ->  | G105: =IF('Bulk Run'!AG105="","",'Bulk Run'!AG105) ->  | H105: =IF('Bulk Run'!AC105="","",'Bulk Run'!AC105) ->  | I105: =IF('Bulk Run'!AD105="","",'Bulk Run'!AD105) ->  | J105: =IF('Bulk Run'!AE105="","",'Bulk Run'!AE105) ->  | K105: =IF('Bulk Run'!AH105="","",'Bulk Run'!AH105) ->  | N105: =IF('Bulk Run'!B105="","",'Bulk Run'!B105) ->  | O105: =IF('Bulk Run'!C105="","",'Bulk Run'!C105) ->  | P105: =IF(CALC_BASIS_BULK="Increase Net Pay",IF('Bulk Run'!AI105="","",'Bulk Run'!AI105),IF('Bulk Run'!AQ105="","",'Bulk Run'!AQ105)) ->  | Q105: =IF(CALC_BASIS_BULK="Increase Net Pay",IF('Bulk Run'!AJ105="","",'Bulk Run'!AJ105),IF('Bulk Run'!AR105="","",'Bulk Run'!AR105)) ->  | R105: =IF(CALC_BASIS_BULK="Increase Net Pay",IF('Bulk Run'!AM105="","",'Bulk Run'!AM105),IF('Bulk Run'!AU105="","",'Bulk Run'!AU105)) ->  | S105: =IF(CALC_BASIS_BULK="Increase Net Pay",IF('Bulk Run'!AN105="","",'Bulk Run'!AN105),IF('Bulk Run'!AV105="","",'Bulk Run'!AV105)) ->  | T105: =IF(CALC_BASIS_BULK="Increase Net Pay",IF('Bulk Run'!AO105="","",'Bulk Run'!AO105),IF('Bulk Run'!AW105="","",'Bulk Run'!AW105)) ->  | U105: =IF(CALC_BASIS_BULK="Increase Net Pay",IF('Bulk Run'!AK105="","",'Bulk Run'!AK105),IF('Bulk Run'!AS105="","",'Bulk Run'!AS105)) ->  | V105: =IF(CALC_BASIS_BULK="Increase Net Pay",IF('Bulk Run'!AL105="","",'Bulk Run'!AL105),IF('Bulk Run'!AT105="","",'Bulk Run'!AT105)) ->  | W105: =IF(CALC_BASIS_BULK="Increase Net Pay",IF('Bulk Run'!AP105="","",'Bulk Run'!AP105),IF('Bulk Run'!AX105="","",'Bulk Run'!AX105)) -> 
A106: 91 | B106: =IF('Bulk Run'!B106="","",'Bulk Run'!B106) ->  | C106: =IF('Bulk Run'!C106="","",'Bulk Run'!C106) ->  | D106: =IF('Bulk Run'!W106="","",'Bulk Run'!W106/FREQ_BULK) ->  | E106: =IF('Bulk Run'!AB106="","",'Bulk Run'!AB106) ->  | F106: =IF('Bulk Run'!AF106="","",'Bulk Run'!AF106) ->  | G106: =IF('Bulk Run'!AG106="","",'Bulk Run'!AG106) ->  | H106: =IF('Bulk Run'!AC106="","",'Bulk Run'!AC106) ->  | I106: =IF('Bulk Run'!AD106="","",'Bulk Run'!AD106) ->  | J106: =IF('Bulk Run'!AE106="","",'Bulk Run'!AE106) ->  | K106: =IF('Bulk Run'!AH106="","",'Bulk Run'!AH106) ->  | N106: =IF('Bulk Run'!B106="","",'Bulk Run'!B106) ->  | O106: =IF('Bulk Run'!C106="","",'Bulk Run'!C106) ->  | P106: =IF(CALC_BASIS_BULK="Increase Net Pay",IF('Bulk Run'!AI106="","",'Bulk Run'!AI106),IF('Bulk Run'!AQ106="","",'Bulk Run'!AQ106)) ->  | Q106: =IF(CALC_BASIS_BULK="Increase Net Pay",IF('Bulk Run'!AJ106="","",'Bulk Run'!AJ106),IF('Bulk Run'!AR106="","",'Bulk Run'!AR106)) ->  | R106: =IF(CALC_BASIS_BULK="Increase Net Pay",IF('Bulk Run'!AM106="","",'Bulk Run'!AM106),IF('Bulk Run'!AU106="","",'Bulk Run'!AU106)) ->  | S106: =IF(CALC_BASIS_BULK="Increase Net Pay",IF('Bulk Run'!AN106="","",'Bulk Run'!AN106),IF('Bulk Run'!AV106="","",'Bulk Run'!AV106)) ->  | T106: =IF(CALC_BASIS_BULK="Increase Net Pay",IF('Bulk Run'!AO106="","",'Bulk Run'!AO106),IF('Bulk Run'!AW106="","",'Bulk Run'!AW106)) ->  | U106: =IF(CALC_BASIS_BULK="Increase Net Pay",IF('Bulk Run'!AK106="","",'Bulk Run'!AK106),IF('Bulk Run'!AS106="","",'Bulk Run'!AS106)) ->  | V106: =IF(CALC_BASIS_BULK="Increase Net Pay",IF('Bulk Run'!AL106="","",'Bulk Run'!AL106),IF('Bulk Run'!AT106="","",'Bulk Run'!AT106)) ->  | W106: =IF(CALC_BASIS_BULK="Increase Net Pay",IF('Bulk Run'!AP106="","",'Bulk Run'!AP106),IF('Bulk Run'!AX106="","",'Bulk Run'!AX106)) -> 
A107: 92 | B107: =IF('Bulk Run'!B107="","",'Bulk Run'!B107) ->  | C107: =IF('Bulk Run'!C107="","",'Bulk Run'!C107) ->  | D107: =IF('Bulk Run'!W107="","",'Bulk Run'!W107/FREQ_BULK) ->  | E107: =IF('Bulk Run'!AB107="","",'Bulk Run'!AB107) ->  | F107: =IF('Bulk Run'!AF107="","",'Bulk Run'!AF107) ->  | G107: =IF('Bulk Run'!AG107="","",'Bulk Run'!AG107) ->  | H107: =IF('Bulk Run'!AC107="","",'Bulk Run'!AC107) ->  | I107: =IF('Bulk Run'!AD107="","",'Bulk Run'!AD107) ->  | J107: =IF('Bulk Run'!AE107="","",'Bulk Run'!AE107) ->  | K107: =IF('Bulk Run'!AH107="","",'Bulk Run'!AH107) ->  | N107: =IF('Bulk Run'!B107="","",'Bulk Run'!B107) ->  | O107: =IF('Bulk Run'!C107="","",'Bulk Run'!C107) ->  | P107: =IF(CALC_BASIS_BULK="Increase Net Pay",IF('Bulk Run'!AI107="","",'Bulk Run'!AI107),IF('Bulk Run'!AQ107="","",'Bulk Run'!AQ107)) ->  | Q107: =IF(CALC_BASIS_BULK="Increase Net Pay",IF('Bulk Run'!AJ107="","",'Bulk Run'!AJ107),IF('Bulk Run'!AR107="","",'Bulk Run'!AR107)) ->  | R107: =IF(CALC_BASIS_BULK="Increase Net Pay",IF('Bulk Run'!AM107="","",'Bulk Run'!AM107),IF('Bulk Run'!AU107="","",'Bulk Run'!AU107)) ->  | S107: =IF(CALC_BASIS_BULK="Increase Net Pay",IF('Bulk Run'!AN107="","",'Bulk Run'!AN107),IF('Bulk Run'!AV107="","",'Bulk Run'!AV107)) ->  | T107: =IF(CALC_BASIS_BULK="Increase Net Pay",IF('Bulk Run'!AO107="","",'Bulk Run'!AO107),IF('Bulk Run'!AW107="","",'Bulk Run'!AW107)) ->  | U107: =IF(CALC_BASIS_BULK="Increase Net Pay",IF('Bulk Run'!AK107="","",'Bulk Run'!AK107),IF('Bulk Run'!AS107="","",'Bulk Run'!AS107)) ->  | V107: =IF(CALC_BASIS_BULK="Increase Net Pay",IF('Bulk Run'!AL107="","",'Bulk Run'!AL107),IF('Bulk Run'!AT107="","",'Bulk Run'!AT107)) ->  | W107: =IF(CALC_BASIS_BULK="Increase Net Pay",IF('Bulk Run'!AP107="","",'Bulk Run'!AP107),IF('Bulk Run'!AX107="","",'Bulk Run'!AX107)) -> 
A108: 93 | B108: =IF('Bulk Run'!B108="","",'Bulk Run'!B108) ->  | C108: =IF('Bulk Run'!C108="","",'Bulk Run'!C108) ->  | D108: =IF('Bulk Run'!W108="","",'Bulk Run'!W108/FREQ_BULK) ->  | E108: =IF('Bulk Run'!AB108="","",'Bulk Run'!AB108) ->  | F108: =IF('Bulk Run'!AF108="","",'Bulk Run'!AF108) ->  | G108: =IF('Bulk Run'!AG108="","",'Bulk Run'!AG108) ->  | H108: =IF('Bulk Run'!AC108="","",'Bulk Run'!AC108) ->  | I108: =IF('Bulk Run'!AD108="","",'Bulk Run'!AD108) ->  | J108: =IF('Bulk Run'!AE108="","",'Bulk Run'!AE108) ->  | K108: =IF('Bulk Run'!AH108="","",'Bulk Run'!AH108) ->  | N108: =IF('Bulk Run'!B108="","",'Bulk Run'!B108) ->  | O108: =IF('Bulk Run'!C108="","",'Bulk Run'!C108) ->  | P108: =IF(CALC_BASIS_BULK="Increase Net Pay",IF('Bulk Run'!AI108="","",'Bulk Run'!AI108),IF('Bulk Run'!AQ108="","",'Bulk Run'!AQ108)) ->  | Q108: =IF(CALC_BASIS_BULK="Increase Net Pay",IF('Bulk Run'!AJ108="","",'Bulk Run'!AJ108),IF('Bulk Run'!AR108="","",'Bulk Run'!AR108)) ->  | R108: =IF(CALC_BASIS_BULK="Increase Net Pay",IF('Bulk Run'!AM108="","",'Bulk Run'!AM108),IF('Bulk Run'!AU108="","",'Bulk Run'!AU108)) ->  | S108: =IF(CALC_BASIS_BULK="Increase Net Pay",IF('Bulk Run'!AN108="","",'Bulk Run'!AN108),IF('Bulk Run'!AV108="","",'Bulk Run'!AV108)) ->  | T108: =IF(CALC_BASIS_BULK="Increase Net Pay",IF('Bulk Run'!AO108="","",'Bulk Run'!AO108),IF('Bulk Run'!AW108="","",'Bulk Run'!AW108)) ->  | U108: =IF(CALC_BASIS_BULK="Increase Net Pay",IF('Bulk Run'!AK108="","",'Bulk Run'!AK108),IF('Bulk Run'!AS108="","",'Bulk Run'!AS108)) ->  | V108: =IF(CALC_BASIS_BULK="Increase Net Pay",IF('Bulk Run'!AL108="","",'Bulk Run'!AL108),IF('Bulk Run'!AT108="","",'Bulk Run'!AT108)) ->  | W108: =IF(CALC_BASIS_BULK="Increase Net Pay",IF('Bulk Run'!AP108="","",'Bulk Run'!AP108),IF('Bulk Run'!AX108="","",'Bulk Run'!AX108)) -> 
A109: 94 | B109: =IF('Bulk Run'!B109="","",'Bulk Run'!B109) ->  | C109: =IF('Bulk Run'!C109="","",'Bulk Run'!C109) ->  | D109: =IF('Bulk Run'!W109="","",'Bulk Run'!W109/FREQ_BULK) ->  | E109: =IF('Bulk Run'!AB109="","",'Bulk Run'!AB109) ->  | F109: =IF('Bulk Run'!AF109="","",'Bulk Run'!AF109) ->  | G109: =IF('Bulk Run'!AG109="","",'Bulk Run'!AG109) ->  | H109: =IF('Bulk Run'!AC109="","",'Bulk Run'!AC109) ->  | I109: =IF('Bulk Run'!AD109="","",'Bulk Run'!AD109) ->  | J109: =IF('Bulk Run'!AE109="","",'Bulk Run'!AE109) ->  | K109: =IF('Bulk Run'!AH109="","",'Bulk Run'!AH109) ->  | N109: =IF('Bulk Run'!B109="","",'Bulk Run'!B109) ->  | O109: =IF('Bulk Run'!C109="","",'Bulk Run'!C109) ->  | P109: =IF(CALC_BASIS_BULK="Increase Net Pay",IF('Bulk Run'!AI109="","",'Bulk Run'!AI109),IF('Bulk Run'!AQ109="","",'Bulk Run'!AQ109)) ->  | Q109: =IF(CALC_BASIS_BULK="Increase Net Pay",IF('Bulk Run'!AJ109="","",'Bulk Run'!AJ109),IF('Bulk Run'!AR109="","",'Bulk Run'!AR109)) ->  | R109: =IF(CALC_BASIS_BULK="Increase Net Pay",IF('Bulk Run'!AM109="","",'Bulk Run'!AM109),IF('Bulk Run'!AU109="","",'Bulk Run'!AU109)) ->  | S109: =IF(CALC_BASIS_BULK="Increase Net Pay",IF('Bulk Run'!AN109="","",'Bulk Run'!AN109),IF('Bulk Run'!AV109="","",'Bulk Run'!AV109)) ->  | T109: =IF(CALC_BASIS_BULK="Increase Net Pay",IF('Bulk Run'!AO109="","",'Bulk Run'!AO109),IF('Bulk Run'!AW109="","",'Bulk Run'!AW109)) ->  | U109: =IF(CALC_BASIS_BULK="Increase Net Pay",IF('Bulk Run'!AK109="","",'Bulk Run'!AK109),IF('Bulk Run'!AS109="","",'Bulk Run'!AS109)) ->  | V109: =IF(CALC_BASIS_BULK="Increase Net Pay",IF('Bulk Run'!AL109="","",'Bulk Run'!AL109),IF('Bulk Run'!AT109="","",'Bulk Run'!AT109)) ->  | W109: =IF(CALC_BASIS_BULK="Increase Net Pay",IF('Bulk Run'!AP109="","",'Bulk Run'!AP109),IF('Bulk Run'!AX109="","",'Bulk Run'!AX109)) -> 
A110: 95 | B110: =IF('Bulk Run'!B110="","",'Bulk Run'!B110) ->  | C110: =IF('Bulk Run'!C110="","",'Bulk Run'!C110) ->  | D110: =IF('Bulk Run'!W110="","",'Bulk Run'!W110/FREQ_BULK) ->  | E110: =IF('Bulk Run'!AB110="","",'Bulk Run'!AB110) ->  | F110: =IF('Bulk Run'!AF110="","",'Bulk Run'!AF110) ->  | G110: =IF('Bulk Run'!AG110="","",'Bulk Run'!AG110) ->  | H110: =IF('Bulk Run'!AC110="","",'Bulk Run'!AC110) ->  | I110: =IF('Bulk Run'!AD110="","",'Bulk Run'!AD110) ->  | J110: =IF('Bulk Run'!AE110="","",'Bulk Run'!AE110) ->  | K110: =IF('Bulk Run'!AH110="","",'Bulk Run'!AH110) ->  | N110: =IF('Bulk Run'!B110="","",'Bulk Run'!B110) ->  | O110: =IF('Bulk Run'!C110="","",'Bulk Run'!C110) ->  | P110: =IF(CALC_BASIS_BULK="Increase Net Pay",IF('Bulk Run'!AI110="","",'Bulk Run'!AI110),IF('Bulk Run'!AQ110="","",'Bulk Run'!AQ110)) ->  | Q110: =IF(CALC_BASIS_BULK="Increase Net Pay",IF('Bulk Run'!AJ110="","",'Bulk Run'!AJ110),IF('Bulk Run'!AR110="","",'Bulk Run'!AR110)) ->  | R110: =IF(CALC_BASIS_BULK="Increase Net Pay",IF('Bulk Run'!AM110="","",'Bulk Run'!AM110),IF('Bulk Run'!AU110="","",'Bulk Run'!AU110)) ->  | S110: =IF(CALC_BASIS_BULK="Increase Net Pay",IF('Bulk Run'!AN110="","",'Bulk Run'!AN110),IF('Bulk Run'!AV110="","",'Bulk Run'!AV110)) ->  | T110: =IF(CALC_BASIS_BULK="Increase Net Pay",IF('Bulk Run'!AO110="","",'Bulk Run'!AO110),IF('Bulk Run'!AW110="","",'Bulk Run'!AW110)) ->  | U110: =IF(CALC_BASIS_BULK="Increase Net Pay",IF('Bulk Run'!AK110="","",'Bulk Run'!AK110),IF('Bulk Run'!AS110="","",'Bulk Run'!AS110)) ->  | V110: =IF(CALC_BASIS_BULK="Increase Net Pay",IF('Bulk Run'!AL110="","",'Bulk Run'!AL110),IF('Bulk Run'!AT110="","",'Bulk Run'!AT110)) ->  | W110: =IF(CALC_BASIS_BULK="Increase Net Pay",IF('Bulk Run'!AP110="","",'Bulk Run'!AP110),IF('Bulk Run'!AX110="","",'Bulk Run'!AX110)) -> 
A111: 96 | B111: =IF('Bulk Run'!B111="","",'Bulk Run'!B111) ->  | C111: =IF('Bulk Run'!C111="","",'Bulk Run'!C111) ->  | D111: =IF('Bulk Run'!W111="","",'Bulk Run'!W111/FREQ_BULK) ->  | E111: =IF('Bulk Run'!AB111="","",'Bulk Run'!AB111) ->  | F111: =IF('Bulk Run'!AF111="","",'Bulk Run'!AF111) ->  | G111: =IF('Bulk Run'!AG111="","",'Bulk Run'!AG111) ->  | H111: =IF('Bulk Run'!AC111="","",'Bulk Run'!AC111) ->  | I111: =IF('Bulk Run'!AD111="","",'Bulk Run'!AD111) ->  | J111: =IF('Bulk Run'!AE111="","",'Bulk Run'!AE111) ->  | K111: =IF('Bulk Run'!AH111="","",'Bulk Run'!AH111) ->  | N111: =IF('Bulk Run'!B111="","",'Bulk Run'!B111) ->  | O111: =IF('Bulk Run'!C111="","",'Bulk Run'!C111) ->  | P111: =IF(CALC_BASIS_BULK="Increase Net Pay",IF('Bulk Run'!AI111="","",'Bulk Run'!AI111),IF('Bulk Run'!AQ111="","",'Bulk Run'!AQ111)) ->  | Q111: =IF(CALC_BASIS_BULK="Increase Net Pay",IF('Bulk Run'!AJ111="","",'Bulk Run'!AJ111),IF('Bulk Run'!AR111="","",'Bulk Run'!AR111)) ->  | R111: =IF(CALC_BASIS_BULK="Increase Net Pay",IF('Bulk Run'!AM111="","",'Bulk Run'!AM111),IF('Bulk Run'!AU111="","",'Bulk Run'!AU111)) ->  | S111: =IF(CALC_BASIS_BULK="Increase Net Pay",IF('Bulk Run'!AN111="","",'Bulk Run'!AN111),IF('Bulk Run'!AV111="","",'Bulk Run'!AV111)) ->  | T111: =IF(CALC_BASIS_BULK="Increase Net Pay",IF('Bulk Run'!AO111="","",'Bulk Run'!AO111),IF('Bulk Run'!AW111="","",'Bulk Run'!AW111)) ->  | U111: =IF(CALC_BASIS_BULK="Increase Net Pay",IF('Bulk Run'!AK111="","",'Bulk Run'!AK111),IF('Bulk Run'!AS111="","",'Bulk Run'!AS111)) ->  | V111: =IF(CALC_BASIS_BULK="Increase Net Pay",IF('Bulk Run'!AL111="","",'Bulk Run'!AL111),IF('Bulk Run'!AT111="","",'Bulk Run'!AT111)) ->  | W111: =IF(CALC_BASIS_BULK="Increase Net Pay",IF('Bulk Run'!AP111="","",'Bulk Run'!AP111),IF('Bulk Run'!AX111="","",'Bulk Run'!AX111)) -> 
A112: 97 | B112: =IF('Bulk Run'!B112="","",'Bulk Run'!B112) ->  | C112: =IF('Bulk Run'!C112="","",'Bulk Run'!C112) ->  | D112: =IF('Bulk Run'!W112="","",'Bulk Run'!W112/FREQ_BULK) ->  | E112: =IF('Bulk Run'!AB112="","",'Bulk Run'!AB112) ->  | F112: =IF('Bulk Run'!AF112="","",'Bulk Run'!AF112) ->  | G112: =IF('Bulk Run'!AG112="","",'Bulk Run'!AG112) ->  | H112: =IF('Bulk Run'!AC112="","",'Bulk Run'!AC112) ->  | I112: =IF('Bulk Run'!AD112="","",'Bulk Run'!AD112) ->  | J112: =IF('Bulk Run'!AE112="","",'Bulk Run'!AE112) ->  | K112: =IF('Bulk Run'!AH112="","",'Bulk Run'!AH112) ->  | N112: =IF('Bulk Run'!B112="","",'Bulk Run'!B112) ->  | O112: =IF('Bulk Run'!C112="","",'Bulk Run'!C112) ->  | P112: =IF(CALC_BASIS_BULK="Increase Net Pay",IF('Bulk Run'!AI112="","",'Bulk Run'!AI112),IF('Bulk Run'!AQ112="","",'Bulk Run'!AQ112)) ->  | Q112: =IF(CALC_BASIS_BULK="Increase Net Pay",IF('Bulk Run'!AJ112="","",'Bulk Run'!AJ112),IF('Bulk Run'!AR112="","",'Bulk Run'!AR112)) ->  | R112: =IF(CALC_BASIS_BULK="Increase Net Pay",IF('Bulk Run'!AM112="","",'Bulk Run'!AM112),IF('Bulk Run'!AU112="","",'Bulk Run'!AU112)) ->  | S112: =IF(CALC_BASIS_BULK="Increase Net Pay",IF('Bulk Run'!AN112="","",'Bulk Run'!AN112),IF('Bulk Run'!AV112="","",'Bulk Run'!AV112)) ->  | T112: =IF(CALC_BASIS_BULK="Increase Net Pay",IF('Bulk Run'!AO112="","",'Bulk Run'!AO112),IF('Bulk Run'!AW112="","",'Bulk Run'!AW112)) ->  | U112: =IF(CALC_BASIS_BULK="Increase Net Pay",IF('Bulk Run'!AK112="","",'Bulk Run'!AK112),IF('Bulk Run'!AS112="","",'Bulk Run'!AS112)) ->  | V112: =IF(CALC_BASIS_BULK="Increase Net Pay",IF('Bulk Run'!AL112="","",'Bulk Run'!AL112),IF('Bulk Run'!AT112="","",'Bulk Run'!AT112)) ->  | W112: =IF(CALC_BASIS_BULK="Increase Net Pay",IF('Bulk Run'!AP112="","",'Bulk Run'!AP112),IF('Bulk Run'!AX112="","",'Bulk Run'!AX112)) -> 
A113: 98 | B113: =IF('Bulk Run'!B113="","",'Bulk Run'!B113) ->  | C113: =IF('Bulk Run'!C113="","",'Bulk Run'!C113) ->  | D113: =IF('Bulk Run'!W113="","",'Bulk Run'!W113/FREQ_BULK) ->  | E113: =IF('Bulk Run'!AB113="","",'Bulk Run'!AB113) ->  | F113: =IF('Bulk Run'!AF113="","",'Bulk Run'!AF113) ->  | G113: =IF('Bulk Run'!AG113="","",'Bulk Run'!AG113) ->  | H113: =IF('Bulk Run'!AC113="","",'Bulk Run'!AC113) ->  | I113: =IF('Bulk Run'!AD113="","",'Bulk Run'!AD113) ->  | J113: =IF('Bulk Run'!AE113="","",'Bulk Run'!AE113) ->  | K113: =IF('Bulk Run'!AH113="","",'Bulk Run'!AH113) ->  | N113: =IF('Bulk Run'!B113="","",'Bulk Run'!B113) ->  | O113: =IF('Bulk Run'!C113="","",'Bulk Run'!C113) ->  | P113: =IF(CALC_BASIS_BULK="Increase Net Pay",IF('Bulk Run'!AI113="","",'Bulk Run'!AI113),IF('Bulk Run'!AQ113="","",'Bulk Run'!AQ113)) ->  | Q113: =IF(CALC_BASIS_BULK="Increase Net Pay",IF('Bulk Run'!AJ113="","",'Bulk Run'!AJ113),IF('Bulk Run'!AR113="","",'Bulk Run'!AR113)) ->  | R113: =IF(CALC_BASIS_BULK="Increase Net Pay",IF('Bulk Run'!AM113="","",'Bulk Run'!AM113),IF('Bulk Run'!AU113="","",'Bulk Run'!AU113)) ->  | S113: =IF(CALC_BASIS_BULK="Increase Net Pay",IF('Bulk Run'!AN113="","",'Bulk Run'!AN113),IF('Bulk Run'!AV113="","",'Bulk Run'!AV113)) ->  | T113: =IF(CALC_BASIS_BULK="Increase Net Pay",IF('Bulk Run'!AO113="","",'Bulk Run'!AO113),IF('Bulk Run'!AW113="","",'Bulk Run'!AW113)) ->  | U113: =IF(CALC_BASIS_BULK="Increase Net Pay",IF('Bulk Run'!AK113="","",'Bulk Run'!AK113),IF('Bulk Run'!AS113="","",'Bulk Run'!AS113)) ->  | V113: =IF(CALC_BASIS_BULK="Increase Net Pay",IF('Bulk Run'!AL113="","",'Bulk Run'!AL113),IF('Bulk Run'!AT113="","",'Bulk Run'!AT113)) ->  | W113: =IF(CALC_BASIS_BULK="Increase Net Pay",IF('Bulk Run'!AP113="","",'Bulk Run'!AP113),IF('Bulk Run'!AX113="","",'Bulk Run'!AX113)) -> 
A114: 99 | B114: =IF('Bulk Run'!B114="","",'Bulk Run'!B114) ->  | C114: =IF('Bulk Run'!C114="","",'Bulk Run'!C114) ->  | D114: =IF('Bulk Run'!W114="","",'Bulk Run'!W114/FREQ_BULK) ->  | E114: =IF('Bulk Run'!AB114="","",'Bulk Run'!AB114) ->  | F114: =IF('Bulk Run'!AF114="","",'Bulk Run'!AF114) ->  | G114: =IF('Bulk Run'!AG114="","",'Bulk Run'!AG114) ->  | H114: =IF('Bulk Run'!AC114="","",'Bulk Run'!AC114) ->  | I114: =IF('Bulk Run'!AD114="","",'Bulk Run'!AD114) ->  | J114: =IF('Bulk Run'!AE114="","",'Bulk Run'!AE114) ->  | K114: =IF('Bulk Run'!AH114="","",'Bulk Run'!AH114) ->  | N114: =IF('Bulk Run'!B114="","",'Bulk Run'!B114) ->  | O114: =IF('Bulk Run'!C114="","",'Bulk Run'!C114) ->  | P114: =IF(CALC_BASIS_BULK="Increase Net Pay",IF('Bulk Run'!AI114="","",'Bulk Run'!AI114),IF('Bulk Run'!AQ114="","",'Bulk Run'!AQ114)) ->  | Q114: =IF(CALC_BASIS_BULK="Increase Net Pay",IF('Bulk Run'!AJ114="","",'Bulk Run'!AJ114),IF('Bulk Run'!AR114="","",'Bulk Run'!AR114)) ->  | R114: =IF(CALC_BASIS_BULK="Increase Net Pay",IF('Bulk Run'!AM114="","",'Bulk Run'!AM114),IF('Bulk Run'!AU114="","",'Bulk Run'!AU114)) ->  | S114: =IF(CALC_BASIS_BULK="Increase Net Pay",IF('Bulk Run'!AN114="","",'Bulk Run'!AN114),IF('Bulk Run'!AV114="","",'Bulk Run'!AV114)) ->  | T114: =IF(CALC_BASIS_BULK="Increase Net Pay",IF('Bulk Run'!AO114="","",'Bulk Run'!AO114),IF('Bulk Run'!AW114="","",'Bulk Run'!AW114)) ->  | U114: =IF(CALC_BASIS_BULK="Increase Net Pay",IF('Bulk Run'!AK114="","",'Bulk Run'!AK114),IF('Bulk Run'!AS114="","",'Bulk Run'!AS114)) ->  | V114: =IF(CALC_BASIS_BULK="Increase Net Pay",IF('Bulk Run'!AL114="","",'Bulk Run'!AL114),IF('Bulk Run'!AT114="","",'Bulk Run'!AT114)) ->  | W114: =IF(CALC_BASIS_BULK="Increase Net Pay",IF('Bulk Run'!AP114="","",'Bulk Run'!AP114),IF('Bulk Run'!AX114="","",'Bulk Run'!AX114)) -> 
A115: 100 | B115: =IF('Bulk Run'!B115="","",'Bulk Run'!B115) ->  | C115: =IF('Bulk Run'!C115="","",'Bulk Run'!C115) ->  | D115: =IF('Bulk Run'!W115="","",'Bulk Run'!W115/FREQ_BULK) ->  | E115: =IF('Bulk Run'!AB115="","",'Bulk Run'!AB115) ->  | F115: =IF('Bulk Run'!AF115="","",'Bulk Run'!AF115) ->  | G115: =IF('Bulk Run'!AG115="","",'Bulk Run'!AG115) ->  | H115: =IF('Bulk Run'!AC115="","",'Bulk Run'!AC115) ->  | I115: =IF('Bulk Run'!AD115="","",'Bulk Run'!AD115) ->  | J115: =IF('Bulk Run'!AE115="","",'Bulk Run'!AE115) ->  | K115: =IF('Bulk Run'!AH115="","",'Bulk Run'!AH115) ->  | N115: =IF('Bulk Run'!B115="","",'Bulk Run'!B115) ->  | O115: =IF('Bulk Run'!C115="","",'Bulk Run'!C115) ->  | P115: =IF(CALC_BASIS_BULK="Increase Net Pay",IF('Bulk Run'!AI115="","",'Bulk Run'!AI115),IF('Bulk Run'!AQ115="","",'Bulk Run'!AQ115)) ->  | Q115: =IF(CALC_BASIS_BULK="Increase Net Pay",IF('Bulk Run'!AJ115="","",'Bulk Run'!AJ115),IF('Bulk Run'!AR115="","",'Bulk Run'!AR115)) ->  | R115: =IF(CALC_BASIS_BULK="Increase Net Pay",IF('Bulk Run'!AM115="","",'Bulk Run'!AM115),IF('Bulk Run'!AU115="","",'Bulk Run'!AU115)) ->  | S115: =IF(CALC_BASIS_BULK="Increase Net Pay",IF('Bulk Run'!AN115="","",'Bulk Run'!AN115),IF('Bulk Run'!AV115="","",'Bulk Run'!AV115)) ->  | T115: =IF(CALC_BASIS_BULK="Increase Net Pay",IF('Bulk Run'!AO115="","",'Bulk Run'!AO115),IF('Bulk Run'!AW115="","",'Bulk Run'!AW115)) ->  | U115: =IF(CALC_BASIS_BULK="Increase Net Pay",IF('Bulk Run'!AK115="","",'Bulk Run'!AK115),IF('Bulk Run'!AS115="","",'Bulk Run'!AS115)) ->  | V115: =IF(CALC_BASIS_BULK="Increase Net Pay",IF('Bulk Run'!AL115="","",'Bulk Run'!AL115),IF('Bulk Run'!AT115="","",'Bulk Run'!AT115)) ->  | W115: =IF(CALC_BASIS_BULK="Increase Net Pay",IF('Bulk Run'!AP115="","",'Bulk Run'!AP115),IF('Bulk Run'!AX115="","",'Bulk Run'!AX115)) -> 
A116: 101 | B116: =IF('Bulk Run'!B116="","",'Bulk Run'!B116) ->  | C116: =IF('Bulk Run'!C116="","",'Bulk Run'!C116) ->  | D116: =IF('Bulk Run'!W116="","",'Bulk Run'!W116/FREQ_BULK) ->  | E116: =IF('Bulk Run'!AB116="","",'Bulk Run'!AB116) ->  | F116: =IF('Bulk Run'!AF116="","",'Bulk Run'!AF116) ->  | G116: =IF('Bulk Run'!AG116="","",'Bulk Run'!AG116) ->  | H116: =IF('Bulk Run'!AC116="","",'Bulk Run'!AC116) ->  | I116: =IF('Bulk Run'!AD116="","",'Bulk Run'!AD116) ->  | J116: =IF('Bulk Run'!AE116="","",'Bulk Run'!AE116) ->  | K116: =IF('Bulk Run'!AH116="","",'Bulk Run'!AH116) ->  | N116: =IF('Bulk Run'!B116="","",'Bulk Run'!B116) ->  | O116: =IF('Bulk Run'!C116="","",'Bulk Run'!C116) ->  | P116: =IF(CALC_BASIS_BULK="Increase Net Pay",IF('Bulk Run'!AI116="","",'Bulk Run'!AI116),IF('Bulk Run'!AQ116="","",'Bulk Run'!AQ116)) ->  | Q116: =IF(CALC_BASIS_BULK="Increase Net Pay",IF('Bulk Run'!AJ116="","",'Bulk Run'!AJ116),IF('Bulk Run'!AR116="","",'Bulk Run'!AR116)) ->  | R116: =IF(CALC_BASIS_BULK="Increase Net Pay",IF('Bulk Run'!AM116="","",'Bulk Run'!AM116),IF('Bulk Run'!AU116="","",'Bulk Run'!AU116)) ->  | S116: =IF(CALC_BASIS_BULK="Increase Net Pay",IF('Bulk Run'!AN116="","",'Bulk Run'!AN116),IF('Bulk Run'!AV116="","",'Bulk Run'!AV116)) ->  | T116: =IF(CALC_BASIS_BULK="Increase Net Pay",IF('Bulk Run'!AO116="","",'Bulk Run'!AO116),IF('Bulk Run'!AW116="","",'Bulk Run'!AW116)) ->  | U116: =IF(CALC_BASIS_BULK="Increase Net Pay",IF('Bulk Run'!AK116="","",'Bulk Run'!AK116),IF('Bulk Run'!AS116="","",'Bulk Run'!AS116)) ->  | V116: =IF(CALC_BASIS_BULK="Increase Net Pay",IF('Bulk Run'!AL116="","",'Bulk Run'!AL116),IF('Bulk Run'!AT116="","",'Bulk Run'!AT116)) ->  | W116: =IF(CALC_BASIS_BULK="Increase Net Pay",IF('Bulk Run'!AP116="","",'Bulk Run'!AP116),IF('Bulk Run'!AX116="","",'Bulk Run'!AX116)) -> 
A117: 102 | B117: =IF('Bulk Run'!B117="","",'Bulk Run'!B117) ->  | C117: =IF('Bulk Run'!C117="","",'Bulk Run'!C117) ->  | D117: =IF('Bulk Run'!W117="","",'Bulk Run'!W117/FREQ_BULK) ->  | E117: =IF('Bulk Run'!AB117="","",'Bulk Run'!AB117) ->  | F117: =IF('Bulk Run'!AF117="","",'Bulk Run'!AF117) ->  | G117: =IF('Bulk Run'!AG117="","",'Bulk Run'!AG117) ->  | H117: =IF('Bulk Run'!AC117="","",'Bulk Run'!AC117) ->  | I117: =IF('Bulk Run'!AD117="","",'Bulk Run'!AD117) ->  | J117: =IF('Bulk Run'!AE117="","",'Bulk Run'!AE117) ->  | K117: =IF('Bulk Run'!AH117="","",'Bulk Run'!AH117) ->  | N117: =IF('Bulk Run'!B117="","",'Bulk Run'!B117) ->  | O117: =IF('Bulk Run'!C117="","",'Bulk Run'!C117) ->  | P117: =IF(CALC_BASIS_BULK="Increase Net Pay",IF('Bulk Run'!AI117="","",'Bulk Run'!AI117),IF('Bulk Run'!AQ117="","",'Bulk Run'!AQ117)) ->  | Q117: =IF(CALC_BASIS_BULK="Increase Net Pay",IF('Bulk Run'!AJ117="","",'Bulk Run'!AJ117),IF('Bulk Run'!AR117="","",'Bulk Run'!AR117)) ->  | R117: =IF(CALC_BASIS_BULK="Increase Net Pay",IF('Bulk Run'!AM117="","",'Bulk Run'!AM117),IF('Bulk Run'!AU117="","",'Bulk Run'!AU117)) ->  | S117: =IF(CALC_BASIS_BULK="Increase Net Pay",IF('Bulk Run'!AN117="","",'Bulk Run'!AN117),IF('Bulk Run'!AV117="","",'Bulk Run'!AV117)) ->  | T117: =IF(CALC_BASIS_BULK="Increase Net Pay",IF('Bulk Run'!AO117="","",'Bulk Run'!AO117),IF('Bulk Run'!AW117="","",'Bulk Run'!AW117)) ->  | U117: =IF(CALC_BASIS_BULK="Increase Net Pay",IF('Bulk Run'!AK117="","",'Bulk Run'!AK117),IF('Bulk Run'!AS117="","",'Bulk Run'!AS117)) ->  | V117: =IF(CALC_BASIS_BULK="Increase Net Pay",IF('Bulk Run'!AL117="","",'Bulk Run'!AL117),IF('Bulk Run'!AT117="","",'Bulk Run'!AT117)) ->  | W117: =IF(CALC_BASIS_BULK="Increase Net Pay",IF('Bulk Run'!AP117="","",'Bulk Run'!AP117),IF('Bulk Run'!AX117="","",'Bulk Run'!AX117)) -> 
A118: 103 | B118: =IF('Bulk Run'!B118="","",'Bulk Run'!B118) ->  | C118: =IF('Bulk Run'!C118="","",'Bulk Run'!C118) ->  | D118: =IF('Bulk Run'!W118="","",'Bulk Run'!W118/FREQ_BULK) ->  | E118: =IF('Bulk Run'!AB118="","",'Bulk Run'!AB118) ->  | F118: =IF('Bulk Run'!AF118="","",'Bulk Run'!AF118) ->  | G118: =IF('Bulk Run'!AG118="","",'Bulk Run'!AG118) ->  | H118: =IF('Bulk Run'!AC118="","",'Bulk Run'!AC118) ->  | I118: =IF('Bulk Run'!AD118="","",'Bulk Run'!AD118) ->  | J118: =IF('Bulk Run'!AE118="","",'Bulk Run'!AE118) ->  | K118: =IF('Bulk Run'!AH118="","",'Bulk Run'!AH118) ->  | N118: =IF('Bulk Run'!B118="","",'Bulk Run'!B118) ->  | O118: =IF('Bulk Run'!C118="","",'Bulk Run'!C118) ->  | P118: =IF(CALC_BASIS_BULK="Increase Net Pay",IF('Bulk Run'!AI118="","",'Bulk Run'!AI118),IF('Bulk Run'!AQ118="","",'Bulk Run'!AQ118)) ->  | Q118: =IF(CALC_BASIS_BULK="Increase Net Pay",IF('Bulk Run'!AJ118="","",'Bulk Run'!AJ118),IF('Bulk Run'!AR118="","",'Bulk Run'!AR118)) ->  | R118: =IF(CALC_BASIS_BULK="Increase Net Pay",IF('Bulk Run'!AM118="","",'Bulk Run'!AM118),IF('Bulk Run'!AU118="","",'Bulk Run'!AU118)) ->  | S118: =IF(CALC_BASIS_BULK="Increase Net Pay",IF('Bulk Run'!AN118="","",'Bulk Run'!AN118),IF('Bulk Run'!AV118="","",'Bulk Run'!AV118)) ->  | T118: =IF(CALC_BASIS_BULK="Increase Net Pay",IF('Bulk Run'!AO118="","",'Bulk Run'!AO118),IF('Bulk Run'!AW118="","",'Bulk Run'!AW118)) ->  | U118: =IF(CALC_BASIS_BULK="Increase Net Pay",IF('Bulk Run'!AK118="","",'Bulk Run'!AK118),IF('Bulk Run'!AS118="","",'Bulk Run'!AS118)) ->  | V118: =IF(CALC_BASIS_BULK="Increase Net Pay",IF('Bulk Run'!AL118="","",'Bulk Run'!AL118),IF('Bulk Run'!AT118="","",'Bulk Run'!AT118)) ->  | W118: =IF(CALC_BASIS_BULK="Increase Net Pay",IF('Bulk Run'!AP118="","",'Bulk Run'!AP118),IF('Bulk Run'!AX118="","",'Bulk Run'!AX118)) -> 
A119: 104 | B119: =IF('Bulk Run'!B119="","",'Bulk Run'!B119) ->  | C119: =IF('Bulk Run'!C119="","",'Bulk Run'!C119) ->  | D119: =IF('Bulk Run'!W119="","",'Bulk Run'!W119/FREQ_BULK) ->  | E119: =IF('Bulk Run'!AB119="","",'Bulk Run'!AB119) ->  | F119: =IF('Bulk Run'!AF119="","",'Bulk Run'!AF119) ->  | G119: =IF('Bulk Run'!AG119="","",'Bulk Run'!AG119) ->  | H119: =IF('Bulk Run'!AC119="","",'Bulk Run'!AC119) ->  | I119: =IF('Bulk Run'!AD119="","",'Bulk Run'!AD119) ->  | J119: =IF('Bulk Run'!AE119="","",'Bulk Run'!AE119) ->  | K119: =IF('Bulk Run'!AH119="","",'Bulk Run'!AH119) ->  | N119: =IF('Bulk Run'!B119="","",'Bulk Run'!B119) ->  | O119: =IF('Bulk Run'!C119="","",'Bulk Run'!C119) ->  | P119: =IF(CALC_BASIS_BULK="Increase Net Pay",IF('Bulk Run'!AI119="","",'Bulk Run'!AI119),IF('Bulk Run'!AQ119="","",'Bulk Run'!AQ119)) ->  | Q119: =IF(CALC_BASIS_BULK="Increase Net Pay",IF('Bulk Run'!AJ119="","",'Bulk Run'!AJ119),IF('Bulk Run'!AR119="","",'Bulk Run'!AR119)) ->  | R119: =IF(CALC_BASIS_BULK="Increase Net Pay",IF('Bulk Run'!AM119="","",'Bulk Run'!AM119),IF('Bulk Run'!AU119="","",'Bulk Run'!AU119)) ->  | S119: =IF(CALC_BASIS_BULK="Increase Net Pay",IF('Bulk Run'!AN119="","",'Bulk Run'!AN119),IF('Bulk Run'!AV119="","",'Bulk Run'!AV119)) ->  | T119: =IF(CALC_BASIS_BULK="Increase Net Pay",IF('Bulk Run'!AO119="","",'Bulk Run'!AO119),IF('Bulk Run'!AW119="","",'Bulk Run'!AW119)) ->  | U119: =IF(CALC_BASIS_BULK="Increase Net Pay",IF('Bulk Run'!AK119="","",'Bulk Run'!AK119),IF('Bulk Run'!AS119="","",'Bulk Run'!AS119)) ->  | V119: =IF(CALC_BASIS_BULK="Increase Net Pay",IF('Bulk Run'!AL119="","",'Bulk Run'!AL119),IF('Bulk Run'!AT119="","",'Bulk Run'!AT119)) ->  | W119: =IF(CALC_BASIS_BULK="Increase Net Pay",IF('Bulk Run'!AP119="","",'Bulk Run'!AP119),IF('Bulk Run'!AX119="","",'Bulk Run'!AX119)) -> 
A120: 105 | B120: =IF('Bulk Run'!B120="","",'Bulk Run'!B120) ->  | C120: =IF('Bulk Run'!C120="","",'Bulk Run'!C120) ->  | D120: =IF('Bulk Run'!W120="","",'Bulk Run'!W120/FREQ_BULK) ->  | E120: =IF('Bulk Run'!AB120="","",'Bulk Run'!AB120) ->  | F120: =IF('Bulk Run'!AF120="","",'Bulk Run'!AF120) ->  | G120: =IF('Bulk Run'!AG120="","",'Bulk Run'!AG120) ->  | H120: =IF('Bulk Run'!AC120="","",'Bulk Run'!AC120) ->  | I120: =IF('Bulk Run'!AD120="","",'Bulk Run'!AD120) ->  | J120: =IF('Bulk Run'!AE120="","",'Bulk Run'!AE120) ->  | K120: =IF('Bulk Run'!AH120="","",'Bulk Run'!AH120) ->  | N120: =IF('Bulk Run'!B120="","",'Bulk Run'!B120) ->  | O120: =IF('Bulk Run'!C120="","",'Bulk Run'!C120) ->  | P120: =IF(CALC_BASIS_BULK="Increase Net Pay",IF('Bulk Run'!AI120="","",'Bulk Run'!AI120),IF('Bulk Run'!AQ120="","",'Bulk Run'!AQ120)) ->  | Q120: =IF(CALC_BASIS_BULK="Increase Net Pay",IF('Bulk Run'!AJ120="","",'Bulk Run'!AJ120),IF('Bulk Run'!AR120="","",'Bulk Run'!AR120)) ->  | R120: =IF(CALC_BASIS_BULK="Increase Net Pay",IF('Bulk Run'!AM120="","",'Bulk Run'!AM120),IF('Bulk Run'!AU120="","",'Bulk Run'!AU120)) ->  | S120: =IF(CALC_BASIS_BULK="Increase Net Pay",IF('Bulk Run'!AN120="","",'Bulk Run'!AN120),IF('Bulk Run'!AV120="","",'Bulk Run'!AV120)) ->  | T120: =IF(CALC_BASIS_BULK="Increase Net Pay",IF('Bulk Run'!AO120="","",'Bulk Run'!AO120),IF('Bulk Run'!AW120="","",'Bulk Run'!AW120)) ->  | U120: =IF(CALC_BASIS_BULK="Increase Net Pay",IF('Bulk Run'!AK120="","",'Bulk Run'!AK120),IF('Bulk Run'!AS120="","",'Bulk Run'!AS120)) ->  | V120: =IF(CALC_BASIS_BULK="Increase Net Pay",IF('Bulk Run'!AL120="","",'Bulk Run'!AL120),IF('Bulk Run'!AT120="","",'Bulk Run'!AT120)) ->  | W120: =IF(CALC_BASIS_BULK="Increase Net Pay",IF('Bulk Run'!AP120="","",'Bulk Run'!AP120),IF('Bulk Run'!AX120="","",'Bulk Run'!AX120)) -> 
A121: 106 | B121: =IF('Bulk Run'!B121="","",'Bulk Run'!B121) ->  | C121: =IF('Bulk Run'!C121="","",'Bulk Run'!C121) ->  | D121: =IF('Bulk Run'!W121="","",'Bulk Run'!W121/FREQ_BULK) ->  | E121: =IF('Bulk Run'!AB121="","",'Bulk Run'!AB121) ->  | F121: =IF('Bulk Run'!AF121="","",'Bulk Run'!AF121) ->  | G121: =IF('Bulk Run'!AG121="","",'Bulk Run'!AG121) ->  | H121: =IF('Bulk Run'!AC121="","",'Bulk Run'!AC121) ->  | I121: =IF('Bulk Run'!AD121="","",'Bulk Run'!AD121) ->  | J121: =IF('Bulk Run'!AE121="","",'Bulk Run'!AE121) ->  | K121: =IF('Bulk Run'!AH121="","",'Bulk Run'!AH121) ->  | N121: =IF('Bulk Run'!B121="","",'Bulk Run'!B121) ->  | O121: =IF('Bulk Run'!C121="","",'Bulk Run'!C121) ->  | P121: =IF(CALC_BASIS_BULK="Increase Net Pay",IF('Bulk Run'!AI121="","",'Bulk Run'!AI121),IF('Bulk Run'!AQ121="","",'Bulk Run'!AQ121)) ->  | Q121: =IF(CALC_BASIS_BULK="Increase Net Pay",IF('Bulk Run'!AJ121="","",'Bulk Run'!AJ121),IF('Bulk Run'!AR121="","",'Bulk Run'!AR121)) ->  | R121: =IF(CALC_BASIS_BULK="Increase Net Pay",IF('Bulk Run'!AM121="","",'Bulk Run'!AM121),IF('Bulk Run'!AU121="","",'Bulk Run'!AU121)) ->  | S121: =IF(CALC_BASIS_BULK="Increase Net Pay",IF('Bulk Run'!AN121="","",'Bulk Run'!AN121),IF('Bulk Run'!AV121="","",'Bulk Run'!AV121)) ->  | T121: =IF(CALC_BASIS_BULK="Increase Net Pay",IF('Bulk Run'!AO121="","",'Bulk Run'!AO121),IF('Bulk Run'!AW121="","",'Bulk Run'!AW121)) ->  | U121: =IF(CALC_BASIS_BULK="Increase Net Pay",IF('Bulk Run'!AK121="","",'Bulk Run'!AK121),IF('Bulk Run'!AS121="","",'Bulk Run'!AS121)) ->  | V121: =IF(CALC_BASIS_BULK="Increase Net Pay",IF('Bulk Run'!AL121="","",'Bulk Run'!AL121),IF('Bulk Run'!AT121="","",'Bulk Run'!AT121)) ->  | W121: =IF(CALC_BASIS_BULK="Increase Net Pay",IF('Bulk Run'!AP121="","",'Bulk Run'!AP121),IF('Bulk Run'!AX121="","",'Bulk Run'!AX121)) -> 
A122: 107 | B122: =IF('Bulk Run'!B122="","",'Bulk Run'!B122) ->  | C122: =IF('Bulk Run'!C122="","",'Bulk Run'!C122) ->  | D122: =IF('Bulk Run'!W122="","",'Bulk Run'!W122/FREQ_BULK) ->  | E122: =IF('Bulk Run'!AB122="","",'Bulk Run'!AB122) ->  | F122: =IF('Bulk Run'!AF122="","",'Bulk Run'!AF122) ->  | G122: =IF('Bulk Run'!AG122="","",'Bulk Run'!AG122) ->  | H122: =IF('Bulk Run'!AC122="","",'Bulk Run'!AC122) ->  | I122: =IF('Bulk Run'!AD122="","",'Bulk Run'!AD122) ->  | J122: =IF('Bulk Run'!AE122="","",'Bulk Run'!AE122) ->  | K122: =IF('Bulk Run'!AH122="","",'Bulk Run'!AH122) ->  | N122: =IF('Bulk Run'!B122="","",'Bulk Run'!B122) ->  | O122: =IF('Bulk Run'!C122="","",'Bulk Run'!C122) ->  | P122: =IF(CALC_BASIS_BULK="Increase Net Pay",IF('Bulk Run'!AI122="","",'Bulk Run'!AI122),IF('Bulk Run'!AQ122="","",'Bulk Run'!AQ122)) ->  | Q122: =IF(CALC_BASIS_BULK="Increase Net Pay",IF('Bulk Run'!AJ122="","",'Bulk Run'!AJ122),IF('Bulk Run'!AR122="","",'Bulk Run'!AR122)) ->  | R122: =IF(CALC_BASIS_BULK="Increase Net Pay",IF('Bulk Run'!AM122="","",'Bulk Run'!AM122),IF('Bulk Run'!AU122="","",'Bulk Run'!AU122)) ->  | S122: =IF(CALC_BASIS_BULK="Increase Net Pay",IF('Bulk Run'!AN122="","",'Bulk Run'!AN122),IF('Bulk Run'!AV122="","",'Bulk Run'!AV122)) ->  | T122: =IF(CALC_BASIS_BULK="Increase Net Pay",IF('Bulk Run'!AO122="","",'Bulk Run'!AO122),IF('Bulk Run'!AW122="","",'Bulk Run'!AW122)) ->  | U122: =IF(CALC_BASIS_BULK="Increase Net Pay",IF('Bulk Run'!AK122="","",'Bulk Run'!AK122),IF('Bulk Run'!AS122="","",'Bulk Run'!AS122)) ->  | V122: =IF(CALC_BASIS_BULK="Increase Net Pay",IF('Bulk Run'!AL122="","",'Bulk Run'!AL122),IF('Bulk Run'!AT122="","",'Bulk Run'!AT122)) ->  | W122: =IF(CALC_BASIS_BULK="Increase Net Pay",IF('Bulk Run'!AP122="","",'Bulk Run'!AP122),IF('Bulk Run'!AX122="","",'Bulk Run'!AX122)) -> 
A123: 108 | B123: =IF('Bulk Run'!B123="","",'Bulk Run'!B123) ->  | C123: =IF('Bulk Run'!C123="","",'Bulk Run'!C123) ->  | D123: =IF('Bulk Run'!W123="","",'Bulk Run'!W123/FREQ_BULK) ->  | E123: =IF('Bulk Run'!AB123="","",'Bulk Run'!AB123) ->  | F123: =IF('Bulk Run'!AF123="","",'Bulk Run'!AF123) ->  | G123: =IF('Bulk Run'!AG123="","",'Bulk Run'!AG123) ->  | H123: =IF('Bulk Run'!AC123="","",'Bulk Run'!AC123) ->  | I123: =IF('Bulk Run'!AD123="","",'Bulk Run'!AD123) ->  | J123: =IF('Bulk Run'!AE123="","",'Bulk Run'!AE123) ->  | K123: =IF('Bulk Run'!AH123="","",'Bulk Run'!AH123) ->  | N123: =IF('Bulk Run'!B123="","",'Bulk Run'!B123) ->  | O123: =IF('Bulk Run'!C123="","",'Bulk Run'!C123) ->  | P123: =IF(CALC_BASIS_BULK="Increase Net Pay",IF('Bulk Run'!AI123="","",'Bulk Run'!AI123),IF('Bulk Run'!AQ123="","",'Bulk Run'!AQ123)) ->  | Q123: =IF(CALC_BASIS_BULK="Increase Net Pay",IF('Bulk Run'!AJ123="","",'Bulk Run'!AJ123),IF('Bulk Run'!AR123="","",'Bulk Run'!AR123)) ->  | R123: =IF(CALC_BASIS_BULK="Increase Net Pay",IF('Bulk Run'!AM123="","",'Bulk Run'!AM123),IF('Bulk Run'!AU123="","",'Bulk Run'!AU123)) ->  | S123: =IF(CALC_BASIS_BULK="Increase Net Pay",IF('Bulk Run'!AN123="","",'Bulk Run'!AN123),IF('Bulk Run'!AV123="","",'Bulk Run'!AV123)) ->  | T123: =IF(CALC_BASIS_BULK="Increase Net Pay",IF('Bulk Run'!AO123="","",'Bulk Run'!AO123),IF('Bulk Run'!AW123="","",'Bulk Run'!AW123)) ->  | U123: =IF(CALC_BASIS_BULK="Increase Net Pay",IF('Bulk Run'!AK123="","",'Bulk Run'!AK123),IF('Bulk Run'!AS123="","",'Bulk Run'!AS123)) ->  | V123: =IF(CALC_BASIS_BULK="Increase Net Pay",IF('Bulk Run'!AL123="","",'Bulk Run'!AL123),IF('Bulk Run'!AT123="","",'Bulk Run'!AT123)) ->  | W123: =IF(CALC_BASIS_BULK="Increase Net Pay",IF('Bulk Run'!AP123="","",'Bulk Run'!AP123),IF('Bulk Run'!AX123="","",'Bulk Run'!AX123)) -> 
A124: 109 | B124: =IF('Bulk Run'!B124="","",'Bulk Run'!B124) ->  | C124: =IF('Bulk Run'!C124="","",'Bulk Run'!C124) ->  | D124: =IF('Bulk Run'!W124="","",'Bulk Run'!W124/FREQ_BULK) ->  | E124: =IF('Bulk Run'!AB124="","",'Bulk Run'!AB124) ->  | F124: =IF('Bulk Run'!AF124="","",'Bulk Run'!AF124) ->  | G124: =IF('Bulk Run'!AG124="","",'Bulk Run'!AG124) ->  | H124: =IF('Bulk Run'!AC124="","",'Bulk Run'!AC124) ->  | I124: =IF('Bulk Run'!AD124="","",'Bulk Run'!AD124) ->  | J124: =IF('Bulk Run'!AE124="","",'Bulk Run'!AE124) ->  | K124: =IF('Bulk Run'!AH124="","",'Bulk Run'!AH124) ->  | N124: =IF('Bulk Run'!B124="","",'Bulk Run'!B124) ->  | O124: =IF('Bulk Run'!C124="","",'Bulk Run'!C124) ->  | P124: =IF(CALC_BASIS_BULK="Increase Net Pay",IF('Bulk Run'!AI124="","",'Bulk Run'!AI124),IF('Bulk Run'!AQ124="","",'Bulk Run'!AQ124)) ->  | Q124: =IF(CALC_BASIS_BULK="Increase Net Pay",IF('Bulk Run'!AJ124="","",'Bulk Run'!AJ124),IF('Bulk Run'!AR124="","",'Bulk Run'!AR124)) ->  | R124: =IF(CALC_BASIS_BULK="Increase Net Pay",IF('Bulk Run'!AM124="","",'Bulk Run'!AM124),IF('Bulk Run'!AU124="","",'Bulk Run'!AU124)) ->  | S124: =IF(CALC_BASIS_BULK="Increase Net Pay",IF('Bulk Run'!AN124="","",'Bulk Run'!AN124),IF('Bulk Run'!AV124="","",'Bulk Run'!AV124)) ->  | T124: =IF(CALC_BASIS_BULK="Increase Net Pay",IF('Bulk Run'!AO124="","",'Bulk Run'!AO124),IF('Bulk Run'!AW124="","",'Bulk Run'!AW124)) ->  | U124: =IF(CALC_BASIS_BULK="Increase Net Pay",IF('Bulk Run'!AK124="","",'Bulk Run'!AK124),IF('Bulk Run'!AS124="","",'Bulk Run'!AS124)) ->  | V124: =IF(CALC_BASIS_BULK="Increase Net Pay",IF('Bulk Run'!AL124="","",'Bulk Run'!AL124),IF('Bulk Run'!AT124="","",'Bulk Run'!AT124)) ->  | W124: =IF(CALC_BASIS_BULK="Increase Net Pay",IF('Bulk Run'!AP124="","",'Bulk Run'!AP124),IF('Bulk Run'!AX124="","",'Bulk Run'!AX124)) -> 
A125: 110 | B125: =IF('Bulk Run'!B125="","",'Bulk Run'!B125) ->  | C125: =IF('Bulk Run'!C125="","",'Bulk Run'!C125) ->  | D125: =IF('Bulk Run'!W125="","",'Bulk Run'!W125/FREQ_BULK) ->  | E125: =IF('Bulk Run'!AB125="","",'Bulk Run'!AB125) ->  | F125: =IF('Bulk Run'!AF125="","",'Bulk Run'!AF125) ->  | G125: =IF('Bulk Run'!AG125="","",'Bulk Run'!AG125) ->  | H125: =IF('Bulk Run'!AC125="","",'Bulk Run'!AC125) ->  | I125: =IF('Bulk Run'!AD125="","",'Bulk Run'!AD125) ->  | J125: =IF('Bulk Run'!AE125="","",'Bulk Run'!AE125) ->  | K125: =IF('Bulk Run'!AH125="","",'Bulk Run'!AH125) ->  | N125: =IF('Bulk Run'!B125="","",'Bulk Run'!B125) ->  | O125: =IF('Bulk Run'!C125="","",'Bulk Run'!C125) ->  | P125: =IF(CALC_BASIS_BULK="Increase Net Pay",IF('Bulk Run'!AI125="","",'Bulk Run'!AI125),IF('Bulk Run'!AQ125="","",'Bulk Run'!AQ125)) ->  | Q125: =IF(CALC_BASIS_BULK="Increase Net Pay",IF('Bulk Run'!AJ125="","",'Bulk Run'!AJ125),IF('Bulk Run'!AR125="","",'Bulk Run'!AR125)) ->  | R125: =IF(CALC_BASIS_BULK="Increase Net Pay",IF('Bulk Run'!AM125="","",'Bulk Run'!AM125),IF('Bulk Run'!AU125="","",'Bulk Run'!AU125)) ->  | S125: =IF(CALC_BASIS_BULK="Increase Net Pay",IF('Bulk Run'!AN125="","",'Bulk Run'!AN125),IF('Bulk Run'!AV125="","",'Bulk Run'!AV125)) ->  | T125: =IF(CALC_BASIS_BULK="Increase Net Pay",IF('Bulk Run'!AO125="","",'Bulk Run'!AO125),IF('Bulk Run'!AW125="","",'Bulk Run'!AW125)) ->  | U125: =IF(CALC_BASIS_BULK="Increase Net Pay",IF('Bulk Run'!AK125="","",'Bulk Run'!AK125),IF('Bulk Run'!AS125="","",'Bulk Run'!AS125)) ->  | V125: =IF(CALC_BASIS_BULK="Increase Net Pay",IF('Bulk Run'!AL125="","",'Bulk Run'!AL125),IF('Bulk Run'!AT125="","",'Bulk Run'!AT125)) ->  | W125: =IF(CALC_BASIS_BULK="Increase Net Pay",IF('Bulk Run'!AP125="","",'Bulk Run'!AP125),IF('Bulk Run'!AX125="","",'Bulk Run'!AX125)) -> 
A126: 111 | B126: =IF('Bulk Run'!B126="","",'Bulk Run'!B126) ->  | C126: =IF('Bulk Run'!C126="","",'Bulk Run'!C126) ->  | D126: =IF('Bulk Run'!W126="","",'Bulk Run'!W126/FREQ_BULK) ->  | E126: =IF('Bulk Run'!AB126="","",'Bulk Run'!AB126) ->  | F126: =IF('Bulk Run'!AF126="","",'Bulk Run'!AF126) ->  | G126: =IF('Bulk Run'!AG126="","",'Bulk Run'!AG126) ->  | H126: =IF('Bulk Run'!AC126="","",'Bulk Run'!AC126) ->  | I126: =IF('Bulk Run'!AD126="","",'Bulk Run'!AD126) ->  | J126: =IF('Bulk Run'!AE126="","",'Bulk Run'!AE126) ->  | K126: =IF('Bulk Run'!AH126="","",'Bulk Run'!AH126) ->  | N126: =IF('Bulk Run'!B126="","",'Bulk Run'!B126) ->  | O126: =IF('Bulk Run'!C126="","",'Bulk Run'!C126) ->  | P126: =IF(CALC_BASIS_BULK="Increase Net Pay",IF('Bulk Run'!AI126="","",'Bulk Run'!AI126),IF('Bulk Run'!AQ126="","",'Bulk Run'!AQ126)) ->  | Q126: =IF(CALC_BASIS_BULK="Increase Net Pay",IF('Bulk Run'!AJ126="","",'Bulk Run'!AJ126),IF('Bulk Run'!AR126="","",'Bulk Run'!AR126)) ->  | R126: =IF(CALC_BASIS_BULK="Increase Net Pay",IF('Bulk Run'!AM126="","",'Bulk Run'!AM126),IF('Bulk Run'!AU126="","",'Bulk Run'!AU126)) ->  | S126: =IF(CALC_BASIS_BULK="Increase Net Pay",IF('Bulk Run'!AN126="","",'Bulk Run'!AN126),IF('Bulk Run'!AV126="","",'Bulk Run'!AV126)) ->  | T126: =IF(CALC_BASIS_BULK="Increase Net Pay",IF('Bulk Run'!AO126="","",'Bulk Run'!AO126),IF('Bulk Run'!AW126="","",'Bulk Run'!AW126)) ->  | U126: =IF(CALC_BASIS_BULK="Increase Net Pay",IF('Bulk Run'!AK126="","",'Bulk Run'!AK126),IF('Bulk Run'!AS126="","",'Bulk Run'!AS126)) ->  | V126: =IF(CALC_BASIS_BULK="Increase Net Pay",IF('Bulk Run'!AL126="","",'Bulk Run'!AL126),IF('Bulk Run'!AT126="","",'Bulk Run'!AT126)) ->  | W126: =IF(CALC_BASIS_BULK="Increase Net Pay",IF('Bulk Run'!AP126="","",'Bulk Run'!AP126),IF('Bulk Run'!AX126="","",'Bulk Run'!AX126)) -> 
A127: 112 | B127: =IF('Bulk Run'!B127="","",'Bulk Run'!B127) ->  | C127: =IF('Bulk Run'!C127="","",'Bulk Run'!C127) ->  | D127: =IF('Bulk Run'!W127="","",'Bulk Run'!W127/FREQ_BULK) ->  | E127: =IF('Bulk Run'!AB127="","",'Bulk Run'!AB127) ->  | F127: =IF('Bulk Run'!AF127="","",'Bulk Run'!AF127) ->  | G127: =IF('Bulk Run'!AG127="","",'Bulk Run'!AG127) ->  | H127: =IF('Bulk Run'!AC127="","",'Bulk Run'!AC127) ->  | I127: =IF('Bulk Run'!AD127="","",'Bulk Run'!AD127) ->  | J127: =IF('Bulk Run'!AE127="","",'Bulk Run'!AE127) ->  | K127: =IF('Bulk Run'!AH127="","",'Bulk Run'!AH127) ->  | N127: =IF('Bulk Run'!B127="","",'Bulk Run'!B127) ->  | O127: =IF('Bulk Run'!C127="","",'Bulk Run'!C127) ->  | P127: =IF(CALC_BASIS_BULK="Increase Net Pay",IF('Bulk Run'!AI127="","",'Bulk Run'!AI127),IF('Bulk Run'!AQ127="","",'Bulk Run'!AQ127)) ->  | Q127: =IF(CALC_BASIS_BULK="Increase Net Pay",IF('Bulk Run'!AJ127="","",'Bulk Run'!AJ127),IF('Bulk Run'!AR127="","",'Bulk Run'!AR127)) ->  | R127: =IF(CALC_BASIS_BULK="Increase Net Pay",IF('Bulk Run'!AM127="","",'Bulk Run'!AM127),IF('Bulk Run'!AU127="","",'Bulk Run'!AU127)) ->  | S127: =IF(CALC_BASIS_BULK="Increase Net Pay",IF('Bulk Run'!AN127="","",'Bulk Run'!AN127),IF('Bulk Run'!AV127="","",'Bulk Run'!AV127)) ->  | T127: =IF(CALC_BASIS_BULK="Increase Net Pay",IF('Bulk Run'!AO127="","",'Bulk Run'!AO127),IF('Bulk Run'!AW127="","",'Bulk Run'!AW127)) ->  | U127: =IF(CALC_BASIS_BULK="Increase Net Pay",IF('Bulk Run'!AK127="","",'Bulk Run'!AK127),IF('Bulk Run'!AS127="","",'Bulk Run'!AS127)) ->  | V127: =IF(CALC_BASIS_BULK="Increase Net Pay",IF('Bulk Run'!AL127="","",'Bulk Run'!AL127),IF('Bulk Run'!AT127="","",'Bulk Run'!AT127)) ->  | W127: =IF(CALC_BASIS_BULK="Increase Net Pay",IF('Bulk Run'!AP127="","",'Bulk Run'!AP127),IF('Bulk Run'!AX127="","",'Bulk Run'!AX127)) -> 
A128: 113 | B128: =IF('Bulk Run'!B128="","",'Bulk Run'!B128) ->  | C128: =IF('Bulk Run'!C128="","",'Bulk Run'!C128) ->  | D128: =IF('Bulk Run'!W128="","",'Bulk Run'!W128/FREQ_BULK) ->  | E128: =IF('Bulk Run'!AB128="","",'Bulk Run'!AB128) ->  | F128: =IF('Bulk Run'!AF128="","",'Bulk Run'!AF128) ->  | G128: =IF('Bulk Run'!AG128="","",'Bulk Run'!AG128) ->  | H128: =IF('Bulk Run'!AC128="","",'Bulk Run'!AC128) ->  | I128: =IF('Bulk Run'!AD128="","",'Bulk Run'!AD128) ->  | J128: =IF('Bulk Run'!AE128="","",'Bulk Run'!AE128) ->  | K128: =IF('Bulk Run'!AH128="","",'Bulk Run'!AH128) ->  | N128: =IF('Bulk Run'!B128="","",'Bulk Run'!B128) ->  | O128: =IF('Bulk Run'!C128="","",'Bulk Run'!C128) ->  | P128: =IF(CALC_BASIS_BULK="Increase Net Pay",IF('Bulk Run'!AI128="","",'Bulk Run'!AI128),IF('Bulk Run'!AQ128="","",'Bulk Run'!AQ128)) ->  | Q128: =IF(CALC_BASIS_BULK="Increase Net Pay",IF('Bulk Run'!AJ128="","",'Bulk Run'!AJ128),IF('Bulk Run'!AR128="","",'Bulk Run'!AR128)) ->  | R128: =IF(CALC_BASIS_BULK="Increase Net Pay",IF('Bulk Run'!AM128="","",'Bulk Run'!AM128),IF('Bulk Run'!AU128="","",'Bulk Run'!AU128)) ->  | S128: =IF(CALC_BASIS_BULK="Increase Net Pay",IF('Bulk Run'!AN128="","",'Bulk Run'!AN128),IF('Bulk Run'!AV128="","",'Bulk Run'!AV128)) ->  | T128: =IF(CALC_BASIS_BULK="Increase Net Pay",IF('Bulk Run'!AO128="","",'Bulk Run'!AO128),IF('Bulk Run'!AW128="","",'Bulk Run'!AW128)) ->  | U128: =IF(CALC_BASIS_BULK="Increase Net Pay",IF('Bulk Run'!AK128="","",'Bulk Run'!AK128),IF('Bulk Run'!AS128="","",'Bulk Run'!AS128)) ->  | V128: =IF(CALC_BASIS_BULK="Increase Net Pay",IF('Bulk Run'!AL128="","",'Bulk Run'!AL128),IF('Bulk Run'!AT128="","",'Bulk Run'!AT128)) ->  | W128: =IF(CALC_BASIS_BULK="Increase Net Pay",IF('Bulk Run'!AP128="","",'Bulk Run'!AP128),IF('Bulk Run'!AX128="","",'Bulk Run'!AX128)) -> 
A129: 114 | B129: =IF('Bulk Run'!B129="","",'Bulk Run'!B129) ->  | C129: =IF('Bulk Run'!C129="","",'Bulk Run'!C129) ->  | D129: =IF('Bulk Run'!W129="","",'Bulk Run'!W129/FREQ_BULK) ->  | E129: =IF('Bulk Run'!AB129="","",'Bulk Run'!AB129) ->  | F129: =IF('Bulk Run'!AF129="","",'Bulk Run'!AF129) ->  | G129: =IF('Bulk Run'!AG129="","",'Bulk Run'!AG129) ->  | H129: =IF('Bulk Run'!AC129="","",'Bulk Run'!AC129) ->  | I129: =IF('Bulk Run'!AD129="","",'Bulk Run'!AD129) ->  | J129: =IF('Bulk Run'!AE129="","",'Bulk Run'!AE129) ->  | K129: =IF('Bulk Run'!AH129="","",'Bulk Run'!AH129) ->  | N129: =IF('Bulk Run'!B129="","",'Bulk Run'!B129) ->  | O129: =IF('Bulk Run'!C129="","",'Bulk Run'!C129) ->  | P129: =IF(CALC_BASIS_BULK="Increase Net Pay",IF('Bulk Run'!AI129="","",'Bulk Run'!AI129),IF('Bulk Run'!AQ129="","",'Bulk Run'!AQ129)) ->  | Q129: =IF(CALC_BASIS_BULK="Increase Net Pay",IF('Bulk Run'!AJ129="","",'Bulk Run'!AJ129),IF('Bulk Run'!AR129="","",'Bulk Run'!AR129)) ->  | R129: =IF(CALC_BASIS_BULK="Increase Net Pay",IF('Bulk Run'!AM129="","",'Bulk Run'!AM129),IF('Bulk Run'!AU129="","",'Bulk Run'!AU129)) ->  | S129: =IF(CALC_BASIS_BULK="Increase Net Pay",IF('Bulk Run'!AN129="","",'Bulk Run'!AN129),IF('Bulk Run'!AV129="","",'Bulk Run'!AV129)) ->  | T129: =IF(CALC_BASIS_BULK="Increase Net Pay",IF('Bulk Run'!AO129="","",'Bulk Run'!AO129),IF('Bulk Run'!AW129="","",'Bulk Run'!AW129)) ->  | U129: =IF(CALC_BASIS_BULK="Increase Net Pay",IF('Bulk Run'!AK129="","",'Bulk Run'!AK129),IF('Bulk Run'!AS129="","",'Bulk Run'!AS129)) ->  | V129: =IF(CALC_BASIS_BULK="Increase Net Pay",IF('Bulk Run'!AL129="","",'Bulk Run'!AL129),IF('Bulk Run'!AT129="","",'Bulk Run'!AT129)) ->  | W129: =IF(CALC_BASIS_BULK="Increase Net Pay",IF('Bulk Run'!AP129="","",'Bulk Run'!AP129),IF('Bulk Run'!AX129="","",'Bulk Run'!AX129)) -> 
A130: 115 | B130: =IF('Bulk Run'!B130="","",'Bulk Run'!B130) ->  | C130: =IF('Bulk Run'!C130="","",'Bulk Run'!C130) ->  | D130: =IF('Bulk Run'!W130="","",'Bulk Run'!W130/FREQ_BULK) ->  | E130: =IF('Bulk Run'!AB130="","",'Bulk Run'!AB130) ->  | F130: =IF('Bulk Run'!AF130="","",'Bulk Run'!AF130) ->  | G130: =IF('Bulk Run'!AG130="","",'Bulk Run'!AG130) ->  | H130: =IF('Bulk Run'!AC130="","",'Bulk Run'!AC130) ->  | I130: =IF('Bulk Run'!AD130="","",'Bulk Run'!AD130) ->  | J130: =IF('Bulk Run'!AE130="","",'Bulk Run'!AE130) ->  | K130: =IF('Bulk Run'!AH130="","",'Bulk Run'!AH130) ->  | N130: =IF('Bulk Run'!B130="","",'Bulk Run'!B130) ->  | O130: =IF('Bulk Run'!C130="","",'Bulk Run'!C130) ->  | P130: =IF(CALC_BASIS_BULK="Increase Net Pay",IF('Bulk Run'!AI130="","",'Bulk Run'!AI130),IF('Bulk Run'!AQ130="","",'Bulk Run'!AQ130)) ->  | Q130: =IF(CALC_BASIS_BULK="Increase Net Pay",IF('Bulk Run'!AJ130="","",'Bulk Run'!AJ130),IF('Bulk Run'!AR130="","",'Bulk Run'!AR130)) ->  | R130: =IF(CALC_BASIS_BULK="Increase Net Pay",IF('Bulk Run'!AM130="","",'Bulk Run'!AM130),IF('Bulk Run'!AU130="","",'Bulk Run'!AU130)) ->  | S130: =IF(CALC_BASIS_BULK="Increase Net Pay",IF('Bulk Run'!AN130="","",'Bulk Run'!AN130),IF('Bulk Run'!AV130="","",'Bulk Run'!AV130)) ->  | T130: =IF(CALC_BASIS_BULK="Increase Net Pay",IF('Bulk Run'!AO130="","",'Bulk Run'!AO130),IF('Bulk Run'!AW130="","",'Bulk Run'!AW130)) ->  | U130: =IF(CALC_BASIS_BULK="Increase Net Pay",IF('Bulk Run'!AK130="","",'Bulk Run'!AK130),IF('Bulk Run'!AS130="","",'Bulk Run'!AS130)) ->  | V130: =IF(CALC_BASIS_BULK="Increase Net Pay",IF('Bulk Run'!AL130="","",'Bulk Run'!AL130),IF('Bulk Run'!AT130="","",'Bulk Run'!AT130)) ->  | W130: =IF(CALC_BASIS_BULK="Increase Net Pay",IF('Bulk Run'!AP130="","",'Bulk Run'!AP130),IF('Bulk Run'!AX130="","",'Bulk Run'!AX130)) -> 
A131: 116 | B131: =IF('Bulk Run'!B131="","",'Bulk Run'!B131) ->  | C131: =IF('Bulk Run'!C131="","",'Bulk Run'!C131) ->  | D131: =IF('Bulk Run'!W131="","",'Bulk Run'!W131/FREQ_BULK) ->  | E131: =IF('Bulk Run'!AB131="","",'Bulk Run'!AB131) ->  | F131: =IF('Bulk Run'!AF131="","",'Bulk Run'!AF131) ->  | G131: =IF('Bulk Run'!AG131="","",'Bulk Run'!AG131) ->  | H131: =IF('Bulk Run'!AC131="","",'Bulk Run'!AC131) ->  | I131: =IF('Bulk Run'!AD131="","",'Bulk Run'!AD131) ->  | J131: =IF('Bulk Run'!AE131="","",'Bulk Run'!AE131) ->  | K131: =IF('Bulk Run'!AH131="","",'Bulk Run'!AH131) ->  | N131: =IF('Bulk Run'!B131="","",'Bulk Run'!B131) ->  | O131: =IF('Bulk Run'!C131="","",'Bulk Run'!C131) ->  | P131: =IF(CALC_BASIS_BULK="Increase Net Pay",IF('Bulk Run'!AI131="","",'Bulk Run'!AI131),IF('Bulk Run'!AQ131="","",'Bulk Run'!AQ131)) ->  | Q131: =IF(CALC_BASIS_BULK="Increase Net Pay",IF('Bulk Run'!AJ131="","",'Bulk Run'!AJ131),IF('Bulk Run'!AR131="","",'Bulk Run'!AR131)) ->  | R131: =IF(CALC_BASIS_BULK="Increase Net Pay",IF('Bulk Run'!AM131="","",'Bulk Run'!AM131),IF('Bulk Run'!AU131="","",'Bulk Run'!AU131)) ->  | S131: =IF(CALC_BASIS_BULK="Increase Net Pay",IF('Bulk Run'!AN131="","",'Bulk Run'!AN131),IF('Bulk Run'!AV131="","",'Bulk Run'!AV131)) ->  | T131: =IF(CALC_BASIS_BULK="Increase Net Pay",IF('Bulk Run'!AO131="","",'Bulk Run'!AO131),IF('Bulk Run'!AW131="","",'Bulk Run'!AW131)) ->  | U131: =IF(CALC_BASIS_BULK="Increase Net Pay",IF('Bulk Run'!AK131="","",'Bulk Run'!AK131),IF('Bulk Run'!AS131="","",'Bulk Run'!AS131)) ->  | V131: =IF(CALC_BASIS_BULK="Increase Net Pay",IF('Bulk Run'!AL131="","",'Bulk Run'!AL131),IF('Bulk Run'!AT131="","",'Bulk Run'!AT131)) ->  | W131: =IF(CALC_BASIS_BULK="Increase Net Pay",IF('Bulk Run'!AP131="","",'Bulk Run'!AP131),IF('Bulk Run'!AX131="","",'Bulk Run'!AX131)) -> 
A132: 117 | B132: =IF('Bulk Run'!B132="","",'Bulk Run'!B132) ->  | C132: =IF('Bulk Run'!C132="","",'Bulk Run'!C132) ->  | D132: =IF('Bulk Run'!W132="","",'Bulk Run'!W132/FREQ_BULK) ->  | E132: =IF('Bulk Run'!AB132="","",'Bulk Run'!AB132) ->  | F132: =IF('Bulk Run'!AF132="","",'Bulk Run'!AF132) ->  | G132: =IF('Bulk Run'!AG132="","",'Bulk Run'!AG132) ->  | H132: =IF('Bulk Run'!AC132="","",'Bulk Run'!AC132) ->  | I132: =IF('Bulk Run'!AD132="","",'Bulk Run'!AD132) ->  | J132: =IF('Bulk Run'!AE132="","",'Bulk Run'!AE132) ->  | K132: =IF('Bulk Run'!AH132="","",'Bulk Run'!AH132) ->  | N132: =IF('Bulk Run'!B132="","",'Bulk Run'!B132) ->  | O132: =IF('Bulk Run'!C132="","",'Bulk Run'!C132) ->  | P132: =IF(CALC_BASIS_BULK="Increase Net Pay",IF('Bulk Run'!AI132="","",'Bulk Run'!AI132),IF('Bulk Run'!AQ132="","",'Bulk Run'!AQ132)) ->  | Q132: =IF(CALC_BASIS_BULK="Increase Net Pay",IF('Bulk Run'!AJ132="","",'Bulk Run'!AJ132),IF('Bulk Run'!AR132="","",'Bulk Run'!AR132)) ->  | R132: =IF(CALC_BASIS_BULK="Increase Net Pay",IF('Bulk Run'!AM132="","",'Bulk Run'!AM132),IF('Bulk Run'!AU132="","",'Bulk Run'!AU132)) ->  | S132: =IF(CALC_BASIS_BULK="Increase Net Pay",IF('Bulk Run'!AN132="","",'Bulk Run'!AN132),IF('Bulk Run'!AV132="","",'Bulk Run'!AV132)) ->  | T132: =IF(CALC_BASIS_BULK="Increase Net Pay",IF('Bulk Run'!AO132="","",'Bulk Run'!AO132),IF('Bulk Run'!AW132="","",'Bulk Run'!AW132)) ->  | U132: =IF(CALC_BASIS_BULK="Increase Net Pay",IF('Bulk Run'!AK132="","",'Bulk Run'!AK132),IF('Bulk Run'!AS132="","",'Bulk Run'!AS132)) ->  | V132: =IF(CALC_BASIS_BULK="Increase Net Pay",IF('Bulk Run'!AL132="","",'Bulk Run'!AL132),IF('Bulk Run'!AT132="","",'Bulk Run'!AT132)) ->  | W132: =IF(CALC_BASIS_BULK="Increase Net Pay",IF('Bulk Run'!AP132="","",'Bulk Run'!AP132),IF('Bulk Run'!AX132="","",'Bulk Run'!AX132)) -> 
A133: 118 | B133: =IF('Bulk Run'!B133="","",'Bulk Run'!B133) ->  | C133: =IF('Bulk Run'!C133="","",'Bulk Run'!C133) ->  | D133: =IF('Bulk Run'!W133="","",'Bulk Run'!W133/FREQ_BULK) ->  | E133: =IF('Bulk Run'!AB133="","",'Bulk Run'!AB133) ->  | F133: =IF('Bulk Run'!AF133="","",'Bulk Run'!AF133) ->  | G133: =IF('Bulk Run'!AG133="","",'Bulk Run'!AG133) ->  | H133: =IF('Bulk Run'!AC133="","",'Bulk Run'!AC133) ->  | I133: =IF('Bulk Run'!AD133="","",'Bulk Run'!AD133) ->  | J133: =IF('Bulk Run'!AE133="","",'Bulk Run'!AE133) ->  | K133: =IF('Bulk Run'!AH133="","",'Bulk Run'!AH133) ->  | N133: =IF('Bulk Run'!B133="","",'Bulk Run'!B133) ->  | O133: =IF('Bulk Run'!C133="","",'Bulk Run'!C133) ->  | P133: =IF(CALC_BASIS_BULK="Increase Net Pay",IF('Bulk Run'!AI133="","",'Bulk Run'!AI133),IF('Bulk Run'!AQ133="","",'Bulk Run'!AQ133)) ->  | Q133: =IF(CALC_BASIS_BULK="Increase Net Pay",IF('Bulk Run'!AJ133="","",'Bulk Run'!AJ133),IF('Bulk Run'!AR133="","",'Bulk Run'!AR133)) ->  | R133: =IF(CALC_BASIS_BULK="Increase Net Pay",IF('Bulk Run'!AM133="","",'Bulk Run'!AM133),IF('Bulk Run'!AU133="","",'Bulk Run'!AU133)) ->  | S133: =IF(CALC_BASIS_BULK="Increase Net Pay",IF('Bulk Run'!AN133="","",'Bulk Run'!AN133),IF('Bulk Run'!AV133="","",'Bulk Run'!AV133)) ->  | T133: =IF(CALC_BASIS_BULK="Increase Net Pay",IF('Bulk Run'!AO133="","",'Bulk Run'!AO133),IF('Bulk Run'!AW133="","",'Bulk Run'!AW133)) ->  | U133: =IF(CALC_BASIS_BULK="Increase Net Pay",IF('Bulk Run'!AK133="","",'Bulk Run'!AK133),IF('Bulk Run'!AS133="","",'Bulk Run'!AS133)) ->  | V133: =IF(CALC_BASIS_BULK="Increase Net Pay",IF('Bulk Run'!AL133="","",'Bulk Run'!AL133),IF('Bulk Run'!AT133="","",'Bulk Run'!AT133)) ->  | W133: =IF(CALC_BASIS_BULK="Increase Net Pay",IF('Bulk Run'!AP133="","",'Bulk Run'!AP133),IF('Bulk Run'!AX133="","",'Bulk Run'!AX133)) -> 
A134: 119 | B134: =IF('Bulk Run'!B134="","",'Bulk Run'!B134) ->  | C134: =IF('Bulk Run'!C134="","",'Bulk Run'!C134) ->  | D134: =IF('Bulk Run'!W134="","",'Bulk Run'!W134/FREQ_BULK) ->  | E134: =IF('Bulk Run'!AB134="","",'Bulk Run'!AB134) ->  | F134: =IF('Bulk Run'!AF134="","",'Bulk Run'!AF134) ->  | G134: =IF('Bulk Run'!AG134="","",'Bulk Run'!AG134) ->  | H134: =IF('Bulk Run'!AC134="","",'Bulk Run'!AC134) ->  | I134: =IF('Bulk Run'!AD134="","",'Bulk Run'!AD134) ->  | J134: =IF('Bulk Run'!AE134="","",'Bulk Run'!AE134) ->  | K134: =IF('Bulk Run'!AH134="","",'Bulk Run'!AH134) ->  | N134: =IF('Bulk Run'!B134="","",'Bulk Run'!B134) ->  | O134: =IF('Bulk Run'!C134="","",'Bulk Run'!C134) ->  | P134: =IF(CALC_BASIS_BULK="Increase Net Pay",IF('Bulk Run'!AI134="","",'Bulk Run'!AI134),IF('Bulk Run'!AQ134="","",'Bulk Run'!AQ134)) ->  | Q134: =IF(CALC_BASIS_BULK="Increase Net Pay",IF('Bulk Run'!AJ134="","",'Bulk Run'!AJ134),IF('Bulk Run'!AR134="","",'Bulk Run'!AR134)) ->  | R134: =IF(CALC_BASIS_BULK="Increase Net Pay",IF('Bulk Run'!AM134="","",'Bulk Run'!AM134),IF('Bulk Run'!AU134="","",'Bulk Run'!AU134)) ->  | S134: =IF(CALC_BASIS_BULK="Increase Net Pay",IF('Bulk Run'!AN134="","",'Bulk Run'!AN134),IF('Bulk Run'!AV134="","",'Bulk Run'!AV134)) ->  | T134: =IF(CALC_BASIS_BULK="Increase Net Pay",IF('Bulk Run'!AO134="","",'Bulk Run'!AO134),IF('Bulk Run'!AW134="","",'Bulk Run'!AW134)) ->  | U134: =IF(CALC_BASIS_BULK="Increase Net Pay",IF('Bulk Run'!AK134="","",'Bulk Run'!AK134),IF('Bulk Run'!AS134="","",'Bulk Run'!AS134)) ->  | V134: =IF(CALC_BASIS_BULK="Increase Net Pay",IF('Bulk Run'!AL134="","",'Bulk Run'!AL134),IF('Bulk Run'!AT134="","",'Bulk Run'!AT134)) ->  | W134: =IF(CALC_BASIS_BULK="Increase Net Pay",IF('Bulk Run'!AP134="","",'Bulk Run'!AP134),IF('Bulk Run'!AX134="","",'Bulk Run'!AX134)) -> 
A135: 120 | B135: =IF('Bulk Run'!B135="","",'Bulk Run'!B135) ->  | C135: =IF('Bulk Run'!C135="","",'Bulk Run'!C135) ->  | D135: =IF('Bulk Run'!W135="","",'Bulk Run'!W135/FREQ_BULK) ->  | E135: =IF('Bulk Run'!AB135="","",'Bulk Run'!AB135) ->  | F135: =IF('Bulk Run'!AF135="","",'Bulk Run'!AF135) ->  | G135: =IF('Bulk Run'!AG135="","",'Bulk Run'!AG135) ->  | H135: =IF('Bulk Run'!AC135="","",'Bulk Run'!AC135) ->  | I135: =IF('Bulk Run'!AD135="","",'Bulk Run'!AD135) ->  | J135: =IF('Bulk Run'!AE135="","",'Bulk Run'!AE135) ->  | K135: =IF('Bulk Run'!AH135="","",'Bulk Run'!AH135) ->  | N135: =IF('Bulk Run'!B135="","",'Bulk Run'!B135) ->  | O135: =IF('Bulk Run'!C135="","",'Bulk Run'!C135) ->  | P135: =IF(CALC_BASIS_BULK="Increase Net Pay",IF('Bulk Run'!AI135="","",'Bulk Run'!AI135),IF('Bulk Run'!AQ135="","",'Bulk Run'!AQ135)) ->  | Q135: =IF(CALC_BASIS_BULK="Increase Net Pay",IF('Bulk Run'!AJ135="","",'Bulk Run'!AJ135),IF('Bulk Run'!AR135="","",'Bulk Run'!AR135)) ->  | R135: =IF(CALC_BASIS_BULK="Increase Net Pay",IF('Bulk Run'!AM135="","",'Bulk Run'!AM135),IF('Bulk Run'!AU135="","",'Bulk Run'!AU135)) ->  | S135: =IF(CALC_BASIS_BULK="Increase Net Pay",IF('Bulk Run'!AN135="","",'Bulk Run'!AN135),IF('Bulk Run'!AV135="","",'Bulk Run'!AV135)) ->  | T135: =IF(CALC_BASIS_BULK="Increase Net Pay",IF('Bulk Run'!AO135="","",'Bulk Run'!AO135),IF('Bulk Run'!AW135="","",'Bulk Run'!AW135)) ->  | U135: =IF(CALC_BASIS_BULK="Increase Net Pay",IF('Bulk Run'!AK135="","",'Bulk Run'!AK135),IF('Bulk Run'!AS135="","",'Bulk Run'!AS135)) ->  | V135: =IF(CALC_BASIS_BULK="Increase Net Pay",IF('Bulk Run'!AL135="","",'Bulk Run'!AL135),IF('Bulk Run'!AT135="","",'Bulk Run'!AT135)) ->  | W135: =IF(CALC_BASIS_BULK="Increase Net Pay",IF('Bulk Run'!AP135="","",'Bulk Run'!AP135),IF('Bulk Run'!AX135="","",'Bulk Run'!AX135)) -> 
A136: 121 | B136: =IF('Bulk Run'!B136="","",'Bulk Run'!B136) ->  | C136: =IF('Bulk Run'!C136="","",'Bulk Run'!C136) ->  | D136: =IF('Bulk Run'!W136="","",'Bulk Run'!W136/FREQ_BULK) ->  | E136: =IF('Bulk Run'!AB136="","",'Bulk Run'!AB136) ->  | F136: =IF('Bulk Run'!AF136="","",'Bulk Run'!AF136) ->  | G136: =IF('Bulk Run'!AG136="","",'Bulk Run'!AG136) ->  | H136: =IF('Bulk Run'!AC136="","",'Bulk Run'!AC136) ->  | I136: =IF('Bulk Run'!AD136="","",'Bulk Run'!AD136) ->  | J136: =IF('Bulk Run'!AE136="","",'Bulk Run'!AE136) ->  | K136: =IF('Bulk Run'!AH136="","",'Bulk Run'!AH136) ->  | N136: =IF('Bulk Run'!B136="","",'Bulk Run'!B136) ->  | O136: =IF('Bulk Run'!C136="","",'Bulk Run'!C136) ->  | P136: =IF(CALC_BASIS_BULK="Increase Net Pay",IF('Bulk Run'!AI136="","",'Bulk Run'!AI136),IF('Bulk Run'!AQ136="","",'Bulk Run'!AQ136)) ->  | Q136: =IF(CALC_BASIS_BULK="Increase Net Pay",IF('Bulk Run'!AJ136="","",'Bulk Run'!AJ136),IF('Bulk Run'!AR136="","",'Bulk Run'!AR136)) ->  | R136: =IF(CALC_BASIS_BULK="Increase Net Pay",IF('Bulk Run'!AM136="","",'Bulk Run'!AM136),IF('Bulk Run'!AU136="","",'Bulk Run'!AU136)) ->  | S136: =IF(CALC_BASIS_BULK="Increase Net Pay",IF('Bulk Run'!AN136="","",'Bulk Run'!AN136),IF('Bulk Run'!AV136="","",'Bulk Run'!AV136)) ->  | T136: =IF(CALC_BASIS_BULK="Increase Net Pay",IF('Bulk Run'!AO136="","",'Bulk Run'!AO136),IF('Bulk Run'!AW136="","",'Bulk Run'!AW136)) ->  | U136: =IF(CALC_BASIS_BULK="Increase Net Pay",IF('Bulk Run'!AK136="","",'Bulk Run'!AK136),IF('Bulk Run'!AS136="","",'Bulk Run'!AS136)) ->  | V136: =IF(CALC_BASIS_BULK="Increase Net Pay",IF('Bulk Run'!AL136="","",'Bulk Run'!AL136),IF('Bulk Run'!AT136="","",'Bulk Run'!AT136)) ->  | W136: =IF(CALC_BASIS_BULK="Increase Net Pay",IF('Bulk Run'!AP136="","",'Bulk Run'!AP136),IF('Bulk Run'!AX136="","",'Bulk Run'!AX136)) -> 
A137: 122 | B137: =IF('Bulk Run'!B137="","",'Bulk Run'!B137) ->  | C137: =IF('Bulk Run'!C137="","",'Bulk Run'!C137) ->  | D137: =IF('Bulk Run'!W137="","",'Bulk Run'!W137/FREQ_BULK) ->  | E137: =IF('Bulk Run'!AB137="","",'Bulk Run'!AB137) ->  | F137: =IF('Bulk Run'!AF137="","",'Bulk Run'!AF137) ->  | G137: =IF('Bulk Run'!AG137="","",'Bulk Run'!AG137) ->  | H137: =IF('Bulk Run'!AC137="","",'Bulk Run'!AC137) ->  | I137: =IF('Bulk Run'!AD137="","",'Bulk Run'!AD137) ->  | J137: =IF('Bulk Run'!AE137="","",'Bulk Run'!AE137) ->  | K137: =IF('Bulk Run'!AH137="","",'Bulk Run'!AH137) ->  | N137: =IF('Bulk Run'!B137="","",'Bulk Run'!B137) ->  | O137: =IF('Bulk Run'!C137="","",'Bulk Run'!C137) ->  | P137: =IF(CALC_BASIS_BULK="Increase Net Pay",IF('Bulk Run'!AI137="","",'Bulk Run'!AI137),IF('Bulk Run'!AQ137="","",'Bulk Run'!AQ137)) ->  | Q137: =IF(CALC_BASIS_BULK="Increase Net Pay",IF('Bulk Run'!AJ137="","",'Bulk Run'!AJ137),IF('Bulk Run'!AR137="","",'Bulk Run'!AR137)) ->  | R137: =IF(CALC_BASIS_BULK="Increase Net Pay",IF('Bulk Run'!AM137="","",'Bulk Run'!AM137),IF('Bulk Run'!AU137="","",'Bulk Run'!AU137)) ->  | S137: =IF(CALC_BASIS_BULK="Increase Net Pay",IF('Bulk Run'!AN137="","",'Bulk Run'!AN137),IF('Bulk Run'!AV137="","",'Bulk Run'!AV137)) ->  | T137: =IF(CALC_BASIS_BULK="Increase Net Pay",IF('Bulk Run'!AO137="","",'Bulk Run'!AO137),IF('Bulk Run'!AW137="","",'Bulk Run'!AW137)) ->  | U137: =IF(CALC_BASIS_BULK="Increase Net Pay",IF('Bulk Run'!AK137="","",'Bulk Run'!AK137),IF('Bulk Run'!AS137="","",'Bulk Run'!AS137)) ->  | V137: =IF(CALC_BASIS_BULK="Increase Net Pay",IF('Bulk Run'!AL137="","",'Bulk Run'!AL137),IF('Bulk Run'!AT137="","",'Bulk Run'!AT137)) ->  | W137: =IF(CALC_BASIS_BULK="Increase Net Pay",IF('Bulk Run'!AP137="","",'Bulk Run'!AP137),IF('Bulk Run'!AX137="","",'Bulk Run'!AX137)) -> 
A138: 123 | B138: =IF('Bulk Run'!B138="","",'Bulk Run'!B138) ->  | C138: =IF('Bulk Run'!C138="","",'Bulk Run'!C138) ->  | D138: =IF('Bulk Run'!W138="","",'Bulk Run'!W138/FREQ_BULK) ->  | E138: =IF('Bulk Run'!AB138="","",'Bulk Run'!AB138) ->  | F138: =IF('Bulk Run'!AF138="","",'Bulk Run'!AF138) ->  | G138: =IF('Bulk Run'!AG138="","",'Bulk Run'!AG138) ->  | H138: =IF('Bulk Run'!AC138="","",'Bulk Run'!AC138) ->  | I138: =IF('Bulk Run'!AD138="","",'Bulk Run'!AD138) ->  | J138: =IF('Bulk Run'!AE138="","",'Bulk Run'!AE138) ->  | K138: =IF('Bulk Run'!AH138="","",'Bulk Run'!AH138) ->  | N138: =IF('Bulk Run'!B138="","",'Bulk Run'!B138) ->  | O138: =IF('Bulk Run'!C138="","",'Bulk Run'!C138) ->  | P138: =IF(CALC_BASIS_BULK="Increase Net Pay",IF('Bulk Run'!AI138="","",'Bulk Run'!AI138),IF('Bulk Run'!AQ138="","",'Bulk Run'!AQ138)) ->  | Q138: =IF(CALC_BASIS_BULK="Increase Net Pay",IF('Bulk Run'!AJ138="","",'Bulk Run'!AJ138),IF('Bulk Run'!AR138="","",'Bulk Run'!AR138)) ->  | R138: =IF(CALC_BASIS_BULK="Increase Net Pay",IF('Bulk Run'!AM138="","",'Bulk Run'!AM138),IF('Bulk Run'!AU138="","",'Bulk Run'!AU138)) ->  | S138: =IF(CALC_BASIS_BULK="Increase Net Pay",IF('Bulk Run'!AN138="","",'Bulk Run'!AN138),IF('Bulk Run'!AV138="","",'Bulk Run'!AV138)) ->  | T138: =IF(CALC_BASIS_BULK="Increase Net Pay",IF('Bulk Run'!AO138="","",'Bulk Run'!AO138),IF('Bulk Run'!AW138="","",'Bulk Run'!AW138)) ->  | U138: =IF(CALC_BASIS_BULK="Increase Net Pay",IF('Bulk Run'!AK138="","",'Bulk Run'!AK138),IF('Bulk Run'!AS138="","",'Bulk Run'!AS138)) ->  | V138: =IF(CALC_BASIS_BULK="Increase Net Pay",IF('Bulk Run'!AL138="","",'Bulk Run'!AL138),IF('Bulk Run'!AT138="","",'Bulk Run'!AT138)) ->  | W138: =IF(CALC_BASIS_BULK="Increase Net Pay",IF('Bulk Run'!AP138="","",'Bulk Run'!AP138),IF('Bulk Run'!AX138="","",'Bulk Run'!AX138)) -> 
A139: 124 | B139: =IF('Bulk Run'!B139="","",'Bulk Run'!B139) ->  | C139: =IF('Bulk Run'!C139="","",'Bulk Run'!C139) ->  | D139: =IF('Bulk Run'!W139="","",'Bulk Run'!W139/FREQ_BULK) ->  | E139: =IF('Bulk Run'!AB139="","",'Bulk Run'!AB139) ->  | F139: =IF('Bulk Run'!AF139="","",'Bulk Run'!AF139) ->  | G139: =IF('Bulk Run'!AG139="","",'Bulk Run'!AG139) ->  | H139: =IF('Bulk Run'!AC139="","",'Bulk Run'!AC139) ->  | I139: =IF('Bulk Run'!AD139="","",'Bulk Run'!AD139) ->  | J139: =IF('Bulk Run'!AE139="","",'Bulk Run'!AE139) ->  | K139: =IF('Bulk Run'!AH139="","",'Bulk Run'!AH139) ->  | N139: =IF('Bulk Run'!B139="","",'Bulk Run'!B139) ->  | O139: =IF('Bulk Run'!C139="","",'Bulk Run'!C139) ->  | P139: =IF(CALC_BASIS_BULK="Increase Net Pay",IF('Bulk Run'!AI139="","",'Bulk Run'!AI139),IF('Bulk Run'!AQ139="","",'Bulk Run'!AQ139)) ->  | Q139: =IF(CALC_BASIS_BULK="Increase Net Pay",IF('Bulk Run'!AJ139="","",'Bulk Run'!AJ139),IF('Bulk Run'!AR139="","",'Bulk Run'!AR139)) ->  | R139: =IF(CALC_BASIS_BULK="Increase Net Pay",IF('Bulk Run'!AM139="","",'Bulk Run'!AM139),IF('Bulk Run'!AU139="","",'Bulk Run'!AU139)) ->  | S139: =IF(CALC_BASIS_BULK="Increase Net Pay",IF('Bulk Run'!AN139="","",'Bulk Run'!AN139),IF('Bulk Run'!AV139="","",'Bulk Run'!AV139)) ->  | T139: =IF(CALC_BASIS_BULK="Increase Net Pay",IF('Bulk Run'!AO139="","",'Bulk Run'!AO139),IF('Bulk Run'!AW139="","",'Bulk Run'!AW139)) ->  | U139: =IF(CALC_BASIS_BULK="Increase Net Pay",IF('Bulk Run'!AK139="","",'Bulk Run'!AK139),IF('Bulk Run'!AS139="","",'Bulk Run'!AS139)) ->  | V139: =IF(CALC_BASIS_BULK="Increase Net Pay",IF('Bulk Run'!AL139="","",'Bulk Run'!AL139),IF('Bulk Run'!AT139="","",'Bulk Run'!AT139)) ->  | W139: =IF(CALC_BASIS_BULK="Increase Net Pay",IF('Bulk Run'!AP139="","",'Bulk Run'!AP139),IF('Bulk Run'!AX139="","",'Bulk Run'!AX139)) -> 
A140: 125 | B140: =IF('Bulk Run'!B140="","",'Bulk Run'!B140) ->  | C140: =IF('Bulk Run'!C140="","",'Bulk Run'!C140) ->  | D140: =IF('Bulk Run'!W140="","",'Bulk Run'!W140/FREQ_BULK) ->  | E140: =IF('Bulk Run'!AB140="","",'Bulk Run'!AB140) ->  | F140: =IF('Bulk Run'!AF140="","",'Bulk Run'!AF140) ->  | G140: =IF('Bulk Run'!AG140="","",'Bulk Run'!AG140) ->  | H140: =IF('Bulk Run'!AC140="","",'Bulk Run'!AC140) ->  | I140: =IF('Bulk Run'!AD140="","",'Bulk Run'!AD140) ->  | J140: =IF('Bulk Run'!AE140="","",'Bulk Run'!AE140) ->  | K140: =IF('Bulk Run'!AH140="","",'Bulk Run'!AH140) ->  | N140: =IF('Bulk Run'!B140="","",'Bulk Run'!B140) ->  | O140: =IF('Bulk Run'!C140="","",'Bulk Run'!C140) ->  | P140: =IF(CALC_BASIS_BULK="Increase Net Pay",IF('Bulk Run'!AI140="","",'Bulk Run'!AI140),IF('Bulk Run'!AQ140="","",'Bulk Run'!AQ140)) ->  | Q140: =IF(CALC_BASIS_BULK="Increase Net Pay",IF('Bulk Run'!AJ140="","",'Bulk Run'!AJ140),IF('Bulk Run'!AR140="","",'Bulk Run'!AR140)) ->  | R140: =IF(CALC_BASIS_BULK="Increase Net Pay",IF('Bulk Run'!AM140="","",'Bulk Run'!AM140),IF('Bulk Run'!AU140="","",'Bulk Run'!AU140)) ->  | S140: =IF(CALC_BASIS_BULK="Increase Net Pay",IF('Bulk Run'!AN140="","",'Bulk Run'!AN140),IF('Bulk Run'!AV140="","",'Bulk Run'!AV140)) ->  | T140: =IF(CALC_BASIS_BULK="Increase Net Pay",IF('Bulk Run'!AO140="","",'Bulk Run'!AO140),IF('Bulk Run'!AW140="","",'Bulk Run'!AW140)) ->  | U140: =IF(CALC_BASIS_BULK="Increase Net Pay",IF('Bulk Run'!AK140="","",'Bulk Run'!AK140),IF('Bulk Run'!AS140="","",'Bulk Run'!AS140)) ->  | V140: =IF(CALC_BASIS_BULK="Increase Net Pay",IF('Bulk Run'!AL140="","",'Bulk Run'!AL140),IF('Bulk Run'!AT140="","",'Bulk Run'!AT140)) ->  | W140: =IF(CALC_BASIS_BULK="Increase Net Pay",IF('Bulk Run'!AP140="","",'Bulk Run'!AP140),IF('Bulk Run'!AX140="","",'Bulk Run'!AX140)) -> 
A141: 126 | B141: =IF('Bulk Run'!B141="","",'Bulk Run'!B141) ->  | C141: =IF('Bulk Run'!C141="","",'Bulk Run'!C141) ->  | D141: =IF('Bulk Run'!W141="","",'Bulk Run'!W141/FREQ_BULK) ->  | E141: =IF('Bulk Run'!AB141="","",'Bulk Run'!AB141) ->  | F141: =IF('Bulk Run'!AF141="","",'Bulk Run'!AF141) ->  | G141: =IF('Bulk Run'!AG141="","",'Bulk Run'!AG141) ->  | H141: =IF('Bulk Run'!AC141="","",'Bulk Run'!AC141) ->  | I141: =IF('Bulk Run'!AD141="","",'Bulk Run'!AD141) ->  | J141: =IF('Bulk Run'!AE141="","",'Bulk Run'!AE141) ->  | K141: =IF('Bulk Run'!AH141="","",'Bulk Run'!AH141) ->  | N141: =IF('Bulk Run'!B141="","",'Bulk Run'!B141) ->  | O141: =IF('Bulk Run'!C141="","",'Bulk Run'!C141) ->  | P141: =IF(CALC_BASIS_BULK="Increase Net Pay",IF('Bulk Run'!AI141="","",'Bulk Run'!AI141),IF('Bulk Run'!AQ141="","",'Bulk Run'!AQ141)) ->  | Q141: =IF(CALC_BASIS_BULK="Increase Net Pay",IF('Bulk Run'!AJ141="","",'Bulk Run'!AJ141),IF('Bulk Run'!AR141="","",'Bulk Run'!AR141)) ->  | R141: =IF(CALC_BASIS_BULK="Increase Net Pay",IF('Bulk Run'!AM141="","",'Bulk Run'!AM141),IF('Bulk Run'!AU141="","",'Bulk Run'!AU141)) ->  | S141: =IF(CALC_BASIS_BULK="Increase Net Pay",IF('Bulk Run'!AN141="","",'Bulk Run'!AN141),IF('Bulk Run'!AV141="","",'Bulk Run'!AV141)) ->  | T141: =IF(CALC_BASIS_BULK="Increase Net Pay",IF('Bulk Run'!AO141="","",'Bulk Run'!AO141),IF('Bulk Run'!AW141="","",'Bulk Run'!AW141)) ->  | U141: =IF(CALC_BASIS_BULK="Increase Net Pay",IF('Bulk Run'!AK141="","",'Bulk Run'!AK141),IF('Bulk Run'!AS141="","",'Bulk Run'!AS141)) ->  | V141: =IF(CALC_BASIS_BULK="Increase Net Pay",IF('Bulk Run'!AL141="","",'Bulk Run'!AL141),IF('Bulk Run'!AT141="","",'Bulk Run'!AT141)) ->  | W141: =IF(CALC_BASIS_BULK="Increase Net Pay",IF('Bulk Run'!AP141="","",'Bulk Run'!AP141),IF('Bulk Run'!AX141="","",'Bulk Run'!AX141)) -> 
A142: 127 | B142: =IF('Bulk Run'!B142="","",'Bulk Run'!B142) ->  | C142: =IF('Bulk Run'!C142="","",'Bulk Run'!C142) ->  | D142: =IF('Bulk Run'!W142="","",'Bulk Run'!W142/FREQ_BULK) ->  | E142: =IF('Bulk Run'!AB142="","",'Bulk Run'!AB142) ->  | F142: =IF('Bulk Run'!AF142="","",'Bulk Run'!AF142) ->  | G142: =IF('Bulk Run'!AG142="","",'Bulk Run'!AG142) ->  | H142: =IF('Bulk Run'!AC142="","",'Bulk Run'!AC142) ->  | I142: =IF('Bulk Run'!AD142="","",'Bulk Run'!AD142) ->  | J142: =IF('Bulk Run'!AE142="","",'Bulk Run'!AE142) ->  | K142: =IF('Bulk Run'!AH142="","",'Bulk Run'!AH142) ->  | N142: =IF('Bulk Run'!B142="","",'Bulk Run'!B142) ->  | O142: =IF('Bulk Run'!C142="","",'Bulk Run'!C142) ->  | P142: =IF(CALC_BASIS_BULK="Increase Net Pay",IF('Bulk Run'!AI142="","",'Bulk Run'!AI142),IF('Bulk Run'!AQ142="","",'Bulk Run'!AQ142)) ->  | Q142: =IF(CALC_BASIS_BULK="Increase Net Pay",IF('Bulk Run'!AJ142="","",'Bulk Run'!AJ142),IF('Bulk Run'!AR142="","",'Bulk Run'!AR142)) ->  | R142: =IF(CALC_BASIS_BULK="Increase Net Pay",IF('Bulk Run'!AM142="","",'Bulk Run'!AM142),IF('Bulk Run'!AU142="","",'Bulk Run'!AU142)) ->  | S142: =IF(CALC_BASIS_BULK="Increase Net Pay",IF('Bulk Run'!AN142="","",'Bulk Run'!AN142),IF('Bulk Run'!AV142="","",'Bulk Run'!AV142)) ->  | T142: =IF(CALC_BASIS_BULK="Increase Net Pay",IF('Bulk Run'!AO142="","",'Bulk Run'!AO142),IF('Bulk Run'!AW142="","",'Bulk Run'!AW142)) ->  | U142: =IF(CALC_BASIS_BULK="Increase Net Pay",IF('Bulk Run'!AK142="","",'Bulk Run'!AK142),IF('Bulk Run'!AS142="","",'Bulk Run'!AS142)) ->  | V142: =IF(CALC_BASIS_BULK="Increase Net Pay",IF('Bulk Run'!AL142="","",'Bulk Run'!AL142),IF('Bulk Run'!AT142="","",'Bulk Run'!AT142)) ->  | W142: =IF(CALC_BASIS_BULK="Increase Net Pay",IF('Bulk Run'!AP142="","",'Bulk Run'!AP142),IF('Bulk Run'!AX142="","",'Bulk Run'!AX142)) -> 
A143: 128 | B143: =IF('Bulk Run'!B143="","",'Bulk Run'!B143) ->  | C143: =IF('Bulk Run'!C143="","",'Bulk Run'!C143) ->  | D143: =IF('Bulk Run'!W143="","",'Bulk Run'!W143/FREQ_BULK) ->  | E143: =IF('Bulk Run'!AB143="","",'Bulk Run'!AB143) ->  | F143: =IF('Bulk Run'!AF143="","",'Bulk Run'!AF143) ->  | G143: =IF('Bulk Run'!AG143="","",'Bulk Run'!AG143) ->  | H143: =IF('Bulk Run'!AC143="","",'Bulk Run'!AC143) ->  | I143: =IF('Bulk Run'!AD143="","",'Bulk Run'!AD143) ->  | J143: =IF('Bulk Run'!AE143="","",'Bulk Run'!AE143) ->  | K143: =IF('Bulk Run'!AH143="","",'Bulk Run'!AH143) ->  | N143: =IF('Bulk Run'!B143="","",'Bulk Run'!B143) ->  | O143: =IF('Bulk Run'!C143="","",'Bulk Run'!C143) ->  | P143: =IF(CALC_BASIS_BULK="Increase Net Pay",IF('Bulk Run'!AI143="","",'Bulk Run'!AI143),IF('Bulk Run'!AQ143="","",'Bulk Run'!AQ143)) ->  | Q143: =IF(CALC_BASIS_BULK="Increase Net Pay",IF('Bulk Run'!AJ143="","",'Bulk Run'!AJ143),IF('Bulk Run'!AR143="","",'Bulk Run'!AR143)) ->  | R143: =IF(CALC_BASIS_BULK="Increase Net Pay",IF('Bulk Run'!AM143="","",'Bulk Run'!AM143),IF('Bulk Run'!AU143="","",'Bulk Run'!AU143)) ->  | S143: =IF(CALC_BASIS_BULK="Increase Net Pay",IF('Bulk Run'!AN143="","",'Bulk Run'!AN143),IF('Bulk Run'!AV143="","",'Bulk Run'!AV143)) ->  | T143: =IF(CALC_BASIS_BULK="Increase Net Pay",IF('Bulk Run'!AO143="","",'Bulk Run'!AO143),IF('Bulk Run'!AW143="","",'Bulk Run'!AW143)) ->  | U143: =IF(CALC_BASIS_BULK="Increase Net Pay",IF('Bulk Run'!AK143="","",'Bulk Run'!AK143),IF('Bulk Run'!AS143="","",'Bulk Run'!AS143)) ->  | V143: =IF(CALC_BASIS_BULK="Increase Net Pay",IF('Bulk Run'!AL143="","",'Bulk Run'!AL143),IF('Bulk Run'!AT143="","",'Bulk Run'!AT143)) ->  | W143: =IF(CALC_BASIS_BULK="Increase Net Pay",IF('Bulk Run'!AP143="","",'Bulk Run'!AP143),IF('Bulk Run'!AX143="","",'Bulk Run'!AX143)) -> 
A144: 129 | B144: =IF('Bulk Run'!B144="","",'Bulk Run'!B144) ->  | C144: =IF('Bulk Run'!C144="","",'Bulk Run'!C144) ->  | D144: =IF('Bulk Run'!W144="","",'Bulk Run'!W144/FREQ_BULK) ->  | E144: =IF('Bulk Run'!AB144="","",'Bulk Run'!AB144) ->  | F144: =IF('Bulk Run'!AF144="","",'Bulk Run'!AF144) ->  | G144: =IF('Bulk Run'!AG144="","",'Bulk Run'!AG144) ->  | H144: =IF('Bulk Run'!AC144="","",'Bulk Run'!AC144) ->  | I144: =IF('Bulk Run'!AD144="","",'Bulk Run'!AD144) ->  | J144: =IF('Bulk Run'!AE144="","",'Bulk Run'!AE144) ->  | K144: =IF('Bulk Run'!AH144="","",'Bulk Run'!AH144) ->  | N144: =IF('Bulk Run'!B144="","",'Bulk Run'!B144) ->  | O144: =IF('Bulk Run'!C144="","",'Bulk Run'!C144) ->  | P144: =IF(CALC_BASIS_BULK="Increase Net Pay",IF('Bulk Run'!AI144="","",'Bulk Run'!AI144),IF('Bulk Run'!AQ144="","",'Bulk Run'!AQ144)) ->  | Q144: =IF(CALC_BASIS_BULK="Increase Net Pay",IF('Bulk Run'!AJ144="","",'Bulk Run'!AJ144),IF('Bulk Run'!AR144="","",'Bulk Run'!AR144)) ->  | R144: =IF(CALC_BASIS_BULK="Increase Net Pay",IF('Bulk Run'!AM144="","",'Bulk Run'!AM144),IF('Bulk Run'!AU144="","",'Bulk Run'!AU144)) ->  | S144: =IF(CALC_BASIS_BULK="Increase Net Pay",IF('Bulk Run'!AN144="","",'Bulk Run'!AN144),IF('Bulk Run'!AV144="","",'Bulk Run'!AV144)) ->  | T144: =IF(CALC_BASIS_BULK="Increase Net Pay",IF('Bulk Run'!AO144="","",'Bulk Run'!AO144),IF('Bulk Run'!AW144="","",'Bulk Run'!AW144)) ->  | U144: =IF(CALC_BASIS_BULK="Increase Net Pay",IF('Bulk Run'!AK144="","",'Bulk Run'!AK144),IF('Bulk Run'!AS144="","",'Bulk Run'!AS144)) ->  | V144: =IF(CALC_BASIS_BULK="Increase Net Pay",IF('Bulk Run'!AL144="","",'Bulk Run'!AL144),IF('Bulk Run'!AT144="","",'Bulk Run'!AT144)) ->  | W144: =IF(CALC_BASIS_BULK="Increase Net Pay",IF('Bulk Run'!AP144="","",'Bulk Run'!AP144),IF('Bulk Run'!AX144="","",'Bulk Run'!AX144)) -> 
A145: 130 | B145: =IF('Bulk Run'!B145="","",'Bulk Run'!B145) ->  | C145: =IF('Bulk Run'!C145="","",'Bulk Run'!C145) ->  | D145: =IF('Bulk Run'!W145="","",'Bulk Run'!W145/FREQ_BULK) ->  | E145: =IF('Bulk Run'!AB145="","",'Bulk Run'!AB145) ->  | F145: =IF('Bulk Run'!AF145="","",'Bulk Run'!AF145) ->  | G145: =IF('Bulk Run'!AG145="","",'Bulk Run'!AG145) ->  | H145: =IF('Bulk Run'!AC145="","",'Bulk Run'!AC145) ->  | I145: =IF('Bulk Run'!AD145="","",'Bulk Run'!AD145) ->  | J145: =IF('Bulk Run'!AE145="","",'Bulk Run'!AE145) ->  | K145: =IF('Bulk Run'!AH145="","",'Bulk Run'!AH145) ->  | N145: =IF('Bulk Run'!B145="","",'Bulk Run'!B145) ->  | O145: =IF('Bulk Run'!C145="","",'Bulk Run'!C145) ->  | P145: =IF(CALC_BASIS_BULK="Increase Net Pay",IF('Bulk Run'!AI145="","",'Bulk Run'!AI145),IF('Bulk Run'!AQ145="","",'Bulk Run'!AQ145)) ->  | Q145: =IF(CALC_BASIS_BULK="Increase Net Pay",IF('Bulk Run'!AJ145="","",'Bulk Run'!AJ145),IF('Bulk Run'!AR145="","",'Bulk Run'!AR145)) ->  | R145: =IF(CALC_BASIS_BULK="Increase Net Pay",IF('Bulk Run'!AM145="","",'Bulk Run'!AM145),IF('Bulk Run'!AU145="","",'Bulk Run'!AU145)) ->  | S145: =IF(CALC_BASIS_BULK="Increase Net Pay",IF('Bulk Run'!AN145="","",'Bulk Run'!AN145),IF('Bulk Run'!AV145="","",'Bulk Run'!AV145)) ->  | T145: =IF(CALC_BASIS_BULK="Increase Net Pay",IF('Bulk Run'!AO145="","",'Bulk Run'!AO145),IF('Bulk Run'!AW145="","",'Bulk Run'!AW145)) ->  | U145: =IF(CALC_BASIS_BULK="Increase Net Pay",IF('Bulk Run'!AK145="","",'Bulk Run'!AK145),IF('Bulk Run'!AS145="","",'Bulk Run'!AS145)) ->  | V145: =IF(CALC_BASIS_BULK="Increase Net Pay",IF('Bulk Run'!AL145="","",'Bulk Run'!AL145),IF('Bulk Run'!AT145="","",'Bulk Run'!AT145)) ->  | W145: =IF(CALC_BASIS_BULK="Increase Net Pay",IF('Bulk Run'!AP145="","",'Bulk Run'!AP145),IF('Bulk Run'!AX145="","",'Bulk Run'!AX145)) -> 
A146: 131 | B146: =IF('Bulk Run'!B146="","",'Bulk Run'!B146) ->  | C146: =IF('Bulk Run'!C146="","",'Bulk Run'!C146) ->  | D146: =IF('Bulk Run'!W146="","",'Bulk Run'!W146/FREQ_BULK) ->  | E146: =IF('Bulk Run'!AB146="","",'Bulk Run'!AB146) ->  | F146: =IF('Bulk Run'!AF146="","",'Bulk Run'!AF146) ->  | G146: =IF('Bulk Run'!AG146="","",'Bulk Run'!AG146) ->  | H146: =IF('Bulk Run'!AC146="","",'Bulk Run'!AC146) ->  | I146: =IF('Bulk Run'!AD146="","",'Bulk Run'!AD146) ->  | J146: =IF('Bulk Run'!AE146="","",'Bulk Run'!AE146) ->  | K146: =IF('Bulk Run'!AH146="","",'Bulk Run'!AH146) ->  | N146: =IF('Bulk Run'!B146="","",'Bulk Run'!B146) ->  | O146: =IF('Bulk Run'!C146="","",'Bulk Run'!C146) ->  | P146: =IF(CALC_BASIS_BULK="Increase Net Pay",IF('Bulk Run'!AI146="","",'Bulk Run'!AI146),IF('Bulk Run'!AQ146="","",'Bulk Run'!AQ146)) ->  | Q146: =IF(CALC_BASIS_BULK="Increase Net Pay",IF('Bulk Run'!AJ146="","",'Bulk Run'!AJ146),IF('Bulk Run'!AR146="","",'Bulk Run'!AR146)) ->  | R146: =IF(CALC_BASIS_BULK="Increase Net Pay",IF('Bulk Run'!AM146="","",'Bulk Run'!AM146),IF('Bulk Run'!AU146="","",'Bulk Run'!AU146)) ->  | S146: =IF(CALC_BASIS_BULK="Increase Net Pay",IF('Bulk Run'!AN146="","",'Bulk Run'!AN146),IF('Bulk Run'!AV146="","",'Bulk Run'!AV146)) ->  | T146: =IF(CALC_BASIS_BULK="Increase Net Pay",IF('Bulk Run'!AO146="","",'Bulk Run'!AO146),IF('Bulk Run'!AW146="","",'Bulk Run'!AW146)) ->  | U146: =IF(CALC_BASIS_BULK="Increase Net Pay",IF('Bulk Run'!AK146="","",'Bulk Run'!AK146),IF('Bulk Run'!AS146="","",'Bulk Run'!AS146)) ->  | V146: =IF(CALC_BASIS_BULK="Increase Net Pay",IF('Bulk Run'!AL146="","",'Bulk Run'!AL146),IF('Bulk Run'!AT146="","",'Bulk Run'!AT146)) ->  | W146: =IF(CALC_BASIS_BULK="Increase Net Pay",IF('Bulk Run'!AP146="","",'Bulk Run'!AP146),IF('Bulk Run'!AX146="","",'Bulk Run'!AX146)) -> 
A147: 132 | B147: =IF('Bulk Run'!B147="","",'Bulk Run'!B147) ->  | C147: =IF('Bulk Run'!C147="","",'Bulk Run'!C147) ->  | D147: =IF('Bulk Run'!W147="","",'Bulk Run'!W147/FREQ_BULK) ->  | E147: =IF('Bulk Run'!AB147="","",'Bulk Run'!AB147) ->  | F147: =IF('Bulk Run'!AF147="","",'Bulk Run'!AF147) ->  | G147: =IF('Bulk Run'!AG147="","",'Bulk Run'!AG147) ->  | H147: =IF('Bulk Run'!AC147="","",'Bulk Run'!AC147) ->  | I147: =IF('Bulk Run'!AD147="","",'Bulk Run'!AD147) ->  | J147: =IF('Bulk Run'!AE147="","",'Bulk Run'!AE147) ->  | K147: =IF('Bulk Run'!AH147="","",'Bulk Run'!AH147) ->  | N147: =IF('Bulk Run'!B147="","",'Bulk Run'!B147) ->  | O147: =IF('Bulk Run'!C147="","",'Bulk Run'!C147) ->  | P147: =IF(CALC_BASIS_BULK="Increase Net Pay",IF('Bulk Run'!AI147="","",'Bulk Run'!AI147),IF('Bulk Run'!AQ147="","",'Bulk Run'!AQ147)) ->  | Q147: =IF(CALC_BASIS_BULK="Increase Net Pay",IF('Bulk Run'!AJ147="","",'Bulk Run'!AJ147),IF('Bulk Run'!AR147="","",'Bulk Run'!AR147)) ->  | R147: =IF(CALC_BASIS_BULK="Increase Net Pay",IF('Bulk Run'!AM147="","",'Bulk Run'!AM147),IF('Bulk Run'!AU147="","",'Bulk Run'!AU147)) ->  | S147: =IF(CALC_BASIS_BULK="Increase Net Pay",IF('Bulk Run'!AN147="","",'Bulk Run'!AN147),IF('Bulk Run'!AV147="","",'Bulk Run'!AV147)) ->  | T147: =IF(CALC_BASIS_BULK="Increase Net Pay",IF('Bulk Run'!AO147="","",'Bulk Run'!AO147),IF('Bulk Run'!AW147="","",'Bulk Run'!AW147)) ->  | U147: =IF(CALC_BASIS_BULK="Increase Net Pay",IF('Bulk Run'!AK147="","",'Bulk Run'!AK147),IF('Bulk Run'!AS147="","",'Bulk Run'!AS147)) ->  | V147: =IF(CALC_BASIS_BULK="Increase Net Pay",IF('Bulk Run'!AL147="","",'Bulk Run'!AL147),IF('Bulk Run'!AT147="","",'Bulk Run'!AT147)) ->  | W147: =IF(CALC_BASIS_BULK="Increase Net Pay",IF('Bulk Run'!AP147="","",'Bulk Run'!AP147),IF('Bulk Run'!AX147="","",'Bulk Run'!AX147)) -> 
A148: 133 | B148: =IF('Bulk Run'!B148="","",'Bulk Run'!B148) ->  | C148: =IF('Bulk Run'!C148="","",'Bulk Run'!C148) ->  | D148: =IF('Bulk Run'!W148="","",'Bulk Run'!W148/FREQ_BULK) ->  | E148: =IF('Bulk Run'!AB148="","",'Bulk Run'!AB148) ->  | F148: =IF('Bulk Run'!AF148="","",'Bulk Run'!AF148) ->  | G148: =IF('Bulk Run'!AG148="","",'Bulk Run'!AG148) ->  | H148: =IF('Bulk Run'!AC148="","",'Bulk Run'!AC148) ->  | I148: =IF('Bulk Run'!AD148="","",'Bulk Run'!AD148) ->  | J148: =IF('Bulk Run'!AE148="","",'Bulk Run'!AE148) ->  | K148: =IF('Bulk Run'!AH148="","",'Bulk Run'!AH148) ->  | N148: =IF('Bulk Run'!B148="","",'Bulk Run'!B148) ->  | O148: =IF('Bulk Run'!C148="","",'Bulk Run'!C148) ->  | P148: =IF(CALC_BASIS_BULK="Increase Net Pay",IF('Bulk Run'!AI148="","",'Bulk Run'!AI148),IF('Bulk Run'!AQ148="","",'Bulk Run'!AQ148)) ->  | Q148: =IF(CALC_BASIS_BULK="Increase Net Pay",IF('Bulk Run'!AJ148="","",'Bulk Run'!AJ148),IF('Bulk Run'!AR148="","",'Bulk Run'!AR148)) ->  | R148: =IF(CALC_BASIS_BULK="Increase Net Pay",IF('Bulk Run'!AM148="","",'Bulk Run'!AM148),IF('Bulk Run'!AU148="","",'Bulk Run'!AU148)) ->  | S148: =IF(CALC_BASIS_BULK="Increase Net Pay",IF('Bulk Run'!AN148="","",'Bulk Run'!AN148),IF('Bulk Run'!AV148="","",'Bulk Run'!AV148)) ->  | T148: =IF(CALC_BASIS_BULK="Increase Net Pay",IF('Bulk Run'!AO148="","",'Bulk Run'!AO148),IF('Bulk Run'!AW148="","",'Bulk Run'!AW148)) ->  | U148: =IF(CALC_BASIS_BULK="Increase Net Pay",IF('Bulk Run'!AK148="","",'Bulk Run'!AK148),IF('Bulk Run'!AS148="","",'Bulk Run'!AS148)) ->  | V148: =IF(CALC_BASIS_BULK="Increase Net Pay",IF('Bulk Run'!AL148="","",'Bulk Run'!AL148),IF('Bulk Run'!AT148="","",'Bulk Run'!AT148)) ->  | W148: =IF(CALC_BASIS_BULK="Increase Net Pay",IF('Bulk Run'!AP148="","",'Bulk Run'!AP148),IF('Bulk Run'!AX148="","",'Bulk Run'!AX148)) -> 
A149: 134 | B149: =IF('Bulk Run'!B149="","",'Bulk Run'!B149) ->  | C149: =IF('Bulk Run'!C149="","",'Bulk Run'!C149) ->  | D149: =IF('Bulk Run'!W149="","",'Bulk Run'!W149/FREQ_BULK) ->  | E149: =IF('Bulk Run'!AB149="","",'Bulk Run'!AB149) ->  | F149: =IF('Bulk Run'!AF149="","",'Bulk Run'!AF149) ->  | G149: =IF('Bulk Run'!AG149="","",'Bulk Run'!AG149) ->  | H149: =IF('Bulk Run'!AC149="","",'Bulk Run'!AC149) ->  | I149: =IF('Bulk Run'!AD149="","",'Bulk Run'!AD149) ->  | J149: =IF('Bulk Run'!AE149="","",'Bulk Run'!AE149) ->  | K149: =IF('Bulk Run'!AH149="","",'Bulk Run'!AH149) ->  | N149: =IF('Bulk Run'!B149="","",'Bulk Run'!B149) ->  | O149: =IF('Bulk Run'!C149="","",'Bulk Run'!C149) ->  | P149: =IF(CALC_BASIS_BULK="Increase Net Pay",IF('Bulk Run'!AI149="","",'Bulk Run'!AI149),IF('Bulk Run'!AQ149="","",'Bulk Run'!AQ149)) ->  | Q149: =IF(CALC_BASIS_BULK="Increase Net Pay",IF('Bulk Run'!AJ149="","",'Bulk Run'!AJ149),IF('Bulk Run'!AR149="","",'Bulk Run'!AR149)) ->  | R149: =IF(CALC_BASIS_BULK="Increase Net Pay",IF('Bulk Run'!AM149="","",'Bulk Run'!AM149),IF('Bulk Run'!AU149="","",'Bulk Run'!AU149)) ->  | S149: =IF(CALC_BASIS_BULK="Increase Net Pay",IF('Bulk Run'!AN149="","",'Bulk Run'!AN149),IF('Bulk Run'!AV149="","",'Bulk Run'!AV149)) ->  | T149: =IF(CALC_BASIS_BULK="Increase Net Pay",IF('Bulk Run'!AO149="","",'Bulk Run'!AO149),IF('Bulk Run'!AW149="","",'Bulk Run'!AW149)) ->  | U149: =IF(CALC_BASIS_BULK="Increase Net Pay",IF('Bulk Run'!AK149="","",'Bulk Run'!AK149),IF('Bulk Run'!AS149="","",'Bulk Run'!AS149)) ->  | V149: =IF(CALC_BASIS_BULK="Increase Net Pay",IF('Bulk Run'!AL149="","",'Bulk Run'!AL149),IF('Bulk Run'!AT149="","",'Bulk Run'!AT149)) ->  | W149: =IF(CALC_BASIS_BULK="Increase Net Pay",IF('Bulk Run'!AP149="","",'Bulk Run'!AP149),IF('Bulk Run'!AX149="","",'Bulk Run'!AX149)) -> 
A150: 135 | B150: =IF('Bulk Run'!B150="","",'Bulk Run'!B150) ->  | C150: =IF('Bulk Run'!C150="","",'Bulk Run'!C150) ->  | D150: =IF('Bulk Run'!W150="","",'Bulk Run'!W150/FREQ_BULK) ->  | E150: =IF('Bulk Run'!AB150="","",'Bulk Run'!AB150) ->  | F150: =IF('Bulk Run'!AF150="","",'Bulk Run'!AF150) ->  | G150: =IF('Bulk Run'!AG150="","",'Bulk Run'!AG150) ->  | H150: =IF('Bulk Run'!AC150="","",'Bulk Run'!AC150) ->  | I150: =IF('Bulk Run'!AD150="","",'Bulk Run'!AD150) ->  | J150: =IF('Bulk Run'!AE150="","",'Bulk Run'!AE150) ->  | K150: =IF('Bulk Run'!AH150="","",'Bulk Run'!AH150) ->  | N150: =IF('Bulk Run'!B150="","",'Bulk Run'!B150) ->  | O150: =IF('Bulk Run'!C150="","",'Bulk Run'!C150) ->  | P150: =IF(CALC_BASIS_BULK="Increase Net Pay",IF('Bulk Run'!AI150="","",'Bulk Run'!AI150),IF('Bulk Run'!AQ150="","",'Bulk Run'!AQ150)) ->  | Q150: =IF(CALC_BASIS_BULK="Increase Net Pay",IF('Bulk Run'!AJ150="","",'Bulk Run'!AJ150),IF('Bulk Run'!AR150="","",'Bulk Run'!AR150)) ->  | R150: =IF(CALC_BASIS_BULK="Increase Net Pay",IF('Bulk Run'!AM150="","",'Bulk Run'!AM150),IF('Bulk Run'!AU150="","",'Bulk Run'!AU150)) ->  | S150: =IF(CALC_BASIS_BULK="Increase Net Pay",IF('Bulk Run'!AN150="","",'Bulk Run'!AN150),IF('Bulk Run'!AV150="","",'Bulk Run'!AV150)) ->  | T150: =IF(CALC_BASIS_BULK="Increase Net Pay",IF('Bulk Run'!AO150="","",'Bulk Run'!AO150),IF('Bulk Run'!AW150="","",'Bulk Run'!AW150)) ->  | U150: =IF(CALC_BASIS_BULK="Increase Net Pay",IF('Bulk Run'!AK150="","",'Bulk Run'!AK150),IF('Bulk Run'!AS150="","",'Bulk Run'!AS150)) ->  | V150: =IF(CALC_BASIS_BULK="Increase Net Pay",IF('Bulk Run'!AL150="","",'Bulk Run'!AL150),IF('Bulk Run'!AT150="","",'Bulk Run'!AT150)) ->  | W150: =IF(CALC_BASIS_BULK="Increase Net Pay",IF('Bulk Run'!AP150="","",'Bulk Run'!AP150),IF('Bulk Run'!AX150="","",'Bulk Run'!AX150)) -> 
A151: 136 | B151: =IF('Bulk Run'!B151="","",'Bulk Run'!B151) ->  | C151: =IF('Bulk Run'!C151="","",'Bulk Run'!C151) ->  | D151: =IF('Bulk Run'!W151="","",'Bulk Run'!W151/FREQ_BULK) ->  | E151: =IF('Bulk Run'!AB151="","",'Bulk Run'!AB151) ->  | F151: =IF('Bulk Run'!AF151="","",'Bulk Run'!AF151) ->  | G151: =IF('Bulk Run'!AG151="","",'Bulk Run'!AG151) ->  | H151: =IF('Bulk Run'!AC151="","",'Bulk Run'!AC151) ->  | I151: =IF('Bulk Run'!AD151="","",'Bulk Run'!AD151) ->  | J151: =IF('Bulk Run'!AE151="","",'Bulk Run'!AE151) ->  | K151: =IF('Bulk Run'!AH151="","",'Bulk Run'!AH151) ->  | N151: =IF('Bulk Run'!B151="","",'Bulk Run'!B151) ->  | O151: =IF('Bulk Run'!C151="","",'Bulk Run'!C151) ->  | P151: =IF(CALC_BASIS_BULK="Increase Net Pay",IF('Bulk Run'!AI151="","",'Bulk Run'!AI151),IF('Bulk Run'!AQ151="","",'Bulk Run'!AQ151)) ->  | Q151: =IF(CALC_BASIS_BULK="Increase Net Pay",IF('Bulk Run'!AJ151="","",'Bulk Run'!AJ151),IF('Bulk Run'!AR151="","",'Bulk Run'!AR151)) ->  | R151: =IF(CALC_BASIS_BULK="Increase Net Pay",IF('Bulk Run'!AM151="","",'Bulk Run'!AM151),IF('Bulk Run'!AU151="","",'Bulk Run'!AU151)) ->  | S151: =IF(CALC_BASIS_BULK="Increase Net Pay",IF('Bulk Run'!AN151="","",'Bulk Run'!AN151),IF('Bulk Run'!AV151="","",'Bulk Run'!AV151)) ->  | T151: =IF(CALC_BASIS_BULK="Increase Net Pay",IF('Bulk Run'!AO151="","",'Bulk Run'!AO151),IF('Bulk Run'!AW151="","",'Bulk Run'!AW151)) ->  | U151: =IF(CALC_BASIS_BULK="Increase Net Pay",IF('Bulk Run'!AK151="","",'Bulk Run'!AK151),IF('Bulk Run'!AS151="","",'Bulk Run'!AS151)) ->  | V151: =IF(CALC_BASIS_BULK="Increase Net Pay",IF('Bulk Run'!AL151="","",'Bulk Run'!AL151),IF('Bulk Run'!AT151="","",'Bulk Run'!AT151)) ->  | W151: =IF(CALC_BASIS_BULK="Increase Net Pay",IF('Bulk Run'!AP151="","",'Bulk Run'!AP151),IF('Bulk Run'!AX151="","",'Bulk Run'!AX151)) -> 
A152: 137 | B152: =IF('Bulk Run'!B152="","",'Bulk Run'!B152) ->  | C152: =IF('Bulk Run'!C152="","",'Bulk Run'!C152) ->  | D152: =IF('Bulk Run'!W152="","",'Bulk Run'!W152/FREQ_BULK) ->  | E152: =IF('Bulk Run'!AB152="","",'Bulk Run'!AB152) ->  | F152: =IF('Bulk Run'!AF152="","",'Bulk Run'!AF152) ->  | G152: =IF('Bulk Run'!AG152="","",'Bulk Run'!AG152) ->  | H152: =IF('Bulk Run'!AC152="","",'Bulk Run'!AC152) ->  | I152: =IF('Bulk Run'!AD152="","",'Bulk Run'!AD152) ->  | J152: =IF('Bulk Run'!AE152="","",'Bulk Run'!AE152) ->  | K152: =IF('Bulk Run'!AH152="","",'Bulk Run'!AH152) ->  | N152: =IF('Bulk Run'!B152="","",'Bulk Run'!B152) ->  | O152: =IF('Bulk Run'!C152="","",'Bulk Run'!C152) ->  | P152: =IF(CALC_BASIS_BULK="Increase Net Pay",IF('Bulk Run'!AI152="","",'Bulk Run'!AI152),IF('Bulk Run'!AQ152="","",'Bulk Run'!AQ152)) ->  | Q152: =IF(CALC_BASIS_BULK="Increase Net Pay",IF('Bulk Run'!AJ152="","",'Bulk Run'!AJ152),IF('Bulk Run'!AR152="","",'Bulk Run'!AR152)) ->  | R152: =IF(CALC_BASIS_BULK="Increase Net Pay",IF('Bulk Run'!AM152="","",'Bulk Run'!AM152),IF('Bulk Run'!AU152="","",'Bulk Run'!AU152)) ->  | S152: =IF(CALC_BASIS_BULK="Increase Net Pay",IF('Bulk Run'!AN152="","",'Bulk Run'!AN152),IF('Bulk Run'!AV152="","",'Bulk Run'!AV152)) ->  | T152: =IF(CALC_BASIS_BULK="Increase Net Pay",IF('Bulk Run'!AO152="","",'Bulk Run'!AO152),IF('Bulk Run'!AW152="","",'Bulk Run'!AW152)) ->  | U152: =IF(CALC_BASIS_BULK="Increase Net Pay",IF('Bulk Run'!AK152="","",'Bulk Run'!AK152),IF('Bulk Run'!AS152="","",'Bulk Run'!AS152)) ->  | V152: =IF(CALC_BASIS_BULK="Increase Net Pay",IF('Bulk Run'!AL152="","",'Bulk Run'!AL152),IF('Bulk Run'!AT152="","",'Bulk Run'!AT152)) ->  | W152: =IF(CALC_BASIS_BULK="Increase Net Pay",IF('Bulk Run'!AP152="","",'Bulk Run'!AP152),IF('Bulk Run'!AX152="","",'Bulk Run'!AX152)) -> 
A153: 138 | B153: =IF('Bulk Run'!B153="","",'Bulk Run'!B153) ->  | C153: =IF('Bulk Run'!C153="","",'Bulk Run'!C153) ->  | D153: =IF('Bulk Run'!W153="","",'Bulk Run'!W153/FREQ_BULK) ->  | E153: =IF('Bulk Run'!AB153="","",'Bulk Run'!AB153) ->  | F153: =IF('Bulk Run'!AF153="","",'Bulk Run'!AF153) ->  | G153: =IF('Bulk Run'!AG153="","",'Bulk Run'!AG153) ->  | H153: =IF('Bulk Run'!AC153="","",'Bulk Run'!AC153) ->  | I153: =IF('Bulk Run'!AD153="","",'Bulk Run'!AD153) ->  | J153: =IF('Bulk Run'!AE153="","",'Bulk Run'!AE153) ->  | K153: =IF('Bulk Run'!AH153="","",'Bulk Run'!AH153) ->  | N153: =IF('Bulk Run'!B153="","",'Bulk Run'!B153) ->  | O153: =IF('Bulk Run'!C153="","",'Bulk Run'!C153) ->  | P153: =IF(CALC_BASIS_BULK="Increase Net Pay",IF('Bulk Run'!AI153="","",'Bulk Run'!AI153),IF('Bulk Run'!AQ153="","",'Bulk Run'!AQ153)) ->  | Q153: =IF(CALC_BASIS_BULK="Increase Net Pay",IF('Bulk Run'!AJ153="","",'Bulk Run'!AJ153),IF('Bulk Run'!AR153="","",'Bulk Run'!AR153)) ->  | R153: =IF(CALC_BASIS_BULK="Increase Net Pay",IF('Bulk Run'!AM153="","",'Bulk Run'!AM153),IF('Bulk Run'!AU153="","",'Bulk Run'!AU153)) ->  | S153: =IF(CALC_BASIS_BULK="Increase Net Pay",IF('Bulk Run'!AN153="","",'Bulk Run'!AN153),IF('Bulk Run'!AV153="","",'Bulk Run'!AV153)) ->  | T153: =IF(CALC_BASIS_BULK="Increase Net Pay",IF('Bulk Run'!AO153="","",'Bulk Run'!AO153),IF('Bulk Run'!AW153="","",'Bulk Run'!AW153)) ->  | U153: =IF(CALC_BASIS_BULK="Increase Net Pay",IF('Bulk Run'!AK153="","",'Bulk Run'!AK153),IF('Bulk Run'!AS153="","",'Bulk Run'!AS153)) ->  | V153: =IF(CALC_BASIS_BULK="Increase Net Pay",IF('Bulk Run'!AL153="","",'Bulk Run'!AL153),IF('Bulk Run'!AT153="","",'Bulk Run'!AT153)) ->  | W153: =IF(CALC_BASIS_BULK="Increase Net Pay",IF('Bulk Run'!AP153="","",'Bulk Run'!AP153),IF('Bulk Run'!AX153="","",'Bulk Run'!AX153)) -> 
A154: 139 | B154: =IF('Bulk Run'!B154="","",'Bulk Run'!B154) ->  | C154: =IF('Bulk Run'!C154="","",'Bulk Run'!C154) ->  | D154: =IF('Bulk Run'!W154="","",'Bulk Run'!W154/FREQ_BULK) ->  | E154: =IF('Bulk Run'!AB154="","",'Bulk Run'!AB154) ->  | F154: =IF('Bulk Run'!AF154="","",'Bulk Run'!AF154) ->  | G154: =IF('Bulk Run'!AG154="","",'Bulk Run'!AG154) ->  | H154: =IF('Bulk Run'!AC154="","",'Bulk Run'!AC154) ->  | I154: =IF('Bulk Run'!AD154="","",'Bulk Run'!AD154) ->  | J154: =IF('Bulk Run'!AE154="","",'Bulk Run'!AE154) ->  | K154: =IF('Bulk Run'!AH154="","",'Bulk Run'!AH154) ->  | N154: =IF('Bulk Run'!B154="","",'Bulk Run'!B154) ->  | O154: =IF('Bulk Run'!C154="","",'Bulk Run'!C154) ->  | P154: =IF(CALC_BASIS_BULK="Increase Net Pay",IF('Bulk Run'!AI154="","",'Bulk Run'!AI154),IF('Bulk Run'!AQ154="","",'Bulk Run'!AQ154)) ->  | Q154: =IF(CALC_BASIS_BULK="Increase Net Pay",IF('Bulk Run'!AJ154="","",'Bulk Run'!AJ154),IF('Bulk Run'!AR154="","",'Bulk Run'!AR154)) ->  | R154: =IF(CALC_BASIS_BULK="Increase Net Pay",IF('Bulk Run'!AM154="","",'Bulk Run'!AM154),IF('Bulk Run'!AU154="","",'Bulk Run'!AU154)) ->  | S154: =IF(CALC_BASIS_BULK="Increase Net Pay",IF('Bulk Run'!AN154="","",'Bulk Run'!AN154),IF('Bulk Run'!AV154="","",'Bulk Run'!AV154)) ->  | T154: =IF(CALC_BASIS_BULK="Increase Net Pay",IF('Bulk Run'!AO154="","",'Bulk Run'!AO154),IF('Bulk Run'!AW154="","",'Bulk Run'!AW154)) ->  | U154: =IF(CALC_BASIS_BULK="Increase Net Pay",IF('Bulk Run'!AK154="","",'Bulk Run'!AK154),IF('Bulk Run'!AS154="","",'Bulk Run'!AS154)) ->  | V154: =IF(CALC_BASIS_BULK="Increase Net Pay",IF('Bulk Run'!AL154="","",'Bulk Run'!AL154),IF('Bulk Run'!AT154="","",'Bulk Run'!AT154)) ->  | W154: =IF(CALC_BASIS_BULK="Increase Net Pay",IF('Bulk Run'!AP154="","",'Bulk Run'!AP154),IF('Bulk Run'!AX154="","",'Bulk Run'!AX154)) -> 
A155: 140 | B155: =IF('Bulk Run'!B155="","",'Bulk Run'!B155) ->  | C155: =IF('Bulk Run'!C155="","",'Bulk Run'!C155) ->  | D155: =IF('Bulk Run'!W155="","",'Bulk Run'!W155/FREQ_BULK) ->  | E155: =IF('Bulk Run'!AB155="","",'Bulk Run'!AB155) ->  | F155: =IF('Bulk Run'!AF155="","",'Bulk Run'!AF155) ->  | G155: =IF('Bulk Run'!AG155="","",'Bulk Run'!AG155) ->  | H155: =IF('Bulk Run'!AC155="","",'Bulk Run'!AC155) ->  | I155: =IF('Bulk Run'!AD155="","",'Bulk Run'!AD155) ->  | J155: =IF('Bulk Run'!AE155="","",'Bulk Run'!AE155) ->  | K155: =IF('Bulk Run'!AH155="","",'Bulk Run'!AH155) ->  | N155: =IF('Bulk Run'!B155="","",'Bulk Run'!B155) ->  | O155: =IF('Bulk Run'!C155="","",'Bulk Run'!C155) ->  | P155: =IF(CALC_BASIS_BULK="Increase Net Pay",IF('Bulk Run'!AI155="","",'Bulk Run'!AI155),IF('Bulk Run'!AQ155="","",'Bulk Run'!AQ155)) ->  | Q155: =IF(CALC_BASIS_BULK="Increase Net Pay",IF('Bulk Run'!AJ155="","",'Bulk Run'!AJ155),IF('Bulk Run'!AR155="","",'Bulk Run'!AR155)) ->  | R155: =IF(CALC_BASIS_BULK="Increase Net Pay",IF('Bulk Run'!AM155="","",'Bulk Run'!AM155),IF('Bulk Run'!AU155="","",'Bulk Run'!AU155)) ->  | S155: =IF(CALC_BASIS_BULK="Increase Net Pay",IF('Bulk Run'!AN155="","",'Bulk Run'!AN155),IF('Bulk Run'!AV155="","",'Bulk Run'!AV155)) ->  | T155: =IF(CALC_BASIS_BULK="Increase Net Pay",IF('Bulk Run'!AO155="","",'Bulk Run'!AO155),IF('Bulk Run'!AW155="","",'Bulk Run'!AW155)) ->  | U155: =IF(CALC_BASIS_BULK="Increase Net Pay",IF('Bulk Run'!AK155="","",'Bulk Run'!AK155),IF('Bulk Run'!AS155="","",'Bulk Run'!AS155)) ->  | V155: =IF(CALC_BASIS_BULK="Increase Net Pay",IF('Bulk Run'!AL155="","",'Bulk Run'!AL155),IF('Bulk Run'!AT155="","",'Bulk Run'!AT155)) ->  | W155: =IF(CALC_BASIS_BULK="Increase Net Pay",IF('Bulk Run'!AP155="","",'Bulk Run'!AP155),IF('Bulk Run'!AX155="","",'Bulk Run'!AX155)) -> 
A156: 141 | B156: =IF('Bulk Run'!B156="","",'Bulk Run'!B156) ->  | C156: =IF('Bulk Run'!C156="","",'Bulk Run'!C156) ->  | D156: =IF('Bulk Run'!W156="","",'Bulk Run'!W156/FREQ_BULK) ->  | E156: =IF('Bulk Run'!AB156="","",'Bulk Run'!AB156) ->  | F156: =IF('Bulk Run'!AF156="","",'Bulk Run'!AF156) ->  | G156: =IF('Bulk Run'!AG156="","",'Bulk Run'!AG156) ->  | H156: =IF('Bulk Run'!AC156="","",'Bulk Run'!AC156) ->  | I156: =IF('Bulk Run'!AD156="","",'Bulk Run'!AD156) ->  | J156: =IF('Bulk Run'!AE156="","",'Bulk Run'!AE156) ->  | K156: =IF('Bulk Run'!AH156="","",'Bulk Run'!AH156) ->  | N156: =IF('Bulk Run'!B156="","",'Bulk Run'!B156) ->  | O156: =IF('Bulk Run'!C156="","",'Bulk Run'!C156) ->  | P156: =IF(CALC_BASIS_BULK="Increase Net Pay",IF('Bulk Run'!AI156="","",'Bulk Run'!AI156),IF('Bulk Run'!AQ156="","",'Bulk Run'!AQ156)) ->  | Q156: =IF(CALC_BASIS_BULK="Increase Net Pay",IF('Bulk Run'!AJ156="","",'Bulk Run'!AJ156),IF('Bulk Run'!AR156="","",'Bulk Run'!AR156)) ->  | R156: =IF(CALC_BASIS_BULK="Increase Net Pay",IF('Bulk Run'!AM156="","",'Bulk Run'!AM156),IF('Bulk Run'!AU156="","",'Bulk Run'!AU156)) ->  | S156: =IF(CALC_BASIS_BULK="Increase Net Pay",IF('Bulk Run'!AN156="","",'Bulk Run'!AN156),IF('Bulk Run'!AV156="","",'Bulk Run'!AV156)) ->  | T156: =IF(CALC_BASIS_BULK="Increase Net Pay",IF('Bulk Run'!AO156="","",'Bulk Run'!AO156),IF('Bulk Run'!AW156="","",'Bulk Run'!AW156)) ->  | U156: =IF(CALC_BASIS_BULK="Increase Net Pay",IF('Bulk Run'!AK156="","",'Bulk Run'!AK156),IF('Bulk Run'!AS156="","",'Bulk Run'!AS156)) ->  | V156: =IF(CALC_BASIS_BULK="Increase Net Pay",IF('Bulk Run'!AL156="","",'Bulk Run'!AL156),IF('Bulk Run'!AT156="","",'Bulk Run'!AT156)) ->  | W156: =IF(CALC_BASIS_BULK="Increase Net Pay",IF('Bulk Run'!AP156="","",'Bulk Run'!AP156),IF('Bulk Run'!AX156="","",'Bulk Run'!AX156)) -> 
A157: 142 | B157: =IF('Bulk Run'!B157="","",'Bulk Run'!B157) ->  | C157: =IF('Bulk Run'!C157="","",'Bulk Run'!C157) ->  | D157: =IF('Bulk Run'!W157="","",'Bulk Run'!W157/FREQ_BULK) ->  | E157: =IF('Bulk Run'!AB157="","",'Bulk Run'!AB157) ->  | F157: =IF('Bulk Run'!AF157="","",'Bulk Run'!AF157) ->  | G157: =IF('Bulk Run'!AG157="","",'Bulk Run'!AG157) ->  | H157: =IF('Bulk Run'!AC157="","",'Bulk Run'!AC157) ->  | I157: =IF('Bulk Run'!AD157="","",'Bulk Run'!AD157) ->  | J157: =IF('Bulk Run'!AE157="","",'Bulk Run'!AE157) ->  | K157: =IF('Bulk Run'!AH157="","",'Bulk Run'!AH157) ->  | N157: =IF('Bulk Run'!B157="","",'Bulk Run'!B157) ->  | O157: =IF('Bulk Run'!C157="","",'Bulk Run'!C157) ->  | P157: =IF(CALC_BASIS_BULK="Increase Net Pay",IF('Bulk Run'!AI157="","",'Bulk Run'!AI157),IF('Bulk Run'!AQ157="","",'Bulk Run'!AQ157)) ->  | Q157: =IF(CALC_BASIS_BULK="Increase Net Pay",IF('Bulk Run'!AJ157="","",'Bulk Run'!AJ157),IF('Bulk Run'!AR157="","",'Bulk Run'!AR157)) ->  | R157: =IF(CALC_BASIS_BULK="Increase Net Pay",IF('Bulk Run'!AM157="","",'Bulk Run'!AM157),IF('Bulk Run'!AU157="","",'Bulk Run'!AU157)) ->  | S157: =IF(CALC_BASIS_BULK="Increase Net Pay",IF('Bulk Run'!AN157="","",'Bulk Run'!AN157),IF('Bulk Run'!AV157="","",'Bulk Run'!AV157)) ->  | T157: =IF(CALC_BASIS_BULK="Increase Net Pay",IF('Bulk Run'!AO157="","",'Bulk Run'!AO157),IF('Bulk Run'!AW157="","",'Bulk Run'!AW157)) ->  | U157: =IF(CALC_BASIS_BULK="Increase Net Pay",IF('Bulk Run'!AK157="","",'Bulk Run'!AK157),IF('Bulk Run'!AS157="","",'Bulk Run'!AS157)) ->  | V157: =IF(CALC_BASIS_BULK="Increase Net Pay",IF('Bulk Run'!AL157="","",'Bulk Run'!AL157),IF('Bulk Run'!AT157="","",'Bulk Run'!AT157)) ->  | W157: =IF(CALC_BASIS_BULK="Increase Net Pay",IF('Bulk Run'!AP157="","",'Bulk Run'!AP157),IF('Bulk Run'!AX157="","",'Bulk Run'!AX157)) -> 
A158: 143 | B158: =IF('Bulk Run'!B158="","",'Bulk Run'!B158) ->  | C158: =IF('Bulk Run'!C158="","",'Bulk Run'!C158) ->  | D158: =IF('Bulk Run'!W158="","",'Bulk Run'!W158/FREQ_BULK) ->  | E158: =IF('Bulk Run'!AB158="","",'Bulk Run'!AB158) ->  | F158: =IF('Bulk Run'!AF158="","",'Bulk Run'!AF158) ->  | G158: =IF('Bulk Run'!AG158="","",'Bulk Run'!AG158) ->  | H158: =IF('Bulk Run'!AC158="","",'Bulk Run'!AC158) ->  | I158: =IF('Bulk Run'!AD158="","",'Bulk Run'!AD158) ->  | J158: =IF('Bulk Run'!AE158="","",'Bulk Run'!AE158) ->  | K158: =IF('Bulk Run'!AH158="","",'Bulk Run'!AH158) ->  | N158: =IF('Bulk Run'!B158="","",'Bulk Run'!B158) ->  | O158: =IF('Bulk Run'!C158="","",'Bulk Run'!C158) ->  | P158: =IF(CALC_BASIS_BULK="Increase Net Pay",IF('Bulk Run'!AI158="","",'Bulk Run'!AI158),IF('Bulk Run'!AQ158="","",'Bulk Run'!AQ158)) ->  | Q158: =IF(CALC_BASIS_BULK="Increase Net Pay",IF('Bulk Run'!AJ158="","",'Bulk Run'!AJ158),IF('Bulk Run'!AR158="","",'Bulk Run'!AR158)) ->  | R158: =IF(CALC_BASIS_BULK="Increase Net Pay",IF('Bulk Run'!AM158="","",'Bulk Run'!AM158),IF('Bulk Run'!AU158="","",'Bulk Run'!AU158)) ->  | S158: =IF(CALC_BASIS_BULK="Increase Net Pay",IF('Bulk Run'!AN158="","",'Bulk Run'!AN158),IF('Bulk Run'!AV158="","",'Bulk Run'!AV158)) ->  | T158: =IF(CALC_BASIS_BULK="Increase Net Pay",IF('Bulk Run'!AO158="","",'Bulk Run'!AO158),IF('Bulk Run'!AW158="","",'Bulk Run'!AW158)) ->  | U158: =IF(CALC_BASIS_BULK="Increase Net Pay",IF('Bulk Run'!AK158="","",'Bulk Run'!AK158),IF('Bulk Run'!AS158="","",'Bulk Run'!AS158)) ->  | V158: =IF(CALC_BASIS_BULK="Increase Net Pay",IF('Bulk Run'!AL158="","",'Bulk Run'!AL158),IF('Bulk Run'!AT158="","",'Bulk Run'!AT158)) ->  | W158: =IF(CALC_BASIS_BULK="Increase Net Pay",IF('Bulk Run'!AP158="","",'Bulk Run'!AP158),IF('Bulk Run'!AX158="","",'Bulk Run'!AX158)) -> 
A159: 144 | B159: =IF('Bulk Run'!B159="","",'Bulk Run'!B159) ->  | C159: =IF('Bulk Run'!C159="","",'Bulk Run'!C159) ->  | D159: =IF('Bulk Run'!W159="","",'Bulk Run'!W159/FREQ_BULK) ->  | E159: =IF('Bulk Run'!AB159="","",'Bulk Run'!AB159) ->  | F159: =IF('Bulk Run'!AF159="","",'Bulk Run'!AF159) ->  | G159: =IF('Bulk Run'!AG159="","",'Bulk Run'!AG159) ->  | H159: =IF('Bulk Run'!AC159="","",'Bulk Run'!AC159) ->  | I159: =IF('Bulk Run'!AD159="","",'Bulk Run'!AD159) ->  | J159: =IF('Bulk Run'!AE159="","",'Bulk Run'!AE159) ->  | K159: =IF('Bulk Run'!AH159="","",'Bulk Run'!AH159) ->  | N159: =IF('Bulk Run'!B159="","",'Bulk Run'!B159) ->  | O159: =IF('Bulk Run'!C159="","",'Bulk Run'!C159) ->  | P159: =IF(CALC_BASIS_BULK="Increase Net Pay",IF('Bulk Run'!AI159="","",'Bulk Run'!AI159),IF('Bulk Run'!AQ159="","",'Bulk Run'!AQ159)) ->  | Q159: =IF(CALC_BASIS_BULK="Increase Net Pay",IF('Bulk Run'!AJ159="","",'Bulk Run'!AJ159),IF('Bulk Run'!AR159="","",'Bulk Run'!AR159)) ->  | R159: =IF(CALC_BASIS_BULK="Increase Net Pay",IF('Bulk Run'!AM159="","",'Bulk Run'!AM159),IF('Bulk Run'!AU159="","",'Bulk Run'!AU159)) ->  | S159: =IF(CALC_BASIS_BULK="Increase Net Pay",IF('Bulk Run'!AN159="","",'Bulk Run'!AN159),IF('Bulk Run'!AV159="","",'Bulk Run'!AV159)) ->  | T159: =IF(CALC_BASIS_BULK="Increase Net Pay",IF('Bulk Run'!AO159="","",'Bulk Run'!AO159),IF('Bulk Run'!AW159="","",'Bulk Run'!AW159)) ->  | U159: =IF(CALC_BASIS_BULK="Increase Net Pay",IF('Bulk Run'!AK159="","",'Bulk Run'!AK159),IF('Bulk Run'!AS159="","",'Bulk Run'!AS159)) ->  | V159: =IF(CALC_BASIS_BULK="Increase Net Pay",IF('Bulk Run'!AL159="","",'Bulk Run'!AL159),IF('Bulk Run'!AT159="","",'Bulk Run'!AT159)) ->  | W159: =IF(CALC_BASIS_BULK="Increase Net Pay",IF('Bulk Run'!AP159="","",'Bulk Run'!AP159),IF('Bulk Run'!AX159="","",'Bulk Run'!AX159)) -> 
A160: 145 | B160: =IF('Bulk Run'!B160="","",'Bulk Run'!B160) ->  | C160: =IF('Bulk Run'!C160="","",'Bulk Run'!C160) ->  | D160: =IF('Bulk Run'!W160="","",'Bulk Run'!W160/FREQ_BULK) ->  | E160: =IF('Bulk Run'!AB160="","",'Bulk Run'!AB160) ->  | F160: =IF('Bulk Run'!AF160="","",'Bulk Run'!AF160) ->  | G160: =IF('Bulk Run'!AG160="","",'Bulk Run'!AG160) ->  | H160: =IF('Bulk Run'!AC160="","",'Bulk Run'!AC160) ->  | I160: =IF('Bulk Run'!AD160="","",'Bulk Run'!AD160) ->  | J160: =IF('Bulk Run'!AE160="","",'Bulk Run'!AE160) ->  | K160: =IF('Bulk Run'!AH160="","",'Bulk Run'!AH160) ->  | N160: =IF('Bulk Run'!B160="","",'Bulk Run'!B160) ->  | O160: =IF('Bulk Run'!C160="","",'Bulk Run'!C160) ->  | P160: =IF(CALC_BASIS_BULK="Increase Net Pay",IF('Bulk Run'!AI160="","",'Bulk Run'!AI160),IF('Bulk Run'!AQ160="","",'Bulk Run'!AQ160)) ->  | Q160: =IF(CALC_BASIS_BULK="Increase Net Pay",IF('Bulk Run'!AJ160="","",'Bulk Run'!AJ160),IF('Bulk Run'!AR160="","",'Bulk Run'!AR160)) ->  | R160: =IF(CALC_BASIS_BULK="Increase Net Pay",IF('Bulk Run'!AM160="","",'Bulk Run'!AM160),IF('Bulk Run'!AU160="","",'Bulk Run'!AU160)) ->  | S160: =IF(CALC_BASIS_BULK="Increase Net Pay",IF('Bulk Run'!AN160="","",'Bulk Run'!AN160),IF('Bulk Run'!AV160="","",'Bulk Run'!AV160)) ->  | T160: =IF(CALC_BASIS_BULK="Increase Net Pay",IF('Bulk Run'!AO160="","",'Bulk Run'!AO160),IF('Bulk Run'!AW160="","",'Bulk Run'!AW160)) ->  | U160: =IF(CALC_BASIS_BULK="Increase Net Pay",IF('Bulk Run'!AK160="","",'Bulk Run'!AK160),IF('Bulk Run'!AS160="","",'Bulk Run'!AS160)) ->  | V160: =IF(CALC_BASIS_BULK="Increase Net Pay",IF('Bulk Run'!AL160="","",'Bulk Run'!AL160),IF('Bulk Run'!AT160="","",'Bulk Run'!AT160)) ->  | W160: =IF(CALC_BASIS_BULK="Increase Net Pay",IF('Bulk Run'!AP160="","",'Bulk Run'!AP160),IF('Bulk Run'!AX160="","",'Bulk Run'!AX160)) -> 
A161: 146 | B161: =IF('Bulk Run'!B161="","",'Bulk Run'!B161) ->  | C161: =IF('Bulk Run'!C161="","",'Bulk Run'!C161) ->  | D161: =IF('Bulk Run'!W161="","",'Bulk Run'!W161/FREQ_BULK) ->  | E161: =IF('Bulk Run'!AB161="","",'Bulk Run'!AB161) ->  | F161: =IF('Bulk Run'!AF161="","",'Bulk Run'!AF161) ->  | G161: =IF('Bulk Run'!AG161="","",'Bulk Run'!AG161) ->  | H161: =IF('Bulk Run'!AC161="","",'Bulk Run'!AC161) ->  | I161: =IF('Bulk Run'!AD161="","",'Bulk Run'!AD161) ->  | J161: =IF('Bulk Run'!AE161="","",'Bulk Run'!AE161) ->  | K161: =IF('Bulk Run'!AH161="","",'Bulk Run'!AH161) ->  | N161: =IF('Bulk Run'!B161="","",'Bulk Run'!B161) ->  | O161: =IF('Bulk Run'!C161="","",'Bulk Run'!C161) ->  | P161: =IF(CALC_BASIS_BULK="Increase Net Pay",IF('Bulk Run'!AI161="","",'Bulk Run'!AI161),IF('Bulk Run'!AQ161="","",'Bulk Run'!AQ161)) ->  | Q161: =IF(CALC_BASIS_BULK="Increase Net Pay",IF('Bulk Run'!AJ161="","",'Bulk Run'!AJ161),IF('Bulk Run'!AR161="","",'Bulk Run'!AR161)) ->  | R161: =IF(CALC_BASIS_BULK="Increase Net Pay",IF('Bulk Run'!AM161="","",'Bulk Run'!AM161),IF('Bulk Run'!AU161="","",'Bulk Run'!AU161)) ->  | S161: =IF(CALC_BASIS_BULK="Increase Net Pay",IF('Bulk Run'!AN161="","",'Bulk Run'!AN161),IF('Bulk Run'!AV161="","",'Bulk Run'!AV161)) ->  | T161: =IF(CALC_BASIS_BULK="Increase Net Pay",IF('Bulk Run'!AO161="","",'Bulk Run'!AO161),IF('Bulk Run'!AW161="","",'Bulk Run'!AW161)) ->  | U161: =IF(CALC_BASIS_BULK="Increase Net Pay",IF('Bulk Run'!AK161="","",'Bulk Run'!AK161),IF('Bulk Run'!AS161="","",'Bulk Run'!AS161)) ->  | V161: =IF(CALC_BASIS_BULK="Increase Net Pay",IF('Bulk Run'!AL161="","",'Bulk Run'!AL161),IF('Bulk Run'!AT161="","",'Bulk Run'!AT161)) ->  | W161: =IF(CALC_BASIS_BULK="Increase Net Pay",IF('Bulk Run'!AP161="","",'Bulk Run'!AP161),IF('Bulk Run'!AX161="","",'Bulk Run'!AX161)) -> 
A162: 147 | B162: =IF('Bulk Run'!B162="","",'Bulk Run'!B162) ->  | C162: =IF('Bulk Run'!C162="","",'Bulk Run'!C162) ->  | D162: =IF('Bulk Run'!W162="","",'Bulk Run'!W162/FREQ_BULK) ->  | E162: =IF('Bulk Run'!AB162="","",'Bulk Run'!AB162) ->  | F162: =IF('Bulk Run'!AF162="","",'Bulk Run'!AF162) ->  | G162: =IF('Bulk Run'!AG162="","",'Bulk Run'!AG162) ->  | H162: =IF('Bulk Run'!AC162="","",'Bulk Run'!AC162) ->  | I162: =IF('Bulk Run'!AD162="","",'Bulk Run'!AD162) ->  | J162: =IF('Bulk Run'!AE162="","",'Bulk Run'!AE162) ->  | K162: =IF('Bulk Run'!AH162="","",'Bulk Run'!AH162) ->  | N162: =IF('Bulk Run'!B162="","",'Bulk Run'!B162) ->  | O162: =IF('Bulk Run'!C162="","",'Bulk Run'!C162) ->  | P162: =IF(CALC_BASIS_BULK="Increase Net Pay",IF('Bulk Run'!AI162="","",'Bulk Run'!AI162),IF('Bulk Run'!AQ162="","",'Bulk Run'!AQ162)) ->  | Q162: =IF(CALC_BASIS_BULK="Increase Net Pay",IF('Bulk Run'!AJ162="","",'Bulk Run'!AJ162),IF('Bulk Run'!AR162="","",'Bulk Run'!AR162)) ->  | R162: =IF(CALC_BASIS_BULK="Increase Net Pay",IF('Bulk Run'!AM162="","",'Bulk Run'!AM162),IF('Bulk Run'!AU162="","",'Bulk Run'!AU162)) ->  | S162: =IF(CALC_BASIS_BULK="Increase Net Pay",IF('Bulk Run'!AN162="","",'Bulk Run'!AN162),IF('Bulk Run'!AV162="","",'Bulk Run'!AV162)) ->  | T162: =IF(CALC_BASIS_BULK="Increase Net Pay",IF('Bulk Run'!AO162="","",'Bulk Run'!AO162),IF('Bulk Run'!AW162="","",'Bulk Run'!AW162)) ->  | U162: =IF(CALC_BASIS_BULK="Increase Net Pay",IF('Bulk Run'!AK162="","",'Bulk Run'!AK162),IF('Bulk Run'!AS162="","",'Bulk Run'!AS162)) ->  | V162: =IF(CALC_BASIS_BULK="Increase Net Pay",IF('Bulk Run'!AL162="","",'Bulk Run'!AL162),IF('Bulk Run'!AT162="","",'Bulk Run'!AT162)) ->  | W162: =IF(CALC_BASIS_BULK="Increase Net Pay",IF('Bulk Run'!AP162="","",'Bulk Run'!AP162),IF('Bulk Run'!AX162="","",'Bulk Run'!AX162)) -> 
A163: 148 | B163: =IF('Bulk Run'!B163="","",'Bulk Run'!B163) ->  | C163: =IF('Bulk Run'!C163="","",'Bulk Run'!C163) ->  | D163: =IF('Bulk Run'!W163="","",'Bulk Run'!W163/FREQ_BULK) ->  | E163: =IF('Bulk Run'!AB163="","",'Bulk Run'!AB163) ->  | F163: =IF('Bulk Run'!AF163="","",'Bulk Run'!AF163) ->  | G163: =IF('Bulk Run'!AG163="","",'Bulk Run'!AG163) ->  | H163: =IF('Bulk Run'!AC163="","",'Bulk Run'!AC163) ->  | I163: =IF('Bulk Run'!AD163="","",'Bulk Run'!AD163) ->  | J163: =IF('Bulk Run'!AE163="","",'Bulk Run'!AE163) ->  | K163: =IF('Bulk Run'!AH163="","",'Bulk Run'!AH163) ->  | N163: =IF('Bulk Run'!B163="","",'Bulk Run'!B163) ->  | O163: =IF('Bulk Run'!C163="","",'Bulk Run'!C163) ->  | P163: =IF(CALC_BASIS_BULK="Increase Net Pay",IF('Bulk Run'!AI163="","",'Bulk Run'!AI163),IF('Bulk Run'!AQ163="","",'Bulk Run'!AQ163)) ->  | Q163: =IF(CALC_BASIS_BULK="Increase Net Pay",IF('Bulk Run'!AJ163="","",'Bulk Run'!AJ163),IF('Bulk Run'!AR163="","",'Bulk Run'!AR163)) ->  | R163: =IF(CALC_BASIS_BULK="Increase Net Pay",IF('Bulk Run'!AM163="","",'Bulk Run'!AM163),IF('Bulk Run'!AU163="","",'Bulk Run'!AU163)) ->  | S163: =IF(CALC_BASIS_BULK="Increase Net Pay",IF('Bulk Run'!AN163="","",'Bulk Run'!AN163),IF('Bulk Run'!AV163="","",'Bulk Run'!AV163)) ->  | T163: =IF(CALC_BASIS_BULK="Increase Net Pay",IF('Bulk Run'!AO163="","",'Bulk Run'!AO163),IF('Bulk Run'!AW163="","",'Bulk Run'!AW163)) ->  | U163: =IF(CALC_BASIS_BULK="Increase Net Pay",IF('Bulk Run'!AK163="","",'Bulk Run'!AK163),IF('Bulk Run'!AS163="","",'Bulk Run'!AS163)) ->  | V163: =IF(CALC_BASIS_BULK="Increase Net Pay",IF('Bulk Run'!AL163="","",'Bulk Run'!AL163),IF('Bulk Run'!AT163="","",'Bulk Run'!AT163)) ->  | W163: =IF(CALC_BASIS_BULK="Increase Net Pay",IF('Bulk Run'!AP163="","",'Bulk Run'!AP163),IF('Bulk Run'!AX163="","",'Bulk Run'!AX163)) -> 
A164: 149 | B164: =IF('Bulk Run'!B164="","",'Bulk Run'!B164) ->  | C164: =IF('Bulk Run'!C164="","",'Bulk Run'!C164) ->  | D164: =IF('Bulk Run'!W164="","",'Bulk Run'!W164/FREQ_BULK) ->  | E164: =IF('Bulk Run'!AB164="","",'Bulk Run'!AB164) ->  | F164: =IF('Bulk Run'!AF164="","",'Bulk Run'!AF164) ->  | G164: =IF('Bulk Run'!AG164="","",'Bulk Run'!AG164) ->  | H164: =IF('Bulk Run'!AC164="","",'Bulk Run'!AC164) ->  | I164: =IF('Bulk Run'!AD164="","",'Bulk Run'!AD164) ->  | J164: =IF('Bulk Run'!AE164="","",'Bulk Run'!AE164) ->  | K164: =IF('Bulk Run'!AH164="","",'Bulk Run'!AH164) ->  | N164: =IF('Bulk Run'!B164="","",'Bulk Run'!B164) ->  | O164: =IF('Bulk Run'!C164="","",'Bulk Run'!C164) ->  | P164: =IF(CALC_BASIS_BULK="Increase Net Pay",IF('Bulk Run'!AI164="","",'Bulk Run'!AI164),IF('Bulk Run'!AQ164="","",'Bulk Run'!AQ164)) ->  | Q164: =IF(CALC_BASIS_BULK="Increase Net Pay",IF('Bulk Run'!AJ164="","",'Bulk Run'!AJ164),IF('Bulk Run'!AR164="","",'Bulk Run'!AR164)) ->  | R164: =IF(CALC_BASIS_BULK="Increase Net Pay",IF('Bulk Run'!AM164="","",'Bulk Run'!AM164),IF('Bulk Run'!AU164="","",'Bulk Run'!AU164)) ->  | S164: =IF(CALC_BASIS_BULK="Increase Net Pay",IF('Bulk Run'!AN164="","",'Bulk Run'!AN164),IF('Bulk Run'!AV164="","",'Bulk Run'!AV164)) ->  | T164: =IF(CALC_BASIS_BULK="Increase Net Pay",IF('Bulk Run'!AO164="","",'Bulk Run'!AO164),IF('Bulk Run'!AW164="","",'Bulk Run'!AW164)) ->  | U164: =IF(CALC_BASIS_BULK="Increase Net Pay",IF('Bulk Run'!AK164="","",'Bulk Run'!AK164),IF('Bulk Run'!AS164="","",'Bulk Run'!AS164)) ->  | V164: =IF(CALC_BASIS_BULK="Increase Net Pay",IF('Bulk Run'!AL164="","",'Bulk Run'!AL164),IF('Bulk Run'!AT164="","",'Bulk Run'!AT164)) ->  | W164: =IF(CALC_BASIS_BULK="Increase Net Pay",IF('Bulk Run'!AP164="","",'Bulk Run'!AP164),IF('Bulk Run'!AX164="","",'Bulk Run'!AX164)) -> 
A165: 150 | B165: =IF('Bulk Run'!B165="","",'Bulk Run'!B165) ->  | C165: =IF('Bulk Run'!C165="","",'Bulk Run'!C165) ->  | D165: =IF('Bulk Run'!W165="","",'Bulk Run'!W165/FREQ_BULK) ->  | E165: =IF('Bulk Run'!AB165="","",'Bulk Run'!AB165) ->  | F165: =IF('Bulk Run'!AF165="","",'Bulk Run'!AF165) ->  | G165: =IF('Bulk Run'!AG165="","",'Bulk Run'!AG165) ->  | H165: =IF('Bulk Run'!AC165="","",'Bulk Run'!AC165) ->  | I165: =IF('Bulk Run'!AD165="","",'Bulk Run'!AD165) ->  | J165: =IF('Bulk Run'!AE165="","",'Bulk Run'!AE165) ->  | K165: =IF('Bulk Run'!AH165="","",'Bulk Run'!AH165) ->  | N165: =IF('Bulk Run'!B165="","",'Bulk Run'!B165) ->  | O165: =IF('Bulk Run'!C165="","",'Bulk Run'!C165) ->  | P165: =IF(CALC_BASIS_BULK="Increase Net Pay",IF('Bulk Run'!AI165="","",'Bulk Run'!AI165),IF('Bulk Run'!AQ165="","",'Bulk Run'!AQ165)) ->  | Q165: =IF(CALC_BASIS_BULK="Increase Net Pay",IF('Bulk Run'!AJ165="","",'Bulk Run'!AJ165),IF('Bulk Run'!AR165="","",'Bulk Run'!AR165)) ->  | R165: =IF(CALC_BASIS_BULK="Increase Net Pay",IF('Bulk Run'!AM165="","",'Bulk Run'!AM165),IF('Bulk Run'!AU165="","",'Bulk Run'!AU165)) ->  | S165: =IF(CALC_BASIS_BULK="Increase Net Pay",IF('Bulk Run'!AN165="","",'Bulk Run'!AN165),IF('Bulk Run'!AV165="","",'Bulk Run'!AV165)) ->  | T165: =IF(CALC_BASIS_BULK="Increase Net Pay",IF('Bulk Run'!AO165="","",'Bulk Run'!AO165),IF('Bulk Run'!AW165="","",'Bulk Run'!AW165)) ->  | U165: =IF(CALC_BASIS_BULK="Increase Net Pay",IF('Bulk Run'!AK165="","",'Bulk Run'!AK165),IF('Bulk Run'!AS165="","",'Bulk Run'!AS165)) ->  | V165: =IF(CALC_BASIS_BULK="Increase Net Pay",IF('Bulk Run'!AL165="","",'Bulk Run'!AL165),IF('Bulk Run'!AT165="","",'Bulk Run'!AT165)) ->  | W165: =IF(CALC_BASIS_BULK="Increase Net Pay",IF('Bulk Run'!AP165="","",'Bulk Run'!AP165),IF('Bulk Run'!AX165="","",'Bulk Run'!AX165)) -> 
A166: 151 | B166: =IF('Bulk Run'!B166="","",'Bulk Run'!B166) ->  | C166: =IF('Bulk Run'!C166="","",'Bulk Run'!C166) ->  | D166: =IF('Bulk Run'!W166="","",'Bulk Run'!W166/FREQ_BULK) ->  | E166: =IF('Bulk Run'!AB166="","",'Bulk Run'!AB166) ->  | F166: =IF('Bulk Run'!AF166="","",'Bulk Run'!AF166) ->  | G166: =IF('Bulk Run'!AG166="","",'Bulk Run'!AG166) ->  | H166: =IF('Bulk Run'!AC166="","",'Bulk Run'!AC166) ->  | I166: =IF('Bulk Run'!AD166="","",'Bulk Run'!AD166) ->  | J166: =IF('Bulk Run'!AE166="","",'Bulk Run'!AE166) ->  | K166: =IF('Bulk Run'!AH166="","",'Bulk Run'!AH166) ->  | N166: =IF('Bulk Run'!B166="","",'Bulk Run'!B166) ->  | O166: =IF('Bulk Run'!C166="","",'Bulk Run'!C166) ->  | P166: =IF(CALC_BASIS_BULK="Increase Net Pay",IF('Bulk Run'!AI166="","",'Bulk Run'!AI166),IF('Bulk Run'!AQ166="","",'Bulk Run'!AQ166)) ->  | Q166: =IF(CALC_BASIS_BULK="Increase Net Pay",IF('Bulk Run'!AJ166="","",'Bulk Run'!AJ166),IF('Bulk Run'!AR166="","",'Bulk Run'!AR166)) ->  | R166: =IF(CALC_BASIS_BULK="Increase Net Pay",IF('Bulk Run'!AM166="","",'Bulk Run'!AM166),IF('Bulk Run'!AU166="","",'Bulk Run'!AU166)) ->  | S166: =IF(CALC_BASIS_BULK="Increase Net Pay",IF('Bulk Run'!AN166="","",'Bulk Run'!AN166),IF('Bulk Run'!AV166="","",'Bulk Run'!AV166)) ->  | T166: =IF(CALC_BASIS_BULK="Increase Net Pay",IF('Bulk Run'!AO166="","",'Bulk Run'!AO166),IF('Bulk Run'!AW166="","",'Bulk Run'!AW166)) ->  | U166: =IF(CALC_BASIS_BULK="Increase Net Pay",IF('Bulk Run'!AK166="","",'Bulk Run'!AK166),IF('Bulk Run'!AS166="","",'Bulk Run'!AS166)) ->  | V166: =IF(CALC_BASIS_BULK="Increase Net Pay",IF('Bulk Run'!AL166="","",'Bulk Run'!AL166),IF('Bulk Run'!AT166="","",'Bulk Run'!AT166)) ->  | W166: =IF(CALC_BASIS_BULK="Increase Net Pay",IF('Bulk Run'!AP166="","",'Bulk Run'!AP166),IF('Bulk Run'!AX166="","",'Bulk Run'!AX166)) -> 
A167: 152 | B167: =IF('Bulk Run'!B167="","",'Bulk Run'!B167) ->  | C167: =IF('Bulk Run'!C167="","",'Bulk Run'!C167) ->  | D167: =IF('Bulk Run'!W167="","",'Bulk Run'!W167/FREQ_BULK) ->  | E167: =IF('Bulk Run'!AB167="","",'Bulk Run'!AB167) ->  | F167: =IF('Bulk Run'!AF167="","",'Bulk Run'!AF167) ->  | G167: =IF('Bulk Run'!AG167="","",'Bulk Run'!AG167) ->  | H167: =IF('Bulk Run'!AC167="","",'Bulk Run'!AC167) ->  | I167: =IF('Bulk Run'!AD167="","",'Bulk Run'!AD167) ->  | J167: =IF('Bulk Run'!AE167="","",'Bulk Run'!AE167) ->  | K167: =IF('Bulk Run'!AH167="","",'Bulk Run'!AH167) ->  | N167: =IF('Bulk Run'!B167="","",'Bulk Run'!B167) ->  | O167: =IF('Bulk Run'!C167="","",'Bulk Run'!C167) ->  | P167: =IF(CALC_BASIS_BULK="Increase Net Pay",IF('Bulk Run'!AI167="","",'Bulk Run'!AI167),IF('Bulk Run'!AQ167="","",'Bulk Run'!AQ167)) ->  | Q167: =IF(CALC_BASIS_BULK="Increase Net Pay",IF('Bulk Run'!AJ167="","",'Bulk Run'!AJ167),IF('Bulk Run'!AR167="","",'Bulk Run'!AR167)) ->  | R167: =IF(CALC_BASIS_BULK="Increase Net Pay",IF('Bulk Run'!AM167="","",'Bulk Run'!AM167),IF('Bulk Run'!AU167="","",'Bulk Run'!AU167)) ->  | S167: =IF(CALC_BASIS_BULK="Increase Net Pay",IF('Bulk Run'!AN167="","",'Bulk Run'!AN167),IF('Bulk Run'!AV167="","",'Bulk Run'!AV167)) ->  | T167: =IF(CALC_BASIS_BULK="Increase Net Pay",IF('Bulk Run'!AO167="","",'Bulk Run'!AO167),IF('Bulk Run'!AW167="","",'Bulk Run'!AW167)) ->  | U167: =IF(CALC_BASIS_BULK="Increase Net Pay",IF('Bulk Run'!AK167="","",'Bulk Run'!AK167),IF('Bulk Run'!AS167="","",'Bulk Run'!AS167)) ->  | V167: =IF(CALC_BASIS_BULK="Increase Net Pay",IF('Bulk Run'!AL167="","",'Bulk Run'!AL167),IF('Bulk Run'!AT167="","",'Bulk Run'!AT167)) ->  | W167: =IF(CALC_BASIS_BULK="Increase Net Pay",IF('Bulk Run'!AP167="","",'Bulk Run'!AP167),IF('Bulk Run'!AX167="","",'Bulk Run'!AX167)) -> 
A168: 153 | B168: =IF('Bulk Run'!B168="","",'Bulk Run'!B168) ->  | C168: =IF('Bulk Run'!C168="","",'Bulk Run'!C168) ->  | D168: =IF('Bulk Run'!W168="","",'Bulk Run'!W168/FREQ_BULK) ->  | E168: =IF('Bulk Run'!AB168="","",'Bulk Run'!AB168) ->  | F168: =IF('Bulk Run'!AF168="","",'Bulk Run'!AF168) ->  | G168: =IF('Bulk Run'!AG168="","",'Bulk Run'!AG168) ->  | H168: =IF('Bulk Run'!AC168="","",'Bulk Run'!AC168) ->  | I168: =IF('Bulk Run'!AD168="","",'Bulk Run'!AD168) ->  | J168: =IF('Bulk Run'!AE168="","",'Bulk Run'!AE168) ->  | K168: =IF('Bulk Run'!AH168="","",'Bulk Run'!AH168) ->  | N168: =IF('Bulk Run'!B168="","",'Bulk Run'!B168) ->  | O168: =IF('Bulk Run'!C168="","",'Bulk Run'!C168) ->  | P168: =IF(CALC_BASIS_BULK="Increase Net Pay",IF('Bulk Run'!AI168="","",'Bulk Run'!AI168),IF('Bulk Run'!AQ168="","",'Bulk Run'!AQ168)) ->  | Q168: =IF(CALC_BASIS_BULK="Increase Net Pay",IF('Bulk Run'!AJ168="","",'Bulk Run'!AJ168),IF('Bulk Run'!AR168="","",'Bulk Run'!AR168)) ->  | R168: =IF(CALC_BASIS_BULK="Increase Net Pay",IF('Bulk Run'!AM168="","",'Bulk Run'!AM168),IF('Bulk Run'!AU168="","",'Bulk Run'!AU168)) ->  | S168: =IF(CALC_BASIS_BULK="Increase Net Pay",IF('Bulk Run'!AN168="","",'Bulk Run'!AN168),IF('Bulk Run'!AV168="","",'Bulk Run'!AV168)) ->  | T168: =IF(CALC_BASIS_BULK="Increase Net Pay",IF('Bulk Run'!AO168="","",'Bulk Run'!AO168),IF('Bulk Run'!AW168="","",'Bulk Run'!AW168)) ->  | U168: =IF(CALC_BASIS_BULK="Increase Net Pay",IF('Bulk Run'!AK168="","",'Bulk Run'!AK168),IF('Bulk Run'!AS168="","",'Bulk Run'!AS168)) ->  | V168: =IF(CALC_BASIS_BULK="Increase Net Pay",IF('Bulk Run'!AL168="","",'Bulk Run'!AL168),IF('Bulk Run'!AT168="","",'Bulk Run'!AT168)) ->  | W168: =IF(CALC_BASIS_BULK="Increase Net Pay",IF('Bulk Run'!AP168="","",'Bulk Run'!AP168),IF('Bulk Run'!AX168="","",'Bulk Run'!AX168)) -> 
A169: 154 | B169: =IF('Bulk Run'!B169="","",'Bulk Run'!B169) ->  | C169: =IF('Bulk Run'!C169="","",'Bulk Run'!C169) ->  | D169: =IF('Bulk Run'!W169="","",'Bulk Run'!W169/FREQ_BULK) ->  | E169: =IF('Bulk Run'!AB169="","",'Bulk Run'!AB169) ->  | F169: =IF('Bulk Run'!AF169="","",'Bulk Run'!AF169) ->  | G169: =IF('Bulk Run'!AG169="","",'Bulk Run'!AG169) ->  | H169: =IF('Bulk Run'!AC169="","",'Bulk Run'!AC169) ->  | I169: =IF('Bulk Run'!AD169="","",'Bulk Run'!AD169) ->  | J169: =IF('Bulk Run'!AE169="","",'Bulk Run'!AE169) ->  | K169: =IF('Bulk Run'!AH169="","",'Bulk Run'!AH169) ->  | N169: =IF('Bulk Run'!B169="","",'Bulk Run'!B169) ->  | O169: =IF('Bulk Run'!C169="","",'Bulk Run'!C169) ->  | P169: =IF(CALC_BASIS_BULK="Increase Net Pay",IF('Bulk Run'!AI169="","",'Bulk Run'!AI169),IF('Bulk Run'!AQ169="","",'Bulk Run'!AQ169)) ->  | Q169: =IF(CALC_BASIS_BULK="Increase Net Pay",IF('Bulk Run'!AJ169="","",'Bulk Run'!AJ169),IF('Bulk Run'!AR169="","",'Bulk Run'!AR169)) ->  | R169: =IF(CALC_BASIS_BULK="Increase Net Pay",IF('Bulk Run'!AM169="","",'Bulk Run'!AM169),IF('Bulk Run'!AU169="","",'Bulk Run'!AU169)) ->  | S169: =IF(CALC_BASIS_BULK="Increase Net Pay",IF('Bulk Run'!AN169="","",'Bulk Run'!AN169),IF('Bulk Run'!AV169="","",'Bulk Run'!AV169)) ->  | T169: =IF(CALC_BASIS_BULK="Increase Net Pay",IF('Bulk Run'!AO169="","",'Bulk Run'!AO169),IF('Bulk Run'!AW169="","",'Bulk Run'!AW169)) ->  | U169: =IF(CALC_BASIS_BULK="Increase Net Pay",IF('Bulk Run'!AK169="","",'Bulk Run'!AK169),IF('Bulk Run'!AS169="","",'Bulk Run'!AS169)) ->  | V169: =IF(CALC_BASIS_BULK="Increase Net Pay",IF('Bulk Run'!AL169="","",'Bulk Run'!AL169),IF('Bulk Run'!AT169="","",'Bulk Run'!AT169)) ->  | W169: =IF(CALC_BASIS_BULK="Increase Net Pay",IF('Bulk Run'!AP169="","",'Bulk Run'!AP169),IF('Bulk Run'!AX169="","",'Bulk Run'!AX169)) -> 
A170: 155 | B170: =IF('Bulk Run'!B170="","",'Bulk Run'!B170) ->  | C170: =IF('Bulk Run'!C170="","",'Bulk Run'!C170) ->  | D170: =IF('Bulk Run'!W170="","",'Bulk Run'!W170/FREQ_BULK) ->  | E170: =IF('Bulk Run'!AB170="","",'Bulk Run'!AB170) ->  | F170: =IF('Bulk Run'!AF170="","",'Bulk Run'!AF170) ->  | G170: =IF('Bulk Run'!AG170="","",'Bulk Run'!AG170) ->  | H170: =IF('Bulk Run'!AC170="","",'Bulk Run'!AC170) ->  | I170: =IF('Bulk Run'!AD170="","",'Bulk Run'!AD170) ->  | J170: =IF('Bulk Run'!AE170="","",'Bulk Run'!AE170) ->  | K170: =IF('Bulk Run'!AH170="","",'Bulk Run'!AH170) ->  | N170: =IF('Bulk Run'!B170="","",'Bulk Run'!B170) ->  | O170: =IF('Bulk Run'!C170="","",'Bulk Run'!C170) ->  | P170: =IF(CALC_BASIS_BULK="Increase Net Pay",IF('Bulk Run'!AI170="","",'Bulk Run'!AI170),IF('Bulk Run'!AQ170="","",'Bulk Run'!AQ170)) ->  | Q170: =IF(CALC_BASIS_BULK="Increase Net Pay",IF('Bulk Run'!AJ170="","",'Bulk Run'!AJ170),IF('Bulk Run'!AR170="","",'Bulk Run'!AR170)) ->  | R170: =IF(CALC_BASIS_BULK="Increase Net Pay",IF('Bulk Run'!AM170="","",'Bulk Run'!AM170),IF('Bulk Run'!AU170="","",'Bulk Run'!AU170)) ->  | S170: =IF(CALC_BASIS_BULK="Increase Net Pay",IF('Bulk Run'!AN170="","",'Bulk Run'!AN170),IF('Bulk Run'!AV170="","",'Bulk Run'!AV170)) ->  | T170: =IF(CALC_BASIS_BULK="Increase Net Pay",IF('Bulk Run'!AO170="","",'Bulk Run'!AO170),IF('Bulk Run'!AW170="","",'Bulk Run'!AW170)) ->  | U170: =IF(CALC_BASIS_BULK="Increase Net Pay",IF('Bulk Run'!AK170="","",'Bulk Run'!AK170),IF('Bulk Run'!AS170="","",'Bulk Run'!AS170)) ->  | V170: =IF(CALC_BASIS_BULK="Increase Net Pay",IF('Bulk Run'!AL170="","",'Bulk Run'!AL170),IF('Bulk Run'!AT170="","",'Bulk Run'!AT170)) ->  | W170: =IF(CALC_BASIS_BULK="Increase Net Pay",IF('Bulk Run'!AP170="","",'Bulk Run'!AP170),IF('Bulk Run'!AX170="","",'Bulk Run'!AX170)) -> 
A171: 156 | B171: =IF('Bulk Run'!B171="","",'Bulk Run'!B171) ->  | C171: =IF('Bulk Run'!C171="","",'Bulk Run'!C171) ->  | D171: =IF('Bulk Run'!W171="","",'Bulk Run'!W171/FREQ_BULK) ->  | E171: =IF('Bulk Run'!AB171="","",'Bulk Run'!AB171) ->  | F171: =IF('Bulk Run'!AF171="","",'Bulk Run'!AF171) ->  | G171: =IF('Bulk Run'!AG171="","",'Bulk Run'!AG171) ->  | H171: =IF('Bulk Run'!AC171="","",'Bulk Run'!AC171) ->  | I171: =IF('Bulk Run'!AD171="","",'Bulk Run'!AD171) ->  | J171: =IF('Bulk Run'!AE171="","",'Bulk Run'!AE171) ->  | K171: =IF('Bulk Run'!AH171="","",'Bulk Run'!AH171) ->  | N171: =IF('Bulk Run'!B171="","",'Bulk Run'!B171) ->  | O171: =IF('Bulk Run'!C171="","",'Bulk Run'!C171) ->  | P171: =IF(CALC_BASIS_BULK="Increase Net Pay",IF('Bulk Run'!AI171="","",'Bulk Run'!AI171),IF('Bulk Run'!AQ171="","",'Bulk Run'!AQ171)) ->  | Q171: =IF(CALC_BASIS_BULK="Increase Net Pay",IF('Bulk Run'!AJ171="","",'Bulk Run'!AJ171),IF('Bulk Run'!AR171="","",'Bulk Run'!AR171)) ->  | R171: =IF(CALC_BASIS_BULK="Increase Net Pay",IF('Bulk Run'!AM171="","",'Bulk Run'!AM171),IF('Bulk Run'!AU171="","",'Bulk Run'!AU171)) ->  | S171: =IF(CALC_BASIS_BULK="Increase Net Pay",IF('Bulk Run'!AN171="","",'Bulk Run'!AN171),IF('Bulk Run'!AV171="","",'Bulk Run'!AV171)) ->  | T171: =IF(CALC_BASIS_BULK="Increase Net Pay",IF('Bulk Run'!AO171="","",'Bulk Run'!AO171),IF('Bulk Run'!AW171="","",'Bulk Run'!AW171)) ->  | U171: =IF(CALC_BASIS_BULK="Increase Net Pay",IF('Bulk Run'!AK171="","",'Bulk Run'!AK171),IF('Bulk Run'!AS171="","",'Bulk Run'!AS171)) ->  | V171: =IF(CALC_BASIS_BULK="Increase Net Pay",IF('Bulk Run'!AL171="","",'Bulk Run'!AL171),IF('Bulk Run'!AT171="","",'Bulk Run'!AT171)) ->  | W171: =IF(CALC_BASIS_BULK="Increase Net Pay",IF('Bulk Run'!AP171="","",'Bulk Run'!AP171),IF('Bulk Run'!AX171="","",'Bulk Run'!AX171)) -> 
A172: 157 | B172: =IF('Bulk Run'!B172="","",'Bulk Run'!B172) ->  | C172: =IF('Bulk Run'!C172="","",'Bulk Run'!C172) ->  | D172: =IF('Bulk Run'!W172="","",'Bulk Run'!W172/FREQ_BULK) ->  | E172: =IF('Bulk Run'!AB172="","",'Bulk Run'!AB172) ->  | F172: =IF('Bulk Run'!AF172="","",'Bulk Run'!AF172) ->  | G172: =IF('Bulk Run'!AG172="","",'Bulk Run'!AG172) ->  | H172: =IF('Bulk Run'!AC172="","",'Bulk Run'!AC172) ->  | I172: =IF('Bulk Run'!AD172="","",'Bulk Run'!AD172) ->  | J172: =IF('Bulk Run'!AE172="","",'Bulk Run'!AE172) ->  | K172: =IF('Bulk Run'!AH172="","",'Bulk Run'!AH172) ->  | N172: =IF('Bulk Run'!B172="","",'Bulk Run'!B172) ->  | O172: =IF('Bulk Run'!C172="","",'Bulk Run'!C172) ->  | P172: =IF(CALC_BASIS_BULK="Increase Net Pay",IF('Bulk Run'!AI172="","",'Bulk Run'!AI172),IF('Bulk Run'!AQ172="","",'Bulk Run'!AQ172)) ->  | Q172: =IF(CALC_BASIS_BULK="Increase Net Pay",IF('Bulk Run'!AJ172="","",'Bulk Run'!AJ172),IF('Bulk Run'!AR172="","",'Bulk Run'!AR172)) ->  | R172: =IF(CALC_BASIS_BULK="Increase Net Pay",IF('Bulk Run'!AM172="","",'Bulk Run'!AM172),IF('Bulk Run'!AU172="","",'Bulk Run'!AU172)) ->  | S172: =IF(CALC_BASIS_BULK="Increase Net Pay",IF('Bulk Run'!AN172="","",'Bulk Run'!AN172),IF('Bulk Run'!AV172="","",'Bulk Run'!AV172)) ->  | T172: =IF(CALC_BASIS_BULK="Increase Net Pay",IF('Bulk Run'!AO172="","",'Bulk Run'!AO172),IF('Bulk Run'!AW172="","",'Bulk Run'!AW172)) ->  | U172: =IF(CALC_BASIS_BULK="Increase Net Pay",IF('Bulk Run'!AK172="","",'Bulk Run'!AK172),IF('Bulk Run'!AS172="","",'Bulk Run'!AS172)) ->  | V172: =IF(CALC_BASIS_BULK="Increase Net Pay",IF('Bulk Run'!AL172="","",'Bulk Run'!AL172),IF('Bulk Run'!AT172="","",'Bulk Run'!AT172)) ->  | W172: =IF(CALC_BASIS_BULK="Increase Net Pay",IF('Bulk Run'!AP172="","",'Bulk Run'!AP172),IF('Bulk Run'!AX172="","",'Bulk Run'!AX172)) -> 
A173: 158 | B173: =IF('Bulk Run'!B173="","",'Bulk Run'!B173) ->  | C173: =IF('Bulk Run'!C173="","",'Bulk Run'!C173) ->  | D173: =IF('Bulk Run'!W173="","",'Bulk Run'!W173/FREQ_BULK) ->  | E173: =IF('Bulk Run'!AB173="","",'Bulk Run'!AB173) ->  | F173: =IF('Bulk Run'!AF173="","",'Bulk Run'!AF173) ->  | G173: =IF('Bulk Run'!AG173="","",'Bulk Run'!AG173) ->  | H173: =IF('Bulk Run'!AC173="","",'Bulk Run'!AC173) ->  | I173: =IF('Bulk Run'!AD173="","",'Bulk Run'!AD173) ->  | J173: =IF('Bulk Run'!AE173="","",'Bulk Run'!AE173) ->  | K173: =IF('Bulk Run'!AH173="","",'Bulk Run'!AH173) ->  | N173: =IF('Bulk Run'!B173="","",'Bulk Run'!B173) ->  | O173: =IF('Bulk Run'!C173="","",'Bulk Run'!C173) ->  | P173: =IF(CALC_BASIS_BULK="Increase Net Pay",IF('Bulk Run'!AI173="","",'Bulk Run'!AI173),IF('Bulk Run'!AQ173="","",'Bulk Run'!AQ173)) ->  | Q173: =IF(CALC_BASIS_BULK="Increase Net Pay",IF('Bulk Run'!AJ173="","",'Bulk Run'!AJ173),IF('Bulk Run'!AR173="","",'Bulk Run'!AR173)) ->  | R173: =IF(CALC_BASIS_BULK="Increase Net Pay",IF('Bulk Run'!AM173="","",'Bulk Run'!AM173),IF('Bulk Run'!AU173="","",'Bulk Run'!AU173)) ->  | S173: =IF(CALC_BASIS_BULK="Increase Net Pay",IF('Bulk Run'!AN173="","",'Bulk Run'!AN173),IF('Bulk Run'!AV173="","",'Bulk Run'!AV173)) ->  | T173: =IF(CALC_BASIS_BULK="Increase Net Pay",IF('Bulk Run'!AO173="","",'Bulk Run'!AO173),IF('Bulk Run'!AW173="","",'Bulk Run'!AW173)) ->  | U173: =IF(CALC_BASIS_BULK="Increase Net Pay",IF('Bulk Run'!AK173="","",'Bulk Run'!AK173),IF('Bulk Run'!AS173="","",'Bulk Run'!AS173)) ->  | V173: =IF(CALC_BASIS_BULK="Increase Net Pay",IF('Bulk Run'!AL173="","",'Bulk Run'!AL173),IF('Bulk Run'!AT173="","",'Bulk Run'!AT173)) ->  | W173: =IF(CALC_BASIS_BULK="Increase Net Pay",IF('Bulk Run'!AP173="","",'Bulk Run'!AP173),IF('Bulk Run'!AX173="","",'Bulk Run'!AX173)) -> 
